Workbook

Sheet Introduction
C8: Notified Maximum Demand (NMD) rules impact model
C10: - This model is designed to provide you with an analysis of the impact from the changes to the Notified Maximum Demand (NMD) rules per point of delivery (POD).
C11: - For more details on the changes to the Notified Maximum Demand (NMD) rules, click here | I11: NMD Rules on the Eskom Internet site
C13: Getting started
C15: The information (data inputs) required of each point of delivery (POD) to conduct an analysis in this model are:
C16: 1. The retail tariff (see table below)
C17: 2. The Notified Maximum Demand (NMD) in kVA
C18: 3. Actual/maximum demand (kVA) per month over the last 12 months and/or projected demand for the next 12 months.
C19: 4.The voltage level at which the supply is taken (see table below).
C20: 5.The Transmission zone in which the point of delivery (POD) is located (see table below).
C22: Using the tool
C23: 1. Click on the start button located on the right to commence.
C24: 2. Follow the instructions on each page to capture the data inputs.
C25: 3. Click on the respective buttons to view results or print or move around the tool.
C27: Retail tariffs | G27: Voltage level | I27: Transmission zone | J27: Distance | L27: Enquiries
C28: For NCC charges for applicable tariff go to www.eskom.co.za/tariffs | G28: > 132 kV | I28: Zone 0 | J28: < 300 km | L28: Send email to electricitypricing@eskom.co.za
G29: > 66 kV and < 132 kV | I29: Zone 1 | J29: > 300 km and < 600 km
C30: For Nightsave Urban (Large & Small) and Megaflex tariffs the NCC charge is unbundled into Dx NCC, LV subsidy and Tx network charges | G30: > 500 V and < 66 kV | I30: Zone 2 | J30: > 600 km and < 900 km
G31: < 500 V | I31: Zone 3 | J31: > 900 km
C33: These rates are in 2021/22 rand value | L33: Version | M33: 2.11 | O33: Updated on : 5 March 2021

Sheet Requirements (hidden)
B2: The NMD rules model development
A4: 2009/02/05 | B4: Hi Cish,
B6: Please find attache the NMD rules application spreadsheet where I have worked out how to apply the rules together with explanations. As discussed yesterday, I took you through the application of the rules.
B8: I have since put together the "impact model" which we want to put on the website for customers to plug in their NMD and monthly utilised capacity (MUC) over a minimum of 12 months (obviously the account number & name etc) and from that information, the model should calculate the applicable NCC as well as the excess NCC charge (the new charge/penalty) and then work out the total network charge that the customer is likely to pay if they do not correct their NMD. The model should also be able to tell the event numbers and whether the exceedance is a "free" one or not. Ideally there should be a message that goes with the result where the customer is exceeding their NMD (we can fine tune this later once the model is developed). We also need the results to be shown in graph format - I tried to put together some graphs.
B10: Please go ahead and automate the model and I will ask Shirley to also look at the model and give inputs before we finalise?
B12: The other spreadsheet which I shared with you yesterday was concentrating on downgrades and I didn't want to include it in this email as well because it could cause some confusion.
B14: Regards,
B15: Lerato
A18: 2009/02/09 | B18: OK agree!
B20: Shirley suggested the following as well:
B22: In the "Impact Model" worksheet column K, I see the NA is types in. You need to put in formula's to get it to be put in automatically. If would probable be an "If" formula that follows this logic - if the exceedance was within the first 2 events and in the deadband put the word "NA", if not calculate the excess NCC. It will be quite complicated so ask Cishimpi if he can help.
B24: The same goes for the reasons - they need to come from a lookup table.
B26: I would also like a summary table where you state how many times the NMD was exceeded and the additional amount payable.
B28: Regards,
B29: LL
B31: >>> Cishimpi Mabasa 2009/02/09 02:22 PM >>>
B32: Good afternoon Lerato,
B34: MUC and Actual demand are not always equal. Agree? Look under the MUC/Actual demand column. Where the Actual demand is < the NMD, the MUC should be equal to the NMD. I suggest that we have separate columns for MUC and MD.
B36: Regards,
B38: Cishimpi
A42: 2009/02/10
B43: You are right Cish, if it is above 5% limit of 105, then the penalty should apply...please change the MD from 110 to 105 so that it correlates with the reasons?
B45: Thanks!
B47: >>> Cishimpi Mabasa 2009/02/10 01:06 PM >>>
B48: Good afternoon,
B50: May we please clarify something: In the Impact Model sheet: Look at month 1. The 5% exceedance limit = 105, but the MUC/Actual demand = 110. So why is this a free exceedance, whereas it's above the 5% limit?
B52: Regards,
B54: Cishimpi
A58: 2009/02/11
B60: Sorry, the N/A is appropriate, it was just some negligence from my side! Thanks for picking this up!
B62: >>> Cishimpi Mabasa 2009/02/11 12:44 PM >>>
B63: Good afternoon,
B65: I see there is inconsistency between year 1 and year 2 in terms of the way the "free exceedance" calculation of the Excess NCC. During the first year the calculation of NCC is "N/A" for the 1st and 2nd "free exceedances", whereas in the second year a value is calculated. Which calculation is correct?
B67: Regards,
B69: Cishimpi

Sheet User inputs (hidden)
C3: Instructions: | D3: =CONCATENATE("Please enter the actual or forecasted demand per month in kVA below.") -> Please enter the actual or forecasted demand per month in kVA below.
D5: Month number | E5: Maximum Demand (kVA) | G5: ="Please note: month 1 is April " & LEFT('Default values'!C5,4) -> Please note: month 1 is April 2020
D6: 1 | G6: =CONCATENATE("Customer name: ",Calculations!$C$2) -> Customer name:
D7: 2 | G7: =CONCATENATE("Pod / Premise ID: ",Calculations!$C$4) -> Pod / Premise ID:
D8: 3 | G8: =CONCATENATE("NMD : ",Calculations!$C$5," kVA") -> NMD : kVA
D9: 4 | G9: =CONCATENATE("Tariff: ",Calculations!$C$6) -> Tariff:
D10: 5 | G10: =CONCATENATE("Voltage: ",Calculations!C7) -> Voltage:
D11: 6 | G11: =CONCATENATE("Transmission zone: ",Calculations!C8) -> Transmission zone: ≤ 300 km
D12: 7 | G12: =IF(Calculations!C9=FALSE,"",CONCATENATE("Local-Authority")) -> 
D13: 8
D14: 9
D15: 10
D16: 11
D17: 12
D18: 13
D19: 14
D20: 15
D21: 16
D22: 17
D23: 18
D24: 19
D25: 20
D26: 21
D27: 22
D28: 23
D29: 24

Sheet Calculations (hidden)
P1: Current rates | Q1: Previous rates
B2: Customer name | P2: =SUM(P3:P7) ->  | Q2: =SUM(Q3:Q7) ->  | AP2: FALSE
B3: Account number | O3: Tx NCC | P3: =VLOOKUP($C$6&$D$8&$D$7,'Current rates'!$A$4:$AJ$147,'Current rates'!$W$1,FALSE) ->  | Q3: =VLOOKUP($C$6 & $D$8 & $D$7, 'Previous rates'!$A$4:$AJ$147, 'Previous rates'!$W$1, FALSE) -> 
B4: POD/premise | O4: Dx NCC | P4: =VLOOKUP($C$6&$D$8&$D$7,'Current rates'!$A$4:$AJ$147,'Current rates'!$X$1,FALSE) ->  | Q4: =VLOOKUP($C$6 & $D$8 & $D$7, 'Previous rates'!$A$4:$AJ$147, 'Previous rates'!$X$1, FALSE) -> 
B5: NMD | O5: NCC Rural | P5: =VLOOKUP(CONCATENATE($C$6,$D$8,$D$7),'Current rates'!$A$4:$AJ$147,'Current rates'!$Z$1,FALSE) ->  | Q5: =VLOOKUP($C$6 & $D$8 & $D$7, 'Previous rates'!$A$4:$AJ$147, 'Previous rates'!$Z$1, FALSE) -> 
B6: Tariff | O6: NCC per POD | P6: =VLOOKUP($C$6&$D$8&$D$7,'Current rates'!$A$4:$AJ$147,'Current rates'!$AA$1,FALSE) ->  | Q6: =VLOOKUP($C$6 & $D$8 & $D$7, 'Previous rates'!$A$4:$AJ$147, 'Previous rates'!$AA$1, FALSE) -> 
B7: Voltage | O7: LV subsidy | P7: =VLOOKUP($C$6&$D$8&$D$7,'Current rates'!$A$4:$AJ$147,'Current rates'!$AH$1,FALSE) ->  | Q7: =VLOOKUP($C$6 & $D$8 & $D$7, 'Previous rates'!$A$4:$AJ$147, 'Previous rates'!$AH$1, FALSE) -> 
B8: Tx zone | C8: ≤ 300 km | D8: 0
B9: Local Authority | C9: FALSE
G10: Excel Calc | H10: Macro calc (for check)
B11: Month | C11: Excess NCC applicable | D11: NMD (kVA) | E11: Actual demand | F11: MUC | G11: AUC (kVA) | H11: AUC (kVA) | I11: Rolling 12 month averages | J11: Exceedance limit (5% of NMD) | K11: Event number | L11: Event description | M11: "Free" counts | N11: Accumulative Event counts | O11: Exceeded amount (kVA) | P11: NCC charge X AUC | Q11: Excees NCC (R/kVA) | R11: Total network charge | S11: Event indicator | T11: Event counter - rolling 12 months | W11: Month | X11: Current NCC | Y11: Total NCC impact | Z11: AUC (ignoring "free") | AA11: Max AUX over last 12 months
B12: 1 | C12: =IF(OR(F12>J12, L12="penalty"), "Yes", IF(AND(E12>D12, E12<=J12, K12<3), "No", "N/A")) -> N/A | D12: =$C$5 -> 0 | E12: ='User inputs'!E6 -> 0 | F12: =MAX(D12:E12) -> 0 | G12: =IF(L12="free", D12, MAX(F12)) -> 0 | H12: 200 | I12: =AVERAGE(H12) -> 200 | J12: =D12 * (1 + 'Default values'!$Q$8) -> 0 | K12: =IF(E12>D12,1+MAX(0),"") ->  | L12: =IF(K12="","", IF(AND(COUNTIF(L1:L11,"free")<'Default values'!$Q$9,E12>D12,E12<=J12),"free",IF(E12>J12,'Default values'!$Q$8*100&"%" & " exceeded","Penalty"))) ->  | M12: =IF(L12="free",COUNTIF(L1:L12,"free"),"") ->  | O12: =IF(E12-D12<0,0,E12-D12) -> 0 | P12: =IF(L12="free",MAX($F12,$H12),$H12)*$Q$2 ->  | Q12: =IF(AND($L12="free",$M12<='Default values'!$Q$9),"N/A",IF($T12="",0,$T12)*$O12*$Q$2) ->  | R12: =SUM(P12:Q12) ->  | S12: =IF(E12>D12,"event","") ->  | T12: =IF(S12="event",COUNTIF(S2:S12,"event"),"") ->  | W12: =B12 -> 1 | X12: =P12 ->  | Y12: =R12 ->  | Z12: =IF(L12="free","",F12) -> 0 | AA12: =MAX(Z1:Z12) -> 0
B13: =B12+1 -> 2 | C13: =IF(OR(F13>J13, L13="penalty"), "Yes", IF(AND(E13>D13, E13<=J13, K13<3), "No", "N/A")) -> N/A | D13: 0 | E13: ='User inputs'!E7 -> 0 | F13: =MAX(D13:E13) -> 0 | G13: =IF(L13="free",G12,MAX(F12:F13)) -> 0 | H13: 200 | I13: =AVERAGE(H12:H13) -> 200 | J13: =D13*(1 + 'Default values'!$Q$8) -> 0 | K13: =IF(E13>D13,1+MAX(K12),"") ->  | L13: =IF(K13="","",IF(AND(COUNTIF(L2:L12,"free")<'Default values'!$Q$9,E13>D13,E13<=J13),"free",IF(E13>J13,'Default values'!$Q$8*100&"%" & " exceeded","Penalty"))) ->  | O13: =IF(E13-D13<0,0,E13-D13) -> 0 | Q13: =IF(AND($L13="free",$M13<='Default values'!$Q$9),"N/A",IF($T13="",0,$T13)*$O13*$Q$2) ->  | S13: =IF(E13>D13,"event","") ->  | W13: =B13 -> 2 | X13: =P13 ->  | Y13: =R13 ->  | Z13: =IF(L13="free","",F13) -> 0 | AA13: 0
B14: 3 | C14: N/A | D14: 0 | E14: ='User inputs'!E8 -> 0 | F14: 0 | G14: =IF(L14="free",G13,MAX(F12:F14)) -> 0 | H14: 200 | I14: =AVERAGE(H12:H14) -> 200 | J14: =D14*(1 + 'Default values'!$Q$8) -> 0 | K14: =IF(E14>D14,1+MAX(K12:K13),"") ->  | L14: =IF(K14="","",IF(AND(COUNTIF(L3:L13,"free")<'Default values'!$Q$9,E14>D14,E14<=J14),"free",IF(E14>J14,'Default values'!$Q$8*100&"%" & " exceeded","Penalty"))) ->  | O14: 0 | Q14: =IF(AND($L14="free",$M14<='Default values'!$Q$9),"N/A",IF($T14="",0,$T14)*$O14*$Q$2) ->  | W14: 3 | Z14: 0 | AA14: 0
B15: 4 | C15: N/A | D15: 0 | E15: ='User inputs'!E9 -> 0 | F15: 0 | G15: =IF(L15="free",G14,MAX(F12:F15)) -> 0 | H15: 200 | I15: =AVERAGE(H12:H15) -> 200 | J15: =D15*(1 + 'Default values'!$Q$8) -> 0 | K15: =IF(E15>D15,1+MAX(K12:K14),"") ->  | L15: =IF(K15="","",IF(AND(COUNTIF(L4:L14,"free")<'Default values'!$Q$9,E15>D15,E15<=J15),"free",IF(E15>J15,'Default values'!$Q$8*100&"%" & " exceeded","Penalty"))) ->  | O15: 0 | Q15: =IF(AND($L15="free",$M15<='Default values'!$Q$9),"N/A",IF($T15="",0,$T15)*$O15*$Q$2) ->  | W15: 4 | Z15: 0 | AA15: 0
B16: 5 | C16: N/A | D16: 0 | E16: ='User inputs'!E10 -> 0 | F16: 0 | G16: =IF(L16="free",G15,MAX(F12:F16)) -> 0 | H16: 200 | I16: =AVERAGE(H12:H16) -> 200 | J16: =D16*(1 + 'Default values'!$Q$8) -> 0 | K16: =IF(E16>D16,1+MAX(K12:K15),"") ->  | L16: =IF(K16="","",IF(AND(COUNTIF(L5:L15,"free")<'Default values'!$Q$9,E16>D16,E16<=J16),"free",IF(E16>J16,'Default values'!$Q$8*100&"%" & " exceeded","Penalty"))) ->  | O16: 0 | Q16: =IF(AND($L16="free",$M16<='Default values'!$Q$9),"N/A",IF($T16="",0,$T16)*$O16*$Q$2) ->  | W16: 5 | Z16: 0 | AA16: 0
B17: 6 | C17: N/A | D17: 0 | E17: ='User inputs'!E11 -> 0 | F17: 0 | G17: =IF(L17="free",G16,MAX(F12:F17)) -> 0 | H17: 200 | I17: =AVERAGE(H12:H17) -> 200 | J17: =D17*(1 + 'Default values'!$Q$8) -> 0 | K17: =IF(E17>D17,1+MAX(K12:K16),"") ->  | L17: =IF(K17="","",IF(AND(COUNTIF(L6:L16,"free")<'Default values'!$Q$9,E17>D17,E17<=J17),"free",IF(E17>J17,'Default values'!$Q$8*100&"%" & " exceeded","Penalty"))) ->  | O17: 0 | Q17: =IF(AND($L17="free",$M17<='Default values'!$Q$9),"N/A",IF($T17="",0,$T17)*$O17*$Q$2) ->  | W17: 6 | Z17: 0 | AA17: 0
B18: 7 | C18: N/A | D18: 0 | E18: ='User inputs'!E12 -> 0 | F18: 0 | G18: =IF(L18="free",G17,MAX(F12:F18)) -> 0 | H18: 220 | I18: =AVERAGE(H12:H18) -> 202.8571429 | J18: =D18*(1 + 'Default values'!$Q$8) -> 0 | K18: =IF(E18>D18,1+MAX(K12:K17),"") ->  | L18: =IF(K18="","",IF(AND(COUNTIF(L7:L17,"free")<'Default values'!$Q$9,E18>D18,E18<=J18),"free",IF(E18>J18,'Default values'!$Q$8*100&"%" & " exceeded","Penalty"))) ->  | O18: 0 | Q18: =IF(AND($L18="free",$M18<='Default values'!$Q$9),"N/A",IF($T18="",0,$T18)*$O18*$Q$2) ->  | W18: 7 | Z18: 0 | AA18: 0
B19: 8 | C19: N/A | D19: 0 | E19: ='User inputs'!E13 -> 0 | F19: 0 | G19: =IF(L19="free",G18,MAX(F12:F19)) -> 0 | H19: 220 | I19: =AVERAGE(H12:H19) -> 205 | J19: =D19*(1 + 'Default values'!$Q$8) -> 0 | K19: =IF(E19>D19,1+MAX(K12:K18),"") ->  | L19: =IF(K19="","",IF(AND(COUNTIF(L8:L18,"free")<'Default values'!$Q$9,E19>D19,E19<=J19),"free",IF(E19>J19,'Default values'!$Q$8*100&"%" & " exceeded","Penalty"))) ->  | O19: 0 | Q19: =IF(AND($L19="free",$M19<='Default values'!$Q$9),"N/A",IF($T19="",0,$T19)*$O19*$Q$2) ->  | W19: 8 | Z19: 0 | AA19: 0
B20: 9 | C20: N/A | D20: 0 | E20: ='User inputs'!E14 -> 0 | F20: 0 | G20: =IF(L20="free",G19,MAX(F12:F20)) -> 0 | H20: 220 | I20: =AVERAGE(H12:H20) -> 206.6666667 | J20: =D20*(1 + 'Default values'!$Q$8) -> 0 | K20: =IF(E20>D20,1+MAX(K12:K19),"") ->  | L20: =IF(K20="","",IF(AND(COUNTIF(L9:L19,"free")<'Default values'!$Q$9,E20>D20,E20<=J20),"free",IF(E20>J20,'Default values'!$Q$8*100&"%" & " exceeded","Penalty"))) ->  | O20: 0 | Q20: =IF(AND($L20="free",$M20<='Default values'!$Q$9),"N/A",IF($T20="",0,$T20)*$O20*$Q$2) ->  | W20: 9 | Z20: 0 | AA20: 0
B21: 10 | C21: N/A | D21: 0 | E21: ='User inputs'!E15 -> 0 | F21: 0 | G21: =IF(L21="free",G20,MAX(F12:F21)) -> 0 | H21: 220 | I21: =AVERAGE(H12:H21) -> 208 | J21: =D21*(1 + 'Default values'!$Q$8) -> 0 | K21: =IF(E21>D21,1+MAX(K12:K20),"") ->  | L21: =IF(K21="","",IF(AND(COUNTIF(L10:L20,"free")<'Default values'!$Q$9,E21>D21,E21<=J21),"free",IF(E21>J21,'Default values'!$Q$8*100&"%" & " exceeded","Penalty"))) ->  | O21: 0 | Q21: =IF(AND($L21="free",$M21<='Default values'!$Q$9),"N/A",IF($T21="",0,$T21)*$O21*$Q$2) ->  | W21: 10 | Z21: 0 | AA21: 0
B22: 11 | C22: N/A | D22: 0 | E22: ='User inputs'!E16 -> 0 | F22: 0 | G22: =IF(L22="free",G21,MAX(F12:F22)) -> 0 | H22: 220 | I22: =AVERAGE(H12:H22) -> 209.0909091 | J22: =D22*(1 + 'Default values'!$Q$8) -> 0 | K22: =IF(E22>D22,1+MAX(K12:K21),"") ->  | L22: =IF(K22="","",IF(AND(COUNTIF(L11:L21,"free")<'Default values'!$Q$9,E22>D22,E22<=J22),"free",IF(E22>J22,'Default values'!$Q$8*100&"%" & " exceeded","Penalty"))) ->  | O22: 0 | Q22: =IF(AND($L22="free",$M22<='Default values'!$Q$9),"N/A",IF($T22="",0,$T22)*$O22*$Q$2) ->  | T22: =IF(S22="event",COUNTIF(S12:S22,"event"),"") ->  | W22: 11 | Z22: 0 | AA22: 0
B23: 12 | C23: N/A | D23: 0 | E23: ='User inputs'!E17 -> 0 | F23: 0 | G23: =IF(L23="free",G22,MAX(F12:F23)) -> 0 | H23: 220 | I23: =AVERAGE(H12:H23) -> 210 | J23: =D23*(1 + 'Default values'!$Q$8) -> 0 | K23: =IF(E23>D23,1+MAX(K12:K22),"") ->  | L23: =IF(K23="","",IF(AND(COUNTIF(L12:L22,"free")<'Default values'!$Q$9,E23>D23,E23<=J23),"free",IF(E23>J23,'Default values'!$Q$8*100&"%" & " exceeded","Penalty"))) ->  | M23: =IF(L23="free",COUNTIF(L12:L23,"free"),"") ->  | O23: 0 | Q23: =IF(AND($L23="free",$M23<='Default values'!$Q$9),"N/A",IF($T23="",0,$T23)*$O23*$Q$2) ->  | T23: =IF(S23="event",COUNTIF(S12:S23,"event"),"") ->  | W23: 12 | Z23: 0 | AA23: =MAX(Z12:Z23) -> 0
B24: 13 | C24: N/A | D24: 0 | E24: ='User inputs'!E18 -> 0 | F24: 0 | G24: 0 | H24: 220 | I24: =AVERAGE(H13:H24) -> 211.6666667 | J24: =D24*(1 + 'Default values'!$Q$8) -> 0 | K24: =IF(E24>D24,1+MAX(0),"") ->  | L24: =IF(K24="","",IF(AND(COUNTIF(L13:L23,"free")<'Default values'!$Q$9,E24>D24,E24<=J24),"free",IF(E24>J24,'Default values'!$Q$8*100&"%" & " exceeded","Penalty"))) ->  | M24: =IF(L24="free",COUNTIF(L13:L24,"free"),"") ->  | O24: 0 | P24: =IF(L24="free",MAX($F24,$H24),$H24)*$P$2 ->  | Q24: =IF(AND($L24="free",$M24<='Default values'!$Q$9),"N/A",IF($T24="",0,$T24)*$O24*$P$2) ->  | T24: =IF(S24="event",COUNTIF(S13:S24,"event"),"") ->  | W24: 13 | Z24: 0 | AA24: =MAX(Z13:Z24) -> 0
B25: 14 | C25: N/A | D25: 0 | E25: ='User inputs'!E19 -> 0 | F25: 0 | G25: 0 | H25: 220 | I25: =AVERAGE(H14:H25) -> 213.3333333 | J25: =D25*(1 + 'Default values'!$Q$8) -> 0 | K25: =IF(E25>D25,1+MAX(K24),"") ->  | L25: =IF(K25="","",IF(AND(COUNTIF(L14:L24,"free")<'Default values'!$Q$9,E25>D25,E25<=J25),"free",IF(E25>J25,'Default values'!$Q$8*100&"%" & " exceeded","Penalty"))) ->  | M25: =IF(L25="free",COUNTIF(L14:L25,"free"),"") ->  | O25: 0 | Q25: =IF(AND($L25="free",$M25<='Default values'!$Q$9),"N/A",IF($T25="",0,$T25)*$O25*$P$2) ->  | W25: 14 | Z25: 0 | AA25: 0
B26: 15 | C26: N/A | D26: 0 | E26: ='User inputs'!E20 -> 0 | F26: 0 | G26: 0 | H26: 220 | I26: =AVERAGE(H15:H26) -> 215 | J26: =D26*(1 + 'Default values'!$Q$8) -> 0 | K26: =IF(E26>D26,1+MAX(K24:K25),"") ->  | L26: =IF(K26="","",IF(AND(COUNTIF(L15:L25,"free")<'Default values'!$Q$9,E26>D26,E26<=J26),"free",IF(E26>J26,'Default values'!$Q$8*100&"%" & " exceeded","Penalty"))) ->  | M26: =IF(L26="free",COUNTIF(L15:L26,"free"),"") ->  | O26: 0 | Q26: =IF(AND($L26="free",$M26<='Default values'!$Q$9),"N/A",IF($T26="",0,$T26)*$O26*$P$2) ->  | W26: 15 | Z26: 0 | AA26: 0
B27: 16 | C27: N/A | D27: 0 | E27: ='User inputs'!E21 -> 0 | F27: 0 | G27: 0 | H27: 220 | I27: 216.6666667 | J27: =D27*(1 + 'Default values'!$Q$8) -> 0 | K27: =IF(E27>D27,1+MAX(K24:K26),"") ->  | L27: =IF(K27="","",IF(AND(COUNTIF(L16:L26,"free")<'Default values'!$Q$9,E27>D27,E27<=J27),"free",IF(E27>J27,'Default values'!$Q$8*100&"%" & " exceeded","Penalty"))) ->  | M27: =IF(L27="free",COUNTIF(L16:L27,"free"),"") ->  | O27: 0 | Q27: =IF(AND($L27="free",$M27<='Default values'!$Q$9),"N/A",IF($T27="",0,$T27)*$O27*$P$2) ->  | W27: 16 | Z27: 0 | AA27: 0
B28: 17 | C28: N/A | D28: 0 | E28: ='User inputs'!E22 -> 0 | F28: 0 | G28: 0 | H28: 220 | I28: 218.3333333 | J28: =D28*(1 + 'Default values'!$Q$8) -> 0 | K28: =IF(E28>D28,1+MAX(K24:K27),"") ->  | L28: =IF(K28="","",IF(AND(COUNTIF(L17:L27,"free")<'Default values'!$Q$9,E28>D28,E28<=J28),"free",IF(E28>J28,'Default values'!$Q$8*100&"%" & " exceeded","Penalty"))) ->  | O28: 0 | Q28: =IF(AND($L28="free",$M28<='Default values'!$Q$9),"N/A",IF($T28="",0,$T28)*$O28*$P$2) ->  | W28: 17 | Z28: 0 | AA28: 0
B29: 18 | C29: N/A | D29: 0 | E29: ='User inputs'!E23 -> 0 | F29: 0 | G29: 0 | H29: 220 | I29: 220 | J29: =D29*(1 + 'Default values'!$Q$8) -> 0 | K29: =IF(E29>D29,1+MAX(K24:K28),"") ->  | L29: =IF(K29="","",IF(AND(COUNTIF(L18:L28,"free")<'Default values'!$Q$9,E29>D29,E29<=J29),"free",IF(E29>J29,'Default values'!$Q$8*100&"%" & " exceeded","Penalty"))) ->  | O29: 0 | Q29: =IF(AND($L29="free",$M29<='Default values'!$Q$9),"N/A",IF($T29="",0,$T29)*$O29*$P$2) ->  | W29: 18 | Z29: 0 | AA29: 0
B30: 19 | C30: N/A | D30: 0 | E30: ='User inputs'!E24 -> 0 | F30: 0 | G30: 0 | H30: 215 | I30: 219.5833333 | J30: =D30*(1 + 'Default values'!$Q$8) -> 0 | K30: =IF(E30>D30,1+MAX(K24:K29),"") ->  | L30: =IF(K30="","",IF(AND(COUNTIF(L19:L29,"free")<'Default values'!$Q$9,E30>D30,E30<=J30),"free",IF(E30>J30,'Default values'!$Q$8*100&"%" & " exceeded","Penalty"))) ->  | O30: 0 | Q30: =IF(AND($L30="free",$M30<='Default values'!$Q$9),"N/A",IF($T30="",0,$T30)*$O30*$P$2) ->  | W30: 19 | Z30: 0 | AA30: 0
B31: 20 | C31: N/A | D31: 0 | E31: ='User inputs'!E25 -> 0 | F31: 0 | G31: 0 | H31: 215 | I31: 219.1666667 | J31: =D31*(1 + 'Default values'!$Q$8) -> 0 | K31: =IF(E31>D31,1+MAX(K24:K30),"") ->  | L31: =IF(K31="","",IF(AND(COUNTIF(L20:L30,"free")<'Default values'!$Q$9,E31>D31,E31<=J31),"free",IF(E31>J31,'Default values'!$Q$8*100&"%" & " exceeded","Penalty"))) ->  | O31: 0 | Q31: =IF(AND($L31="free",$M31<='Default values'!$Q$9),"N/A",IF($T31="",0,$T31)*$O31*$P$2) ->  | W31: 20 | Z31: 0 | AA31: 0
B32: 21 | C32: N/A | D32: 0 | E32: ='User inputs'!E26 -> 0 | F32: 0 | G32: 0 | H32: 215 | I32: 218.75 | J32: =D32*(1 + 'Default values'!$Q$8) -> 0 | K32: =IF(E32>D32,1+MAX(K24:K31),"") ->  | L32: =IF(K32="","",IF(AND(COUNTIF(L21:L31,"free")<'Default values'!$Q$9,E32>D32,E32<=J32),"free",IF(E32>J32,'Default values'!$Q$8*100&"%" & " exceeded","Penalty"))) ->  | O32: 0 | Q32: =IF(AND($L32="free",$M32<='Default values'!$Q$9),"N/A",IF($T32="",0,$T32)*$O32*$P$2) ->  | W32: 21 | Z32: 0 | AA32: 0
B33: 22 | C33: N/A | D33: 0 | E33: ='User inputs'!E27 -> 0 | F33: 0 | G33: 0 | H33: 215 | I33: 218.3333333 | J33: =D33*(1 + 'Default values'!$Q$8) -> 0 | K33: =IF(E33>D33,1+MAX(K24:K32),"") ->  | L33: =IF(K33="","",IF(AND(COUNTIF(L22:L32,"free")<'Default values'!$Q$9,E33>D33,E33<=J33),"free",IF(E33>J33,'Default values'!$Q$8*100&"%" & " exceeded","Penalty"))) ->  | O33: 0 | Q33: =IF(AND($L33="free",$M33<='Default values'!$Q$9),"N/A",IF($T33="",0,$T33)*$O33*$P$2) ->  | W33: 22 | Z33: 0 | AA33: 0
B34: 23 | C34: N/A | D34: 0 | E34: ='User inputs'!E28 -> 0 | F34: 0 | G34: 0 | H34: 215 | I34: 217.9166667 | J34: =D34*(1 + 'Default values'!$Q$8) -> 0 | K34: =IF(E34>D34,1+MAX(K24:K33),"") ->  | L34: =IF(K34="","",IF(AND(COUNTIF(L23:L33,"free")<'Default values'!$Q$9,E34>D34,E34<=J34),"free",IF(E34>J34,'Default values'!$Q$8*100&"%" & " exceeded","Penalty"))) ->  | O34: 0 | Q34: =IF(AND($L34="free",$M34<='Default values'!$Q$9),"N/A",IF($T34="",0,$T34)*$O34*$P$2) ->  | W34: 23 | Z34: 0 | AA34: 0
B35: 24 | C35: N/A | D35: 0 | E35: ='User inputs'!E29 -> 0 | F35: 0 | G35: 0 | H35: 215 | I35: 217.5 | J35: =D35*(1 + 'Default values'!$Q$8) -> 0 | K35: =IF(E35>D35,1+MAX(K24:K34),"") ->  | L35: =IF(K35="","",IF(AND(COUNTIF(L24:L34,"free")<'Default values'!$Q$9,E35>D35,E35<=J35),"free",IF(E35>J35,'Default values'!$Q$8*100&"%" & " exceeded","Penalty"))) ->  | O35: 0 | Q35: =IF(AND($L35="free",$M35<='Default values'!$Q$9),"N/A",IF($T35="",0,$T35)*$O35*$P$2) ->  | W35: 24 | Z35: 0 | AA35: 0
L37: =COUNTIF(L24:L35,"free") -> 0
L48: Digits
G49: Minimum | H49: Minimum | I49: =MIN(J12:J35,H12:H35,D12:E35) -> 0 | J49: =ROUNDDOWN(MIN(J12:J35,H12:H35,D12:E35),L49) -> 0 | L49: =-IF(I49<100,1,IF(AND(I49>=100,I49<1000),2,IF(AND(I49>=1000,I49<10000),3,IF(AND(I49>=10000,I49<100000),4,IF(AND(I49>=100000,1000000),5,IF(AND(I49>=1000000,I49<10000000),6,IF(AND(I49>=10000000,I49<100000000),7,IF(I49>100000000,8)))))))) -> -1 | V49: Minimum | W49: =MIN(X12:X35,V12:V35,R12:S35) ->  | X49: =ROUNDDOWN(MIN(X12:Y35),Z49) ->  | Z49: =-IF(W49<100,1,IF(AND(W49>=100,W49<1000),2,IF(AND(W49>=1000,W49<10000),3,IF(AND(W49>=10000,W49<100000),4,IF(AND(W49>=100000,1000000),5,IF(AND(W49>=1000000,W49<10000000),6,IF(AND(W49>=10000000,W49<100000000),7,IF(W49>100000000,8)))))))) -> 
G50: Maximum | H50: Maximum | I50: =MAX(H12:H35,J12:J35,D12:F35) -> 220 | J50: =ROUNDUP(MAX(H12:H35,J12:J35,D12:F35),L50) -> 300 | L50: =-IF(I50<100,1,IF(AND(I50>=100,I50<1000),2,IF(AND(I50>=1000,I50<10000),3,IF(AND(I50>=10000,I50<100000),4,IF(AND(I50>=100000,1000000),5,IF(AND(I50>=1000000,I50<10000000),6,IF(AND(I50>=10000000,I50<100000000),7,IF(I50>100000000,8)))))))) -> -2 | V50: Maximum | W50: =MAX(V12:V35,X12:X35,R12:T35) ->  | X50: =ROUNDUP(MAX(X12:Y35),Z50) ->  | Z50: =-IF(W50<100,1,IF(AND(W50>=100,W50<1000),2,IF(AND(W50>=1000,W50<10000),3,IF(AND(W50>=10000,W50<100000),4,IF(AND(W50>=100000,1000000),5,IF(AND(W50>=1000000,W50<10000000),6,IF(AND(W50>=10000000,W50<100000000),7,IF(W50>100000000,8)))))))) -> 

Sheet Results (hidden)
C2: NMD Rules results sheet
D4: =CONCATENATE("Customer name: ",Calculations!C2) -> Customer name: | N4: =CONCATENATE("Tariff: ",(Calculations!C6)&IF(Calculations!D6=3,IF(AND(Calculations!D6=3,Calculations!C5>1000)," Large"," Small"),"")," ",IF(Calculations!C9=TRUE,Calculations!B9,"")) -> Tariff:
D5: =CONCATENATE("Premise ID: ",Calculations!C4) -> Premise ID: | N5: =CONCATENATE("Voltage: ",Calculations!C7) -> Voltage:
D6: =CONCATENATE("Notified maximum demand: ",IF(Calculations!C5="",0,Calculations!C5)," kVA") -> Notified maximum demand: 0 kVA | N6: =CONCATENATE("Transmission zone: ",Calculations!C8) -> Transmission zone: ≤ 300 km
D7: Month | E7: NMD (kVA) | F7: MD (kVA) | G7: MUC (kVA) | H7: AUC (kVA) | I7: =CONCATENATE("Exceedance limit (",'Default values'!Q8*100&"% of NMD)") -> Exceedance limit (5% of NMD) | J7: Event number | K7: Event description | L7: Excess NCC applicable | M7: Exceeded capacity value (kVA) | N7: =IF(OR(Calculations!D61=1,Calculations!D6=3),"Tx NCC + Dx NCC","NCC") -> NCC | O7: Excess NCC | P7: Total NCC | Q7: Reasons / explanations
D8: 1 | E8: =Calculations!D12 -> 0 | F8: =Calculations!E12 -> 0 | G8: =Calculations!F12 -> 0 | H8: =Calculations!H12 -> 200 | I8: =Calculations!J12 -> 0 | J8: =Calculations!T12 ->  | K8: =IF(AND(MAX(Calculations!K12)<=2,Calculations!C12="n/a"),"",IF(AND(Calculations!L12="",Calculations!E12<Calculations!D12),"MD<NMD",IF(Calculations!M12=1,"1st ",IF(Calculations!M12=2,"2nd ",""))&Calculations!L12)) ->  | L8: =Calculations!C12 -> N/A | M8: =Calculations!O12 -> 0 | N8: =Calculations!P12 ->  | O8: =Calculations!Q12 ->  | P8: =SUM(N8:O8) ->  | Q8: =IF(K8="","",VLOOKUP(IF(OR(K8="md<nmd",RIGHT(K8,4)="free"),K8,K8&"0"&J8),Reasons!$B$7:$D$37,3,FALSE)&IF(H8>H7,VLOOKUP(K8,Reasons!$B$7:$F$37,5,FALSE),"")) -> 
D9: =D8+1 -> 2 | E9: =Calculations!D13 -> 0 | F9: =Calculations!E13 -> 0 | G9: =Calculations!F13 -> 0 | H9: =Calculations!H13 -> 200 | I9: =Calculations!J13 -> 0 | J9: =Calculations!T13 ->  | K9: =IF(AND(MAX(Calculations!K12:K13)<=2,Calculations!C13="n/a"),"",IF(AND(Calculations!L13="",Calculations!E13<Calculations!D13),"MD<NMD",IF(Calculations!M13=1,"1st ",IF(Calculations!M13=2,"2nd ",""))&Calculations!L13)) ->  | L9: =Calculations!C13 -> N/A | M9: =Calculations!O13 -> 0 | N9: =Calculations!P13 ->  | O9: =Calculations!Q13 ->  | P9: =SUM(N9:O9) ->  | Q9: =IF(K9="","",VLOOKUP(IF(OR(K9="md<nmd",RIGHT(K9,4)="free"),K9,K9&"0"&J9),Reasons!$B$7:$D$37,3,FALSE)&IF(H9>H8,VLOOKUP(K9,Reasons!$B$7:$F$37,5,FALSE),"")) -> 
D10: 3 | E10: =Calculations!D14 -> 0 | F10: =Calculations!E14 -> 0 | G10: =Calculations!F14 -> 0 | H10: =Calculations!H14 -> 200 | I10: =Calculations!J14 -> 0 | J10: =Calculations!T14 ->  | K10: =IF(AND(MAX(Calculations!K12:K14)<=2,Calculations!C14="n/a"),"",IF(AND(Calculations!L14="",Calculations!E14<Calculations!D14),"MD<NMD",IF(Calculations!M14=1,"1st ",IF(Calculations!M14=2,"2nd ",""))&Calculations!L14)) ->  | L10: =Calculations!C14 -> N/A | M10: =Calculations!O14 -> 0 | N10: =Calculations!P14 ->  | O10: =Calculations!Q14 ->  | Q10: =IF(K10="","",VLOOKUP(IF(OR(K10="md<nmd",RIGHT(K10,4)="free"),K10,K10&"0"&J10),Reasons!$B$7:$D$37,3,FALSE)&IF(H10>H9,VLOOKUP(K10,Reasons!$B$7:$F$37,5,FALSE),"")) -> 
D11: 4 | E11: =Calculations!D15 -> 0 | F11: =Calculations!E15 -> 0 | G11: =Calculations!F15 -> 0 | H11: =Calculations!H15 -> 200 | I11: =Calculations!J15 -> 0 | J11: =Calculations!T15 ->  | K11: =IF(AND(MAX(Calculations!K12:K15)<=2,Calculations!C15="n/a"),"",IF(AND(Calculations!L15="",Calculations!E15<Calculations!D15),"MD<NMD",IF(Calculations!M15=1,"1st ",IF(Calculations!M15=2,"2nd ",""))&Calculations!L15)) ->  | L11: =Calculations!C15 -> N/A | M11: =Calculations!O15 -> 0 | N11: =Calculations!P15 ->  | O11: =Calculations!Q15 ->  | Q11: =IF(K11="","",VLOOKUP(IF(OR(K11="md<nmd",RIGHT(K11,4)="free"),K11,K11&"0"&J11),Reasons!$B$7:$D$37,3,FALSE)&IF(H11>H10,VLOOKUP(K11,Reasons!$B$7:$F$37,5,FALSE),"")) -> 
D12: 5 | E12: =Calculations!D16 -> 0 | F12: =Calculations!E16 -> 0 | G12: =Calculations!F16 -> 0 | H12: =Calculations!H16 -> 200 | I12: =Calculations!J16 -> 0 | J12: =Calculations!T16 ->  | K12: =IF(AND(MAX(Calculations!K12:K16)<=2,Calculations!C16="n/a"),"",IF(AND(Calculations!L16="",Calculations!E16<Calculations!D16),"MD<NMD",IF(Calculations!M16=1,"1st ",IF(Calculations!M16=2,"2nd ",""))&Calculations!L16)) ->  | L12: =Calculations!C16 -> N/A | M12: =Calculations!O16 -> 0 | N12: =Calculations!P16 ->  | O12: =Calculations!Q16 ->  | Q12: =IF(K12="","",VLOOKUP(IF(OR(K12="md<nmd",RIGHT(K12,4)="free"),K12,K12&"0"&J12),Reasons!$B$7:$D$37,3,FALSE)&IF(H12>H11,VLOOKUP(K12,Reasons!$B$7:$F$37,5,FALSE),"")) -> 
D13: 6 | E13: =Calculations!D17 -> 0 | F13: =Calculations!E17 -> 0 | G13: =Calculations!F17 -> 0 | H13: =Calculations!H17 -> 200 | I13: =Calculations!J17 -> 0 | J13: =Calculations!T17 ->  | K13: =IF(AND(MAX(Calculations!K12:K17)<=2,Calculations!C17="n/a"),"",IF(AND(Calculations!L17="",Calculations!E17<Calculations!D17),"MD<NMD",IF(Calculations!M17=1,"1st ",IF(Calculations!M17=2,"2nd ",""))&Calculations!L17)) ->  | L13: =Calculations!C17 -> N/A | M13: =Calculations!O17 -> 0 | N13: =Calculations!P17 ->  | O13: =Calculations!Q17 ->  | Q13: =IF(K13="","",VLOOKUP(IF(OR(K13="md<nmd",RIGHT(K13,4)="free"),K13,K13&"0"&J13),Reasons!$B$7:$D$37,3,FALSE)&IF(H13>H12,VLOOKUP(K13,Reasons!$B$7:$F$37,5,FALSE),"")) -> 
D14: 7 | E14: =Calculations!D18 -> 0 | F14: =Calculations!E18 -> 0 | G14: =Calculations!F18 -> 0 | H14: =Calculations!H18 -> 220 | I14: =Calculations!J18 -> 0 | J14: =Calculations!T18 ->  | K14: =IF(AND(MAX(Calculations!K12:K18)<=2,Calculations!C18="n/a"),"",IF(AND(Calculations!L18="",Calculations!E18<Calculations!D18),"MD<NMD",IF(Calculations!M18=1,"1st ",IF(Calculations!M18=2,"2nd ",""))&Calculations!L18)) ->  | L14: =Calculations!C18 -> N/A | M14: =Calculations!O18 -> 0 | N14: =Calculations!P18 ->  | O14: =Calculations!Q18 ->  | Q14: =IF(K14="","",VLOOKUP(IF(OR(K14="md<nmd",RIGHT(K14,4)="free"),K14,K14&"0"&J14),Reasons!$B$7:$D$37,3,FALSE)&IF(H14>H13,VLOOKUP(K14,Reasons!$B$7:$F$37,5,FALSE),"")) -> 
D15: 8 | E15: =Calculations!D19 -> 0 | F15: =Calculations!E19 -> 0 | G15: =Calculations!F19 -> 0 | H15: =Calculations!H19 -> 220 | I15: =Calculations!J19 -> 0 | J15: =Calculations!T19 ->  | K15: =IF(AND(MAX(Calculations!K12:K19)<=2,Calculations!C19="n/a"),"",IF(AND(Calculations!L19="",Calculations!E19<Calculations!D19),"MD<NMD",IF(Calculations!M19=1,"1st ",IF(Calculations!M19=2,"2nd ",""))&Calculations!L19)) ->  | L15: =Calculations!C19 -> N/A | M15: =Calculations!O19 -> 0 | N15: =Calculations!P19 ->  | O15: =Calculations!Q19 ->  | Q15: =IF(K15="","",VLOOKUP(IF(OR(K15="md<nmd",RIGHT(K15,4)="free"),K15,K15&"0"&J15),Reasons!$B$7:$D$37,3,FALSE)&IF(H15>H14,VLOOKUP(K15,Reasons!$B$7:$F$37,5,FALSE),"")) -> 
D16: 9 | E16: =Calculations!D20 -> 0 | F16: =Calculations!E20 -> 0 | G16: =Calculations!F20 -> 0 | H16: =Calculations!H20 -> 220 | I16: =Calculations!J20 -> 0 | J16: =Calculations!T20 ->  | K16: =IF(AND(MAX(Calculations!K12:K20)<=2,Calculations!C20="n/a"),"",IF(AND(Calculations!L20="",Calculations!E20<Calculations!D20),"MD<NMD",IF(Calculations!M20=1,"1st ",IF(Calculations!M20=2,"2nd ",""))&Calculations!L20)) ->  | L16: =Calculations!C20 -> N/A | M16: =Calculations!O20 -> 0 | N16: =Calculations!P20 ->  | O16: =Calculations!Q20 ->  | Q16: =IF(K16="","",VLOOKUP(IF(OR(K16="md<nmd",RIGHT(K16,4)="free"),K16,K16&"0"&J16),Reasons!$B$7:$D$37,3,FALSE)&IF(H16>H15,VLOOKUP(K16,Reasons!$B$7:$F$37,5,FALSE),"")) -> 
D17: 10 | E17: =Calculations!D21 -> 0 | F17: =Calculations!E21 -> 0 | G17: =Calculations!F21 -> 0 | H17: =Calculations!H21 -> 220 | I17: =Calculations!J21 -> 0 | J17: =Calculations!T21 ->  | K17: =IF(AND(MAX(Calculations!K12:K21)<=2,Calculations!C21="n/a"),"",IF(AND(Calculations!L21="",Calculations!E21<Calculations!D21),"MD<NMD",IF(Calculations!M21=1,"1st ",IF(Calculations!M21=2,"2nd ",""))&Calculations!L21)) ->  | L17: =Calculations!C21 -> N/A | M17: =Calculations!O21 -> 0 | N17: =Calculations!P21 ->  | O17: =Calculations!Q21 ->  | Q17: =IF(K17="","",VLOOKUP(IF(OR(K17="md<nmd",RIGHT(K17,4)="free"),K17,K17&"0"&J17),Reasons!$B$7:$D$37,3,FALSE)&IF(H17>H16,VLOOKUP(K17,Reasons!$B$7:$F$37,5,FALSE),"")) -> 
D18: 11 | E18: =Calculations!D22 -> 0 | F18: =Calculations!E22 -> 0 | G18: =Calculations!F22 -> 0 | H18: =Calculations!H22 -> 220 | I18: =Calculations!J22 -> 0 | J18: =Calculations!T22 ->  | K18: =IF(AND(MAX(Calculations!K12:K22)<=2,Calculations!C22="n/a"),"",IF(AND(Calculations!L22="",Calculations!E22<Calculations!D22),"MD<NMD",IF(Calculations!M22=1,"1st ",IF(Calculations!M22=2,"2nd ",""))&Calculations!L22)) ->  | L18: =Calculations!C22 -> N/A | M18: =Calculations!O22 -> 0 | N18: =Calculations!P22 ->  | O18: =Calculations!Q22 ->  | Q18: =IF(K18="","",VLOOKUP(IF(OR(K18="md<nmd",RIGHT(K18,4)="free"),K18,K18&"0"&J18),Reasons!$B$7:$D$37,3,FALSE)&IF(H18>H17,VLOOKUP(K18,Reasons!$B$7:$F$37,5,FALSE),"")) -> 
D19: 12 | E19: =Calculations!D23 -> 0 | F19: =Calculations!E23 -> 0 | G19: =Calculations!F23 -> 0 | H19: =Calculations!H23 -> 220 | I19: =Calculations!J23 -> 0 | J19: =Calculations!T23 ->  | K19: =IF(AND(MAX(Calculations!K12:K23)<=2,Calculations!C23="n/a"),"",IF(AND(Calculations!L23="",Calculations!E23<Calculations!D23),"MD<NMD",IF(Calculations!M23=1,"1st ",IF(Calculations!M23=2,"2nd ",""))&Calculations!L23)) ->  | L19: =Calculations!C23 -> N/A | M19: =Calculations!O23 -> 0 | N19: =Calculations!P23 ->  | O19: =Calculations!Q23 ->  | Q19: =IF(K19="","",VLOOKUP(IF(OR(K19="md<nmd",RIGHT(K19,4)="free"),K19,K19&"0"&J19),Reasons!$B$7:$D$37,3,FALSE)&IF(H19>H18,VLOOKUP(K19,Reasons!$B$7:$F$37,5,FALSE),"")) -> 
D20: 13 | E20: =Calculations!D24 -> 0 | F20: =Calculations!E24 -> 0 | G20: =Calculations!F24 -> 0 | H20: =Calculations!H24 -> 220 | I20: =Calculations!J24 -> 0 | J20: =Calculations!T24 ->  | K20: =IF(AND(MAX(Calculations!K24)<=2,Calculations!C24="n/a"),"",IF(AND(Calculations!L24="",Calculations!E24<Calculations!D24),"MD<NMD",IF(Calculations!M24=1,"1st ",IF(Calculations!M24=2,"2nd ",""))&Calculations!L24)) ->  | L20: =Calculations!C24 -> N/A | M20: =Calculations!O24 -> 0 | N20: =Calculations!P24 ->  | O20: =Calculations!Q24 ->  | Q20: =IF(K20="","",VLOOKUP(IF(OR(K20="md<nmd",RIGHT(K20,4)="free"),K20,K20&"0"&J20),Reasons!$B$7:$D$37,3,FALSE)&IF(H20>H19,VLOOKUP(K20,Reasons!$B$7:$F$37,5,FALSE),"")) -> 
D21: 14 | E21: =Calculations!D25 -> 0 | F21: =Calculations!E25 -> 0 | G21: =Calculations!F25 -> 0 | H21: =Calculations!H25 -> 220 | I21: =Calculations!J25 -> 0 | J21: =Calculations!T25 ->  | K21: =IF(AND(MAX(Calculations!K24:K25)<=2,Calculations!C25="n/a"),"",IF(AND(Calculations!L25="",Calculations!E25<Calculations!D25),"MD<NMD",IF(Calculations!M25=1,"1st ",IF(Calculations!M25=2,"2nd ",""))&Calculations!L25)) ->  | L21: =Calculations!C25 -> N/A | M21: =Calculations!O25 -> 0 | N21: =Calculations!P25 ->  | O21: =Calculations!Q25 ->  | Q21: =IF(K21="","",VLOOKUP(IF(OR(K21="md<nmd",RIGHT(K21,4)="free"),K21,K21&"0"&J21),Reasons!$B$7:$D$37,3,FALSE)&IF(H21>H20,VLOOKUP(K21,Reasons!$B$7:$F$37,5,FALSE),"")) -> 
D22: 15 | E22: =Calculations!D26 -> 0 | F22: =Calculations!E26 -> 0 | G22: =Calculations!F26 -> 0 | H22: =Calculations!H26 -> 220 | I22: =Calculations!J26 -> 0 | J22: =Calculations!T26 ->  | K22: =IF(AND(MAX(Calculations!K24:K26)<=2,Calculations!C26="n/a"),"",IF(AND(Calculations!L26="",Calculations!E26<Calculations!D26),"MD<NMD",IF(Calculations!M26=1,"1st ",IF(Calculations!M26=2,"2nd ",""))&Calculations!L26)) ->  | L22: =Calculations!C26 -> N/A | M22: =Calculations!O26 -> 0 | N22: =Calculations!P26 ->  | O22: =Calculations!Q26 ->  | Q22: =IF(K22="","",VLOOKUP(IF(OR(K22="md<nmd",RIGHT(K22,4)="free"),K22,K22&"0"&J22),Reasons!$B$7:$D$37,3,FALSE)&IF(H22>H21,VLOOKUP(K22,Reasons!$B$7:$F$37,5,FALSE),"")) -> 
D23: 16 | E23: =Calculations!D27 -> 0 | F23: =Calculations!E27 -> 0 | G23: =Calculations!F27 -> 0 | H23: =Calculations!H27 -> 220 | I23: =Calculations!J27 -> 0 | J23: =Calculations!T27 ->  | K23: =IF(AND(MAX(Calculations!K24:K27)<=2,Calculations!C27="n/a"),"",IF(AND(Calculations!L27="",Calculations!E27<Calculations!D27),"MD<NMD",IF(Calculations!M27=1,"1st ",IF(Calculations!M27=2,"2nd ",""))&Calculations!L27)) ->  | L23: =Calculations!C27 -> N/A | M23: =Calculations!O27 -> 0 | N23: =Calculations!P27 ->  | O23: =Calculations!Q27 ->  | Q23: =IF(K23="","",VLOOKUP(IF(OR(K23="md<nmd",RIGHT(K23,4)="free"),K23,K23&"0"&J23),Reasons!$B$7:$D$37,3,FALSE)&IF(H23>H22,VLOOKUP(K23,Reasons!$B$7:$F$37,5,FALSE),"")) -> 
D24: 17 | E24: =Calculations!D28 -> 0 | F24: =Calculations!E28 -> 0 | G24: =Calculations!F28 -> 0 | H24: =Calculations!H28 -> 220 | I24: =Calculations!J28 -> 0 | J24: =Calculations!T28 ->  | K24: =IF(AND(MAX(Calculations!K24:K28)<=2,Calculations!C28="n/a"),"",IF(AND(Calculations!L28="",Calculations!E28<Calculations!D28),"MD<NMD",IF(Calculations!M28=1,"1st ",IF(Calculations!M28=2,"2nd ",""))&Calculations!L28)) ->  | L24: =Calculations!C28 -> N/A | M24: =Calculations!O28 -> 0 | N24: =Calculations!P28 ->  | O24: =Calculations!Q28 ->  | Q24: =IF(K24="","",VLOOKUP(IF(OR(K24="md<nmd",RIGHT(K24,4)="free"),K24,K24&"0"&J24),Reasons!$B$7:$D$37,3,FALSE)&IF(H24>H23,VLOOKUP(K24,Reasons!$B$7:$F$37,5,FALSE),"")) -> 
D25: 18 | E25: =Calculations!D29 -> 0 | F25: =Calculations!E29 -> 0 | G25: =Calculations!F29 -> 0 | H25: =Calculations!H29 -> 220 | I25: =Calculations!J29 -> 0 | J25: =Calculations!T29 ->  | K25: =IF(AND(MAX(Calculations!K24:K29)<=2,Calculations!C29="n/a"),"",IF(AND(Calculations!L29="",Calculations!E29<Calculations!D29),"MD<NMD",IF(Calculations!M29=1,"1st ",IF(Calculations!M29=2,"2nd ",""))&Calculations!L29)) ->  | L25: =Calculations!C29 -> N/A | M25: =Calculations!O29 -> 0 | N25: =Calculations!P29 ->  | O25: =Calculations!Q29 ->  | Q25: =IF(K25="","",VLOOKUP(IF(OR(K25="md<nmd",RIGHT(K25,4)="free"),K25,K25&"0"&J25),Reasons!$B$7:$D$37,3,FALSE)&IF(H25>H24,VLOOKUP(K25,Reasons!$B$7:$F$37,5,FALSE),"")) -> 
D26: 19 | E26: =Calculations!D30 -> 0 | F26: =Calculations!E30 -> 0 | G26: =Calculations!F30 -> 0 | H26: =Calculations!H30 -> 215 | I26: =Calculations!J30 -> 0 | J26: =Calculations!T30 ->  | K26: =IF(AND(MAX(Calculations!K24:K30)<=2,Calculations!C30="n/a"),"",IF(AND(Calculations!L30="",Calculations!E30<Calculations!D30),"MD<NMD",IF(Calculations!M30=1,"1st ",IF(Calculations!M30=2,"2nd ",""))&Calculations!L30)) ->  | L26: =Calculations!C30 -> N/A | M26: =Calculations!O30 -> 0 | N26: =Calculations!P30 ->  | O26: =Calculations!Q30 ->  | Q26: =IF(K26="","",VLOOKUP(IF(OR(K26="md<nmd",RIGHT(K26,4)="free"),K26,K26&"0"&J26),Reasons!$B$7:$D$37,3,FALSE)&IF(H26>H25,VLOOKUP(K26,Reasons!$B$7:$F$37,5,FALSE),"")) -> 
D27: 20 | E27: =Calculations!D31 -> 0 | F27: =Calculations!E31 -> 0 | G27: =Calculations!F31 -> 0 | H27: =Calculations!H31 -> 215 | I27: =Calculations!J31 -> 0 | J27: =Calculations!T31 ->  | K27: =IF(AND(MAX(Calculations!K24:K31)<=2,Calculations!C31="n/a"),"",IF(AND(Calculations!L31="",Calculations!E31<Calculations!D31),"MD<NMD",IF(Calculations!M31=1,"1st ",IF(Calculations!M31=2,"2nd ",""))&Calculations!L31)) ->  | L27: =Calculations!C31 -> N/A | M27: =Calculations!O31 -> 0 | N27: =Calculations!P31 ->  | O27: =Calculations!Q31 ->  | Q27: =IF(K27="","",VLOOKUP(IF(OR(K27="md<nmd",RIGHT(K27,4)="free"),K27,K27&"0"&J27),Reasons!$B$7:$D$37,3,FALSE)&IF(H27>H26,VLOOKUP(K27,Reasons!$B$7:$F$37,5,FALSE),"")) -> 
D28: 21 | E28: =Calculations!D32 -> 0 | F28: =Calculations!E32 -> 0 | G28: =Calculations!F32 -> 0 | H28: =Calculations!H32 -> 215 | I28: =Calculations!J32 -> 0 | J28: =Calculations!T32 ->  | K28: =IF(AND(MAX(Calculations!K24:K32)<=2,Calculations!C32="n/a"),"",IF(AND(Calculations!L32="",Calculations!E32<Calculations!D32),"MD<NMD",IF(Calculations!M32=1,"1st ",IF(Calculations!M32=2,"2nd ",""))&Calculations!L32)) ->  | L28: =Calculations!C32 -> N/A | M28: =Calculations!O32 -> 0 | N28: =Calculations!P32 ->  | O28: =Calculations!Q32 ->  | Q28: =IF(K28="","",VLOOKUP(IF(OR(K28="md<nmd",RIGHT(K28,4)="free"),K28,K28&"0"&J28),Reasons!$B$7:$D$37,3,FALSE)&IF(H28>H27,VLOOKUP(K28,Reasons!$B$7:$F$37,5,FALSE),"")) -> 
D29: 22 | E29: =Calculations!D33 -> 0 | F29: =Calculations!E33 -> 0 | G29: =Calculations!F33 -> 0 | H29: =Calculations!H33 -> 215 | I29: =Calculations!J33 -> 0 | J29: =Calculations!T33 ->  | K29: =IF(AND(MAX(Calculations!K24:K33)<=2,Calculations!C33="n/a"),"",IF(AND(Calculations!L33="",Calculations!E33<Calculations!D33),"MD<NMD",IF(Calculations!M33=1,"1st ",IF(Calculations!M33=2,"2nd ",""))&Calculations!L33)) ->  | L29: =Calculations!C33 -> N/A | M29: =Calculations!O33 -> 0 | N29: =Calculations!P33 ->  | O29: =Calculations!Q33 ->  | Q29: =IF(K29="","",VLOOKUP(IF(OR(K29="md<nmd",RIGHT(K29,4)="free"),K29,K29&"0"&J29),Reasons!$B$7:$D$37,3,FALSE)&IF(H29>H28,VLOOKUP(K29,Reasons!$B$7:$F$37,5,FALSE),"")) -> 
D30: 23 | E30: =Calculations!D34 -> 0 | F30: =Calculations!E34 -> 0 | G30: =Calculations!F34 -> 0 | H30: =Calculations!H34 -> 215 | I30: =Calculations!J34 -> 0 | J30: =Calculations!T34 ->  | K30: =IF(AND(MAX(Calculations!K24:K34)<=2,Calculations!C34="n/a"),"",IF(AND(Calculations!L34="",Calculations!E34<Calculations!D34),"MD<NMD",IF(Calculations!M34=1,"1st ",IF(Calculations!M34=2,"2nd ",""))&Calculations!L34)) ->  | L30: =Calculations!C34 -> N/A | M30: =Calculations!O34 -> 0 | N30: =Calculations!P34 ->  | O30: =Calculations!Q34 ->  | Q30: =IF(K30="","",VLOOKUP(IF(OR(K30="md<nmd",RIGHT(K30,4)="free"),K30,K30&"0"&J30),Reasons!$B$7:$D$37,3,FALSE)&IF(H30>H29,VLOOKUP(K30,Reasons!$B$7:$F$37,5,FALSE),"")) -> 
D31: 24 | E31: =Calculations!D35 -> 0 | F31: =Calculations!E35 -> 0 | G31: =Calculations!F35 -> 0 | H31: =Calculations!H35 -> 215 | I31: =Calculations!J35 -> 0 | J31: =Calculations!T35 ->  | K31: =IF(AND(MAX(Calculations!K24:K35)<=2,Calculations!C35="n/a"),"",IF(AND(Calculations!L35="",Calculations!E35<Calculations!D35),"MD<NMD",IF(Calculations!M35=1,"1st ",IF(Calculations!M35=2,"2nd ",""))&Calculations!L35)) ->  | L31: =Calculations!C35 -> N/A | M31: =Calculations!O35 -> 0 | N31: =Calculations!P35 ->  | O31: =Calculations!Q35 ->  | Q31: =IF(K31="","",VLOOKUP(IF(OR(K31="md<nmd",RIGHT(K31,4)="free"),K31,K31&"0"&J31),Reasons!$B$7:$D$37,3,FALSE)&IF(H31>H30,VLOOKUP(K31,Reasons!$B$7:$F$37,5,FALSE),"")) -> 
E33: Acronymns | J33: Units of measure | P33: Notes:
E34: NMD = Notified maximum demand | J34: kVA = kilovolt-ampere | P34: MD is the highest average demand measured in kVA during any 30 minutes integrated period during a billing month.
E35: MUC = Monthly utilised capacity | J35: R/kVA = Rand per kilovolt-ampere | P35: NCC is based on the higher of AUC/MUC per premise, applicable during all time periods
E36: AUC = Annual utilised capacity | P36: NMD rules apply to all demand (kVA) NCC related charges
E37: NCC = Network capacity charge | P37: MUC is the higher of the NMD or MD registered during the billing month
E38: MD = Maximum Demand | P38: AUC is the higher of the NMD or MD/MUC registered during a rolling 12-month period (will not be reset to a lower value during the 12 month period)
P39: Exceedance limit does not change unless the NMD is changed/upgraded
P40: Event number is recorded everytime the NMD is exceeded (whether within or above exceedance limit) based on a rolling 12 months (i.e. previous 11 months from current month)
P41: Exceeded amount is the demand (kVA) recorded which is above the NMD
P42: Excess NCC is based on exceeded amount (kVA) times event number times applicable tariff NCC charge
P43: Excess NCC rates for Nightsave urban tariffs and Megaflex equals to Miniflex NCC rates

Sheet Reasons (hidden)
D5: Reasons/explanations
A6: When | B6: Results values | D6: Part A | F6: Part B
A7: MD<NMD, and MUC<AUC | B7: MD<NMD | C7: 1 | D7: MD < NMD but pay NCC for reserved NMD for 12 months, AUC not reset because MD does not exceed previous AUC | E7: 1 | F7: AUC not reset because MD does not exceed previous AUC | H7: 1st free
A8: 1st exceedance within 5% | B8: 1st free | C8: =C7+1 -> 2 | D8: 1st "free" event - no excess NCC applicable (but NCC is based on the higher of MUC/AUC), therefore exceedance amount is not multiplied by event no. AUC not reset. | E8: =E7+1 -> 2
A9: 2nd exceedance within 5% | B9: 2nd free | C9: =C8+1 -> 3 | D9: 2nd "free" event - no excess NCC applicable (but NCC is based on the higher of MUC/AUC), therefore exceedance amount is not multiplied by event no. | E9: =E8+1 -> 3
A10: After 2nd free, and MD>NMD and MD <= 5% limit | B10: Penalty | C10: =C9+1 -> 4 | D10: within the 5% limit, exceedance charged applicable @ (event no.) times NCC. First 2 "free" events within the 12-month period have lapsed. | E10: =E9+1 -> 4 | F10: , AUC is reset.
A11: Whenever the 5% limit is exceeded | B11: 5% exceeded1 | C11: =C10+1 -> 5 | D11: 5% limit exceded; excess NCC applicable @ (event no.) times NCC | E11: =E10+1 -> 5 | F11: , AUC is reset. | H11: 2nd free
B12: 5% exceeded | C12: =C11+1 -> 6 | D12: 5% limit exceded; excess NCC applicable @ (event no.) times NCC | E12: =E11+1 -> 6 | F12: , AUC is reset because MD is now higher than previous AUC
B13: Penalty01 | C13: =C12+1 -> 7 | D13: within the 5% limit, excess NCC applicable @ 1 times NCC. First 2 "free" events within the 12-month period have lapsed | E13: 4 | F13: , AUC is reset.
B14: Penalty02 | C14: 8 | D14: within the 5% limit, excess NCC applicable @ 2 times NCC. First 2 "free" events within the 12-month period have lapsed | E14: 4 | F14: , AUC is reset.
B15: Penalty03 | C15: 9 | D15: within the 5% limit, excess NCC applicable @ 3 times NCC. First 2 "free" events within the 12-month period have lapsed | E15: 4 | F15: , AUC is reset.
B16: Penalty04 | C16: 10 | D16: within the 5% limit, excess NCC applicable @ 4 times NCC. First 2 "free" events within the 12-month period have lapsed | E16: 4 | F16: , AUC is reset. | H16: 5% exceeded
B17: Penalty05 | C17: 11 | D17: within the 5% limit, excess NCC applicable @ 5 times NCC. First 2 "free" events within the 12-month period have lapsed | E17: 4 | F17: , AUC is reset. | H17: 5% exceeded
B18: Penalty06 | C18: 12 | D18: within the 5% limit, excess NCC applicable @ 6) times NCC. First 2 "free" events within the 12-month period have lapsed | E18: 4 | F18: , AUC is reset.
B19: Penalty07 | C19: 13 | D19: within the 5% limit, excess NCC applicable @ 7 times NCC. First 2 "free" events within the 12-month period have lapsed | E19: 4 | F19: , AUC is reset.
B20: Penalty08 | C20: 14 | D20: within the 5% limit, excess NCC applicable @ 8 times NCC. First 2 "free" events within the 12-month period have lapsed | E20: 4 | F20: , AUC is reset.
B21: Penalty09 | C21: 15 | D21: within the 5% limit, excess NCC applicable @ 9 times NCC. First 2 "free" events within the 12-month period have lapsed | E21: 4 | F21: , AUC is reset.
B22: Penalty010 | C22: 16 | D22: within the 5% limit, excess NCC applicable @ 10 times NCC. First 2 "free" events within the 12-month period have lapsed | E22: 4 | F22: , AUC is reset.
B23: Penalty011 | C23: 17 | D23: within the 5% limit, excess NCC applicable @ 11 times NCC. First 2 "free" events within the 12-month period have lapsed | E23: 4 | F23: , AUC is reset.
B24: Penalty012 | C24: 18 | D24: within the 5% limit, excess NCC @ 12 times NCC. First 2 "free" events within the 12-month period have lapsed | E24: 4 | F24: , AUC is reset.
B25: 5% exceeded01 | C25: 6 | D25: 5% limit exceded; excess NCC applicable @ 1 times NCC times exceeded amount (kVA) | E25: 6 | F25: , AUC is reset.
B26: 5% exceeded02 | C26: 6 | D26: 5% limit exceded; excess NCC applicable @ 2 times NCC times exceeded amount (kVA) | E26: 6 | F26: , AUC is reset.
B27: 5% exceeded03 | C27: 6 | D27: 5% limit exceded; excess NCC applicable @ 3 times NCC times exceeded amount (kVA) | E27: 6 | F27: , AUC is reset.
B28: 5% exceeded04 | C28: 6 | D28: 5% limit exceded; excess NCC applicable @ 4 times NCC times exceeded amount (kVA) | E28: 6 | F28: , AUC is reset.
B29: 5% exceeded05 | C29: 6 | D29: 5% limit exceded; excess NCC applicable @ 5 times NCC times exceeded amount (kVA) | E29: 6 | F29: , AUC is reset.
B30: 5% exceeded06 | C30: 6 | D30: 5% limit exceded; excess NCC applicable @ 6 times NCC times exceeded amount (kVA) | E30: 6 | F30: , AUC is reset.
B31: 5% exceeded07 | C31: 6 | D31: 5% limit exceded; excess NCC applicable @ 7 times NCC times exceeded amount (kVA) | E31: 6 | F31: , AUC is reset.
B32: 5% exceeded08 | C32: 6 | D32: 5% limit exceded; excess NCC applicable @ 8 times NCC times exceeded amount (kVA) | E32: 6 | F32: , AUC is reset.
B33: 5% exceeded09 | C33: 6 | D33: 5% limit exceded; excess NCC applicable @ 9 times NCC times exceeded amount (kVA) | E33: 6 | F33: , AUC is reset.
B34: 5% exceeded010 | C34: 6 | D34: 5% limit exceded; excess NCC applicable @ 10 times NCC times exceeded amount (kVA) | E34: 6 | F34: , AUC is reset.
B35: 5% exceeded011 | C35: 6 | D35: 5% limit exceded; excess NCC applicable @ 11 times NCC times exceeded amount (kVA) | E35: 6 | F35: , AUC is reset.
B36: 5% exceeded012 | C36: 6 | D36: 5% limit exceded; excess NCC applicable @ 12 times NCC times exceeded amount (kVA) | E36: 6 | F36: , AUC is reset.

Sheet Impact Model (hidden)
H2: 0.05 | I2: NCC | J2: 8.4 | K2: (tariff book rate 2008/9 - Applicable to Megaflex tariff)
B3: Month | C3: Event number | D3: Penalty applicable | E3: NMD (kVA) | F3: AUC (kVA) | G3: MUC/ Actual demand | H3: Exceedance limit (5% of NMD) | I3: Exceeded amount (kVA) | J3: NCC charge X MUC | K3: Excees NCC (R/kVA) | L3: Total network charge | M3: Reasons/explanations
A4: YEAR ONE | B4: 1 | C4: 1 | D4: No | E4: 100 | F4: 105 | G4: 110 | H4: =E4 + (E4*$H$2) -> 105 | I4: =G4-E4 -> 10 | J4: =$J$2*$G4 -> 924 | K4: N/A | L4: =SUM(J4:K4) -> 924 | M4: "free exceedance" - no exceedance charge, therefore exceedance amount not multiply by event no.
B5: =B4+1 -> 2 | D5: N/A | E5: 100 | F5: 110 | G5: 100 | H5: 105 | I5: 0 | J5: 840 | K5: =C5*I5*$J$2 -> 0 | L5: 840
B6: 3 | D6: N/A | E6: 100 | F6: 110 | G6: 100 | H6: 105 | I6: 0 | J6: 840 | K6: =C6*I6*$J$2 -> 0 | L6: 840
B7: 4 | D7: N/A | E7: 100 | F7: 110 | G7: 100 | H7: 105 | I7: 0 | J7: 840 | K7: =C7*I7*$J$2 -> 0 | L7: 840
B8: 5 | C8: 2 | D8: No | E8: 100 | F8: 110 | G8: 105 | H8: 105 | I8: 5 | J8: 882 | K8: N/A | L8: 882 | M8: "free exceedance" - no exceedance charge, therefore exceedance amount not multiply by event no.
B9: 6 | D9: N/A | E9: 100 | F9: 110 | G9: 100 | H9: 105 | I9: 0 | J9: 840 | K9: =C9*I9*$J$2 -> 0 | L9: 840
B10: 7 | D10: N/A | E10: 100 | F10: 110 | G10: 94 | H10: 105 | I10: -6 | J10: =$J$2*E10 -> 840 | K10: 0 | L10: 840 | M10: MUC < NMD but pay NCC for reserved NMD for 12 months
B11: 8 | D11: N/A | E11: 100 | F11: 110 | G11: 100 | H11: 105 | I11: 0 | J11: =$J$2*$G11 -> 840 | K11: 0 | L11: 840
B12: 9 | D12: N/A | E12: 100 | F12: 110 | G12: 80 | H12: 105 | I12: -20 | J12: =$J$2*E12 -> 840 | K12: 0 | L12: 840 | M12: MUC < NMD but pay NCC for reserved NMD for 12 months, AUC is reset to 120 because MD is now higher than previous AUC
B13: 10 | C13: 3 | D13: Yes | E13: 100 | F13: 120 | G13: 120 | H13: 105 | I13: 20 | J13: =$J$2*$G13 -> 1008 | K13: 504 | L13: 1512 | M13: 5% limit exceded; exceedance charged applicable @ 3 times NCC (based on event no.) - AUC not reset (MD< previous AUC)
B14: 11 | C14: 4 | D14: Yes | E14: 100 | F14: 135 | G14: 135 | H14: 105 | I14: 35 | J14: 1134 | K14: 1176 | L14: 2310 | M14: 5% limit exceeded; exceedance charged applicable @ 4 times NCC (based on event no.) - AUC not reset (MUC< previous AUC)
B15: 12 | D15: N/A | E15: 100 | F15: 135 | G15: 100 | H15: 105 | I15: 0 | J15: 840 | K15: 0 | L15: 840
A16: YEAR TWO | B16: 13 | C16: 1 | D16: Yes | E16: 100 | F16: 135 | G16: 130 | H16: 105 | I16: 30 | J16: 1092 | K16: 252 | L16: 1344 | M16: 5% limit exceeded;exceedance charged applicable @ 1 times NCC (based on event no.) - 1st event in the 2nd year - AUC not reset because MD does not exceed previous AUC
B17: 14 | D17: N/A | E17: 100 | F17: 135 | G17: 100 | H17: 105 | I17: 0 | J17: 840 | K17: 0 | L17: 840
B18: 15 | C18: 2 | D18: No | E18: 100 | F18: 135 | G18: 103 | H18: 105 | I18: 3 | J18: 865.2 | K18: 50.4 | L18: 915.6 | M18: 1st "free" event - no exceedance charge, therefore exceedance amount not multiply by event no.
B19: 16 | C19: 3 | D19: Yes | E19: 100 | F19: 135 | G19: 113 | H19: 105 | I19: 13 | J19: 949.2 | K19: 327.6 | L19: 1276.8 | M19: 5% limit exceeded; exceedance charged applicable @ 3 times NCC (based on event no.) - 3rd event in the 2nd year - AUC not reset because MD does not exceed previous AUC
B20: 17 | D20: N/A | E20: 100 | F20: 135 | G20: 100 | H20: 105 | I20: 0 | J20: 840 | K20: 0 | L20: 840
B21: 18 | D21: N/A | E21: 100 | F21: 135 | G21: 100 | H21: 105 | I21: 0 | J21: 840 | K21: 0 | L21: 840
B22: 19 | C22: 4 | D22: Yes | E22: 100 | F22: 135 | G22: 117 | H22: 105 | I22: 17 | J22: 982.8 | K22: 571.2 | L22: 1554 | M22: 5% limit exceeded; exceedance charged applicable @ 4 times NCC (based on event no.) - 4th event in the 2nd year - AUC not reset because MD does not exceed previous AUC
B23: 20 | D23: N/A | E23: 100 | F23: 135 | G23: 100 | H23: 105 | I23: 0 | J23: 840 | K23: 0 | L23: 840
B24: 21 | C24: 5 | D24: No | E24: 100 | F24: 135 | G24: 102 | H24: 105 | I24: 2 | J24: 856.8 | K24: 84 | L24: 940.8 | M24: 2nd "free" event - no exceedance charge, therefore exceedance amount not multiply by event no.
B25: 22 | D25: N/A | E25: 100 | F25: 135 | G25: 100 | H25: 105 | I25: 0 | J25: 840 | K25: 0 | L25: 840
B26: 23 | D26: N/A | E26: 100 | F26: 135 | G26: 100 | H26: 105 | I26: 0 | J26: 840 | K26: 0 | L26: 840
B27: 24 | C27: 6 | D27: Yes | E27: 100 | F27: 180 | G27: 180 | H27: 105 | I27: 80 | J27: 1512 | K27: 4032 | L27: 5544 | M27: 5% limit exceeded; exceedance charged applicable @ 6 times NCC (based on event no.) - 6th event in the 2nd year - AUC reset because MD > previous AUC
A30: NMD is not reset because it is a contractual value which the customer must notify Eskom in writing of a change in NMD
A32: The year can start in any month, it is not cast in stone
A34: Applicable to all LPU tariffs (all have NCC charges) - Nightsave (Urban), Nightsave (Rural), Megaflex, Miniflex, Ruraflex

Sheet NMD rules (hidden)
C5: Summary of the NMD Rules
C7: The following is a summarised version of the changes to the NMD rules:
C9: 1. Introduction of an allowable 5% deadband level (above the NMD) for the first two exceedances or any two exceedances within a 5% deadband level over a rolling 12 months.
C11: 2. Introduction of an additional charge for exceedances outside the 5% deadband level (above the NMD) or after the first two exceedances within the 5% deadband level.
C13: 3. Introduction of a shorter notice period for demand exemptions – pending proper motivation from customer (12-months is still the default applicable period).
C15: 4. Changes to other clauses to the existing rules include the following:
C16: - Clause 2.1.g which deals with the fact that levying by Eskom and payment by the Customer of additional charges do not imply acceptance by Eskom of the higher demand.
C17: - Clause 3.1 which states that any change in NMD would entail a renegotiation of the contract and is subject to Eskom evaluating and agreeing to the change – pending availability of capacity on the network.
C18: - Clause 2.2 which deals with customers receiving the benefit of diversity.
C19: - Clause 4.3 which deals with exemptions for overshoots attributable to Eskom initiated programmes.
C21: For more details on the changes to the Notified Maximum Demand (NMD) rules, visit
C22: http://www.eskom.co.za/live/content.php?Category_ID=288

Sheet Default values (hidden)
B2: VAT | C2: 0.15
B5: Last Financial Year | C5: 2020/21
B6: Next Financial Year | C6: 2021/22
P7: NMD Rules
P8: Exceedance limit | Q8: 0.05
P9: ="Free excedances (within) "&Q8*100&" %"& " limit" -> Free excedances (within) 5 % limit | Q9: 2
B10: Month | C10: No. of Days | F10: Customer Classification | I10: Min | J10: Max
B11: Jan | C11: 31 | F11: Small | G11: <=100 | H11: kVA | I11: 0 | J11: 100
B12: Feb | C12: 28 | F12: Medium | G12: >100 and <=500 | H12: kVA | I12: 100 | J12: 500
B13: Mar | C13: 31 | F13: Large | G13: >500 and <=1000 | H13: kVA | I13: 500 | J13: 1000
B14: Apr | C14: 30 | F14: Very Large | G14: >1000 | H14: kVA | I14: 1000 | J14: 9999999
B15: May | C15: 31 | F15: Key | G15: Key
B16: Jun | C16: 30
B17: Jul | C17: 31
B18: Aug | C18: 31
B19: Sep | C19: 30
B20: Oct | C20: 31
B21: Nov | C21: 30
B22: Dec | C22: 31
C23: =SUM(C11:C22) -> 365
B26: Voltage Levels | C26: Surcharge | F26: Voltage Levels | G26: Surcharge | J26: Voltage Levels | L26: Volt Zone
A27: 1 | B27: < 500V | C27: 0.173 | D27: 1 | F27: < 500V | G27: 0.173 | H27: 1 | J27: 4 | K27: > 132kV | L27: 1
A28: 2 | B28: ≥ 500V and < 66kV | C28: 0.1007 | D28: 2 | F28: ≥ 500V and ≤ 22kV | G28: 0.1007 | H28: 2 | J28: 3 | K28: ≥ 66kV and ≤ 132kV | L28: 1.110260116
A29: 3 | B29: ≥ 66kV and ≤ 132kV | C29: 0.0763 | D29: 3 | J29: 2 | K29: ≥ 500V and < 66kV | L29: 1.145520231
A30: 4 | B30: > 132kV | C30: 0 | D30: 4 | J30: 1 | K30: < 500V | L30: 1.25
B35: Tx Surcharge | D35: Zone
B36: ≤ 300 km | C36: 0 | D36: 0 | E36: 0
B37: > 300 km and ≤ 600 km | C37: 0.01 | D37: 1 | E37: 0.01
B38: > 600 km and ≤ 900 km | C38: 0.02 | D38: 2 | E38: 0.02
B39: > 900 km | C39: 0.03 | D39: 3 | E39: 0.03
B42: Current Tariffs
B43: =IF(input_NMD <= 1000, "n/a", E43) -> n/a | C43: 1 | E43: Megaflex
B44: =IF(input_NMD > 5000, "n/a", E44) -> Miniflex | C44: 2 | E44: Miniflex
B45: =IF(input_NMD <= 1000, "n/a", E45) -> n/a | C45: 3 | E45: Nightsave Urban Large
B46: =IF(input_Voltlevel >= 3, "n/a", E46) -> Nightsave Rural | C46: 4 | E46: Nightsave Rural
B47: =IF(input_Voltlevel >= 3, "n/a", E47) -> Ruraflex | C47: 5 | E47: Ruraflex
B48: =IF(input_NMD > 1000, "n/a", E48) -> Nightsave Urban Small | C48: 6 | E48: Nightsave Urban Small
C49: 7

Sheet Previous rates (hidden)
A1: 1 | B1: 2 | C1: 3 | D1: 4 | E1: 5 | F1: 6 | G1: 7 | H1: 8 | I1: 9 | J1: 10 | K1: 11 | L1: 12 | M1: 13 | N1: 14 | O1: 15 | P1: 16 | Q1: 17 | R1: 18 | S1: 19 | T1: 20 | U1: 21 | V1: 22 | W1: 23 | X1: 24 | Y1: 25 | Z1: 26 | AA1: 27 | AB1: 28 | AC1: 29 | AD1: 30 | AE1: 31 | AF1: 32 | AG1: 33 | AH1: 34 | AI1: 35 | AJ1: 36 | AK1: 37 | AL1: 38 | AM1: 39
E2: Admin | J2: Service | O2: Energy High | R2: Energy Low | AB2: EDC
B3: Tariff | C3: Tx Zone | D3: Volt Zone | E3: Small | F3: Medium | G3: Large | H3: Very Large | I3: Key | J3: Small | K3: Medium | L3: Large | M3: Very Large | N3: Key | O3: P | P3: S | Q3: O | R3: P | S3: S | T3: O | U3: kvarh | V3: ERS | W3: Tx NAC | X3: NAC Urban | Y3: NDC Urban | AA3: Network POD | AB3: High | AC3: Low | AD3: Ave Days | AE3: Reliability | AF3: Levy | AG3: SubRuralNetwork | AH3: SubUrbLowVolt | AI3: SubElecNetwork | AJ3: SubAfford | AM3: 1
A4: =CONCATENATE(B4,C4,D4) -> Megaflex01 | B4: Megaflex | C4: 0 | D4: 1 | E4: =IF(Calculations!$C$9=FALSE,'Previous Non-Munic rates'!E4,'Previous Munic rates'!E4) -> 0 | F4: =IF(Calculations!$C$9=FALSE,'Previous Non-Munic rates'!F4,'Previous Munic rates'!F4) -> 0 | G4: =IF(Calculations!$C$9=FALSE,'Previous Non-Munic rates'!G4,'Previous Munic rates'!G4) -> 0 | H4: =IF(Calculations!$C$9=FALSE,'Previous Non-Munic rates'!H4,'Previous Munic rates'!H4) -> 106.69 | I4: =IF(Calculations!$C$9=FALSE,'Previous Non-Munic rates'!I4,'Previous Munic rates'!I4) -> 148.16 | J4: =IF(Calculations!$C$9=FALSE,'Previous Non-Munic rates'!J4,'Previous Munic rates'!J4) -> 0 | K4: =IF(Calculations!$C$9=FALSE,'Previous Non-Munic rates'!K4,'Previous Munic rates'!K4) -> 0 | L4: =IF(Calculations!$C$9=FALSE,'Previous Non-Munic rates'!L4,'Previous Munic rates'!L4) -> 0 | M4: =IF(Calculations!$C$9=FALSE,'Previous Non-Munic rates'!M4,'Previous Munic rates'!M4) -> 236.74 | N4: =IF(Calculations!$C$9=FALSE,'Previous Non-Munic rates'!N4,'Previous Munic rates'!N4) -> 4639.2 | O4: =IF(Calculations!$C$9=FALSE,'Previous Non-Munic rates'!O4,'Previous Munic rates'!O4) -> 362.73 | P4: =IF(Calculations!$C$9=FALSE,'Previous Non-Munic rates'!P4,'Previous Munic rates'!P4) -> 110.36 | Q4: =IF(Calculations!$C$9=FALSE,'Previous Non-Munic rates'!Q4,'Previous Munic rates'!Q4) -> 60.26 | R4: =IF(Calculations!$C$9=FALSE,'Previous Non-Munic rates'!R4,'Previous Munic rates'!R4) -> 118.78 | S4: =IF(Calculations!$C$9=FALSE,'Previous Non-Munic rates'!S4,'Previous Munic rates'!S4) -> 81.96 | T4: =IF(Calculations!$C$9=FALSE,'Previous Non-Munic rates'!T4,'Previous Munic rates'!T4) -> 52.25 | U4: =IF(Calculations!$C$9=FALSE,'Previous Non-Munic rates'!U4,'Previous Munic rates'!U4) -> 16.68 | V4: =IF(Calculations!$C$9=FALSE,'Previous Non-Munic rates'!V4,'Previous Munic rates'!V4) -> 9.22 | W4: =IF(Calculations!$C$9=FALSE,'Previous Non-Munic rates'!W4,'Previous Munic rates'!W4) -> 10.38 | X4: =IF(Calculations!$C$9=FALSE,'Previous Non-Munic rates'!X4,'Previous Munic rates'!X4) -> 20.62 | Y4: =IF(Calculations!$C$9=FALSE,'Previous Non-Munic rates'!Y4,'Previous Munic rates'!Y4) -> 39.1 | AA4: =IF(Calculations!$C$9=FALSE,'Previous Non-Munic rates'!AA4,'Previous Munic rates'!AA4) -> 0 | AB4: =IF(Calculations!$C$9=FALSE,'Previous Non-Munic rates'!AB4,'Previous Munic rates'!AB4) -> 0 | AC4: =IF(Calculations!$C$9=FALSE,'Previous Non-Munic rates'!AC4,'Previous Munic rates'!AC4) -> 0 | AD4: =IF(Calculations!$C$9=FALSE,'Previous Non-Munic rates'!AD4,'Previous Munic rates'!AD4) -> 30.4167 | AE4: =IF(Calculations!$C$9=FALSE,'Previous Non-Munic rates'!AE4,'Previous Munic rates'!AE4) -> 0.48 | AF4: =IF(Calculations!$C$9=FALSE,'Previous Non-Munic rates'!AF4,'Previous Munic rates'!AF4) -> 0 | AG4: =IF(Calculations!$C$9 = TRUE, 'Previous Non-Munic rates'!AG4, 'Previous Munic rates'!AG4) -> 0 | AH4: =IF(Calculations!$C$9 = TRUE, 'Previous Non-Munic rates'!AH4, 'Previous Munic rates'!AH4) -> 0 | AI4: =IF(Calculations!$C$9 = TRUE, 'Previous Non-Munic rates'!AI4, 'Previous Munic rates'!AI4) -> 0 | AJ4: =IF(Calculations!$C$9 = TRUE, 'Previous Non-Munic rates'!AJ4, 'Previous Munic rates'!AJ4) -> 0 | AM4: 2
A5: Megaflex02 | B5: Megaflex | C5: 0 | D5: 2 | E5: =IF(Calculations!$C$9=FALSE,'Previous Non-Munic rates'!E5,'Previous Munic rates'!E5) -> 0 | F5: =IF(Calculations!$C$9=FALSE,'Previous Non-Munic rates'!F5,'Previous Munic rates'!F5) -> 0 | G5: =IF(Calculations!$C$9=FALSE,'Previous Non-Munic rates'!G5,'Previous Munic rates'!G5) -> 0 | H5: =IF(Calculations!$C$9=FALSE,'Previous Non-Munic rates'!H5,'Previous Munic rates'!H5) -> 106.69 | I5: =IF(Calculations!$C$9=FALSE,'Previous Non-Munic rates'!I5,'Previous Munic rates'!I5) -> 148.16 | J5: =IF(Calculations!$C$9=FALSE,'Previous Non-Munic rates'!J5,'Previous Munic rates'!J5) -> 0 | K5: =IF(Calculations!$C$9=FALSE,'Previous Non-Munic rates'!K5,'Previous Munic rates'!K5) -> 0 | L5: =IF(Calculations!$C$9=FALSE,'Previous Non-Munic rates'!L5,'Previous Munic rates'!L5) -> 0 | M5: =IF(Calculations!$C$9=FALSE,'Previous Non-Munic rates'!M5,'Previous Munic rates'!M5) -> 236.74 | N5: =IF(Calculations!$C$9=FALSE,'Previous Non-Munic rates'!N5,'Previous Munic rates'!N5) -> 4639.2 | O5: =IF(Calculations!$C$9=FALSE,'Previous Non-Munic rates'!O5,'Previous Munic rates'!O5) -> 357.04 | P5: =IF(Calculations!$C$9=FALSE,'Previous Non-Munic rates'!P5,'Previous Munic rates'!P5) -> 108.16 | Q5: =IF(Calculations!$C$9=FALSE,'Previous Non-Munic rates'!Q5,'Previous Munic rates'!Q5) -> 58.74 | R5: =IF(Calculations!$C$9=FALSE,'Previous Non-Munic rates'!R5,'Previous Munic rates'!R5) -> 116.45 | S5: =IF(Calculations!$C$9=FALSE,'Previous Non-Munic rates'!S5,'Previous Munic rates'!S5) -> 80.17 | T5: =IF(Calculations!$C$9=FALSE,'Previous Non-Munic rates'!T5,'Previous Munic rates'!T5) -> 50.86 | U5: =IF(Calculations!$C$9=FALSE,'Previous Non-Munic rates'!U5,'Previous Munic rates'!U5) -> 16.68 | V5: =IF(Calculations!$C$9=FALSE,'Previous Non-Munic rates'!V5,'Previous Munic rates'!V5) -> 9.22 | W5: =IF(Calculations!$C$9=FALSE,'Previous Non-Munic rates'!W5,'Previous Munic rates'!W5) -> 9.48 | X5: =IF(Calculations!$C$9=FALSE,'Previous Non-Munic rates'!X5,'Previous Munic rates'!X5) -> 18.91 | Y5: =IF(Calculations!$C$9=FALSE,'Previous Non-Munic rates'!Y5,'Previous Munic rates'!Y5) -> 35.87 | AA5: =IF(Calculations!$C$9=FALSE,'Previous Non-Munic rates'!AA5,'Previous Munic rates'!AA5) -> 0 | AB5: =IF(Calculations!$C$9=FALSE,'Previous Non-Munic rates'!AB5,'Previous Munic rates'!AB5) -> 0 | AC5: =IF(Calculations!$C$9=FALSE,'Previous Non-Munic rates'!AC5,'Previous Munic rates'!AC5) -> 0 | AD5: =IF(Calculations!$C$9=FALSE,'Previous Non-Munic rates'!AD5,'Previous Munic rates'!AD5) -> 30.4167 | AE5: =IF(Calculations!$C$9=FALSE,'Previous Non-Munic rates'!AE5,'Previous Munic rates'!AE5) -> 0.47 | AF5: =IF(Calculations!$C$9=FALSE,'Previous Non-Munic rates'!AF5,'Previous Munic rates'!AF5) -> 0 | AG5: =IF(Calculations!$C$9 = TRUE, 'Previous Non-Munic rates'!AG5, 'Previous Munic rates'!AG5) -> 0 | AH5: =IF(Calculations!$C$9 = TRUE, 'Previous Non-Munic rates'!AH5, 'Previous Munic rates'!AH5) -> 0 | AI5: =IF(Calculations!$C$9 = TRUE, 'Previous Non-Munic rates'!AI5, 'Previous Munic rates'!AI5) -> 0 | AJ5: =IF(Calculations!$C$9 = TRUE, 'Previous Non-Munic rates'!AJ5, 'Previous Munic rates'!AJ5) -> 0 | AM5: 3
A6: Megaflex03 | B6: Megaflex | C6: 0 | D6: 3 | E6: =IF(Calculations!$C$9=FALSE,'Previous Non-Munic rates'!E6,'Previous Munic rates'!E6) -> 0 | F6: =IF(Calculations!$C$9=FALSE,'Previous Non-Munic rates'!F6,'Previous Munic rates'!F6) -> 0 | G6: =IF(Calculations!$C$9=FALSE,'Previous Non-Munic rates'!G6,'Previous Munic rates'!G6) -> 0 | H6: =IF(Calculations!$C$9=FALSE,'Previous Non-Munic rates'!H6,'Previous Munic rates'!H6) -> 106.69 | I6: =IF(Calculations!$C$9=FALSE,'Previous Non-Munic rates'!I6,'Previous Munic rates'!I6) -> 148.16 | J6: =IF(Calculations!$C$9=FALSE,'Previous Non-Munic rates'!J6,'Previous Munic rates'!J6) -> 0 | K6: =IF(Calculations!$C$9=FALSE,'Previous Non-Munic rates'!K6,'Previous Munic rates'!K6) -> 0 | L6: =IF(Calculations!$C$9=FALSE,'Previous Non-Munic rates'!L6,'Previous Munic rates'!L6) -> 0 | M6: =IF(Calculations!$C$9=FALSE,'Previous Non-Munic rates'!M6,'Previous Munic rates'!M6) -> 236.74 | N6: =IF(Calculations!$C$9=FALSE,'Previous Non-Munic rates'!N6,'Previous Munic rates'!N6) -> 4639.2 | O6: =IF(Calculations!$C$9=FALSE,'Previous Non-Munic rates'!O6,'Previous Munic rates'!O6) -> 345.73 | P6: =IF(Calculations!$C$9=FALSE,'Previous Non-Munic rates'!P6,'Previous Munic rates'!P6) -> 104.73 | Q6: =IF(Calculations!$C$9=FALSE,'Previous Non-Munic rates'!Q6,'Previous Munic rates'!Q6) -> 56.88 | R6: =IF(Calculations!$C$9=FALSE,'Previous Non-Munic rates'!R6,'Previous Munic rates'!R6) -> 112.79 | S6: =IF(Calculations!$C$9=FALSE,'Previous Non-Munic rates'!S6,'Previous Munic rates'!S6) -> 77.61 | T6: =IF(Calculations!$C$9=FALSE,'Previous Non-Munic rates'!T6,'Previous Munic rates'!T6) -> 49.26 | U6: =IF(Calculations!$C$9=FALSE,'Previous Non-Munic rates'!U6,'Previous Munic rates'!U6) -> 16.68 | V6: =IF(Calculations!$C$9=FALSE,'Previous Non-Munic rates'!V6,'Previous Munic rates'!V6) -> 9.22 | W6: =IF(Calculations!$C$9=FALSE,'Previous Non-Munic rates'!W6,'Previous Munic rates'!W6) -> 9.23 | X6: =IF(Calculations!$C$9=FALSE,'Previous Non-Munic rates'!X6,'Previous Munic rates'!X6) -> 6.75 | Y6: =IF(Calculations!$C$9=FALSE,'Previous Non-Munic rates'!Y6,'Previous Munic rates'!Y6) -> 12.51 | AA6: =IF(Calculations!$C$9=FALSE,'Previous Non-Munic rates'!AA6,'Previous Munic rates'!AA6) -> 0 | AB6: =IF(Calculations!$C$9=FALSE,'Previous Non-Munic rates'!AB6,'Previous Munic rates'!AB6) -> 0 | AC6: =IF(Calculations!$C$9=FALSE,'Previous Non-Munic rates'!AC6,'Previous Munic rates'!AC6) -> 0 | AD6: =IF(Calculations!$C$9=FALSE,'Previous Non-Munic rates'!AD6,'Previous Munic rates'!AD6) -> 30.4167 | AE6: =IF(Calculations!$C$9=FALSE,'Previous Non-Munic rates'!AE6,'Previous Munic rates'!AE6) -> 0.45 | AF6: =IF(Calculations!$C$9=FALSE,'Previous Non-Munic rates'!AF6,'Previous Munic rates'!AF6) -> 0 | AG6: =IF(Calculations!$C$9 = TRUE, 'Previous Non-Munic rates'!AG6, 'Previous Munic rates'!AG6) -> 0 | AH6: =IF(Calculations!$C$9 = TRUE, 'Previous Non-Munic rates'!AH6, 'Previous Munic rates'!AH6) -> 16.55 | AI6: =IF(Calculations!$C$9 = TRUE, 'Previous Non-Munic rates'!AI6, 'Previous Munic rates'!AI6) -> 0 | AJ6: =IF(Calculations!$C$9 = TRUE, 'Previous Non-Munic rates'!AJ6, 'Previous Munic rates'!AJ6) -> 0 | AM6: 4
A7: Megaflex04 | B7: Megaflex | C7: 0 | D7: 4 | E7: =IF(Calculations!$C$9=FALSE,'Previous Non-Munic rates'!E7,'Previous Munic rates'!E7) -> 0 | F7: =IF(Calculations!$C$9=FALSE,'Previous Non-Munic rates'!F7,'Previous Munic rates'!F7) -> 0 | G7: =IF(Calculations!$C$9=FALSE,'Previous Non-Munic rates'!G7,'Previous Munic rates'!G7) -> 0 | H7: =IF(Calculations!$C$9=FALSE,'Previous Non-Munic rates'!H7,'Previous Munic rates'!H7) -> 106.69 | I7: =IF(Calculations!$C$9=FALSE,'Previous Non-Munic rates'!I7,'Previous Munic rates'!I7) -> 148.16 | J7: =IF(Calculations!$C$9=FALSE,'Previous Non-Munic rates'!J7,'Previous Munic rates'!J7) -> 0 | K7: =IF(Calculations!$C$9=FALSE,'Previous Non-Munic rates'!K7,'Previous Munic rates'!K7) -> 0 | L7: =IF(Calculations!$C$9=FALSE,'Previous Non-Munic rates'!L7,'Previous Munic rates'!L7) -> 0 | M7: =IF(Calculations!$C$9=FALSE,'Previous Non-Munic rates'!M7,'Previous Munic rates'!M7) -> 236.74 | N7: =IF(Calculations!$C$9=FALSE,'Previous Non-Munic rates'!N7,'Previous Munic rates'!N7) -> 4639.2 | O7: =IF(Calculations!$C$9=FALSE,'Previous Non-Munic rates'!O7,'Previous Munic rates'!O7) -> 325.84 | P7: =IF(Calculations!$C$9=FALSE,'Previous Non-Munic rates'!P7,'Previous Munic rates'!P7) -> 98.7 | Q7: =IF(Calculations!$C$9=FALSE,'Previous Non-Munic rates'!Q7,'Previous Munic rates'!Q7) -> 53.61 | R7: =IF(Calculations!$C$9=FALSE,'Previous Non-Munic rates'!R7,'Previous Munic rates'!R7) -> 106.32 | S7: =IF(Calculations!$C$9=FALSE,'Previous Non-Munic rates'!S7,'Previous Munic rates'!S7) -> 73.15 | T7: =IF(Calculations!$C$9=FALSE,'Previous Non-Munic rates'!T7,'Previous Munic rates'!T7) -> 46.42 | U7: =IF(Calculations!$C$9=FALSE,'Previous Non-Munic rates'!U7,'Previous Munic rates'!U7) -> 16.68 | V7: =IF(Calculations!$C$9=FALSE,'Previous Non-Munic rates'!V7,'Previous Munic rates'!V7) -> 9.22 | W7: =IF(Calculations!$C$9=FALSE,'Previous Non-Munic rates'!W7,'Previous Munic rates'!W7) -> 11.67 | X7: =IF(Calculations!$C$9=FALSE,'Previous Non-Munic rates'!X7,'Previous Munic rates'!X7) -> 0 | Y7: =IF(Calculations!$C$9=FALSE,'Previous Non-Munic rates'!Y7,'Previous Munic rates'!Y7) -> 0 | AA7: =IF(Calculations!$C$9=FALSE,'Previous Non-Munic rates'!AA7,'Previous Munic rates'!AA7) -> 0 | AB7: =IF(Calculations!$C$9=FALSE,'Previous Non-Munic rates'!AB7,'Previous Munic rates'!AB7) -> 0 | AC7: =IF(Calculations!$C$9=FALSE,'Previous Non-Munic rates'!AC7,'Previous Munic rates'!AC7) -> 0 | AD7: =IF(Calculations!$C$9=FALSE,'Previous Non-Munic rates'!AD7,'Previous Munic rates'!AD7) -> 30.4167 | AE7: =IF(Calculations!$C$9=FALSE,'Previous Non-Munic rates'!AE7,'Previous Munic rates'!AE7) -> 0.42 | AF7: =IF(Calculations!$C$9=FALSE,'Previous Non-Munic rates'!AF7,'Previous Munic rates'!AF7) -> 0 | AG7: =IF(Calculations!$C$9 = TRUE, 'Previous Non-Munic rates'!AG7, 'Previous Munic rates'!AG7) -> 0 | AH7: =IF(Calculations!$C$9 = TRUE, 'Previous Non-Munic rates'!AH7, 'Previous Munic rates'!AH7) -> 16.55 | AI7: =IF(Calculations!$C$9 = TRUE, 'Previous Non-Munic rates'!AI7, 'Previous Munic rates'!AI7) -> 0 | AJ7: =IF(Calculations!$C$9 = TRUE, 'Previous Non-Munic rates'!AJ7, 'Previous Munic rates'!AJ7) -> 0 | AM7: 5
A8: Megaflex11 | B8: Megaflex | C8: 1 | D8: 1 | E8: =IF(Calculations!$C$9=FALSE,'Previous Non-Munic rates'!E8,'Previous Munic rates'!E8) -> 0 | F8: =IF(Calculations!$C$9=FALSE,'Previous Non-Munic rates'!F8,'Previous Munic rates'!F8) -> 0 | G8: =IF(Calculations!$C$9=FALSE,'Previous Non-Munic rates'!G8,'Previous Munic rates'!G8) -> 0 | H8: =IF(Calculations!$C$9=FALSE,'Previous Non-Munic rates'!H8,'Previous Munic rates'!H8) -> 106.69 | I8: =IF(Calculations!$C$9=FALSE,'Previous Non-Munic rates'!I8,'Previous Munic rates'!I8) -> 148.16 | J8: =IF(Calculations!$C$9=FALSE,'Previous Non-Munic rates'!J8,'Previous Munic rates'!J8) -> 0 | K8: =IF(Calculations!$C$9=FALSE,'Previous Non-Munic rates'!K8,'Previous Munic rates'!K8) -> 0 | L8: =IF(Calculations!$C$9=FALSE,'Previous Non-Munic rates'!L8,'Previous Munic rates'!L8) -> 0 | M8: =IF(Calculations!$C$9=FALSE,'Previous Non-Munic rates'!M8,'Previous Munic rates'!M8) -> 236.74 | N8: =IF(Calculations!$C$9=FALSE,'Previous Non-Munic rates'!N8,'Previous Munic rates'!N8) -> 4639.2 | O8: =IF(Calculations!$C$9=FALSE,'Previous Non-Munic rates'!O8,'Previous Munic rates'!O8) -> 365.69 | P8: =IF(Calculations!$C$9=FALSE,'Previous Non-Munic rates'!P8,'Previous Munic rates'!P8) -> 110.8 | Q8: =IF(Calculations!$C$9=FALSE,'Previous Non-Munic rates'!Q8,'Previous Munic rates'!Q8) -> 60.16 | R8: =IF(Calculations!$C$9=FALSE,'Previous Non-Munic rates'!R8,'Previous Munic rates'!R8) -> 119.3 | S8: =IF(Calculations!$C$9=FALSE,'Previous Non-Munic rates'!S8,'Previous Munic rates'!S8) -> 82.14 | T8: =IF(Calculations!$C$9=FALSE,'Previous Non-Munic rates'!T8,'Previous Munic rates'!T8) -> 52.11 | U8: =IF(Calculations!$C$9=FALSE,'Previous Non-Munic rates'!U8,'Previous Munic rates'!U8) -> 16.68 | V8: =IF(Calculations!$C$9=FALSE,'Previous Non-Munic rates'!V8,'Previous Munic rates'!V8) -> 9.22 | W8: =IF(Calculations!$C$9=FALSE,'Previous Non-Munic rates'!W8,'Previous Munic rates'!W8) -> 10.45 | X8: =IF(Calculations!$C$9=FALSE,'Previous Non-Munic rates'!X8,'Previous Munic rates'!X8) -> 20.62 | Y8: =IF(Calculations!$C$9=FALSE,'Previous Non-Munic rates'!Y8,'Previous Munic rates'!Y8) -> 39.1 | AA8: =IF(Calculations!$C$9=FALSE,'Previous Non-Munic rates'!AA8,'Previous Munic rates'!AA8) -> 0 | AB8: =IF(Calculations!$C$9=FALSE,'Previous Non-Munic rates'!AB8,'Previous Munic rates'!AB8) -> 0 | AC8: =IF(Calculations!$C$9=FALSE,'Previous Non-Munic rates'!AC8,'Previous Munic rates'!AC8) -> 0 | AD8: =IF(Calculations!$C$9=FALSE,'Previous Non-Munic rates'!AD8,'Previous Munic rates'!AD8) -> 30.4167 | AE8: =IF(Calculations!$C$9=FALSE,'Previous Non-Munic rates'!AE8,'Previous Munic rates'!AE8) -> 0.48 | AF8: =IF(Calculations!$C$9=FALSE,'Previous Non-Munic rates'!AF8,'Previous Munic rates'!AF8) -> 0 | AG8: =IF(Calculations!$C$9 = TRUE, 'Previous Non-Munic rates'!AG8, 'Previous Munic rates'!AG8) -> 0 | AH8: =IF(Calculations!$C$9 = TRUE, 'Previous Non-Munic rates'!AH8, 'Previous Munic rates'!AH8) -> 0 | AI8: =IF(Calculations!$C$9 = TRUE, 'Previous Non-Munic rates'!AI8, 'Previous Munic rates'!AI8) -> 0 | AJ8: =IF(Calculations!$C$9 = TRUE, 'Previous Non-Munic rates'!AJ8, 'Previous Munic rates'!AJ8) -> 0 | AM8: 6
A9: Megaflex12 | B9: Megaflex | C9: 1 | D9: 2 | E9: =IF(Calculations!$C$9=FALSE,'Previous Non-Munic rates'!E9,'Previous Munic rates'!E9) -> 0 | F9: =IF(Calculations!$C$9=FALSE,'Previous Non-Munic rates'!F9,'Previous Munic rates'!F9) -> 0 | G9: =IF(Calculations!$C$9=FALSE,'Previous Non-Munic rates'!G9,'Previous Munic rates'!G9) -> 0 | H9: =IF(Calculations!$C$9=FALSE,'Previous Non-Munic rates'!H9,'Previous Munic rates'!H9) -> 106.69 | I9: =IF(Calculations!$C$9=FALSE,'Previous Non-Munic rates'!I9,'Previous Munic rates'!I9) -> 148.16 | J9: =IF(Calculations!$C$9=FALSE,'Previous Non-Munic rates'!J9,'Previous Munic rates'!J9) -> 0 | K9: =IF(Calculations!$C$9=FALSE,'Previous Non-Munic rates'!K9,'Previous Munic rates'!K9) -> 0 | L9: =IF(Calculations!$C$9=FALSE,'Previous Non-Munic rates'!L9,'Previous Munic rates'!L9) -> 0 | M9: =IF(Calculations!$C$9=FALSE,'Previous Non-Munic rates'!M9,'Previous Munic rates'!M9) -> 236.74 | N9: =IF(Calculations!$C$9=FALSE,'Previous Non-Munic rates'!N9,'Previous Munic rates'!N9) -> 4639.2 | O9: =IF(Calculations!$C$9=FALSE,'Previous Non-Munic rates'!O9,'Previous Munic rates'!O9) -> 360.6 | P9: =IF(Calculations!$C$9=FALSE,'Previous Non-Munic rates'!P9,'Previous Munic rates'!P9) -> 109.23 | Q9: =IF(Calculations!$C$9=FALSE,'Previous Non-Munic rates'!Q9,'Previous Munic rates'!Q9) -> 59.32 | R9: =IF(Calculations!$C$9=FALSE,'Previous Non-Munic rates'!R9,'Previous Munic rates'!R9) -> 117.65 | S9: =IF(Calculations!$C$9=FALSE,'Previous Non-Munic rates'!S9,'Previous Munic rates'!S9) -> 80.96 | T9: =IF(Calculations!$C$9=FALSE,'Previous Non-Munic rates'!T9,'Previous Munic rates'!T9) -> 51.36 | U9: =IF(Calculations!$C$9=FALSE,'Previous Non-Munic rates'!U9,'Previous Munic rates'!U9) -> 16.68 | V9: =IF(Calculations!$C$9=FALSE,'Previous Non-Munic rates'!V9,'Previous Munic rates'!V9) -> 9.22 | W9: =IF(Calculations!$C$9=FALSE,'Previous Non-Munic rates'!W9,'Previous Munic rates'!W9) -> 9.57 | X9: =IF(Calculations!$C$9=FALSE,'Previous Non-Munic rates'!X9,'Previous Munic rates'!X9) -> 18.91 | Y9: =IF(Calculations!$C$9=FALSE,'Previous Non-Munic rates'!Y9,'Previous Munic rates'!Y9) -> 35.87 | AA9: =IF(Calculations!$C$9=FALSE,'Previous Non-Munic rates'!AA9,'Previous Munic rates'!AA9) -> 0 | AB9: =IF(Calculations!$C$9=FALSE,'Previous Non-Munic rates'!AB9,'Previous Munic rates'!AB9) -> 0 | AC9: =IF(Calculations!$C$9=FALSE,'Previous Non-Munic rates'!AC9,'Previous Munic rates'!AC9) -> 0 | AD9: =IF(Calculations!$C$9=FALSE,'Previous Non-Munic rates'!AD9,'Previous Munic rates'!AD9) -> 30.4167 | AE9: =IF(Calculations!$C$9=FALSE,'Previous Non-Munic rates'!AE9,'Previous Munic rates'!AE9) -> 0.47 | AF9: =IF(Calculations!$C$9=FALSE,'Previous Non-Munic rates'!AF9,'Previous Munic rates'!AF9) -> 0 | AG9: =IF(Calculations!$C$9 = TRUE, 'Previous Non-Munic rates'!AG9, 'Previous Munic rates'!AG9) -> 0 | AH9: =IF(Calculations!$C$9 = TRUE, 'Previous Non-Munic rates'!AH9, 'Previous Munic rates'!AH9) -> 0 | AI9: =IF(Calculations!$C$9 = TRUE, 'Previous Non-Munic rates'!AI9, 'Previous Munic rates'!AI9) -> 0 | AJ9: =IF(Calculations!$C$9 = TRUE, 'Previous Non-Munic rates'!AJ9, 'Previous Munic rates'!AJ9) -> 0 | AM9: 7
A10: Megaflex13 | B10: Megaflex | C10: 1 | D10: 3 | E10: =IF(Calculations!$C$9=FALSE,'Previous Non-Munic rates'!E10,'Previous Munic rates'!E10) -> 0 | F10: =IF(Calculations!$C$9=FALSE,'Previous Non-Munic rates'!F10,'Previous Munic rates'!F10) -> 0 | G10: =IF(Calculations!$C$9=FALSE,'Previous Non-Munic rates'!G10,'Previous Munic rates'!G10) -> 0 | H10: =IF(Calculations!$C$9=FALSE,'Previous Non-Munic rates'!H10,'Previous Munic rates'!H10) -> 106.69 | I10: =IF(Calculations!$C$9=FALSE,'Previous Non-Munic rates'!I10,'Previous Munic rates'!I10) -> 148.16 | J10: =IF(Calculations!$C$9=FALSE,'Previous Non-Munic rates'!J10,'Previous Munic rates'!J10) -> 0 | K10: =IF(Calculations!$C$9=FALSE,'Previous Non-Munic rates'!K10,'Previous Munic rates'!K10) -> 0 | L10: =IF(Calculations!$C$9=FALSE,'Previous Non-Munic rates'!L10,'Previous Munic rates'!L10) -> 0 | M10: =IF(Calculations!$C$9=FALSE,'Previous Non-Munic rates'!M10,'Previous Munic rates'!M10) -> 236.74 | N10: =IF(Calculations!$C$9=FALSE,'Previous Non-Munic rates'!N10,'Previous Munic rates'!N10) -> 4639.2 | O10: =IF(Calculations!$C$9=FALSE,'Previous Non-Munic rates'!O10,'Previous Munic rates'!O10) -> 349.13 | P10: =IF(Calculations!$C$9=FALSE,'Previous Non-Munic rates'!P10,'Previous Munic rates'!P10) -> 105.75 | Q10: =IF(Calculations!$C$9=FALSE,'Previous Non-Munic rates'!Q10,'Previous Munic rates'!Q10) -> 57.41 | R10: =IF(Calculations!$C$9=FALSE,'Previous Non-Munic rates'!R10,'Previous Munic rates'!R10) -> 113.88 | S10: =IF(Calculations!$C$9=FALSE,'Previous Non-Munic rates'!S10,'Previous Munic rates'!S10) -> 78.38 | T10: =IF(Calculations!$C$9=FALSE,'Previous Non-Munic rates'!T10,'Previous Munic rates'!T10) -> 49.73 | U10: =IF(Calculations!$C$9=FALSE,'Previous Non-Munic rates'!U10,'Previous Munic rates'!U10) -> 16.68 | V10: =IF(Calculations!$C$9=FALSE,'Previous Non-Munic rates'!V10,'Previous Munic rates'!V10) -> 9.22 | W10: =IF(Calculations!$C$9=FALSE,'Previous Non-Munic rates'!W10,'Previous Munic rates'!W10) -> 9.3 | X10: =IF(Calculations!$C$9=FALSE,'Previous Non-Munic rates'!X10,'Previous Munic rates'!X10) -> 6.75 | Y10: =IF(Calculations!$C$9=FALSE,'Previous Non-Munic rates'!Y10,'Previous Munic rates'!Y10) -> 12.51 | AA10: =IF(Calculations!$C$9=FALSE,'Previous Non-Munic rates'!AA10,'Previous Munic rates'!AA10) -> 0 | AB10: =IF(Calculations!$C$9=FALSE,'Previous Non-Munic rates'!AB10,'Previous Munic rates'!AB10) -> 0 | AC10: =IF(Calculations!$C$9=FALSE,'Previous Non-Munic rates'!AC10,'Previous Munic rates'!AC10) -> 0 | AD10: =IF(Calculations!$C$9=FALSE,'Previous Non-Munic rates'!AD10,'Previous Munic rates'!AD10) -> 30.4167 | AE10: =IF(Calculations!$C$9=FALSE,'Previous Non-Munic rates'!AE10,'Previous Munic rates'!AE10) -> 0.45 | AF10: =IF(Calculations!$C$9=FALSE,'Previous Non-Munic rates'!AF10,'Previous Munic rates'!AF10) -> 0 | AG10: =IF(Calculations!$C$9 = TRUE, 'Previous Non-Munic rates'!AG10, 'Previous Munic rates'!AG10) -> 0 | AH10: =IF(Calculations!$C$9 = TRUE, 'Previous Non-Munic rates'!AH10, 'Previous Munic rates'!AH10) -> 16.55 | AI10: =IF(Calculations!$C$9 = TRUE, 'Previous Non-Munic rates'!AI10, 'Previous Munic rates'!AI10) -> 0 | AJ10: =IF(Calculations!$C$9 = TRUE, 'Previous Non-Munic rates'!AJ10, 'Previous Munic rates'!AJ10) -> 0 | AM10: 8
A11: Megaflex14 | B11: Megaflex | C11: 1 | D11: 4 | E11: =IF(Calculations!$C$9=FALSE,'Previous Non-Munic rates'!E11,'Previous Munic rates'!E11) -> 0 | F11: =IF(Calculations!$C$9=FALSE,'Previous Non-Munic rates'!F11,'Previous Munic rates'!F11) -> 0 | G11: =IF(Calculations!$C$9=FALSE,'Previous Non-Munic rates'!G11,'Previous Munic rates'!G11) -> 0 | H11: =IF(Calculations!$C$9=FALSE,'Previous Non-Munic rates'!H11,'Previous Munic rates'!H11) -> 106.69 | I11: =IF(Calculations!$C$9=FALSE,'Previous Non-Munic rates'!I11,'Previous Munic rates'!I11) -> 148.16 | J11: =IF(Calculations!$C$9=FALSE,'Previous Non-Munic rates'!J11,'Previous Munic rates'!J11) -> 0 | K11: =IF(Calculations!$C$9=FALSE,'Previous Non-Munic rates'!K11,'Previous Munic rates'!K11) -> 0 | L11: =IF(Calculations!$C$9=FALSE,'Previous Non-Munic rates'!L11,'Previous Munic rates'!L11) -> 0 | M11: =IF(Calculations!$C$9=FALSE,'Previous Non-Munic rates'!M11,'Previous Munic rates'!M11) -> 236.74 | N11: =IF(Calculations!$C$9=FALSE,'Previous Non-Munic rates'!N11,'Previous Munic rates'!N11) -> 4639.2 | O11: =IF(Calculations!$C$9=FALSE,'Previous Non-Munic rates'!O11,'Previous Munic rates'!O11) -> 329.11 | P11: =IF(Calculations!$C$9=FALSE,'Previous Non-Munic rates'!P11,'Previous Munic rates'!P11) -> 99.71 | Q11: =IF(Calculations!$C$9=FALSE,'Previous Non-Munic rates'!Q11,'Previous Munic rates'!Q11) -> 54.11 | R11: =IF(Calculations!$C$9=FALSE,'Previous Non-Munic rates'!R11,'Previous Munic rates'!R11) -> 107.34 | S11: =IF(Calculations!$C$9=FALSE,'Previous Non-Munic rates'!S11,'Previous Munic rates'!S11) -> 73.87 | T11: =IF(Calculations!$C$9=FALSE,'Previous Non-Munic rates'!T11,'Previous Munic rates'!T11) -> 46.85 | U11: =IF(Calculations!$C$9=FALSE,'Previous Non-Munic rates'!U11,'Previous Munic rates'!U11) -> 16.68 | V11: =IF(Calculations!$C$9=FALSE,'Previous Non-Munic rates'!V11,'Previous Munic rates'!V11) -> 9.22 | W11: =IF(Calculations!$C$9=FALSE,'Previous Non-Munic rates'!W11,'Previous Munic rates'!W11) -> 11.78 | X11: =IF(Calculations!$C$9=FALSE,'Previous Non-Munic rates'!X11,'Previous Munic rates'!X11) -> 0 | Y11: =IF(Calculations!$C$9=FALSE,'Previous Non-Munic rates'!Y11,'Previous Munic rates'!Y11) -> 0 | AA11: =IF(Calculations!$C$9=FALSE,'Previous Non-Munic rates'!AA11,'Previous Munic rates'!AA11) -> 0 | AB11: =IF(Calculations!$C$9=FALSE,'Previous Non-Munic rates'!AB11,'Previous Munic rates'!AB11) -> 0 | AC11: =IF(Calculations!$C$9=FALSE,'Previous Non-Munic rates'!AC11,'Previous Munic rates'!AC11) -> 0 | AD11: =IF(Calculations!$C$9=FALSE,'Previous Non-Munic rates'!AD11,'Previous Munic rates'!AD11) -> 30.4167 | AE11: =IF(Calculations!$C$9=FALSE,'Previous Non-Munic rates'!AE11,'Previous Munic rates'!AE11) -> 0.42 | AF11: =IF(Calculations!$C$9=FALSE,'Previous Non-Munic rates'!AF11,'Previous Munic rates'!AF11) -> 0 | AG11: =IF(Calculations!$C$9 = TRUE, 'Previous Non-Munic rates'!AG11, 'Previous Munic rates'!AG11) -> 0 | AH11: =IF(Calculations!$C$9 = TRUE, 'Previous Non-Munic rates'!AH11, 'Previous Munic rates'!AH11) -> 16.55 | AI11: =IF(Calculations!$C$9 = TRUE, 'Previous Non-Munic rates'!AI11, 'Previous Munic rates'!AI11) -> 0 | AJ11: =IF(Calculations!$C$9 = TRUE, 'Previous Non-Munic rates'!AJ11, 'Previous Munic rates'!AJ11) -> 0 | AM11: 9
A12: Megaflex21 | B12: Megaflex | C12: 2 | D12: 1 | E12: =IF(Calculations!$C$9=FALSE,'Previous Non-Munic rates'!E12,'Previous Munic rates'!E12) -> 0 | F12: =IF(Calculations!$C$9=FALSE,'Previous Non-Munic rates'!F12,'Previous Munic rates'!F12) -> 0 | G12: =IF(Calculations!$C$9=FALSE,'Previous Non-Munic rates'!G12,'Previous Munic rates'!G12) -> 0 | H12: =IF(Calculations!$C$9=FALSE,'Previous Non-Munic rates'!H12,'Previous Munic rates'!H12) -> 106.69 | I12: =IF(Calculations!$C$9=FALSE,'Previous Non-Munic rates'!I12,'Previous Munic rates'!I12) -> 148.16 | J12: =IF(Calculations!$C$9=FALSE,'Previous Non-Munic rates'!J12,'Previous Munic rates'!J12) -> 0 | K12: =IF(Calculations!$C$9=FALSE,'Previous Non-Munic rates'!K12,'Previous Munic rates'!K12) -> 0 | L12: =IF(Calculations!$C$9=FALSE,'Previous Non-Munic rates'!L12,'Previous Munic rates'!L12) -> 0 | M12: =IF(Calculations!$C$9=FALSE,'Previous Non-Munic rates'!M12,'Previous Munic rates'!M12) -> 236.74 | N12: =IF(Calculations!$C$9=FALSE,'Previous Non-Munic rates'!N12,'Previous Munic rates'!N12) -> 4639.2 | O12: =IF(Calculations!$C$9=FALSE,'Previous Non-Munic rates'!O12,'Previous Munic rates'!O12) -> 369.33 | P12: =IF(Calculations!$C$9=FALSE,'Previous Non-Munic rates'!P12,'Previous Munic rates'!P12) -> 111.88 | Q12: =IF(Calculations!$C$9=FALSE,'Previous Non-Munic rates'!Q12,'Previous Munic rates'!Q12) -> 60.73 | R12: =IF(Calculations!$C$9=FALSE,'Previous Non-Munic rates'!R12,'Previous Munic rates'!R12) -> 120.48 | S12: =IF(Calculations!$C$9=FALSE,'Previous Non-Munic rates'!S12,'Previous Munic rates'!S12) -> 82.93 | T12: =IF(Calculations!$C$9=FALSE,'Previous Non-Munic rates'!T12,'Previous Munic rates'!T12) -> 52.59 | U12: =IF(Calculations!$C$9=FALSE,'Previous Non-Munic rates'!U12,'Previous Munic rates'!U12) -> 16.68 | V12: =IF(Calculations!$C$9=FALSE,'Previous Non-Munic rates'!V12,'Previous Munic rates'!V12) -> 9.22 | W12: =IF(Calculations!$C$9=FALSE,'Previous Non-Munic rates'!W12,'Previous Munic rates'!W12) -> 10.57 | X12: =IF(Calculations!$C$9=FALSE,'Previous Non-Munic rates'!X12,'Previous Munic rates'!X12) -> 20.62 | Y12: =IF(Calculations!$C$9=FALSE,'Previous Non-Munic rates'!Y12,'Previous Munic rates'!Y12) -> 39.1 | AA12: =IF(Calculations!$C$9=FALSE,'Previous Non-Munic rates'!AA12,'Previous Munic rates'!AA12) -> 0 | AB12: =IF(Calculations!$C$9=FALSE,'Previous Non-Munic rates'!AB12,'Previous Munic rates'!AB12) -> 0 | AC12: =IF(Calculations!$C$9=FALSE,'Previous Non-Munic rates'!AC12,'Previous Munic rates'!AC12) -> 0 | AD12: =IF(Calculations!$C$9=FALSE,'Previous Non-Munic rates'!AD12,'Previous Munic rates'!AD12) -> 30.4167 | AE12: =IF(Calculations!$C$9=FALSE,'Previous Non-Munic rates'!AE12,'Previous Munic rates'!AE12) -> 0.48 | AF12: =IF(Calculations!$C$9=FALSE,'Previous Non-Munic rates'!AF12,'Previous Munic rates'!AF12) -> 0 | AG12: =IF(Calculations!$C$9 = TRUE, 'Previous Non-Munic rates'!AG12, 'Previous Munic rates'!AG12) -> 0 | AH12: =IF(Calculations!$C$9 = TRUE, 'Previous Non-Munic rates'!AH12, 'Previous Munic rates'!AH12) -> 0 | AI12: =IF(Calculations!$C$9 = TRUE, 'Previous Non-Munic rates'!AI12, 'Previous Munic rates'!AI12) -> 0 | AJ12: =IF(Calculations!$C$9 = TRUE, 'Previous Non-Munic rates'!AJ12, 'Previous Munic rates'!AJ12) -> 0 | AM12: 10
A13: Megaflex22 | B13: Megaflex | C13: 2 | D13: 2 | E13: =IF(Calculations!$C$9=FALSE,'Previous Non-Munic rates'!E13,'Previous Munic rates'!E13) -> 0 | F13: =IF(Calculations!$C$9=FALSE,'Previous Non-Munic rates'!F13,'Previous Munic rates'!F13) -> 0 | G13: =IF(Calculations!$C$9=FALSE,'Previous Non-Munic rates'!G13,'Previous Munic rates'!G13) -> 0 | H13: =IF(Calculations!$C$9=FALSE,'Previous Non-Munic rates'!H13,'Previous Munic rates'!H13) -> 106.69 | I13: =IF(Calculations!$C$9=FALSE,'Previous Non-Munic rates'!I13,'Previous Munic rates'!I13) -> 148.16 | J13: =IF(Calculations!$C$9=FALSE,'Previous Non-Munic rates'!J13,'Previous Munic rates'!J13) -> 0 | K13: =IF(Calculations!$C$9=FALSE,'Previous Non-Munic rates'!K13,'Previous Munic rates'!K13) -> 0 | L13: =IF(Calculations!$C$9=FALSE,'Previous Non-Munic rates'!L13,'Previous Munic rates'!L13) -> 0 | M13: =IF(Calculations!$C$9=FALSE,'Previous Non-Munic rates'!M13,'Previous Munic rates'!M13) -> 236.74 | N13: =IF(Calculations!$C$9=FALSE,'Previous Non-Munic rates'!N13,'Previous Munic rates'!N13) -> 4639.2 | O13: =IF(Calculations!$C$9=FALSE,'Previous Non-Munic rates'!O13,'Previous Munic rates'!O13) -> 364.23 | P13: =IF(Calculations!$C$9=FALSE,'Previous Non-Munic rates'!P13,'Previous Munic rates'!P13) -> 110.35 | Q13: =IF(Calculations!$C$9=FALSE,'Previous Non-Munic rates'!Q13,'Previous Munic rates'!Q13) -> 59.92 | R13: =IF(Calculations!$C$9=FALSE,'Previous Non-Munic rates'!R13,'Previous Munic rates'!R13) -> 118.81 | S13: =IF(Calculations!$C$9=FALSE,'Previous Non-Munic rates'!S13,'Previous Munic rates'!S13) -> 81.78 | T13: =IF(Calculations!$C$9=FALSE,'Previous Non-Munic rates'!T13,'Previous Munic rates'!T13) -> 51.88 | U13: =IF(Calculations!$C$9=FALSE,'Previous Non-Munic rates'!U13,'Previous Munic rates'!U13) -> 16.68 | V13: =IF(Calculations!$C$9=FALSE,'Previous Non-Munic rates'!V13,'Previous Munic rates'!V13) -> 9.22 | W13: =IF(Calculations!$C$9=FALSE,'Previous Non-Munic rates'!W13,'Previous Munic rates'!W13) -> 9.66 | X13: =IF(Calculations!$C$9=FALSE,'Previous Non-Munic rates'!X13,'Previous Munic rates'!X13) -> 18.91 | Y13: =IF(Calculations!$C$9=FALSE,'Previous Non-Munic rates'!Y13,'Previous Munic rates'!Y13) -> 35.87 | AA13: =IF(Calculations!$C$9=FALSE,'Previous Non-Munic rates'!AA13,'Previous Munic rates'!AA13) -> 0 | AB13: =IF(Calculations!$C$9=FALSE,'Previous Non-Munic rates'!AB13,'Previous Munic rates'!AB13) -> 0 | AC13: =IF(Calculations!$C$9=FALSE,'Previous Non-Munic rates'!AC13,'Previous Munic rates'!AC13) -> 0 | AD13: =IF(Calculations!$C$9=FALSE,'Previous Non-Munic rates'!AD13,'Previous Munic rates'!AD13) -> 30.4167 | AE13: =IF(Calculations!$C$9=FALSE,'Previous Non-Munic rates'!AE13,'Previous Munic rates'!AE13) -> 0.47 | AF13: =IF(Calculations!$C$9=FALSE,'Previous Non-Munic rates'!AF13,'Previous Munic rates'!AF13) -> 0 | AG13: =IF(Calculations!$C$9 = TRUE, 'Previous Non-Munic rates'!AG13, 'Previous Munic rates'!AG13) -> 0 | AH13: =IF(Calculations!$C$9 = TRUE, 'Previous Non-Munic rates'!AH13, 'Previous Munic rates'!AH13) -> 0 | AI13: =IF(Calculations!$C$9 = TRUE, 'Previous Non-Munic rates'!AI13, 'Previous Munic rates'!AI13) -> 0 | AJ13: =IF(Calculations!$C$9 = TRUE, 'Previous Non-Munic rates'!AJ13, 'Previous Munic rates'!AJ13) -> 0 | AM13: 11
A14: Megaflex23 | B14: Megaflex | C14: 2 | D14: 3 | E14: =IF(Calculations!$C$9=FALSE,'Previous Non-Munic rates'!E14,'Previous Munic rates'!E14) -> 0 | F14: =IF(Calculations!$C$9=FALSE,'Previous Non-Munic rates'!F14,'Previous Munic rates'!F14) -> 0 | G14: =IF(Calculations!$C$9=FALSE,'Previous Non-Munic rates'!G14,'Previous Munic rates'!G14) -> 0 | H14: =IF(Calculations!$C$9=FALSE,'Previous Non-Munic rates'!H14,'Previous Munic rates'!H14) -> 106.69 | I14: =IF(Calculations!$C$9=FALSE,'Previous Non-Munic rates'!I14,'Previous Munic rates'!I14) -> 148.16 | J14: =IF(Calculations!$C$9=FALSE,'Previous Non-Munic rates'!J14,'Previous Munic rates'!J14) -> 0 | K14: =IF(Calculations!$C$9=FALSE,'Previous Non-Munic rates'!K14,'Previous Munic rates'!K14) -> 0 | L14: =IF(Calculations!$C$9=FALSE,'Previous Non-Munic rates'!L14,'Previous Munic rates'!L14) -> 0 | M14: =IF(Calculations!$C$9=FALSE,'Previous Non-Munic rates'!M14,'Previous Munic rates'!M14) -> 236.74 | N14: =IF(Calculations!$C$9=FALSE,'Previous Non-Munic rates'!N14,'Previous Munic rates'!N14) -> 4639.2 | O14: =IF(Calculations!$C$9=FALSE,'Previous Non-Munic rates'!O14,'Previous Munic rates'!O14) -> 352.69 | P14: =IF(Calculations!$C$9=FALSE,'Previous Non-Munic rates'!P14,'Previous Munic rates'!P14) -> 106.85 | Q14: =IF(Calculations!$C$9=FALSE,'Previous Non-Munic rates'!Q14,'Previous Munic rates'!Q14) -> 58.01 | R14: =IF(Calculations!$C$9=FALSE,'Previous Non-Munic rates'!R14,'Previous Munic rates'!R14) -> 115.04 | S14: =IF(Calculations!$C$9=FALSE,'Previous Non-Munic rates'!S14,'Previous Munic rates'!S14) -> 79.19 | T14: =IF(Calculations!$C$9=FALSE,'Previous Non-Munic rates'!T14,'Previous Munic rates'!T14) -> 50.24 | U14: =IF(Calculations!$C$9=FALSE,'Previous Non-Munic rates'!U14,'Previous Munic rates'!U14) -> 16.68 | V14: =IF(Calculations!$C$9=FALSE,'Previous Non-Munic rates'!V14,'Previous Munic rates'!V14) -> 9.22 | W14: =IF(Calculations!$C$9=FALSE,'Previous Non-Munic rates'!W14,'Previous Munic rates'!W14) -> 9.36 | X14: =IF(Calculations!$C$9=FALSE,'Previous Non-Munic rates'!X14,'Previous Munic rates'!X14) -> 6.75 | Y14: =IF(Calculations!$C$9=FALSE,'Previous Non-Munic rates'!Y14,'Previous Munic rates'!Y14) -> 12.51 | AA14: =IF(Calculations!$C$9=FALSE,'Previous Non-Munic rates'!AA14,'Previous Munic rates'!AA14) -> 0 | AB14: =IF(Calculations!$C$9=FALSE,'Previous Non-Munic rates'!AB14,'Previous Munic rates'!AB14) -> 0 | AC14: =IF(Calculations!$C$9=FALSE,'Previous Non-Munic rates'!AC14,'Previous Munic rates'!AC14) -> 0 | AD14: =IF(Calculations!$C$9=FALSE,'Previous Non-Munic rates'!AD14,'Previous Munic rates'!AD14) -> 30.4167 | AE14: =IF(Calculations!$C$9=FALSE,'Previous Non-Munic rates'!AE14,'Previous Munic rates'!AE14) -> 0.45 | AF14: =IF(Calculations!$C$9=FALSE,'Previous Non-Munic rates'!AF14,'Previous Munic rates'!AF14) -> 0 | AG14: =IF(Calculations!$C$9 = TRUE, 'Previous Non-Munic rates'!AG14, 'Previous Munic rates'!AG14) -> 0 | AH14: =IF(Calculations!$C$9 = TRUE, 'Previous Non-Munic rates'!AH14, 'Previous Munic rates'!AH14) -> 16.55 | AI14: =IF(Calculations!$C$9 = TRUE, 'Previous Non-Munic rates'!AI14, 'Previous Munic rates'!AI14) -> 0 | AJ14: =IF(Calculations!$C$9 = TRUE, 'Previous Non-Munic rates'!AJ14, 'Previous Munic rates'!AJ14) -> 0 | AM14: 12
A15: Megaflex24 | B15: Megaflex | C15: 2 | D15: 4 | E15: =IF(Calculations!$C$9=FALSE,'Previous Non-Munic rates'!E15,'Previous Munic rates'!E15) -> 0 | F15: =IF(Calculations!$C$9=FALSE,'Previous Non-Munic rates'!F15,'Previous Munic rates'!F15) -> 0 | G15: =IF(Calculations!$C$9=FALSE,'Previous Non-Munic rates'!G15,'Previous Munic rates'!G15) -> 0 | H15: =IF(Calculations!$C$9=FALSE,'Previous Non-Munic rates'!H15,'Previous Munic rates'!H15) -> 106.69 | I15: =IF(Calculations!$C$9=FALSE,'Previous Non-Munic rates'!I15,'Previous Munic rates'!I15) -> 148.16 | J15: =IF(Calculations!$C$9=FALSE,'Previous Non-Munic rates'!J15,'Previous Munic rates'!J15) -> 0 | K15: =IF(Calculations!$C$9=FALSE,'Previous Non-Munic rates'!K15,'Previous Munic rates'!K15) -> 0 | L15: =IF(Calculations!$C$9=FALSE,'Previous Non-Munic rates'!L15,'Previous Munic rates'!L15) -> 0 | M15: =IF(Calculations!$C$9=FALSE,'Previous Non-Munic rates'!M15,'Previous Munic rates'!M15) -> 236.74 | N15: =IF(Calculations!$C$9=FALSE,'Previous Non-Munic rates'!N15,'Previous Munic rates'!N15) -> 4639.2 | O15: =IF(Calculations!$C$9=FALSE,'Previous Non-Munic rates'!O15,'Previous Munic rates'!O15) -> 332.42 | P15: =IF(Calculations!$C$9=FALSE,'Previous Non-Munic rates'!P15,'Previous Munic rates'!P15) -> 100.69 | Q15: =IF(Calculations!$C$9=FALSE,'Previous Non-Munic rates'!Q15,'Previous Munic rates'!Q15) -> 54.71 | R15: =IF(Calculations!$C$9=FALSE,'Previous Non-Munic rates'!R15,'Previous Munic rates'!R15) -> 108.43 | S15: =IF(Calculations!$C$9=FALSE,'Previous Non-Munic rates'!S15,'Previous Munic rates'!S15) -> 74.62 | T15: =IF(Calculations!$C$9=FALSE,'Previous Non-Munic rates'!T15,'Previous Munic rates'!T15) -> 47.35 | U15: =IF(Calculations!$C$9=FALSE,'Previous Non-Munic rates'!U15,'Previous Munic rates'!U15) -> 16.68 | V15: =IF(Calculations!$C$9=FALSE,'Previous Non-Munic rates'!V15,'Previous Munic rates'!V15) -> 9.22 | W15: =IF(Calculations!$C$9=FALSE,'Previous Non-Munic rates'!W15,'Previous Munic rates'!W15) -> 11.95 | X15: =IF(Calculations!$C$9=FALSE,'Previous Non-Munic rates'!X15,'Previous Munic rates'!X15) -> 0 | Y15: =IF(Calculations!$C$9=FALSE,'Previous Non-Munic rates'!Y15,'Previous Munic rates'!Y15) -> 0 | AA15: =IF(Calculations!$C$9=FALSE,'Previous Non-Munic rates'!AA15,'Previous Munic rates'!AA15) -> 0 | AB15: =IF(Calculations!$C$9=FALSE,'Previous Non-Munic rates'!AB15,'Previous Munic rates'!AB15) -> 0 | AC15: =IF(Calculations!$C$9=FALSE,'Previous Non-Munic rates'!AC15,'Previous Munic rates'!AC15) -> 0 | AD15: =IF(Calculations!$C$9=FALSE,'Previous Non-Munic rates'!AD15,'Previous Munic rates'!AD15) -> 30.4167 | AE15: =IF(Calculations!$C$9=FALSE,'Previous Non-Munic rates'!AE15,'Previous Munic rates'!AE15) -> 0.42 | AF15: =IF(Calculations!$C$9=FALSE,'Previous Non-Munic rates'!AF15,'Previous Munic rates'!AF15) -> 0 | AG15: =IF(Calculations!$C$9 = TRUE, 'Previous Non-Munic rates'!AG15, 'Previous Munic rates'!AG15) -> 0 | AH15: =IF(Calculations!$C$9 = TRUE, 'Previous Non-Munic rates'!AH15, 'Previous Munic rates'!AH15) -> 16.55 | AI15: =IF(Calculations!$C$9 = TRUE, 'Previous Non-Munic rates'!AI15, 'Previous Munic rates'!AI15) -> 0 | AJ15: =IF(Calculations!$C$9 = TRUE, 'Previous Non-Munic rates'!AJ15, 'Previous Munic rates'!AJ15) -> 0 | AM15: 13
A16: Megaflex31 | B16: Megaflex | C16: 3 | D16: 1 | E16: =IF(Calculations!$C$9=FALSE,'Previous Non-Munic rates'!E16,'Previous Munic rates'!E16) -> 0 | F16: =IF(Calculations!$C$9=FALSE,'Previous Non-Munic rates'!F16,'Previous Munic rates'!F16) -> 0 | G16: =IF(Calculations!$C$9=FALSE,'Previous Non-Munic rates'!G16,'Previous Munic rates'!G16) -> 0 | H16: =IF(Calculations!$C$9=FALSE,'Previous Non-Munic rates'!H16,'Previous Munic rates'!H16) -> 106.69 | I16: =IF(Calculations!$C$9=FALSE,'Previous Non-Munic rates'!I16,'Previous Munic rates'!I16) -> 148.16 | J16: =IF(Calculations!$C$9=FALSE,'Previous Non-Munic rates'!J16,'Previous Munic rates'!J16) -> 0 | K16: =IF(Calculations!$C$9=FALSE,'Previous Non-Munic rates'!K16,'Previous Munic rates'!K16) -> 0 | L16: =IF(Calculations!$C$9=FALSE,'Previous Non-Munic rates'!L16,'Previous Munic rates'!L16) -> 0 | M16: =IF(Calculations!$C$9=FALSE,'Previous Non-Munic rates'!M16,'Previous Munic rates'!M16) -> 236.74 | N16: =IF(Calculations!$C$9=FALSE,'Previous Non-Munic rates'!N16,'Previous Munic rates'!N16) -> 4639.2 | O16: =IF(Calculations!$C$9=FALSE,'Previous Non-Munic rates'!O16,'Previous Munic rates'!O16) -> 373.05 | P16: =IF(Calculations!$C$9=FALSE,'Previous Non-Munic rates'!P16,'Previous Munic rates'!P16) -> 113.05 | Q16: =IF(Calculations!$C$9=FALSE,'Previous Non-Munic rates'!Q16,'Previous Munic rates'!Q16) -> 61.36 | R16: =IF(Calculations!$C$9=FALSE,'Previous Non-Munic rates'!R16,'Previous Munic rates'!R16) -> 121.7 | S16: =IF(Calculations!$C$9=FALSE,'Previous Non-Munic rates'!S16,'Previous Munic rates'!S16) -> 83.75 | T16: =IF(Calculations!$C$9=FALSE,'Previous Non-Munic rates'!T16,'Previous Munic rates'!T16) -> 53.15 | U16: =IF(Calculations!$C$9=FALSE,'Previous Non-Munic rates'!U16,'Previous Munic rates'!U16) -> 16.68 | V16: =IF(Calculations!$C$9=FALSE,'Previous Non-Munic rates'!V16,'Previous Munic rates'!V16) -> 9.22 | W16: =IF(Calculations!$C$9=FALSE,'Previous Non-Munic rates'!W16,'Previous Munic rates'!W16) -> 10.64 | X16: =IF(Calculations!$C$9=FALSE,'Previous Non-Munic rates'!X16,'Previous Munic rates'!X16) -> 20.62 | Y16: =IF(Calculations!$C$9=FALSE,'Previous Non-Munic rates'!Y16,'Previous Munic rates'!Y16) -> 39.1 | AA16: =IF(Calculations!$C$9=FALSE,'Previous Non-Munic rates'!AA16,'Previous Munic rates'!AA16) -> 0 | AB16: =IF(Calculations!$C$9=FALSE,'Previous Non-Munic rates'!AB16,'Previous Munic rates'!AB16) -> 0 | AC16: =IF(Calculations!$C$9=FALSE,'Previous Non-Munic rates'!AC16,'Previous Munic rates'!AC16) -> 0 | AD16: =IF(Calculations!$C$9=FALSE,'Previous Non-Munic rates'!AD16,'Previous Munic rates'!AD16) -> 30.4167 | AE16: =IF(Calculations!$C$9=FALSE,'Previous Non-Munic rates'!AE16,'Previous Munic rates'!AE16) -> 0.48 | AF16: =IF(Calculations!$C$9=FALSE,'Previous Non-Munic rates'!AF16,'Previous Munic rates'!AF16) -> 0 | AG16: =IF(Calculations!$C$9 = TRUE, 'Previous Non-Munic rates'!AG16, 'Previous Munic rates'!AG16) -> 0 | AH16: =IF(Calculations!$C$9 = TRUE, 'Previous Non-Munic rates'!AH16, 'Previous Munic rates'!AH16) -> 0 | AI16: =IF(Calculations!$C$9 = TRUE, 'Previous Non-Munic rates'!AI16, 'Previous Munic rates'!AI16) -> 0 | AJ16: =IF(Calculations!$C$9 = TRUE, 'Previous Non-Munic rates'!AJ16, 'Previous Munic rates'!AJ16) -> 0 | AM16: 14
A17: Megaflex32 | B17: Megaflex | C17: 3 | D17: 2 | E17: =IF(Calculations!$C$9=FALSE,'Previous Non-Munic rates'!E17,'Previous Munic rates'!E17) -> 0 | F17: =IF(Calculations!$C$9=FALSE,'Previous Non-Munic rates'!F17,'Previous Munic rates'!F17) -> 0 | G17: =IF(Calculations!$C$9=FALSE,'Previous Non-Munic rates'!G17,'Previous Munic rates'!G17) -> 0 | H17: =IF(Calculations!$C$9=FALSE,'Previous Non-Munic rates'!H17,'Previous Munic rates'!H17) -> 106.69 | I17: =IF(Calculations!$C$9=FALSE,'Previous Non-Munic rates'!I17,'Previous Munic rates'!I17) -> 148.16 | J17: =IF(Calculations!$C$9=FALSE,'Previous Non-Munic rates'!J17,'Previous Munic rates'!J17) -> 0 | K17: =IF(Calculations!$C$9=FALSE,'Previous Non-Munic rates'!K17,'Previous Munic rates'!K17) -> 0 | L17: =IF(Calculations!$C$9=FALSE,'Previous Non-Munic rates'!L17,'Previous Munic rates'!L17) -> 0 | M17: =IF(Calculations!$C$9=FALSE,'Previous Non-Munic rates'!M17,'Previous Munic rates'!M17) -> 236.74 | N17: =IF(Calculations!$C$9=FALSE,'Previous Non-Munic rates'!N17,'Previous Munic rates'!N17) -> 4639.2 | O17: =IF(Calculations!$C$9=FALSE,'Previous Non-Munic rates'!O17,'Previous Munic rates'!O17) -> 367.85 | P17: =IF(Calculations!$C$9=FALSE,'Previous Non-Munic rates'!P17,'Previous Munic rates'!P17) -> 111.42 | Q17: =IF(Calculations!$C$9=FALSE,'Previous Non-Munic rates'!Q17,'Previous Munic rates'!Q17) -> 60.48 | R17: =IF(Calculations!$C$9=FALSE,'Previous Non-Munic rates'!R17,'Previous Munic rates'!R17) -> 119.97 | S17: =IF(Calculations!$C$9=FALSE,'Previous Non-Munic rates'!S17,'Previous Munic rates'!S17) -> 82.56 | T17: =IF(Calculations!$C$9=FALSE,'Previous Non-Munic rates'!T17,'Previous Munic rates'!T17) -> 52.39 | U17: =IF(Calculations!$C$9=FALSE,'Previous Non-Munic rates'!U17,'Previous Munic rates'!U17) -> 16.68 | V17: =IF(Calculations!$C$9=FALSE,'Previous Non-Munic rates'!V17,'Previous Munic rates'!V17) -> 9.22 | W17: =IF(Calculations!$C$9=FALSE,'Previous Non-Munic rates'!W17,'Previous Munic rates'!W17) -> 9.77 | X17: =IF(Calculations!$C$9=FALSE,'Previous Non-Munic rates'!X17,'Previous Munic rates'!X17) -> 18.91 | Y17: =IF(Calculations!$C$9=FALSE,'Previous Non-Munic rates'!Y17,'Previous Munic rates'!Y17) -> 35.87 | AA17: =IF(Calculations!$C$9=FALSE,'Previous Non-Munic rates'!AA17,'Previous Munic rates'!AA17) -> 0 | AB17: =IF(Calculations!$C$9=FALSE,'Previous Non-Munic rates'!AB17,'Previous Munic rates'!AB17) -> 0 | AC17: =IF(Calculations!$C$9=FALSE,'Previous Non-Munic rates'!AC17,'Previous Munic rates'!AC17) -> 0 | AD17: =IF(Calculations!$C$9=FALSE,'Previous Non-Munic rates'!AD17,'Previous Munic rates'!AD17) -> 30.4167 | AE17: =IF(Calculations!$C$9=FALSE,'Previous Non-Munic rates'!AE17,'Previous Munic rates'!AE17) -> 0.47 | AF17: =IF(Calculations!$C$9=FALSE,'Previous Non-Munic rates'!AF17,'Previous Munic rates'!AF17) -> 0 | AG17: =IF(Calculations!$C$9 = TRUE, 'Previous Non-Munic rates'!AG17, 'Previous Munic rates'!AG17) -> 0 | AH17: =IF(Calculations!$C$9 = TRUE, 'Previous Non-Munic rates'!AH17, 'Previous Munic rates'!AH17) -> 0 | AI17: =IF(Calculations!$C$9 = TRUE, 'Previous Non-Munic rates'!AI17, 'Previous Munic rates'!AI17) -> 0 | AJ17: =IF(Calculations!$C$9 = TRUE, 'Previous Non-Munic rates'!AJ17, 'Previous Munic rates'!AJ17) -> 0 | AM17: 15
A18: Megaflex33 | B18: Megaflex | C18: 3 | D18: 3 | E18: =IF(Calculations!$C$9=FALSE,'Previous Non-Munic rates'!E18,'Previous Munic rates'!E18) -> 0 | F18: =IF(Calculations!$C$9=FALSE,'Previous Non-Munic rates'!F18,'Previous Munic rates'!F18) -> 0 | G18: =IF(Calculations!$C$9=FALSE,'Previous Non-Munic rates'!G18,'Previous Munic rates'!G18) -> 0 | H18: =IF(Calculations!$C$9=FALSE,'Previous Non-Munic rates'!H18,'Previous Munic rates'!H18) -> 106.69 | I18: =IF(Calculations!$C$9=FALSE,'Previous Non-Munic rates'!I18,'Previous Munic rates'!I18) -> 148.16 | J18: =IF(Calculations!$C$9=FALSE,'Previous Non-Munic rates'!J18,'Previous Munic rates'!J18) -> 0 | K18: =IF(Calculations!$C$9=FALSE,'Previous Non-Munic rates'!K18,'Previous Munic rates'!K18) -> 0 | L18: =IF(Calculations!$C$9=FALSE,'Previous Non-Munic rates'!L18,'Previous Munic rates'!L18) -> 0 | M18: =IF(Calculations!$C$9=FALSE,'Previous Non-Munic rates'!M18,'Previous Munic rates'!M18) -> 236.74 | N18: =IF(Calculations!$C$9=FALSE,'Previous Non-Munic rates'!N18,'Previous Munic rates'!N18) -> 4639.2 | O18: =IF(Calculations!$C$9=FALSE,'Previous Non-Munic rates'!O18,'Previous Munic rates'!O18) -> 356.23 | P18: =IF(Calculations!$C$9=FALSE,'Previous Non-Munic rates'!P18,'Previous Munic rates'!P18) -> 107.9 | Q18: =IF(Calculations!$C$9=FALSE,'Previous Non-Munic rates'!Q18,'Previous Munic rates'!Q18) -> 58.59 | R18: =IF(Calculations!$C$9=FALSE,'Previous Non-Munic rates'!R18,'Previous Munic rates'!R18) -> 116.19 | S18: =IF(Calculations!$C$9=FALSE,'Previous Non-Munic rates'!S18,'Previous Munic rates'!S18) -> 79.98 | T18: =IF(Calculations!$C$9=FALSE,'Previous Non-Munic rates'!T18,'Previous Munic rates'!T18) -> 50.74 | U18: =IF(Calculations!$C$9=FALSE,'Previous Non-Munic rates'!U18,'Previous Munic rates'!U18) -> 16.68 | V18: =IF(Calculations!$C$9=FALSE,'Previous Non-Munic rates'!V18,'Previous Munic rates'!V18) -> 9.22 | W18: =IF(Calculations!$C$9=FALSE,'Previous Non-Munic rates'!W18,'Previous Munic rates'!W18) -> 9.45 | X18: =IF(Calculations!$C$9=FALSE,'Previous Non-Munic rates'!X18,'Previous Munic rates'!X18) -> 6.75 | Y18: =IF(Calculations!$C$9=FALSE,'Previous Non-Munic rates'!Y18,'Previous Munic rates'!Y18) -> 12.51 | AA18: =IF(Calculations!$C$9=FALSE,'Previous Non-Munic rates'!AA18,'Previous Munic rates'!AA18) -> 0 | AB18: =IF(Calculations!$C$9=FALSE,'Previous Non-Munic rates'!AB18,'Previous Munic rates'!AB18) -> 0 | AC18: =IF(Calculations!$C$9=FALSE,'Previous Non-Munic rates'!AC18,'Previous Munic rates'!AC18) -> 0 | AD18: =IF(Calculations!$C$9=FALSE,'Previous Non-Munic rates'!AD18,'Previous Munic rates'!AD18) -> 30.4167 | AE18: =IF(Calculations!$C$9=FALSE,'Previous Non-Munic rates'!AE18,'Previous Munic rates'!AE18) -> 0.45 | AF18: =IF(Calculations!$C$9=FALSE,'Previous Non-Munic rates'!AF18,'Previous Munic rates'!AF18) -> 0 | AG18: =IF(Calculations!$C$9 = TRUE, 'Previous Non-Munic rates'!AG18, 'Previous Munic rates'!AG18) -> 0 | AH18: =IF(Calculations!$C$9 = TRUE, 'Previous Non-Munic rates'!AH18, 'Previous Munic rates'!AH18) -> 16.55 | AI18: =IF(Calculations!$C$9 = TRUE, 'Previous Non-Munic rates'!AI18, 'Previous Munic rates'!AI18) -> 0 | AJ18: =IF(Calculations!$C$9 = TRUE, 'Previous Non-Munic rates'!AJ18, 'Previous Munic rates'!AJ18) -> 0 | AM18: 16
A19: Megaflex34 | B19: Megaflex | C19: 3 | D19: 4 | E19: =IF(Calculations!$C$9=FALSE,'Previous Non-Munic rates'!E19,'Previous Munic rates'!E19) -> 0 | F19: =IF(Calculations!$C$9=FALSE,'Previous Non-Munic rates'!F19,'Previous Munic rates'!F19) -> 0 | G19: =IF(Calculations!$C$9=FALSE,'Previous Non-Munic rates'!G19,'Previous Munic rates'!G19) -> 0 | H19: =IF(Calculations!$C$9=FALSE,'Previous Non-Munic rates'!H19,'Previous Munic rates'!H19) -> 106.69 | I19: =IF(Calculations!$C$9=FALSE,'Previous Non-Munic rates'!I19,'Previous Munic rates'!I19) -> 148.16 | J19: =IF(Calculations!$C$9=FALSE,'Previous Non-Munic rates'!J19,'Previous Munic rates'!J19) -> 0 | K19: =IF(Calculations!$C$9=FALSE,'Previous Non-Munic rates'!K19,'Previous Munic rates'!K19) -> 0 | L19: =IF(Calculations!$C$9=FALSE,'Previous Non-Munic rates'!L19,'Previous Munic rates'!L19) -> 0 | M19: =IF(Calculations!$C$9=FALSE,'Previous Non-Munic rates'!M19,'Previous Munic rates'!M19) -> 236.74 | N19: =IF(Calculations!$C$9=FALSE,'Previous Non-Munic rates'!N19,'Previous Munic rates'!N19) -> 4639.2 | O19: =IF(Calculations!$C$9=FALSE,'Previous Non-Munic rates'!O19,'Previous Munic rates'!O19) -> 335.66 | P19: =IF(Calculations!$C$9=FALSE,'Previous Non-Munic rates'!P19,'Previous Munic rates'!P19) -> 101.72 | Q19: =IF(Calculations!$C$9=FALSE,'Previous Non-Munic rates'!Q19,'Previous Munic rates'!Q19) -> 55.27 | R19: =IF(Calculations!$C$9=FALSE,'Previous Non-Munic rates'!R19,'Previous Munic rates'!R19) -> 109.56 | S19: =IF(Calculations!$C$9=FALSE,'Previous Non-Munic rates'!S19,'Previous Munic rates'!S19) -> 75.44 | T19: =IF(Calculations!$C$9=FALSE,'Previous Non-Munic rates'!T19,'Previous Munic rates'!T19) -> 47.88 | U19: =IF(Calculations!$C$9=FALSE,'Previous Non-Munic rates'!U19,'Previous Munic rates'!U19) -> 16.68 | V19: =IF(Calculations!$C$9=FALSE,'Previous Non-Munic rates'!V19,'Previous Munic rates'!V19) -> 9.22 | W19: =IF(Calculations!$C$9=FALSE,'Previous Non-Munic rates'!W19,'Previous Munic rates'!W19) -> 12.04 | X19: =IF(Calculations!$C$9=FALSE,'Previous Non-Munic rates'!X19,'Previous Munic rates'!X19) -> 0 | Y19: =IF(Calculations!$C$9=FALSE,'Previous Non-Munic rates'!Y19,'Previous Munic rates'!Y19) -> 0 | AA19: =IF(Calculations!$C$9=FALSE,'Previous Non-Munic rates'!AA19,'Previous Munic rates'!AA19) -> 0 | AB19: =IF(Calculations!$C$9=FALSE,'Previous Non-Munic rates'!AB19,'Previous Munic rates'!AB19) -> 0 | AC19: =IF(Calculations!$C$9=FALSE,'Previous Non-Munic rates'!AC19,'Previous Munic rates'!AC19) -> 0 | AD19: =IF(Calculations!$C$9=FALSE,'Previous Non-Munic rates'!AD19,'Previous Munic rates'!AD19) -> 30.4167 | AE19: =IF(Calculations!$C$9=FALSE,'Previous Non-Munic rates'!AE19,'Previous Munic rates'!AE19) -> 0.42 | AF19: =IF(Calculations!$C$9=FALSE,'Previous Non-Munic rates'!AF19,'Previous Munic rates'!AF19) -> 0 | AG19: =IF(Calculations!$C$9 = TRUE, 'Previous Non-Munic rates'!AG19, 'Previous Munic rates'!AG19) -> 0 | AH19: =IF(Calculations!$C$9 = TRUE, 'Previous Non-Munic rates'!AH19, 'Previous Munic rates'!AH19) -> 16.55 | AI19: =IF(Calculations!$C$9 = TRUE, 'Previous Non-Munic rates'!AI19, 'Previous Munic rates'!AI19) -> 0 | AJ19: =IF(Calculations!$C$9 = TRUE, 'Previous Non-Munic rates'!AJ19, 'Previous Munic rates'!AJ19) -> 0 | AM19: 17
A20: Nightsave Urban Large01 | B20: Nightsave Urban Large | C20: 0 | D20: 1 | E20: =IF(Calculations!$C$9=FALSE,'Previous Non-Munic rates'!E20,'Previous Munic rates'!E20) -> 0 | F20: =IF(Calculations!$C$9=FALSE,'Previous Non-Munic rates'!F20,'Previous Munic rates'!F20) -> 0 | G20: =IF(Calculations!$C$9=FALSE,'Previous Non-Munic rates'!G20,'Previous Munic rates'!G20) -> 0 | H20: =IF(Calculations!$C$9=FALSE,'Previous Non-Munic rates'!H20,'Previous Munic rates'!H20) -> 106.69 | I20: =IF(Calculations!$C$9=FALSE,'Previous Non-Munic rates'!I20,'Previous Munic rates'!I20) -> 148.16 | J20: =IF(Calculations!$C$9=FALSE,'Previous Non-Munic rates'!J20,'Previous Munic rates'!J20) -> 0 | K20: =IF(Calculations!$C$9=FALSE,'Previous Non-Munic rates'!K20,'Previous Munic rates'!K20) -> 0 | L20: =IF(Calculations!$C$9=FALSE,'Previous Non-Munic rates'!L20,'Previous Munic rates'!L20) -> 0 | M20: =IF(Calculations!$C$9=FALSE,'Previous Non-Munic rates'!M20,'Previous Munic rates'!M20) -> 236.74 | N20: =IF(Calculations!$C$9=FALSE,'Previous Non-Munic rates'!N20,'Previous Munic rates'!N20) -> 4639.2 | O20: =IF(Calculations!$C$9=FALSE,'Previous Non-Munic rates'!O20,'Previous Munic rates'!O20) -> 89.59 | P20: =IF(Calculations!$C$9=FALSE,'Previous Non-Munic rates'!P20,'Previous Munic rates'!P20) -> 89.59 | Q20: =IF(Calculations!$C$9=FALSE,'Previous Non-Munic rates'!Q20,'Previous Munic rates'!Q20) -> 89.59 | R20: =IF(Calculations!$C$9=FALSE,'Previous Non-Munic rates'!R20,'Previous Munic rates'!R20) -> 69.64 | S20: =IF(Calculations!$C$9=FALSE,'Previous Non-Munic rates'!S20,'Previous Munic rates'!S20) -> 69.64 | T20: =IF(Calculations!$C$9=FALSE,'Previous Non-Munic rates'!T20,'Previous Munic rates'!T20) -> 69.64 | U20: =IF(Calculations!$C$9=FALSE,'Previous Non-Munic rates'!U20,'Previous Munic rates'!U20) -> 0 | V20: =IF(Calculations!$C$9=FALSE,'Previous Non-Munic rates'!V20,'Previous Munic rates'!V20) -> 9.22 | W20: =IF(Calculations!$C$9=FALSE,'Previous Non-Munic rates'!W20,'Previous Munic rates'!W20) -> 10.38 | X20: =IF(Calculations!$C$9=FALSE,'Previous Non-Munic rates'!X20,'Previous Munic rates'!X20) -> 20.62 | Y20: =IF(Calculations!$C$9=FALSE,'Previous Non-Munic rates'!Y20,'Previous Munic rates'!Y20) -> 39.1 | AA20: =IF(Calculations!$C$9=FALSE,'Previous Non-Munic rates'!AA20,'Previous Munic rates'!AA20) -> 0 | AB20: =IF(Calculations!$C$9=FALSE,'Previous Non-Munic rates'!AB20,'Previous Munic rates'!AB20) -> 272.6 | AC20: =IF(Calculations!$C$9=FALSE,'Previous Non-Munic rates'!AC20,'Previous Munic rates'!AC20) -> 38.1 | AD20: =IF(Calculations!$C$9=FALSE,'Previous Non-Munic rates'!AD20,'Previous Munic rates'!AD20) -> 30.4167 | AE20: =IF(Calculations!$C$9=FALSE,'Previous Non-Munic rates'!AE20,'Previous Munic rates'!AE20) -> 0.48 | AF20: =IF(Calculations!$C$9=FALSE,'Previous Non-Munic rates'!AF20,'Previous Munic rates'!AF20) -> 0 | AG20: =IF(Calculations!$C$9 = TRUE, 'Previous Non-Munic rates'!AG20, 'Previous Munic rates'!AG20) -> 0 | AH20: =IF(Calculations!$C$9 = TRUE, 'Previous Non-Munic rates'!AH20, 'Previous Munic rates'!AH20) -> 0 | AI20: =IF(Calculations!$C$9 = TRUE, 'Previous Non-Munic rates'!AI20, 'Previous Munic rates'!AI20) -> 0 | AJ20: =IF(Calculations!$C$9 = TRUE, 'Previous Non-Munic rates'!AJ20, 'Previous Munic rates'!AJ20) -> 0 | AM20: 18
A21: Nightsave Urban Large02 | B21: Nightsave Urban Large | C21: 0 | D21: 2 | E21: =IF(Calculations!$C$9=FALSE,'Previous Non-Munic rates'!E21,'Previous Munic rates'!E21) -> 0 | F21: =IF(Calculations!$C$9=FALSE,'Previous Non-Munic rates'!F21,'Previous Munic rates'!F21) -> 0 | G21: =IF(Calculations!$C$9=FALSE,'Previous Non-Munic rates'!G21,'Previous Munic rates'!G21) -> 0 | H21: =IF(Calculations!$C$9=FALSE,'Previous Non-Munic rates'!H21,'Previous Munic rates'!H21) -> 106.69 | I21: =IF(Calculations!$C$9=FALSE,'Previous Non-Munic rates'!I21,'Previous Munic rates'!I21) -> 148.16 | J21: =IF(Calculations!$C$9=FALSE,'Previous Non-Munic rates'!J21,'Previous Munic rates'!J21) -> 0 | K21: =IF(Calculations!$C$9=FALSE,'Previous Non-Munic rates'!K21,'Previous Munic rates'!K21) -> 0 | L21: =IF(Calculations!$C$9=FALSE,'Previous Non-Munic rates'!L21,'Previous Munic rates'!L21) -> 0 | M21: =IF(Calculations!$C$9=FALSE,'Previous Non-Munic rates'!M21,'Previous Munic rates'!M21) -> 236.74 | N21: =IF(Calculations!$C$9=FALSE,'Previous Non-Munic rates'!N21,'Previous Munic rates'!N21) -> 4639.2 | O21: =IF(Calculations!$C$9=FALSE,'Previous Non-Munic rates'!O21,'Previous Munic rates'!O21) -> 84.83 | P21: =IF(Calculations!$C$9=FALSE,'Previous Non-Munic rates'!P21,'Previous Munic rates'!P21) -> 84.83 | Q21: =IF(Calculations!$C$9=FALSE,'Previous Non-Munic rates'!Q21,'Previous Munic rates'!Q21) -> 84.83 | R21: =IF(Calculations!$C$9=FALSE,'Previous Non-Munic rates'!R21,'Previous Munic rates'!R21) -> 66.22 | S21: =IF(Calculations!$C$9=FALSE,'Previous Non-Munic rates'!S21,'Previous Munic rates'!S21) -> 66.22 | T21: =IF(Calculations!$C$9=FALSE,'Previous Non-Munic rates'!T21,'Previous Munic rates'!T21) -> 66.22 | U21: =IF(Calculations!$C$9=FALSE,'Previous Non-Munic rates'!U21,'Previous Munic rates'!U21) -> 0 | V21: =IF(Calculations!$C$9=FALSE,'Previous Non-Munic rates'!V21,'Previous Munic rates'!V21) -> 9.22 | W21: =IF(Calculations!$C$9=FALSE,'Previous Non-Munic rates'!W21,'Previous Munic rates'!W21) -> 9.48 | X21: =IF(Calculations!$C$9=FALSE,'Previous Non-Munic rates'!X21,'Previous Munic rates'!X21) -> 18.91 | Y21: =IF(Calculations!$C$9=FALSE,'Previous Non-Munic rates'!Y21,'Previous Munic rates'!Y21) -> 35.87 | AA21: =IF(Calculations!$C$9=FALSE,'Previous Non-Munic rates'!AA21,'Previous Munic rates'!AA21) -> 0 | AB21: =IF(Calculations!$C$9=FALSE,'Previous Non-Munic rates'!AB21,'Previous Munic rates'!AB21) -> 263.84 | AC21: =IF(Calculations!$C$9=FALSE,'Previous Non-Munic rates'!AC21,'Previous Munic rates'!AC21) -> 36.88 | AD21: =IF(Calculations!$C$9=FALSE,'Previous Non-Munic rates'!AD21,'Previous Munic rates'!AD21) -> 30.4167 | AE21: =IF(Calculations!$C$9=FALSE,'Previous Non-Munic rates'!AE21,'Previous Munic rates'!AE21) -> 0.47 | AF21: =IF(Calculations!$C$9=FALSE,'Previous Non-Munic rates'!AF21,'Previous Munic rates'!AF21) -> 0 | AG21: =IF(Calculations!$C$9 = TRUE, 'Previous Non-Munic rates'!AG21, 'Previous Munic rates'!AG21) -> 0 | AH21: =IF(Calculations!$C$9 = TRUE, 'Previous Non-Munic rates'!AH21, 'Previous Munic rates'!AH21) -> 0 | AI21: =IF(Calculations!$C$9 = TRUE, 'Previous Non-Munic rates'!AI21, 'Previous Munic rates'!AI21) -> 0 | AJ21: =IF(Calculations!$C$9 = TRUE, 'Previous Non-Munic rates'!AJ21, 'Previous Munic rates'!AJ21) -> 0 | AM21: 19
A22: Nightsave Urban Large03 | B22: Nightsave Urban Large | C22: 0 | D22: 3 | E22: =IF(Calculations!$C$9=FALSE,'Previous Non-Munic rates'!E22,'Previous Munic rates'!E22) -> 0 | F22: =IF(Calculations!$C$9=FALSE,'Previous Non-Munic rates'!F22,'Previous Munic rates'!F22) -> 0 | G22: =IF(Calculations!$C$9=FALSE,'Previous Non-Munic rates'!G22,'Previous Munic rates'!G22) -> 0 | H22: =IF(Calculations!$C$9=FALSE,'Previous Non-Munic rates'!H22,'Previous Munic rates'!H22) -> 106.69 | I22: =IF(Calculations!$C$9=FALSE,'Previous Non-Munic rates'!I22,'Previous Munic rates'!I22) -> 148.16 | J22: =IF(Calculations!$C$9=FALSE,'Previous Non-Munic rates'!J22,'Previous Munic rates'!J22) -> 0 | K22: =IF(Calculations!$C$9=FALSE,'Previous Non-Munic rates'!K22,'Previous Munic rates'!K22) -> 0 | L22: =IF(Calculations!$C$9=FALSE,'Previous Non-Munic rates'!L22,'Previous Munic rates'!L22) -> 0 | M22: =IF(Calculations!$C$9=FALSE,'Previous Non-Munic rates'!M22,'Previous Munic rates'!M22) -> 236.74 | N22: =IF(Calculations!$C$9=FALSE,'Previous Non-Munic rates'!N22,'Previous Munic rates'!N22) -> 4639.2 | O22: =IF(Calculations!$C$9=FALSE,'Previous Non-Munic rates'!O22,'Previous Munic rates'!O22) -> 84.21 | P22: =IF(Calculations!$C$9=FALSE,'Previous Non-Munic rates'!P22,'Previous Munic rates'!P22) -> 84.21 | Q22: =IF(Calculations!$C$9=FALSE,'Previous Non-Munic rates'!Q22,'Previous Munic rates'!Q22) -> 84.21 | R22: =IF(Calculations!$C$9=FALSE,'Previous Non-Munic rates'!R22,'Previous Munic rates'!R22) -> 65.43 | S22: =IF(Calculations!$C$9=FALSE,'Previous Non-Munic rates'!S22,'Previous Munic rates'!S22) -> 65.43 | T22: =IF(Calculations!$C$9=FALSE,'Previous Non-Munic rates'!T22,'Previous Munic rates'!T22) -> 65.43 | U22: =IF(Calculations!$C$9=FALSE,'Previous Non-Munic rates'!U22,'Previous Munic rates'!U22) -> 0 | V22: =IF(Calculations!$C$9=FALSE,'Previous Non-Munic rates'!V22,'Previous Munic rates'!V22) -> 9.22 | W22: =IF(Calculations!$C$9=FALSE,'Previous Non-Munic rates'!W22,'Previous Munic rates'!W22) -> 9.23 | X22: =IF(Calculations!$C$9=FALSE,'Previous Non-Munic rates'!X22,'Previous Munic rates'!X22) -> 6.75 | Y22: =IF(Calculations!$C$9=FALSE,'Previous Non-Munic rates'!Y22,'Previous Munic rates'!Y22) -> 12.51 | AA22: =IF(Calculations!$C$9=FALSE,'Previous Non-Munic rates'!AA22,'Previous Munic rates'!AA22) -> 0 | AB22: =IF(Calculations!$C$9=FALSE,'Previous Non-Munic rates'!AB22,'Previous Munic rates'!AB22) -> 254.23 | AC22: =IF(Calculations!$C$9=FALSE,'Previous Non-Munic rates'!AC22,'Previous Munic rates'!AC22) -> 35.54 | AD22: =IF(Calculations!$C$9=FALSE,'Previous Non-Munic rates'!AD22,'Previous Munic rates'!AD22) -> 30.4167 | AE22: =IF(Calculations!$C$9=FALSE,'Previous Non-Munic rates'!AE22,'Previous Munic rates'!AE22) -> 0.45 | AF22: =IF(Calculations!$C$9=FALSE,'Previous Non-Munic rates'!AF22,'Previous Munic rates'!AF22) -> 0 | AG22: =IF(Calculations!$C$9 = TRUE, 'Previous Non-Munic rates'!AG22, 'Previous Munic rates'!AG22) -> 0 | AH22: =IF(Calculations!$C$9 = TRUE, 'Previous Non-Munic rates'!AH22, 'Previous Munic rates'!AH22) -> 16.55 | AI22: =IF(Calculations!$C$9 = TRUE, 'Previous Non-Munic rates'!AI22, 'Previous Munic rates'!AI22) -> 0 | AJ22: =IF(Calculations!$C$9 = TRUE, 'Previous Non-Munic rates'!AJ22, 'Previous Munic rates'!AJ22) -> 0 | AM22: 20
A23: Nightsave Urban Large04 | B23: Nightsave Urban Large | C23: 0 | D23: 4 | E23: =IF(Calculations!$C$9=FALSE,'Previous Non-Munic rates'!E23,'Previous Munic rates'!E23) -> 0 | F23: =IF(Calculations!$C$9=FALSE,'Previous Non-Munic rates'!F23,'Previous Munic rates'!F23) -> 0 | G23: =IF(Calculations!$C$9=FALSE,'Previous Non-Munic rates'!G23,'Previous Munic rates'!G23) -> 0 | H23: =IF(Calculations!$C$9=FALSE,'Previous Non-Munic rates'!H23,'Previous Munic rates'!H23) -> 106.69 | I23: =IF(Calculations!$C$9=FALSE,'Previous Non-Munic rates'!I23,'Previous Munic rates'!I23) -> 148.16 | J23: =IF(Calculations!$C$9=FALSE,'Previous Non-Munic rates'!J23,'Previous Munic rates'!J23) -> 0 | K23: =IF(Calculations!$C$9=FALSE,'Previous Non-Munic rates'!K23,'Previous Munic rates'!K23) -> 0 | L23: =IF(Calculations!$C$9=FALSE,'Previous Non-Munic rates'!L23,'Previous Munic rates'!L23) -> 0 | M23: =IF(Calculations!$C$9=FALSE,'Previous Non-Munic rates'!M23,'Previous Munic rates'!M23) -> 236.74 | N23: =IF(Calculations!$C$9=FALSE,'Previous Non-Munic rates'!N23,'Previous Munic rates'!N23) -> 4639.2 | O23: =IF(Calculations!$C$9=FALSE,'Previous Non-Munic rates'!O23,'Previous Munic rates'!O23) -> 78.77 | P23: =IF(Calculations!$C$9=FALSE,'Previous Non-Munic rates'!P23,'Previous Munic rates'!P23) -> 78.77 | Q23: =IF(Calculations!$C$9=FALSE,'Previous Non-Munic rates'!Q23,'Previous Munic rates'!Q23) -> 78.77 | R23: =IF(Calculations!$C$9=FALSE,'Previous Non-Munic rates'!R23,'Previous Munic rates'!R23) -> 61.25 | S23: =IF(Calculations!$C$9=FALSE,'Previous Non-Munic rates'!S23,'Previous Munic rates'!S23) -> 61.25 | T23: =IF(Calculations!$C$9=FALSE,'Previous Non-Munic rates'!T23,'Previous Munic rates'!T23) -> 61.25 | U23: =IF(Calculations!$C$9=FALSE,'Previous Non-Munic rates'!U23,'Previous Munic rates'!U23) -> 0 | V23: =IF(Calculations!$C$9=FALSE,'Previous Non-Munic rates'!V23,'Previous Munic rates'!V23) -> 9.22 | W23: =IF(Calculations!$C$9=FALSE,'Previous Non-Munic rates'!W23,'Previous Munic rates'!W23) -> 11.67 | X23: =IF(Calculations!$C$9=FALSE,'Previous Non-Munic rates'!X23,'Previous Munic rates'!X23) -> 0 | Y23: =IF(Calculations!$C$9=FALSE,'Previous Non-Munic rates'!Y23,'Previous Munic rates'!Y23) -> 0 | AA23: =IF(Calculations!$C$9=FALSE,'Previous Non-Munic rates'!AA23,'Previous Munic rates'!AA23) -> 0 | AB23: =IF(Calculations!$C$9=FALSE,'Previous Non-Munic rates'!AB23,'Previous Munic rates'!AB23) -> 245.24 | AC23: =IF(Calculations!$C$9=FALSE,'Previous Non-Munic rates'!AC23,'Previous Munic rates'!AC23) -> 34.28 | AD23: =IF(Calculations!$C$9=FALSE,'Previous Non-Munic rates'!AD23,'Previous Munic rates'!AD23) -> 30.4167 | AE23: =IF(Calculations!$C$9=FALSE,'Previous Non-Munic rates'!AE23,'Previous Munic rates'!AE23) -> 0.42 | AF23: =IF(Calculations!$C$9=FALSE,'Previous Non-Munic rates'!AF23,'Previous Munic rates'!AF23) -> 0 | AG23: =IF(Calculations!$C$9 = TRUE, 'Previous Non-Munic rates'!AG23, 'Previous Munic rates'!AG23) -> 0 | AH23: =IF(Calculations!$C$9 = TRUE, 'Previous Non-Munic rates'!AH23, 'Previous Munic rates'!AH23) -> 16.55 | AI23: =IF(Calculations!$C$9 = TRUE, 'Previous Non-Munic rates'!AI23, 'Previous Munic rates'!AI23) -> 0 | AJ23: =IF(Calculations!$C$9 = TRUE, 'Previous Non-Munic rates'!AJ23, 'Previous Munic rates'!AJ23) -> 0 | AM23: 21
A24: Nightsave Urban Large11 | B24: Nightsave Urban Large | C24: 1 | D24: 1 | E24: =IF(Calculations!$C$9=FALSE,'Previous Non-Munic rates'!E24,'Previous Munic rates'!E24) -> 0 | F24: =IF(Calculations!$C$9=FALSE,'Previous Non-Munic rates'!F24,'Previous Munic rates'!F24) -> 0 | G24: =IF(Calculations!$C$9=FALSE,'Previous Non-Munic rates'!G24,'Previous Munic rates'!G24) -> 0 | H24: =IF(Calculations!$C$9=FALSE,'Previous Non-Munic rates'!H24,'Previous Munic rates'!H24) -> 106.69 | I24: =IF(Calculations!$C$9=FALSE,'Previous Non-Munic rates'!I24,'Previous Munic rates'!I24) -> 148.16 | J24: =IF(Calculations!$C$9=FALSE,'Previous Non-Munic rates'!J24,'Previous Munic rates'!J24) -> 0 | K24: =IF(Calculations!$C$9=FALSE,'Previous Non-Munic rates'!K24,'Previous Munic rates'!K24) -> 0 | L24: =IF(Calculations!$C$9=FALSE,'Previous Non-Munic rates'!L24,'Previous Munic rates'!L24) -> 0 | M24: =IF(Calculations!$C$9=FALSE,'Previous Non-Munic rates'!M24,'Previous Munic rates'!M24) -> 236.74 | N24: =IF(Calculations!$C$9=FALSE,'Previous Non-Munic rates'!N24,'Previous Munic rates'!N24) -> 4639.2 | O24: =IF(Calculations!$C$9=FALSE,'Previous Non-Munic rates'!O24,'Previous Munic rates'!O24) -> 90.79 | P24: =IF(Calculations!$C$9=FALSE,'Previous Non-Munic rates'!P24,'Previous Munic rates'!P24) -> 90.79 | Q24: =IF(Calculations!$C$9=FALSE,'Previous Non-Munic rates'!Q24,'Previous Munic rates'!Q24) -> 90.79 | R24: =IF(Calculations!$C$9=FALSE,'Previous Non-Munic rates'!R24,'Previous Munic rates'!R24) -> 70.41 | S24: =IF(Calculations!$C$9=FALSE,'Previous Non-Munic rates'!S24,'Previous Munic rates'!S24) -> 70.41 | T24: =IF(Calculations!$C$9=FALSE,'Previous Non-Munic rates'!T24,'Previous Munic rates'!T24) -> 70.41 | U24: =IF(Calculations!$C$9=FALSE,'Previous Non-Munic rates'!U24,'Previous Munic rates'!U24) -> 0 | V24: =IF(Calculations!$C$9=FALSE,'Previous Non-Munic rates'!V24,'Previous Munic rates'!V24) -> 9.22 | W24: =IF(Calculations!$C$9=FALSE,'Previous Non-Munic rates'!W24,'Previous Munic rates'!W24) -> 10.45 | X24: =IF(Calculations!$C$9=FALSE,'Previous Non-Munic rates'!X24,'Previous Munic rates'!X24) -> 20.62 | Y24: =IF(Calculations!$C$9=FALSE,'Previous Non-Munic rates'!Y24,'Previous Munic rates'!Y24) -> 39.1 | AA24: =IF(Calculations!$C$9=FALSE,'Previous Non-Munic rates'!AA24,'Previous Munic rates'!AA24) -> 0 | AB24: =IF(Calculations!$C$9=FALSE,'Previous Non-Munic rates'!AB24,'Previous Munic rates'!AB24) -> 275.4 | AC24: =IF(Calculations!$C$9=FALSE,'Previous Non-Munic rates'!AC24,'Previous Munic rates'!AC24) -> 38.47 | AD24: =IF(Calculations!$C$9=FALSE,'Previous Non-Munic rates'!AD24,'Previous Munic rates'!AD24) -> 30.4167 | AE24: =IF(Calculations!$C$9=FALSE,'Previous Non-Munic rates'!AE24,'Previous Munic rates'!AE24) -> 0.48 | AF24: =IF(Calculations!$C$9=FALSE,'Previous Non-Munic rates'!AF24,'Previous Munic rates'!AF24) -> 0 | AG24: =IF(Calculations!$C$9 = TRUE, 'Previous Non-Munic rates'!AG24, 'Previous Munic rates'!AG24) -> 0 | AH24: =IF(Calculations!$C$9 = TRUE, 'Previous Non-Munic rates'!AH24, 'Previous Munic rates'!AH24) -> 0 | AI24: =IF(Calculations!$C$9 = TRUE, 'Previous Non-Munic rates'!AI24, 'Previous Munic rates'!AI24) -> 0 | AJ24: =IF(Calculations!$C$9 = TRUE, 'Previous Non-Munic rates'!AJ24, 'Previous Munic rates'!AJ24) -> 0 | AM24: 22
A25: Nightsave Urban Large12 | B25: Nightsave Urban Large | C25: 1 | D25: 2 | E25: =IF(Calculations!$C$9=FALSE,'Previous Non-Munic rates'!E25,'Previous Munic rates'!E25) -> 0 | F25: =IF(Calculations!$C$9=FALSE,'Previous Non-Munic rates'!F25,'Previous Munic rates'!F25) -> 0 | G25: =IF(Calculations!$C$9=FALSE,'Previous Non-Munic rates'!G25,'Previous Munic rates'!G25) -> 0 | H25: =IF(Calculations!$C$9=FALSE,'Previous Non-Munic rates'!H25,'Previous Munic rates'!H25) -> 106.69 | I25: =IF(Calculations!$C$9=FALSE,'Previous Non-Munic rates'!I25,'Previous Munic rates'!I25) -> 148.16 | J25: =IF(Calculations!$C$9=FALSE,'Previous Non-Munic rates'!J25,'Previous Munic rates'!J25) -> 0 | K25: =IF(Calculations!$C$9=FALSE,'Previous Non-Munic rates'!K25,'Previous Munic rates'!K25) -> 0 | L25: =IF(Calculations!$C$9=FALSE,'Previous Non-Munic rates'!L25,'Previous Munic rates'!L25) -> 0 | M25: =IF(Calculations!$C$9=FALSE,'Previous Non-Munic rates'!M25,'Previous Munic rates'!M25) -> 236.74 | N25: =IF(Calculations!$C$9=FALSE,'Previous Non-Munic rates'!N25,'Previous Munic rates'!N25) -> 4639.2 | O25: =IF(Calculations!$C$9=FALSE,'Previous Non-Munic rates'!O25,'Previous Munic rates'!O25) -> 86.62 | P25: =IF(Calculations!$C$9=FALSE,'Previous Non-Munic rates'!P25,'Previous Munic rates'!P25) -> 86.62 | Q25: =IF(Calculations!$C$9=FALSE,'Previous Non-Munic rates'!Q25,'Previous Munic rates'!Q25) -> 86.62 | R25: =IF(Calculations!$C$9=FALSE,'Previous Non-Munic rates'!R25,'Previous Munic rates'!R25) -> 67.57 | S25: =IF(Calculations!$C$9=FALSE,'Previous Non-Munic rates'!S25,'Previous Munic rates'!S25) -> 67.57 | T25: =IF(Calculations!$C$9=FALSE,'Previous Non-Munic rates'!T25,'Previous Munic rates'!T25) -> 67.57 | U25: =IF(Calculations!$C$9=FALSE,'Previous Non-Munic rates'!U25,'Previous Munic rates'!U25) -> 0 | V25: =IF(Calculations!$C$9=FALSE,'Previous Non-Munic rates'!V25,'Previous Munic rates'!V25) -> 9.22 | W25: =IF(Calculations!$C$9=FALSE,'Previous Non-Munic rates'!W25,'Previous Munic rates'!W25) -> 9.57 | X25: =IF(Calculations!$C$9=FALSE,'Previous Non-Munic rates'!X25,'Previous Munic rates'!X25) -> 18.91 | Y25: =IF(Calculations!$C$9=FALSE,'Previous Non-Munic rates'!Y25,'Previous Munic rates'!Y25) -> 35.87 | AA25: =IF(Calculations!$C$9=FALSE,'Previous Non-Munic rates'!AA25,'Previous Munic rates'!AA25) -> 0 | AB25: =IF(Calculations!$C$9=FALSE,'Previous Non-Munic rates'!AB25,'Previous Munic rates'!AB25) -> 266.52 | AC25: =IF(Calculations!$C$9=FALSE,'Previous Non-Munic rates'!AC25,'Previous Munic rates'!AC25) -> 37.21 | AD25: =IF(Calculations!$C$9=FALSE,'Previous Non-Munic rates'!AD25,'Previous Munic rates'!AD25) -> 30.4167 | AE25: =IF(Calculations!$C$9=FALSE,'Previous Non-Munic rates'!AE25,'Previous Munic rates'!AE25) -> 0.47 | AF25: =IF(Calculations!$C$9=FALSE,'Previous Non-Munic rates'!AF25,'Previous Munic rates'!AF25) -> 0 | AG25: =IF(Calculations!$C$9 = TRUE, 'Previous Non-Munic rates'!AG25, 'Previous Munic rates'!AG25) -> 0 | AH25: =IF(Calculations!$C$9 = TRUE, 'Previous Non-Munic rates'!AH25, 'Previous Munic rates'!AH25) -> 0 | AI25: =IF(Calculations!$C$9 = TRUE, 'Previous Non-Munic rates'!AI25, 'Previous Munic rates'!AI25) -> 0 | AJ25: =IF(Calculations!$C$9 = TRUE, 'Previous Non-Munic rates'!AJ25, 'Previous Munic rates'!AJ25) -> 0 | AM25: 23
A26: Nightsave Urban Large13 | B26: Nightsave Urban Large | C26: 1 | D26: 3 | E26: =IF(Calculations!$C$9=FALSE,'Previous Non-Munic rates'!E26,'Previous Munic rates'!E26) -> 0 | F26: =IF(Calculations!$C$9=FALSE,'Previous Non-Munic rates'!F26,'Previous Munic rates'!F26) -> 0 | G26: =IF(Calculations!$C$9=FALSE,'Previous Non-Munic rates'!G26,'Previous Munic rates'!G26) -> 0 | H26: =IF(Calculations!$C$9=FALSE,'Previous Non-Munic rates'!H26,'Previous Munic rates'!H26) -> 106.69 | I26: =IF(Calculations!$C$9=FALSE,'Previous Non-Munic rates'!I26,'Previous Munic rates'!I26) -> 148.16 | J26: =IF(Calculations!$C$9=FALSE,'Previous Non-Munic rates'!J26,'Previous Munic rates'!J26) -> 0 | K26: =IF(Calculations!$C$9=FALSE,'Previous Non-Munic rates'!K26,'Previous Munic rates'!K26) -> 0 | L26: =IF(Calculations!$C$9=FALSE,'Previous Non-Munic rates'!L26,'Previous Munic rates'!L26) -> 0 | M26: =IF(Calculations!$C$9=FALSE,'Previous Non-Munic rates'!M26,'Previous Munic rates'!M26) -> 236.74 | N26: =IF(Calculations!$C$9=FALSE,'Previous Non-Munic rates'!N26,'Previous Munic rates'!N26) -> 4639.2 | O26: =IF(Calculations!$C$9=FALSE,'Previous Non-Munic rates'!O26,'Previous Munic rates'!O26) -> 85.97 | P26: =IF(Calculations!$C$9=FALSE,'Previous Non-Munic rates'!P26,'Previous Munic rates'!P26) -> 85.97 | Q26: =IF(Calculations!$C$9=FALSE,'Previous Non-Munic rates'!Q26,'Previous Munic rates'!Q26) -> 85.97 | R26: =IF(Calculations!$C$9=FALSE,'Previous Non-Munic rates'!R26,'Previous Munic rates'!R26) -> 66.76 | S26: =IF(Calculations!$C$9=FALSE,'Previous Non-Munic rates'!S26,'Previous Munic rates'!S26) -> 66.76 | T26: =IF(Calculations!$C$9=FALSE,'Previous Non-Munic rates'!T26,'Previous Munic rates'!T26) -> 66.76 | U26: =IF(Calculations!$C$9=FALSE,'Previous Non-Munic rates'!U26,'Previous Munic rates'!U26) -> 0 | V26: =IF(Calculations!$C$9=FALSE,'Previous Non-Munic rates'!V26,'Previous Munic rates'!V26) -> 9.22 | W26: =IF(Calculations!$C$9=FALSE,'Previous Non-Munic rates'!W26,'Previous Munic rates'!W26) -> 9.3 | X26: =IF(Calculations!$C$9=FALSE,'Previous Non-Munic rates'!X26,'Previous Munic rates'!X26) -> 6.75 | Y26: =IF(Calculations!$C$9=FALSE,'Previous Non-Munic rates'!Y26,'Previous Munic rates'!Y26) -> 12.51 | AA26: =IF(Calculations!$C$9=FALSE,'Previous Non-Munic rates'!AA26,'Previous Munic rates'!AA26) -> 0 | AB26: =IF(Calculations!$C$9=FALSE,'Previous Non-Munic rates'!AB26,'Previous Munic rates'!AB26) -> 256.74 | AC26: =IF(Calculations!$C$9=FALSE,'Previous Non-Munic rates'!AC26,'Previous Munic rates'!AC26) -> 35.87 | AD26: =IF(Calculations!$C$9=FALSE,'Previous Non-Munic rates'!AD26,'Previous Munic rates'!AD26) -> 30.4167 | AE26: =IF(Calculations!$C$9=FALSE,'Previous Non-Munic rates'!AE26,'Previous Munic rates'!AE26) -> 0.45 | AF26: =IF(Calculations!$C$9=FALSE,'Previous Non-Munic rates'!AF26,'Previous Munic rates'!AF26) -> 0 | AG26: =IF(Calculations!$C$9 = TRUE, 'Previous Non-Munic rates'!AG26, 'Previous Munic rates'!AG26) -> 0 | AH26: =IF(Calculations!$C$9 = TRUE, 'Previous Non-Munic rates'!AH26, 'Previous Munic rates'!AH26) -> 16.55 | AI26: =IF(Calculations!$C$9 = TRUE, 'Previous Non-Munic rates'!AI26, 'Previous Munic rates'!AI26) -> 0 | AJ26: =IF(Calculations!$C$9 = TRUE, 'Previous Non-Munic rates'!AJ26, 'Previous Munic rates'!AJ26) -> 0 | AM26: 24
A27: Nightsave Urban Large14 | B27: Nightsave Urban Large | C27: 1 | D27: 4 | E27: =IF(Calculations!$C$9=FALSE,'Previous Non-Munic rates'!E27,'Previous Munic rates'!E27) -> 0 | F27: =IF(Calculations!$C$9=FALSE,'Previous Non-Munic rates'!F27,'Previous Munic rates'!F27) -> 0 | G27: =IF(Calculations!$C$9=FALSE,'Previous Non-Munic rates'!G27,'Previous Munic rates'!G27) -> 0 | H27: =IF(Calculations!$C$9=FALSE,'Previous Non-Munic rates'!H27,'Previous Munic rates'!H27) -> 106.69 | I27: =IF(Calculations!$C$9=FALSE,'Previous Non-Munic rates'!I27,'Previous Munic rates'!I27) -> 148.16 | J27: =IF(Calculations!$C$9=FALSE,'Previous Non-Munic rates'!J27,'Previous Munic rates'!J27) -> 0 | K27: =IF(Calculations!$C$9=FALSE,'Previous Non-Munic rates'!K27,'Previous Munic rates'!K27) -> 0 | L27: =IF(Calculations!$C$9=FALSE,'Previous Non-Munic rates'!L27,'Previous Munic rates'!L27) -> 0 | M27: =IF(Calculations!$C$9=FALSE,'Previous Non-Munic rates'!M27,'Previous Munic rates'!M27) -> 236.74 | N27: =IF(Calculations!$C$9=FALSE,'Previous Non-Munic rates'!N27,'Previous Munic rates'!N27) -> 4639.2 | O27: =IF(Calculations!$C$9=FALSE,'Previous Non-Munic rates'!O27,'Previous Munic rates'!O27) -> 80.44 | P27: =IF(Calculations!$C$9=FALSE,'Previous Non-Munic rates'!P27,'Previous Munic rates'!P27) -> 80.44 | Q27: =IF(Calculations!$C$9=FALSE,'Previous Non-Munic rates'!Q27,'Previous Munic rates'!Q27) -> 80.44 | R27: =IF(Calculations!$C$9=FALSE,'Previous Non-Munic rates'!R27,'Previous Munic rates'!R27) -> 62.5 | S27: =IF(Calculations!$C$9=FALSE,'Previous Non-Munic rates'!S27,'Previous Munic rates'!S27) -> 62.5 | T27: =IF(Calculations!$C$9=FALSE,'Previous Non-Munic rates'!T27,'Previous Munic rates'!T27) -> 62.5 | U27: =IF(Calculations!$C$9=FALSE,'Previous Non-Munic rates'!U27,'Previous Munic rates'!U27) -> 0 | V27: =IF(Calculations!$C$9=FALSE,'Previous Non-Munic rates'!V27,'Previous Munic rates'!V27) -> 9.22 | W27: =IF(Calculations!$C$9=FALSE,'Previous Non-Munic rates'!W27,'Previous Munic rates'!W27) -> 11.78 | X27: =IF(Calculations!$C$9=FALSE,'Previous Non-Munic rates'!X27,'Previous Munic rates'!X27) -> 0 | Y27: =IF(Calculations!$C$9=FALSE,'Previous Non-Munic rates'!Y27,'Previous Munic rates'!Y27) -> 0 | AA27: =IF(Calculations!$C$9=FALSE,'Previous Non-Munic rates'!AA27,'Previous Munic rates'!AA27) -> 0 | AB27: =IF(Calculations!$C$9=FALSE,'Previous Non-Munic rates'!AB27,'Previous Munic rates'!AB27) -> 247.74 | AC27: =IF(Calculations!$C$9=FALSE,'Previous Non-Munic rates'!AC27,'Previous Munic rates'!AC27) -> 34.59 | AD27: =IF(Calculations!$C$9=FALSE,'Previous Non-Munic rates'!AD27,'Previous Munic rates'!AD27) -> 30.4167 | AE27: =IF(Calculations!$C$9=FALSE,'Previous Non-Munic rates'!AE27,'Previous Munic rates'!AE27) -> 0.42 | AF27: =IF(Calculations!$C$9=FALSE,'Previous Non-Munic rates'!AF27,'Previous Munic rates'!AF27) -> 0 | AG27: =IF(Calculations!$C$9 = TRUE, 'Previous Non-Munic rates'!AG27, 'Previous Munic rates'!AG27) -> 0 | AH27: =IF(Calculations!$C$9 = TRUE, 'Previous Non-Munic rates'!AH27, 'Previous Munic rates'!AH27) -> 16.55 | AI27: =IF(Calculations!$C$9 = TRUE, 'Previous Non-Munic rates'!AI27, 'Previous Munic rates'!AI27) -> 0 | AJ27: =IF(Calculations!$C$9 = TRUE, 'Previous Non-Munic rates'!AJ27, 'Previous Munic rates'!AJ27) -> 0 | AM27: 25
A28: Nightsave Urban Large21 | B28: Nightsave Urban Large | C28: 2 | D28: 1 | E28: =IF(Calculations!$C$9=FALSE,'Previous Non-Munic rates'!E28,'Previous Munic rates'!E28) -> 0 | F28: =IF(Calculations!$C$9=FALSE,'Previous Non-Munic rates'!F28,'Previous Munic rates'!F28) -> 0 | G28: =IF(Calculations!$C$9=FALSE,'Previous Non-Munic rates'!G28,'Previous Munic rates'!G28) -> 0 | H28: =IF(Calculations!$C$9=FALSE,'Previous Non-Munic rates'!H28,'Previous Munic rates'!H28) -> 106.69 | I28: =IF(Calculations!$C$9=FALSE,'Previous Non-Munic rates'!I28,'Previous Munic rates'!I28) -> 148.16 | J28: =IF(Calculations!$C$9=FALSE,'Previous Non-Munic rates'!J28,'Previous Munic rates'!J28) -> 0 | K28: =IF(Calculations!$C$9=FALSE,'Previous Non-Munic rates'!K28,'Previous Munic rates'!K28) -> 0 | L28: =IF(Calculations!$C$9=FALSE,'Previous Non-Munic rates'!L28,'Previous Munic rates'!L28) -> 0 | M28: =IF(Calculations!$C$9=FALSE,'Previous Non-Munic rates'!M28,'Previous Munic rates'!M28) -> 236.74 | N28: =IF(Calculations!$C$9=FALSE,'Previous Non-Munic rates'!N28,'Previous Munic rates'!N28) -> 4639.2 | O28: =IF(Calculations!$C$9=FALSE,'Previous Non-Munic rates'!O28,'Previous Munic rates'!O28) -> 91.63 | P28: =IF(Calculations!$C$9=FALSE,'Previous Non-Munic rates'!P28,'Previous Munic rates'!P28) -> 91.63 | Q28: =IF(Calculations!$C$9=FALSE,'Previous Non-Munic rates'!Q28,'Previous Munic rates'!Q28) -> 91.63 | R28: =IF(Calculations!$C$9=FALSE,'Previous Non-Munic rates'!R28,'Previous Munic rates'!R28) -> 71.09 | S28: =IF(Calculations!$C$9=FALSE,'Previous Non-Munic rates'!S28,'Previous Munic rates'!S28) -> 71.09 | T28: =IF(Calculations!$C$9=FALSE,'Previous Non-Munic rates'!T28,'Previous Munic rates'!T28) -> 71.09 | U28: =IF(Calculations!$C$9=FALSE,'Previous Non-Munic rates'!U28,'Previous Munic rates'!U28) -> 0 | V28: =IF(Calculations!$C$9=FALSE,'Previous Non-Munic rates'!V28,'Previous Munic rates'!V28) -> 9.22 | W28: =IF(Calculations!$C$9=FALSE,'Previous Non-Munic rates'!W28,'Previous Munic rates'!W28) -> 10.57 | X28: =IF(Calculations!$C$9=FALSE,'Previous Non-Munic rates'!X28,'Previous Munic rates'!X28) -> 20.62 | Y28: =IF(Calculations!$C$9=FALSE,'Previous Non-Munic rates'!Y28,'Previous Munic rates'!Y28) -> 39.1 | AA28: =IF(Calculations!$C$9=FALSE,'Previous Non-Munic rates'!AA28,'Previous Munic rates'!AA28) -> 0 | AB28: =IF(Calculations!$C$9=FALSE,'Previous Non-Munic rates'!AB28,'Previous Munic rates'!AB28) -> 278.23 | AC28: =IF(Calculations!$C$9=FALSE,'Previous Non-Munic rates'!AC28,'Previous Munic rates'!AC28) -> 38.86 | AD28: =IF(Calculations!$C$9=FALSE,'Previous Non-Munic rates'!AD28,'Previous Munic rates'!AD28) -> 30.4167 | AE28: =IF(Calculations!$C$9=FALSE,'Previous Non-Munic rates'!AE28,'Previous Munic rates'!AE28) -> 0.48 | AF28: =IF(Calculations!$C$9=FALSE,'Previous Non-Munic rates'!AF28,'Previous Munic rates'!AF28) -> 0 | AG28: =IF(Calculations!$C$9 = TRUE, 'Previous Non-Munic rates'!AG28, 'Previous Munic rates'!AG28) -> 0 | AH28: =IF(Calculations!$C$9 = TRUE, 'Previous Non-Munic rates'!AH28, 'Previous Munic rates'!AH28) -> 0 | AI28: =IF(Calculations!$C$9 = TRUE, 'Previous Non-Munic rates'!AI28, 'Previous Munic rates'!AI28) -> 0 | AJ28: =IF(Calculations!$C$9 = TRUE, 'Previous Non-Munic rates'!AJ28, 'Previous Munic rates'!AJ28) -> 0 | AM28: 26
A29: Nightsave Urban Large22 | B29: Nightsave Urban Large | C29: 2 | D29: 2 | E29: =IF(Calculations!$C$9=FALSE,'Previous Non-Munic rates'!E29,'Previous Munic rates'!E29) -> 0 | F29: =IF(Calculations!$C$9=FALSE,'Previous Non-Munic rates'!F29,'Previous Munic rates'!F29) -> 0 | G29: =IF(Calculations!$C$9=FALSE,'Previous Non-Munic rates'!G29,'Previous Munic rates'!G29) -> 0 | H29: =IF(Calculations!$C$9=FALSE,'Previous Non-Munic rates'!H29,'Previous Munic rates'!H29) -> 106.69 | I29: =IF(Calculations!$C$9=FALSE,'Previous Non-Munic rates'!I29,'Previous Munic rates'!I29) -> 148.16 | J29: =IF(Calculations!$C$9=FALSE,'Previous Non-Munic rates'!J29,'Previous Munic rates'!J29) -> 0 | K29: =IF(Calculations!$C$9=FALSE,'Previous Non-Munic rates'!K29,'Previous Munic rates'!K29) -> 0 | L29: =IF(Calculations!$C$9=FALSE,'Previous Non-Munic rates'!L29,'Previous Munic rates'!L29) -> 0 | M29: =IF(Calculations!$C$9=FALSE,'Previous Non-Munic rates'!M29,'Previous Munic rates'!M29) -> 236.74 | N29: =IF(Calculations!$C$9=FALSE,'Previous Non-Munic rates'!N29,'Previous Munic rates'!N29) -> 4639.2 | O29: =IF(Calculations!$C$9=FALSE,'Previous Non-Munic rates'!O29,'Previous Munic rates'!O29) -> 87.48 | P29: =IF(Calculations!$C$9=FALSE,'Previous Non-Munic rates'!P29,'Previous Munic rates'!P29) -> 87.48 | Q29: =IF(Calculations!$C$9=FALSE,'Previous Non-Munic rates'!Q29,'Previous Munic rates'!Q29) -> 87.48 | R29: =IF(Calculations!$C$9=FALSE,'Previous Non-Munic rates'!R29,'Previous Munic rates'!R29) -> 68.27 | S29: =IF(Calculations!$C$9=FALSE,'Previous Non-Munic rates'!S29,'Previous Munic rates'!S29) -> 68.27 | T29: =IF(Calculations!$C$9=FALSE,'Previous Non-Munic rates'!T29,'Previous Munic rates'!T29) -> 68.27 | U29: =IF(Calculations!$C$9=FALSE,'Previous Non-Munic rates'!U29,'Previous Munic rates'!U29) -> 0 | V29: =IF(Calculations!$C$9=FALSE,'Previous Non-Munic rates'!V29,'Previous Munic rates'!V29) -> 9.22 | W29: =IF(Calculations!$C$9=FALSE,'Previous Non-Munic rates'!W29,'Previous Munic rates'!W29) -> 9.66 | X29: =IF(Calculations!$C$9=FALSE,'Previous Non-Munic rates'!X29,'Previous Munic rates'!X29) -> 18.91 | Y29: =IF(Calculations!$C$9=FALSE,'Previous Non-Munic rates'!Y29,'Previous Munic rates'!Y29) -> 35.87 | AA29: =IF(Calculations!$C$9=FALSE,'Previous Non-Munic rates'!AA29,'Previous Munic rates'!AA29) -> 0 | AB29: =IF(Calculations!$C$9=FALSE,'Previous Non-Munic rates'!AB29,'Previous Munic rates'!AB29) -> 269.19 | AC29: =IF(Calculations!$C$9=FALSE,'Previous Non-Munic rates'!AC29,'Previous Munic rates'!AC29) -> 37.62 | AD29: =IF(Calculations!$C$9=FALSE,'Previous Non-Munic rates'!AD29,'Previous Munic rates'!AD29) -> 30.4167 | AE29: =IF(Calculations!$C$9=FALSE,'Previous Non-Munic rates'!AE29,'Previous Munic rates'!AE29) -> 0.47 | AF29: =IF(Calculations!$C$9=FALSE,'Previous Non-Munic rates'!AF29,'Previous Munic rates'!AF29) -> 0 | AG29: =IF(Calculations!$C$9=FALSE, 'Previous Non-Munic rates'!AG29, 'Previous Munic rates'!AG29) -> 0 | AH29: =IF(Calculations!$C$9=FALSE, 'Previous Non-Munic rates'!AH29, 'Previous Munic rates'!AH29) -> 0 | AI29: =IF(Calculations!$C$9=FALSE, 'Previous Non-Munic rates'!AI29, 'Previous Munic rates'!AI29) -> 0 | AJ29: =IF(Calculations!$C$9=FALSE, 'Previous Non-Munic rates'!AJ29, 'Previous Munic rates'!AJ29) -> 4.34 | AM29: 27
A30: Nightsave Urban Large23 | B30: Nightsave Urban Large | C30: 2 | D30: 3 | E30: =IF(Calculations!$C$9=FALSE,'Previous Non-Munic rates'!E30,'Previous Munic rates'!E30) -> 0 | F30: =IF(Calculations!$C$9=FALSE,'Previous Non-Munic rates'!F30,'Previous Munic rates'!F30) -> 0 | G30: =IF(Calculations!$C$9=FALSE,'Previous Non-Munic rates'!G30,'Previous Munic rates'!G30) -> 0 | H30: =IF(Calculations!$C$9=FALSE,'Previous Non-Munic rates'!H30,'Previous Munic rates'!H30) -> 106.69 | I30: =IF(Calculations!$C$9=FALSE,'Previous Non-Munic rates'!I30,'Previous Munic rates'!I30) -> 148.16 | J30: =IF(Calculations!$C$9=FALSE,'Previous Non-Munic rates'!J30,'Previous Munic rates'!J30) -> 0 | K30: =IF(Calculations!$C$9=FALSE,'Previous Non-Munic rates'!K30,'Previous Munic rates'!K30) -> 0 | L30: =IF(Calculations!$C$9=FALSE,'Previous Non-Munic rates'!L30,'Previous Munic rates'!L30) -> 0 | M30: =IF(Calculations!$C$9=FALSE,'Previous Non-Munic rates'!M30,'Previous Munic rates'!M30) -> 236.74 | N30: =IF(Calculations!$C$9=FALSE,'Previous Non-Munic rates'!N30,'Previous Munic rates'!N30) -> 4639.2 | O30: =IF(Calculations!$C$9=FALSE,'Previous Non-Munic rates'!O30,'Previous Munic rates'!O30) -> 86.81 | P30: =IF(Calculations!$C$9=FALSE,'Previous Non-Munic rates'!P30,'Previous Munic rates'!P30) -> 86.81 | Q30: =IF(Calculations!$C$9=FALSE,'Previous Non-Munic rates'!Q30,'Previous Munic rates'!Q30) -> 86.81 | R30: =IF(Calculations!$C$9=FALSE,'Previous Non-Munic rates'!R30,'Previous Munic rates'!R30) -> 67.42 | S30: =IF(Calculations!$C$9=FALSE,'Previous Non-Munic rates'!S30,'Previous Munic rates'!S30) -> 67.42 | T30: =IF(Calculations!$C$9=FALSE,'Previous Non-Munic rates'!T30,'Previous Munic rates'!T30) -> 67.42 | U30: =IF(Calculations!$C$9=FALSE,'Previous Non-Munic rates'!U30,'Previous Munic rates'!U30) -> 0 | V30: =IF(Calculations!$C$9=FALSE,'Previous Non-Munic rates'!V30,'Previous Munic rates'!V30) -> 9.22 | W30: =IF(Calculations!$C$9=FALSE,'Previous Non-Munic rates'!W30,'Previous Munic rates'!W30) -> 9.36 | X30: =IF(Calculations!$C$9=FALSE,'Previous Non-Munic rates'!X30,'Previous Munic rates'!X30) -> 6.75 | Y30: =IF(Calculations!$C$9=FALSE,'Previous Non-Munic rates'!Y30,'Previous Munic rates'!Y30) -> 12.51 | AA30: =IF(Calculations!$C$9=FALSE,'Previous Non-Munic rates'!AA30,'Previous Munic rates'!AA30) -> 0 | AB30: =IF(Calculations!$C$9=FALSE,'Previous Non-Munic rates'!AB30,'Previous Munic rates'!AB30) -> 259.33 | AC30: =IF(Calculations!$C$9=FALSE,'Previous Non-Munic rates'!AC30,'Previous Munic rates'!AC30) -> 36.23 | AD30: =IF(Calculations!$C$9=FALSE,'Previous Non-Munic rates'!AD30,'Previous Munic rates'!AD30) -> 30.4167 | AE30: =IF(Calculations!$C$9=FALSE,'Previous Non-Munic rates'!AE30,'Previous Munic rates'!AE30) -> 0.45 | AF30: =IF(Calculations!$C$9=FALSE,'Previous Non-Munic rates'!AF30,'Previous Munic rates'!AF30) -> 0 | AG30: =IF(Calculations!$C$9=FALSE, 'Previous Non-Munic rates'!AG30, 'Previous Munic rates'!AG30) -> 0 | AH30: =IF(Calculations!$C$9=FALSE, 'Previous Non-Munic rates'!AH30, 'Previous Munic rates'!AH30) -> 16.66 | AI30: =IF(Calculations!$C$9=FALSE, 'Previous Non-Munic rates'!AI30, 'Previous Munic rates'!AI30) -> 0 | AJ30: =IF(Calculations!$C$9=FALSE, 'Previous Non-Munic rates'!AJ30, 'Previous Munic rates'!AJ30) -> 4.34 | AM30: 28
A31: Nightsave Urban Large24 | B31: Nightsave Urban Large | C31: 2 | D31: 4 | E31: =IF(Calculations!$C$9=FALSE,'Previous Non-Munic rates'!E31,'Previous Munic rates'!E31) -> 0 | F31: =IF(Calculations!$C$9=FALSE,'Previous Non-Munic rates'!F31,'Previous Munic rates'!F31) -> 0 | G31: =IF(Calculations!$C$9=FALSE,'Previous Non-Munic rates'!G31,'Previous Munic rates'!G31) -> 0 | H31: =IF(Calculations!$C$9=FALSE,'Previous Non-Munic rates'!H31,'Previous Munic rates'!H31) -> 106.69 | I31: =IF(Calculations!$C$9=FALSE,'Previous Non-Munic rates'!I31,'Previous Munic rates'!I31) -> 148.16 | J31: =IF(Calculations!$C$9=FALSE,'Previous Non-Munic rates'!J31,'Previous Munic rates'!J31) -> 0 | K31: =IF(Calculations!$C$9=FALSE,'Previous Non-Munic rates'!K31,'Previous Munic rates'!K31) -> 0 | L31: =IF(Calculations!$C$9=FALSE,'Previous Non-Munic rates'!L31,'Previous Munic rates'!L31) -> 0 | M31: =IF(Calculations!$C$9=FALSE,'Previous Non-Munic rates'!M31,'Previous Munic rates'!M31) -> 236.74 | N31: =IF(Calculations!$C$9=FALSE,'Previous Non-Munic rates'!N31,'Previous Munic rates'!N31) -> 4639.2 | O31: =IF(Calculations!$C$9=FALSE,'Previous Non-Munic rates'!O31,'Previous Munic rates'!O31) -> 81.22 | P31: =IF(Calculations!$C$9=FALSE,'Previous Non-Munic rates'!P31,'Previous Munic rates'!P31) -> 81.22 | Q31: =IF(Calculations!$C$9=FALSE,'Previous Non-Munic rates'!Q31,'Previous Munic rates'!Q31) -> 81.22 | R31: =IF(Calculations!$C$9=FALSE,'Previous Non-Munic rates'!R31,'Previous Munic rates'!R31) -> 63.14 | S31: =IF(Calculations!$C$9=FALSE,'Previous Non-Munic rates'!S31,'Previous Munic rates'!S31) -> 63.14 | T31: =IF(Calculations!$C$9=FALSE,'Previous Non-Munic rates'!T31,'Previous Munic rates'!T31) -> 63.14 | U31: =IF(Calculations!$C$9=FALSE,'Previous Non-Munic rates'!U31,'Previous Munic rates'!U31) -> 0 | V31: =IF(Calculations!$C$9=FALSE,'Previous Non-Munic rates'!V31,'Previous Munic rates'!V31) -> 9.22 | W31: =IF(Calculations!$C$9=FALSE,'Previous Non-Munic rates'!W31,'Previous Munic rates'!W31) -> 11.95 | X31: =IF(Calculations!$C$9=FALSE,'Previous Non-Munic rates'!X31,'Previous Munic rates'!X31) -> 0 | Y31: =IF(Calculations!$C$9=FALSE,'Previous Non-Munic rates'!Y31,'Previous Munic rates'!Y31) -> 0 | AA31: =IF(Calculations!$C$9=FALSE,'Previous Non-Munic rates'!AA31,'Previous Munic rates'!AA31) -> 0 | AB31: =IF(Calculations!$C$9=FALSE,'Previous Non-Munic rates'!AB31,'Previous Munic rates'!AB31) -> 250.21 | AC31: =IF(Calculations!$C$9=FALSE,'Previous Non-Munic rates'!AC31,'Previous Munic rates'!AC31) -> 34.93 | AD31: =IF(Calculations!$C$9=FALSE,'Previous Non-Munic rates'!AD31,'Previous Munic rates'!AD31) -> 30.4167 | AE31: =IF(Calculations!$C$9=FALSE,'Previous Non-Munic rates'!AE31,'Previous Munic rates'!AE31) -> 0.42 | AF31: =IF(Calculations!$C$9=FALSE,'Previous Non-Munic rates'!AF31,'Previous Munic rates'!AF31) -> 0 | AG31: =IF(Calculations!$C$9=FALSE, 'Previous Non-Munic rates'!AG31, 'Previous Munic rates'!AG31) -> 0 | AH31: =IF(Calculations!$C$9=FALSE, 'Previous Non-Munic rates'!AH31, 'Previous Munic rates'!AH31) -> 16.66 | AI31: =IF(Calculations!$C$9=FALSE, 'Previous Non-Munic rates'!AI31, 'Previous Munic rates'!AI31) -> 0 | AJ31: =IF(Calculations!$C$9=FALSE, 'Previous Non-Munic rates'!AJ31, 'Previous Munic rates'!AJ31) -> 4.34 | AM31: 29
A32: Nightsave Urban Large31 | B32: Nightsave Urban Large | C32: 3 | D32: 1 | E32: =IF(Calculations!$C$9=FALSE,'Previous Non-Munic rates'!E32,'Previous Munic rates'!E32) -> 0 | F32: =IF(Calculations!$C$9=FALSE,'Previous Non-Munic rates'!F32,'Previous Munic rates'!F32) -> 0 | G32: =IF(Calculations!$C$9=FALSE,'Previous Non-Munic rates'!G32,'Previous Munic rates'!G32) -> 0 | H32: =IF(Calculations!$C$9=FALSE,'Previous Non-Munic rates'!H32,'Previous Munic rates'!H32) -> 106.69 | I32: =IF(Calculations!$C$9=FALSE,'Previous Non-Munic rates'!I32,'Previous Munic rates'!I32) -> 148.16 | J32: =IF(Calculations!$C$9=FALSE,'Previous Non-Munic rates'!J32,'Previous Munic rates'!J32) -> 0 | K32: =IF(Calculations!$C$9=FALSE,'Previous Non-Munic rates'!K32,'Previous Munic rates'!K32) -> 0 | L32: =IF(Calculations!$C$9=FALSE,'Previous Non-Munic rates'!L32,'Previous Munic rates'!L32) -> 0 | M32: =IF(Calculations!$C$9=FALSE,'Previous Non-Munic rates'!M32,'Previous Munic rates'!M32) -> 236.74 | N32: =IF(Calculations!$C$9=FALSE,'Previous Non-Munic rates'!N32,'Previous Munic rates'!N32) -> 4639.2 | O32: =IF(Calculations!$C$9=FALSE,'Previous Non-Munic rates'!O32,'Previous Munic rates'!O32) -> 92.61 | P32: =IF(Calculations!$C$9=FALSE,'Previous Non-Munic rates'!P32,'Previous Munic rates'!P32) -> 92.61 | Q32: =IF(Calculations!$C$9=FALSE,'Previous Non-Munic rates'!Q32,'Previous Munic rates'!Q32) -> 92.61 | R32: =IF(Calculations!$C$9=FALSE,'Previous Non-Munic rates'!R32,'Previous Munic rates'!R32) -> 71.81 | S32: =IF(Calculations!$C$9=FALSE,'Previous Non-Munic rates'!S32,'Previous Munic rates'!S32) -> 71.81 | T32: =IF(Calculations!$C$9=FALSE,'Previous Non-Munic rates'!T32,'Previous Munic rates'!T32) -> 71.81 | U32: =IF(Calculations!$C$9=FALSE,'Previous Non-Munic rates'!U32,'Previous Munic rates'!U32) -> 0 | V32: =IF(Calculations!$C$9=FALSE,'Previous Non-Munic rates'!V32,'Previous Munic rates'!V32) -> 9.22 | W32: =IF(Calculations!$C$9=FALSE,'Previous Non-Munic rates'!W32,'Previous Munic rates'!W32) -> 10.64 | X32: =IF(Calculations!$C$9=FALSE,'Previous Non-Munic rates'!X32,'Previous Munic rates'!X32) -> 20.62 | Y32: =IF(Calculations!$C$9=FALSE,'Previous Non-Munic rates'!Y32,'Previous Munic rates'!Y32) -> 39.1 | AA32: =IF(Calculations!$C$9=FALSE,'Previous Non-Munic rates'!AA32,'Previous Munic rates'!AA32) -> 0 | AB32: =IF(Calculations!$C$9=FALSE,'Previous Non-Munic rates'!AB32,'Previous Munic rates'!AB32) -> 280.92 | AC32: =IF(Calculations!$C$9=FALSE,'Previous Non-Munic rates'!AC32,'Previous Munic rates'!AC32) -> 39.23 | AD32: =IF(Calculations!$C$9=FALSE,'Previous Non-Munic rates'!AD32,'Previous Munic rates'!AD32) -> 30.4167 | AE32: =IF(Calculations!$C$9=FALSE,'Previous Non-Munic rates'!AE32,'Previous Munic rates'!AE32) -> 0.48 | AF32: =IF(Calculations!$C$9=FALSE,'Previous Non-Munic rates'!AF32,'Previous Munic rates'!AF32) -> 0 | AG32: =IF(Calculations!$C$9=FALSE, 'Previous Non-Munic rates'!AG32, 'Previous Munic rates'!AG32) -> 0 | AH32: =IF(Calculations!$C$9=FALSE, 'Previous Non-Munic rates'!AH32, 'Previous Munic rates'!AH32) -> 0 | AI32: =IF(Calculations!$C$9=FALSE, 'Previous Non-Munic rates'!AI32, 'Previous Munic rates'!AI32) -> 0 | AJ32: =IF(Calculations!$C$9=FALSE, 'Previous Non-Munic rates'!AJ32, 'Previous Munic rates'!AJ32) -> 4.34 | AM32: 30
A33: Nightsave Urban Large32 | B33: Nightsave Urban Large | C33: 3 | D33: 2 | E33: =IF(Calculations!$C$9=FALSE,'Previous Non-Munic rates'!E33,'Previous Munic rates'!E33) -> 0 | F33: =IF(Calculations!$C$9=FALSE,'Previous Non-Munic rates'!F33,'Previous Munic rates'!F33) -> 0 | G33: =IF(Calculations!$C$9=FALSE,'Previous Non-Munic rates'!G33,'Previous Munic rates'!G33) -> 0 | H33: =IF(Calculations!$C$9=FALSE,'Previous Non-Munic rates'!H33,'Previous Munic rates'!H33) -> 106.69 | I33: =IF(Calculations!$C$9=FALSE,'Previous Non-Munic rates'!I33,'Previous Munic rates'!I33) -> 148.16 | J33: =IF(Calculations!$C$9=FALSE,'Previous Non-Munic rates'!J33,'Previous Munic rates'!J33) -> 0 | K33: =IF(Calculations!$C$9=FALSE,'Previous Non-Munic rates'!K33,'Previous Munic rates'!K33) -> 0 | L33: =IF(Calculations!$C$9=FALSE,'Previous Non-Munic rates'!L33,'Previous Munic rates'!L33) -> 0 | M33: =IF(Calculations!$C$9=FALSE,'Previous Non-Munic rates'!M33,'Previous Munic rates'!M33) -> 236.74 | N33: =IF(Calculations!$C$9=FALSE,'Previous Non-Munic rates'!N33,'Previous Munic rates'!N33) -> 4639.2 | O33: =IF(Calculations!$C$9=FALSE,'Previous Non-Munic rates'!O33,'Previous Munic rates'!O33) -> 88.32 | P33: =IF(Calculations!$C$9=FALSE,'Previous Non-Munic rates'!P33,'Previous Munic rates'!P33) -> 88.32 | Q33: =IF(Calculations!$C$9=FALSE,'Previous Non-Munic rates'!Q33,'Previous Munic rates'!Q33) -> 88.32 | R33: =IF(Calculations!$C$9=FALSE,'Previous Non-Munic rates'!R33,'Previous Munic rates'!R33) -> 68.93 | S33: =IF(Calculations!$C$9=FALSE,'Previous Non-Munic rates'!S33,'Previous Munic rates'!S33) -> 68.93 | T33: =IF(Calculations!$C$9=FALSE,'Previous Non-Munic rates'!T33,'Previous Munic rates'!T33) -> 68.93 | U33: =IF(Calculations!$C$9=FALSE,'Previous Non-Munic rates'!U33,'Previous Munic rates'!U33) -> 0 | V33: =IF(Calculations!$C$9=FALSE,'Previous Non-Munic rates'!V33,'Previous Munic rates'!V33) -> 9.22 | W33: =IF(Calculations!$C$9=FALSE,'Previous Non-Munic rates'!W33,'Previous Munic rates'!W33) -> 9.77 | X33: =IF(Calculations!$C$9=FALSE,'Previous Non-Munic rates'!X33,'Previous Munic rates'!X33) -> 18.91 | Y33: =IF(Calculations!$C$9=FALSE,'Previous Non-Munic rates'!Y33,'Previous Munic rates'!Y33) -> 35.87 | AA33: =IF(Calculations!$C$9=FALSE,'Previous Non-Munic rates'!AA33,'Previous Munic rates'!AA33) -> 0 | AB33: =IF(Calculations!$C$9=FALSE,'Previous Non-Munic rates'!AB33,'Previous Munic rates'!AB33) -> 271.89 | AC33: =IF(Calculations!$C$9=FALSE,'Previous Non-Munic rates'!AC33,'Previous Munic rates'!AC33) -> 37.95 | AD33: =IF(Calculations!$C$9=FALSE,'Previous Non-Munic rates'!AD33,'Previous Munic rates'!AD33) -> 30.4167 | AE33: =IF(Calculations!$C$9=FALSE,'Previous Non-Munic rates'!AE33,'Previous Munic rates'!AE33) -> 0.47 | AF33: =IF(Calculations!$C$9=FALSE,'Previous Non-Munic rates'!AF33,'Previous Munic rates'!AF33) -> 0 | AG33: =IF(Calculations!$C$9=FALSE, 'Previous Non-Munic rates'!AG33, 'Previous Munic rates'!AG33) -> 0 | AH33: =IF(Calculations!$C$9=FALSE, 'Previous Non-Munic rates'!AH33, 'Previous Munic rates'!AH33) -> 0 | AI33: =IF(Calculations!$C$9=FALSE, 'Previous Non-Munic rates'!AI33, 'Previous Munic rates'!AI33) -> 0 | AJ33: =IF(Calculations!$C$9=FALSE, 'Previous Non-Munic rates'!AJ33, 'Previous Munic rates'!AJ33) -> 4.34 | AM33: 31
A34: Nightsave Urban Large33 | B34: Nightsave Urban Large | C34: 3 | D34: 3 | E34: =IF(Calculations!$C$9=FALSE,'Previous Non-Munic rates'!E34,'Previous Munic rates'!E34) -> 0 | F34: =IF(Calculations!$C$9=FALSE,'Previous Non-Munic rates'!F34,'Previous Munic rates'!F34) -> 0 | G34: =IF(Calculations!$C$9=FALSE,'Previous Non-Munic rates'!G34,'Previous Munic rates'!G34) -> 0 | H34: =IF(Calculations!$C$9=FALSE,'Previous Non-Munic rates'!H34,'Previous Munic rates'!H34) -> 106.69 | I34: =IF(Calculations!$C$9=FALSE,'Previous Non-Munic rates'!I34,'Previous Munic rates'!I34) -> 148.16 | J34: =IF(Calculations!$C$9=FALSE,'Previous Non-Munic rates'!J34,'Previous Munic rates'!J34) -> 0 | K34: =IF(Calculations!$C$9=FALSE,'Previous Non-Munic rates'!K34,'Previous Munic rates'!K34) -> 0 | L34: =IF(Calculations!$C$9=FALSE,'Previous Non-Munic rates'!L34,'Previous Munic rates'!L34) -> 0 | M34: =IF(Calculations!$C$9=FALSE,'Previous Non-Munic rates'!M34,'Previous Munic rates'!M34) -> 236.74 | N34: =IF(Calculations!$C$9=FALSE,'Previous Non-Munic rates'!N34,'Previous Munic rates'!N34) -> 4639.2 | O34: =IF(Calculations!$C$9=FALSE,'Previous Non-Munic rates'!O34,'Previous Munic rates'!O34) -> 87.71 | P34: =IF(Calculations!$C$9=FALSE,'Previous Non-Munic rates'!P34,'Previous Munic rates'!P34) -> 87.71 | Q34: =IF(Calculations!$C$9=FALSE,'Previous Non-Munic rates'!Q34,'Previous Munic rates'!Q34) -> 87.71 | R34: =IF(Calculations!$C$9=FALSE,'Previous Non-Munic rates'!R34,'Previous Munic rates'!R34) -> 68.07 | S34: =IF(Calculations!$C$9=FALSE,'Previous Non-Munic rates'!S34,'Previous Munic rates'!S34) -> 68.07 | T34: =IF(Calculations!$C$9=FALSE,'Previous Non-Munic rates'!T34,'Previous Munic rates'!T34) -> 68.07 | U34: =IF(Calculations!$C$9=FALSE,'Previous Non-Munic rates'!U34,'Previous Munic rates'!U34) -> 0 | V34: =IF(Calculations!$C$9=FALSE,'Previous Non-Munic rates'!V34,'Previous Munic rates'!V34) -> 9.22 | W34: =IF(Calculations!$C$9=FALSE,'Previous Non-Munic rates'!W34,'Previous Munic rates'!W34) -> 9.45 | X34: =IF(Calculations!$C$9=FALSE,'Previous Non-Munic rates'!X34,'Previous Munic rates'!X34) -> 6.75 | Y34: =IF(Calculations!$C$9=FALSE,'Previous Non-Munic rates'!Y34,'Previous Munic rates'!Y34) -> 12.51 | AA34: =IF(Calculations!$C$9=FALSE,'Previous Non-Munic rates'!AA34,'Previous Munic rates'!AA34) -> 0 | AB34: =IF(Calculations!$C$9=FALSE,'Previous Non-Munic rates'!AB34,'Previous Munic rates'!AB34) -> 261.98 | AC34: =IF(Calculations!$C$9=FALSE,'Previous Non-Munic rates'!AC34,'Previous Munic rates'!AC34) -> 36.6 | AD34: =IF(Calculations!$C$9=FALSE,'Previous Non-Munic rates'!AD34,'Previous Munic rates'!AD34) -> 30.4167 | AE34: =IF(Calculations!$C$9=FALSE,'Previous Non-Munic rates'!AE34,'Previous Munic rates'!AE34) -> 0.45 | AF34: =IF(Calculations!$C$9=FALSE,'Previous Non-Munic rates'!AF34,'Previous Munic rates'!AF34) -> 0 | AG34: =IF(Calculations!$C$9=FALSE, 'Previous Non-Munic rates'!AG34, 'Previous Munic rates'!AG34) -> 0 | AH34: =IF(Calculations!$C$9=FALSE, 'Previous Non-Munic rates'!AH34, 'Previous Munic rates'!AH34) -> 16.66 | AI34: =IF(Calculations!$C$9=FALSE, 'Previous Non-Munic rates'!AI34, 'Previous Munic rates'!AI34) -> 0 | AJ34: =IF(Calculations!$C$9=FALSE, 'Previous Non-Munic rates'!AJ34, 'Previous Munic rates'!AJ34) -> 4.34 | AM34: 32
A35: Nightsave Urban Large34 | B35: Nightsave Urban Large | C35: 3 | D35: 4 | E35: =IF(Calculations!$C$9=FALSE,'Previous Non-Munic rates'!E35,'Previous Munic rates'!E35) -> 0 | F35: =IF(Calculations!$C$9=FALSE,'Previous Non-Munic rates'!F35,'Previous Munic rates'!F35) -> 0 | G35: =IF(Calculations!$C$9=FALSE,'Previous Non-Munic rates'!G35,'Previous Munic rates'!G35) -> 0 | H35: =IF(Calculations!$C$9=FALSE,'Previous Non-Munic rates'!H35,'Previous Munic rates'!H35) -> 106.69 | I35: =IF(Calculations!$C$9=FALSE,'Previous Non-Munic rates'!I35,'Previous Munic rates'!I35) -> 148.16 | J35: =IF(Calculations!$C$9=FALSE,'Previous Non-Munic rates'!J35,'Previous Munic rates'!J35) -> 0 | K35: =IF(Calculations!$C$9=FALSE,'Previous Non-Munic rates'!K35,'Previous Munic rates'!K35) -> 0 | L35: =IF(Calculations!$C$9=FALSE,'Previous Non-Munic rates'!L35,'Previous Munic rates'!L35) -> 0 | M35: =IF(Calculations!$C$9=FALSE,'Previous Non-Munic rates'!M35,'Previous Munic rates'!M35) -> 236.74 | N35: =IF(Calculations!$C$9=FALSE,'Previous Non-Munic rates'!N35,'Previous Munic rates'!N35) -> 4639.2 | O35: =IF(Calculations!$C$9=FALSE,'Previous Non-Munic rates'!O35,'Previous Munic rates'!O35) -> 82.08 | P35: =IF(Calculations!$C$9=FALSE,'Previous Non-Munic rates'!P35,'Previous Munic rates'!P35) -> 82.08 | Q35: =IF(Calculations!$C$9=FALSE,'Previous Non-Munic rates'!Q35,'Previous Munic rates'!Q35) -> 82.08 | R35: =IF(Calculations!$C$9=FALSE,'Previous Non-Munic rates'!R35,'Previous Munic rates'!R35) -> 63.83 | S35: =IF(Calculations!$C$9=FALSE,'Previous Non-Munic rates'!S35,'Previous Munic rates'!S35) -> 63.83 | T35: =IF(Calculations!$C$9=FALSE,'Previous Non-Munic rates'!T35,'Previous Munic rates'!T35) -> 63.83 | U35: =IF(Calculations!$C$9=FALSE,'Previous Non-Munic rates'!U35,'Previous Munic rates'!U35) -> 0 | V35: =IF(Calculations!$C$9=FALSE,'Previous Non-Munic rates'!V35,'Previous Munic rates'!V35) -> 9.22 | W35: =IF(Calculations!$C$9=FALSE,'Previous Non-Munic rates'!W35,'Previous Munic rates'!W35) -> 12.04 | X35: =IF(Calculations!$C$9=FALSE,'Previous Non-Munic rates'!X35,'Previous Munic rates'!X35) -> 0 | Y35: =IF(Calculations!$C$9=FALSE,'Previous Non-Munic rates'!Y35,'Previous Munic rates'!Y35) -> 0 | AA35: =IF(Calculations!$C$9=FALSE,'Previous Non-Munic rates'!AA35,'Previous Munic rates'!AA35) -> 0 | AB35: =IF(Calculations!$C$9=FALSE,'Previous Non-Munic rates'!AB35,'Previous Munic rates'!AB35) -> 252.75 | AC35: =IF(Calculations!$C$9=FALSE,'Previous Non-Munic rates'!AC35,'Previous Munic rates'!AC35) -> 35.29 | AD35: =IF(Calculations!$C$9=FALSE,'Previous Non-Munic rates'!AD35,'Previous Munic rates'!AD35) -> 30.4167 | AE35: =IF(Calculations!$C$9=FALSE,'Previous Non-Munic rates'!AE35,'Previous Munic rates'!AE35) -> 0.42 | AF35: =IF(Calculations!$C$9=FALSE,'Previous Non-Munic rates'!AF35,'Previous Munic rates'!AF35) -> 0 | AG35: =IF(Calculations!$C$9=FALSE, 'Previous Non-Munic rates'!AG35, 'Previous Munic rates'!AG35) -> 0 | AH35: =IF(Calculations!$C$9=FALSE, 'Previous Non-Munic rates'!AH35, 'Previous Munic rates'!AH35) -> 16.66 | AI35: =IF(Calculations!$C$9=FALSE, 'Previous Non-Munic rates'!AI35, 'Previous Munic rates'!AI35) -> 0 | AJ35: =IF(Calculations!$C$9=FALSE, 'Previous Non-Munic rates'!AJ35, 'Previous Munic rates'!AJ35) -> 4.34 | AM35: 33
A36: Miniflex01 | B36: Miniflex | C36: 0 | D36: 1 | E36: =IF(Calculations!$C$9=FALSE,'Previous Non-Munic rates'!E36,'Previous Munic rates'!E36) -> 3.7 | F36: =IF(Calculations!$C$9=FALSE,'Previous Non-Munic rates'!F36,'Previous Munic rates'!F36) -> 21.58 | G36: =IF(Calculations!$C$9=FALSE,'Previous Non-Munic rates'!G36,'Previous Munic rates'!G36) -> 42.85 | H36: =IF(Calculations!$C$9=FALSE,'Previous Non-Munic rates'!H36,'Previous Munic rates'!H36) -> 106.69 | I36: =IF(Calculations!$C$9=FALSE,'Previous Non-Munic rates'!I36,'Previous Munic rates'!I36) -> 148.16 | J36: =IF(Calculations!$C$9=FALSE,'Previous Non-Munic rates'!J36,'Previous Munic rates'!J36) -> 16.85 | K36: =IF(Calculations!$C$9=FALSE,'Previous Non-Munic rates'!K36,'Previous Munic rates'!K36) -> 76.94 | L36: =IF(Calculations!$C$9=FALSE,'Previous Non-Munic rates'!L36,'Previous Munic rates'!L36) -> 236.74 | M36: =IF(Calculations!$C$9=FALSE,'Previous Non-Munic rates'!M36,'Previous Munic rates'!M36) -> 236.74 | N36: =IF(Calculations!$C$9=FALSE,'Previous Non-Munic rates'!N36,'Previous Munic rates'!N36) -> 4639.2 | O36: =IF(Calculations!$C$9=FALSE,'Previous Non-Munic rates'!O36,'Previous Munic rates'!O36) -> 362.73 | P36: =IF(Calculations!$C$9=FALSE,'Previous Non-Munic rates'!P36,'Previous Munic rates'!P36) -> 110.36 | Q36: =IF(Calculations!$C$9=FALSE,'Previous Non-Munic rates'!Q36,'Previous Munic rates'!Q36) -> 60.26 | R36: =IF(Calculations!$C$9=FALSE,'Previous Non-Munic rates'!R36,'Previous Munic rates'!R36) -> 118.78 | S36: =IF(Calculations!$C$9=FALSE,'Previous Non-Munic rates'!S36,'Previous Munic rates'!S36) -> 81.96 | T36: =IF(Calculations!$C$9=FALSE,'Previous Non-Munic rates'!T36,'Previous Munic rates'!T36) -> 52.25 | U36: =IF(Calculations!$C$9=FALSE,'Previous Non-Munic rates'!U36,'Previous Munic rates'!U36) -> 7.27 | V36: =IF(Calculations!$C$9=FALSE,'Previous Non-Munic rates'!V36,'Previous Munic rates'!V36) -> 9.22 | W36: =IF(Calculations!$C$9=FALSE,'Previous Non-Munic rates'!W36,'Previous Munic rates'!W36) -> 0 | X36: =IF(Calculations!$C$9=FALSE,'Previous Non-Munic rates'!X36,'Previous Munic rates'!X36) -> 30.96 | Y36: =IF(Calculations!$C$9=FALSE,'Previous Non-Munic rates'!Y36,'Previous Munic rates'!Y36) -> 0 | AA36: =IF(Calculations!$C$9=FALSE,'Previous Non-Munic rates'!AA36,'Previous Munic rates'!AA36) -> 0 | AB36: =IF(Calculations!$C$9=FALSE,'Previous Non-Munic rates'!AB36,'Previous Munic rates'!AB36) -> 0 | AC36: =IF(Calculations!$C$9=FALSE,'Previous Non-Munic rates'!AC36,'Previous Munic rates'!AC36) -> 0 | AD36: =IF(Calculations!$C$9=FALSE,'Previous Non-Munic rates'!AD36,'Previous Munic rates'!AD36) -> 30.4167 | AE36: =IF(Calculations!$C$9=FALSE,'Previous Non-Munic rates'!AE36,'Previous Munic rates'!AE36) -> 0.48 | AF36: =IF(Calculations!$C$9=FALSE,'Previous Non-Munic rates'!AF36,'Previous Munic rates'!AF36) -> 0 | AG36: =IF(Calculations!$C$9=FALSE, 'Previous Non-Munic rates'!AG36, 'Previous Munic rates'!AG36) -> 0 | AH36: =IF(Calculations!$C$9=FALSE, 'Previous Non-Munic rates'!AH36, 'Previous Munic rates'!AH36) -> 0 | AI36: =IF(Calculations!$C$9=FALSE, 'Previous Non-Munic rates'!AI36, 'Previous Munic rates'!AI36) -> 0 | AJ36: =IF(Calculations!$C$9=FALSE, 'Previous Non-Munic rates'!AJ36, 'Previous Munic rates'!AJ36) -> 4.34 | AM36: 34
A37: Miniflex02 | B37: Miniflex | C37: 0 | D37: 2 | E37: =IF(Calculations!$C$9=FALSE,'Previous Non-Munic rates'!E37,'Previous Munic rates'!E37) -> 3.7 | F37: =IF(Calculations!$C$9=FALSE,'Previous Non-Munic rates'!F37,'Previous Munic rates'!F37) -> 21.58 | G37: =IF(Calculations!$C$9=FALSE,'Previous Non-Munic rates'!G37,'Previous Munic rates'!G37) -> 42.85 | H37: =IF(Calculations!$C$9=FALSE,'Previous Non-Munic rates'!H37,'Previous Munic rates'!H37) -> 106.69 | I37: =IF(Calculations!$C$9=FALSE,'Previous Non-Munic rates'!I37,'Previous Munic rates'!I37) -> 148.16 | J37: =IF(Calculations!$C$9=FALSE,'Previous Non-Munic rates'!J37,'Previous Munic rates'!J37) -> 16.85 | K37: =IF(Calculations!$C$9=FALSE,'Previous Non-Munic rates'!K37,'Previous Munic rates'!K37) -> 76.94 | L37: =IF(Calculations!$C$9=FALSE,'Previous Non-Munic rates'!L37,'Previous Munic rates'!L37) -> 236.74 | M37: =IF(Calculations!$C$9=FALSE,'Previous Non-Munic rates'!M37,'Previous Munic rates'!M37) -> 236.74 | N37: =IF(Calculations!$C$9=FALSE,'Previous Non-Munic rates'!N37,'Previous Munic rates'!N37) -> 4639.2 | O37: =IF(Calculations!$C$9=FALSE,'Previous Non-Munic rates'!O37,'Previous Munic rates'!O37) -> 357.04 | P37: =IF(Calculations!$C$9=FALSE,'Previous Non-Munic rates'!P37,'Previous Munic rates'!P37) -> 108.16 | Q37: =IF(Calculations!$C$9=FALSE,'Previous Non-Munic rates'!Q37,'Previous Munic rates'!Q37) -> 58.74 | R37: =IF(Calculations!$C$9=FALSE,'Previous Non-Munic rates'!R37,'Previous Munic rates'!R37) -> 116.45 | S37: =IF(Calculations!$C$9=FALSE,'Previous Non-Munic rates'!S37,'Previous Munic rates'!S37) -> 80.17 | T37: =IF(Calculations!$C$9=FALSE,'Previous Non-Munic rates'!T37,'Previous Munic rates'!T37) -> 50.86 | U37: =IF(Calculations!$C$9=FALSE,'Previous Non-Munic rates'!U37,'Previous Munic rates'!U37) -> 7.27 | V37: =IF(Calculations!$C$9=FALSE,'Previous Non-Munic rates'!V37,'Previous Munic rates'!V37) -> 9.22 | W37: =IF(Calculations!$C$9=FALSE,'Previous Non-Munic rates'!W37,'Previous Munic rates'!W37) -> 0 | X37: =IF(Calculations!$C$9=FALSE,'Previous Non-Munic rates'!X37,'Previous Munic rates'!X37) -> 28.38 | Y37: =IF(Calculations!$C$9=FALSE,'Previous Non-Munic rates'!Y37,'Previous Munic rates'!Y37) -> 0 | AA37: =IF(Calculations!$C$9=FALSE,'Previous Non-Munic rates'!AA37,'Previous Munic rates'!AA37) -> 0 | AB37: =IF(Calculations!$C$9=FALSE,'Previous Non-Munic rates'!AB37,'Previous Munic rates'!AB37) -> 0 | AC37: =IF(Calculations!$C$9=FALSE,'Previous Non-Munic rates'!AC37,'Previous Munic rates'!AC37) -> 0 | AD37: =IF(Calculations!$C$9=FALSE,'Previous Non-Munic rates'!AD37,'Previous Munic rates'!AD37) -> 30.4167 | AE37: =IF(Calculations!$C$9=FALSE,'Previous Non-Munic rates'!AE37,'Previous Munic rates'!AE37) -> 0.47 | AF37: =IF(Calculations!$C$9=FALSE,'Previous Non-Munic rates'!AF37,'Previous Munic rates'!AF37) -> 0 | AG37: =IF(Calculations!$C$9=FALSE, 'Previous Non-Munic rates'!AG37, 'Previous Munic rates'!AG37) -> 0 | AH37: =IF(Calculations!$C$9=FALSE, 'Previous Non-Munic rates'!AH37, 'Previous Munic rates'!AH37) -> 0 | AI37: =IF(Calculations!$C$9=FALSE, 'Previous Non-Munic rates'!AI37, 'Previous Munic rates'!AI37) -> 0 | AJ37: =IF(Calculations!$C$9=FALSE, 'Previous Non-Munic rates'!AJ37, 'Previous Munic rates'!AJ37) -> 4.34 | AM37: 35
A38: Miniflex03 | B38: Miniflex | C38: 0 | D38: 3 | E38: =IF(Calculations!$C$9=FALSE,'Previous Non-Munic rates'!E38,'Previous Munic rates'!E38) -> 3.7 | F38: =IF(Calculations!$C$9=FALSE,'Previous Non-Munic rates'!F38,'Previous Munic rates'!F38) -> 21.58 | G38: =IF(Calculations!$C$9=FALSE,'Previous Non-Munic rates'!G38,'Previous Munic rates'!G38) -> 42.85 | H38: =IF(Calculations!$C$9=FALSE,'Previous Non-Munic rates'!H38,'Previous Munic rates'!H38) -> 106.69 | I38: =IF(Calculations!$C$9=FALSE,'Previous Non-Munic rates'!I38,'Previous Munic rates'!I38) -> 148.16 | J38: =IF(Calculations!$C$9=FALSE,'Previous Non-Munic rates'!J38,'Previous Munic rates'!J38) -> 16.85 | K38: =IF(Calculations!$C$9=FALSE,'Previous Non-Munic rates'!K38,'Previous Munic rates'!K38) -> 76.94 | L38: =IF(Calculations!$C$9=FALSE,'Previous Non-Munic rates'!L38,'Previous Munic rates'!L38) -> 236.74 | M38: =IF(Calculations!$C$9=FALSE,'Previous Non-Munic rates'!M38,'Previous Munic rates'!M38) -> 236.74 | N38: =IF(Calculations!$C$9=FALSE,'Previous Non-Munic rates'!N38,'Previous Munic rates'!N38) -> 4639.2 | O38: =IF(Calculations!$C$9=FALSE,'Previous Non-Munic rates'!O38,'Previous Munic rates'!O38) -> 345.73 | P38: =IF(Calculations!$C$9=FALSE,'Previous Non-Munic rates'!P38,'Previous Munic rates'!P38) -> 104.73 | Q38: =IF(Calculations!$C$9=FALSE,'Previous Non-Munic rates'!Q38,'Previous Munic rates'!Q38) -> 56.88 | R38: =IF(Calculations!$C$9=FALSE,'Previous Non-Munic rates'!R38,'Previous Munic rates'!R38) -> 112.79 | S38: =IF(Calculations!$C$9=FALSE,'Previous Non-Munic rates'!S38,'Previous Munic rates'!S38) -> 77.61 | T38: =IF(Calculations!$C$9=FALSE,'Previous Non-Munic rates'!T38,'Previous Munic rates'!T38) -> 49.26 | U38: =IF(Calculations!$C$9=FALSE,'Previous Non-Munic rates'!U38,'Previous Munic rates'!U38) -> 7.27 | V38: =IF(Calculations!$C$9=FALSE,'Previous Non-Munic rates'!V38,'Previous Munic rates'!V38) -> 9.22 | W38: =IF(Calculations!$C$9=FALSE,'Previous Non-Munic rates'!W38,'Previous Munic rates'!W38) -> 0 | X38: =IF(Calculations!$C$9=FALSE,'Previous Non-Munic rates'!X38,'Previous Munic rates'!X38) -> 15.94 | Y38: =IF(Calculations!$C$9=FALSE,'Previous Non-Munic rates'!Y38,'Previous Munic rates'!Y38) -> 0 | AA38: =IF(Calculations!$C$9=FALSE,'Previous Non-Munic rates'!AA38,'Previous Munic rates'!AA38) -> 0 | AB38: =IF(Calculations!$C$9=FALSE,'Previous Non-Munic rates'!AB38,'Previous Munic rates'!AB38) -> 0 | AC38: =IF(Calculations!$C$9=FALSE,'Previous Non-Munic rates'!AC38,'Previous Munic rates'!AC38) -> 0 | AD38: =IF(Calculations!$C$9=FALSE,'Previous Non-Munic rates'!AD38,'Previous Munic rates'!AD38) -> 30.4167 | AE38: =IF(Calculations!$C$9=FALSE,'Previous Non-Munic rates'!AE38,'Previous Munic rates'!AE38) -> 0.45 | AF38: =IF(Calculations!$C$9=FALSE,'Previous Non-Munic rates'!AF38,'Previous Munic rates'!AF38) -> 0 | AG38: =IF(Calculations!$C$9=FALSE, 'Previous Non-Munic rates'!AG38, 'Previous Munic rates'!AG38) -> 0 | AH38: =IF(Calculations!$C$9=FALSE, 'Previous Non-Munic rates'!AH38, 'Previous Munic rates'!AH38) -> 16.66 | AI38: =IF(Calculations!$C$9=FALSE, 'Previous Non-Munic rates'!AI38, 'Previous Munic rates'!AI38) -> 0 | AJ38: =IF(Calculations!$C$9=FALSE, 'Previous Non-Munic rates'!AJ38, 'Previous Munic rates'!AJ38) -> 4.34 | AM38: 36
A39: Miniflex04 | B39: Miniflex | C39: 0 | D39: 4 | E39: =IF(Calculations!$C$9=FALSE,'Previous Non-Munic rates'!E39,'Previous Munic rates'!E39) -> 3.7 | F39: =IF(Calculations!$C$9=FALSE,'Previous Non-Munic rates'!F39,'Previous Munic rates'!F39) -> 21.58 | G39: =IF(Calculations!$C$9=FALSE,'Previous Non-Munic rates'!G39,'Previous Munic rates'!G39) -> 42.85 | H39: =IF(Calculations!$C$9=FALSE,'Previous Non-Munic rates'!H39,'Previous Munic rates'!H39) -> 106.69 | I39: =IF(Calculations!$C$9=FALSE,'Previous Non-Munic rates'!I39,'Previous Munic rates'!I39) -> 148.16 | J39: =IF(Calculations!$C$9=FALSE,'Previous Non-Munic rates'!J39,'Previous Munic rates'!J39) -> 16.85 | K39: =IF(Calculations!$C$9=FALSE,'Previous Non-Munic rates'!K39,'Previous Munic rates'!K39) -> 76.94 | L39: =IF(Calculations!$C$9=FALSE,'Previous Non-Munic rates'!L39,'Previous Munic rates'!L39) -> 236.74 | M39: =IF(Calculations!$C$9=FALSE,'Previous Non-Munic rates'!M39,'Previous Munic rates'!M39) -> 236.74 | N39: =IF(Calculations!$C$9=FALSE,'Previous Non-Munic rates'!N39,'Previous Munic rates'!N39) -> 4639.2 | O39: =IF(Calculations!$C$9=FALSE,'Previous Non-Munic rates'!O39,'Previous Munic rates'!O39) -> 325.84 | P39: =IF(Calculations!$C$9=FALSE,'Previous Non-Munic rates'!P39,'Previous Munic rates'!P39) -> 98.7 | Q39: =IF(Calculations!$C$9=FALSE,'Previous Non-Munic rates'!Q39,'Previous Munic rates'!Q39) -> 53.61 | R39: =IF(Calculations!$C$9=FALSE,'Previous Non-Munic rates'!R39,'Previous Munic rates'!R39) -> 106.32 | S39: =IF(Calculations!$C$9=FALSE,'Previous Non-Munic rates'!S39,'Previous Munic rates'!S39) -> 73.15 | T39: =IF(Calculations!$C$9=FALSE,'Previous Non-Munic rates'!T39,'Previous Munic rates'!T39) -> 46.42 | U39: =IF(Calculations!$C$9=FALSE,'Previous Non-Munic rates'!U39,'Previous Munic rates'!U39) -> 7.27 | V39: =IF(Calculations!$C$9=FALSE,'Previous Non-Munic rates'!V39,'Previous Munic rates'!V39) -> 9.22 | W39: =IF(Calculations!$C$9=FALSE,'Previous Non-Munic rates'!W39,'Previous Munic rates'!W39) -> 0 | X39: =IF(Calculations!$C$9=FALSE,'Previous Non-Munic rates'!X39,'Previous Munic rates'!X39) -> 11.62 | Y39: =IF(Calculations!$C$9=FALSE,'Previous Non-Munic rates'!Y39,'Previous Munic rates'!Y39) -> 0 | AA39: =IF(Calculations!$C$9=FALSE,'Previous Non-Munic rates'!AA39,'Previous Munic rates'!AA39) -> 0 | AB39: =IF(Calculations!$C$9=FALSE,'Previous Non-Munic rates'!AB39,'Previous Munic rates'!AB39) -> 0 | AC39: =IF(Calculations!$C$9=FALSE,'Previous Non-Munic rates'!AC39,'Previous Munic rates'!AC39) -> 0 | AD39: =IF(Calculations!$C$9=FALSE,'Previous Non-Munic rates'!AD39,'Previous Munic rates'!AD39) -> 30.4167 | AE39: =IF(Calculations!$C$9=FALSE,'Previous Non-Munic rates'!AE39,'Previous Munic rates'!AE39) -> 0.42 | AF39: =IF(Calculations!$C$9=FALSE,'Previous Non-Munic rates'!AF39,'Previous Munic rates'!AF39) -> 0 | AG39: =IF(Calculations!$C$9=FALSE, 'Previous Non-Munic rates'!AG39, 'Previous Munic rates'!AG39) -> 0 | AH39: =IF(Calculations!$C$9=FALSE, 'Previous Non-Munic rates'!AH39, 'Previous Munic rates'!AH39) -> 16.66 | AI39: =IF(Calculations!$C$9=FALSE, 'Previous Non-Munic rates'!AI39, 'Previous Munic rates'!AI39) -> 0 | AJ39: =IF(Calculations!$C$9=FALSE, 'Previous Non-Munic rates'!AJ39, 'Previous Munic rates'!AJ39) -> 4.34 | AM39: 37
A40: Miniflex11 | B40: Miniflex | C40: 1 | D40: 1 | E40: =IF(Calculations!$C$9=FALSE,'Previous Non-Munic rates'!E40,'Previous Munic rates'!E40) -> 3.7 | F40: =IF(Calculations!$C$9=FALSE,'Previous Non-Munic rates'!F40,'Previous Munic rates'!F40) -> 21.58 | G40: =IF(Calculations!$C$9=FALSE,'Previous Non-Munic rates'!G40,'Previous Munic rates'!G40) -> 42.85 | H40: =IF(Calculations!$C$9=FALSE,'Previous Non-Munic rates'!H40,'Previous Munic rates'!H40) -> 106.69 | I40: =IF(Calculations!$C$9=FALSE,'Previous Non-Munic rates'!I40,'Previous Munic rates'!I40) -> 148.16 | J40: =IF(Calculations!$C$9=FALSE,'Previous Non-Munic rates'!J40,'Previous Munic rates'!J40) -> 16.85 | K40: =IF(Calculations!$C$9=FALSE,'Previous Non-Munic rates'!K40,'Previous Munic rates'!K40) -> 76.94 | L40: =IF(Calculations!$C$9=FALSE,'Previous Non-Munic rates'!L40,'Previous Munic rates'!L40) -> 236.74 | M40: =IF(Calculations!$C$9=FALSE,'Previous Non-Munic rates'!M40,'Previous Munic rates'!M40) -> 236.74 | N40: =IF(Calculations!$C$9=FALSE,'Previous Non-Munic rates'!N40,'Previous Munic rates'!N40) -> 4639.2 | O40: =IF(Calculations!$C$9=FALSE,'Previous Non-Munic rates'!O40,'Previous Munic rates'!O40) -> 365.69 | P40: =IF(Calculations!$C$9=FALSE,'Previous Non-Munic rates'!P40,'Previous Munic rates'!P40) -> 110.8 | Q40: =IF(Calculations!$C$9=FALSE,'Previous Non-Munic rates'!Q40,'Previous Munic rates'!Q40) -> 60.16 | R40: =IF(Calculations!$C$9=FALSE,'Previous Non-Munic rates'!R40,'Previous Munic rates'!R40) -> 119.3 | S40: =IF(Calculations!$C$9=FALSE,'Previous Non-Munic rates'!S40,'Previous Munic rates'!S40) -> 82.14 | T40: =IF(Calculations!$C$9=FALSE,'Previous Non-Munic rates'!T40,'Previous Munic rates'!T40) -> 52.11 | U40: =IF(Calculations!$C$9=FALSE,'Previous Non-Munic rates'!U40,'Previous Munic rates'!U40) -> 7.27 | V40: =IF(Calculations!$C$9=FALSE,'Previous Non-Munic rates'!V40,'Previous Munic rates'!V40) -> 9.22 | W40: =IF(Calculations!$C$9=FALSE,'Previous Non-Munic rates'!W40,'Previous Munic rates'!W40) -> 0 | X40: =IF(Calculations!$C$9=FALSE,'Previous Non-Munic rates'!X40,'Previous Munic rates'!X40) -> 31.04 | Y40: =IF(Calculations!$C$9=FALSE,'Previous Non-Munic rates'!Y40,'Previous Munic rates'!Y40) -> 0 | AA40: =IF(Calculations!$C$9=FALSE,'Previous Non-Munic rates'!AA40,'Previous Munic rates'!AA40) -> 0 | AB40: =IF(Calculations!$C$9=FALSE,'Previous Non-Munic rates'!AB40,'Previous Munic rates'!AB40) -> 0 | AC40: =IF(Calculations!$C$9=FALSE,'Previous Non-Munic rates'!AC40,'Previous Munic rates'!AC40) -> 0 | AD40: =IF(Calculations!$C$9=FALSE,'Previous Non-Munic rates'!AD40,'Previous Munic rates'!AD40) -> 30.4167 | AE40: =IF(Calculations!$C$9=FALSE,'Previous Non-Munic rates'!AE40,'Previous Munic rates'!AE40) -> 0.48 | AF40: =IF(Calculations!$C$9=FALSE,'Previous Non-Munic rates'!AF40,'Previous Munic rates'!AF40) -> 0 | AG40: =IF(Calculations!$C$9=FALSE, 'Previous Non-Munic rates'!AG40, 'Previous Munic rates'!AG40) -> 0 | AH40: =IF(Calculations!$C$9=FALSE, 'Previous Non-Munic rates'!AH40, 'Previous Munic rates'!AH40) -> 0 | AI40: =IF(Calculations!$C$9=FALSE, 'Previous Non-Munic rates'!AI40, 'Previous Munic rates'!AI40) -> 0 | AJ40: =IF(Calculations!$C$9=FALSE, 'Previous Non-Munic rates'!AJ40, 'Previous Munic rates'!AJ40) -> 4.34 | AM40: 38
A41: Miniflex12 | B41: Miniflex | C41: 1 | D41: 2 | E41: =IF(Calculations!$C$9=FALSE,'Previous Non-Munic rates'!E41,'Previous Munic rates'!E41) -> 3.7 | F41: =IF(Calculations!$C$9=FALSE,'Previous Non-Munic rates'!F41,'Previous Munic rates'!F41) -> 21.58 | G41: =IF(Calculations!$C$9=FALSE,'Previous Non-Munic rates'!G41,'Previous Munic rates'!G41) -> 42.85 | H41: =IF(Calculations!$C$9=FALSE,'Previous Non-Munic rates'!H41,'Previous Munic rates'!H41) -> 106.69 | I41: =IF(Calculations!$C$9=FALSE,'Previous Non-Munic rates'!I41,'Previous Munic rates'!I41) -> 148.16 | J41: =IF(Calculations!$C$9=FALSE,'Previous Non-Munic rates'!J41,'Previous Munic rates'!J41) -> 16.85 | K41: =IF(Calculations!$C$9=FALSE,'Previous Non-Munic rates'!K41,'Previous Munic rates'!K41) -> 76.94 | L41: =IF(Calculations!$C$9=FALSE,'Previous Non-Munic rates'!L41,'Previous Munic rates'!L41) -> 236.74 | M41: =IF(Calculations!$C$9=FALSE,'Previous Non-Munic rates'!M41,'Previous Munic rates'!M41) -> 236.74 | N41: =IF(Calculations!$C$9=FALSE,'Previous Non-Munic rates'!N41,'Previous Munic rates'!N41) -> 4639.2 | O41: =IF(Calculations!$C$9=FALSE,'Previous Non-Munic rates'!O41,'Previous Munic rates'!O41) -> 360.6 | P41: =IF(Calculations!$C$9=FALSE,'Previous Non-Munic rates'!P41,'Previous Munic rates'!P41) -> 109.23 | Q41: =IF(Calculations!$C$9=FALSE,'Previous Non-Munic rates'!Q41,'Previous Munic rates'!Q41) -> 59.32 | R41: =IF(Calculations!$C$9=FALSE,'Previous Non-Munic rates'!R41,'Previous Munic rates'!R41) -> 117.65 | S41: =IF(Calculations!$C$9=FALSE,'Previous Non-Munic rates'!S41,'Previous Munic rates'!S41) -> 80.96 | T41: =IF(Calculations!$C$9=FALSE,'Previous Non-Munic rates'!T41,'Previous Munic rates'!T41) -> 51.36 | U41: =IF(Calculations!$C$9=FALSE,'Previous Non-Munic rates'!U41,'Previous Munic rates'!U41) -> 7.27 | V41: =IF(Calculations!$C$9=FALSE,'Previous Non-Munic rates'!V41,'Previous Munic rates'!V41) -> 9.22 | W41: =IF(Calculations!$C$9=FALSE,'Previous Non-Munic rates'!W41,'Previous Munic rates'!W41) -> 0 | X41: =IF(Calculations!$C$9=FALSE,'Previous Non-Munic rates'!X41,'Previous Munic rates'!X41) -> 28.46 | Y41: =IF(Calculations!$C$9=FALSE,'Previous Non-Munic rates'!Y41,'Previous Munic rates'!Y41) -> 0 | AA41: =IF(Calculations!$C$9=FALSE,'Previous Non-Munic rates'!AA41,'Previous Munic rates'!AA41) -> 0 | AB41: =IF(Calculations!$C$9=FALSE,'Previous Non-Munic rates'!AB41,'Previous Munic rates'!AB41) -> 0 | AC41: =IF(Calculations!$C$9=FALSE,'Previous Non-Munic rates'!AC41,'Previous Munic rates'!AC41) -> 0 | AD41: =IF(Calculations!$C$9=FALSE,'Previous Non-Munic rates'!AD41,'Previous Munic rates'!AD41) -> 30.4167 | AE41: =IF(Calculations!$C$9=FALSE,'Previous Non-Munic rates'!AE41,'Previous Munic rates'!AE41) -> 0.47 | AF41: =IF(Calculations!$C$9=FALSE,'Previous Non-Munic rates'!AF41,'Previous Munic rates'!AF41) -> 0 | AG41: =IF(Calculations!$C$9=FALSE, 'Previous Non-Munic rates'!AG41, 'Previous Munic rates'!AG41) -> 0 | AH41: =IF(Calculations!$C$9=FALSE, 'Previous Non-Munic rates'!AH41, 'Previous Munic rates'!AH41) -> 0 | AI41: =IF(Calculations!$C$9=FALSE, 'Previous Non-Munic rates'!AI41, 'Previous Munic rates'!AI41) -> 0 | AJ41: =IF(Calculations!$C$9=FALSE, 'Previous Non-Munic rates'!AJ41, 'Previous Munic rates'!AJ41) -> 4.34 | AM41: 39
A42: Miniflex13 | B42: Miniflex | C42: 1 | D42: 3 | E42: =IF(Calculations!$C$9=FALSE,'Previous Non-Munic rates'!E42,'Previous Munic rates'!E42) -> 3.7 | F42: =IF(Calculations!$C$9=FALSE,'Previous Non-Munic rates'!F42,'Previous Munic rates'!F42) -> 21.58 | G42: =IF(Calculations!$C$9=FALSE,'Previous Non-Munic rates'!G42,'Previous Munic rates'!G42) -> 42.85 | H42: =IF(Calculations!$C$9=FALSE,'Previous Non-Munic rates'!H42,'Previous Munic rates'!H42) -> 106.69 | I42: =IF(Calculations!$C$9=FALSE,'Previous Non-Munic rates'!I42,'Previous Munic rates'!I42) -> 148.16 | J42: =IF(Calculations!$C$9=FALSE,'Previous Non-Munic rates'!J42,'Previous Munic rates'!J42) -> 16.85 | K42: =IF(Calculations!$C$9=FALSE,'Previous Non-Munic rates'!K42,'Previous Munic rates'!K42) -> 76.94 | L42: =IF(Calculations!$C$9=FALSE,'Previous Non-Munic rates'!L42,'Previous Munic rates'!L42) -> 236.74 | M42: =IF(Calculations!$C$9=FALSE,'Previous Non-Munic rates'!M42,'Previous Munic rates'!M42) -> 236.74 | N42: =IF(Calculations!$C$9=FALSE,'Previous Non-Munic rates'!N42,'Previous Munic rates'!N42) -> 4639.2 | O42: =IF(Calculations!$C$9=FALSE,'Previous Non-Munic rates'!O42,'Previous Munic rates'!O42) -> 349.13 | P42: =IF(Calculations!$C$9=FALSE,'Previous Non-Munic rates'!P42,'Previous Munic rates'!P42) -> 105.75 | Q42: =IF(Calculations!$C$9=FALSE,'Previous Non-Munic rates'!Q42,'Previous Munic rates'!Q42) -> 57.41 | R42: =IF(Calculations!$C$9=FALSE,'Previous Non-Munic rates'!R42,'Previous Munic rates'!R42) -> 113.88 | S42: =IF(Calculations!$C$9=FALSE,'Previous Non-Munic rates'!S42,'Previous Munic rates'!S42) -> 78.38 | T42: =IF(Calculations!$C$9=FALSE,'Previous Non-Munic rates'!T42,'Previous Munic rates'!T42) -> 49.73 | U42: =IF(Calculations!$C$9=FALSE,'Previous Non-Munic rates'!U42,'Previous Munic rates'!U42) -> 7.27 | V42: =IF(Calculations!$C$9=FALSE,'Previous Non-Munic rates'!V42,'Previous Munic rates'!V42) -> 9.22 | W42: =IF(Calculations!$C$9=FALSE,'Previous Non-Munic rates'!W42,'Previous Munic rates'!W42) -> 0 | X42: =IF(Calculations!$C$9=FALSE,'Previous Non-Munic rates'!X42,'Previous Munic rates'!X42) -> 16 | Y42: =IF(Calculations!$C$9=FALSE,'Previous Non-Munic rates'!Y42,'Previous Munic rates'!Y42) -> 0 | AA42: =IF(Calculations!$C$9=FALSE,'Previous Non-Munic rates'!AA42,'Previous Munic rates'!AA42) -> 0 | AB42: =IF(Calculations!$C$9=FALSE,'Previous Non-Munic rates'!AB42,'Previous Munic rates'!AB42) -> 0 | AC42: =IF(Calculations!$C$9=FALSE,'Previous Non-Munic rates'!AC42,'Previous Munic rates'!AC42) -> 0 | AD42: =IF(Calculations!$C$9=FALSE,'Previous Non-Munic rates'!AD42,'Previous Munic rates'!AD42) -> 30.4167 | AE42: =IF(Calculations!$C$9=FALSE,'Previous Non-Munic rates'!AE42,'Previous Munic rates'!AE42) -> 0.45 | AF42: =IF(Calculations!$C$9=FALSE,'Previous Non-Munic rates'!AF42,'Previous Munic rates'!AF42) -> 0 | AG42: =IF(Calculations!$C$9=FALSE, 'Previous Non-Munic rates'!AG42, 'Previous Munic rates'!AG42) -> 0 | AH42: =IF(Calculations!$C$9=FALSE, 'Previous Non-Munic rates'!AH42, 'Previous Munic rates'!AH42) -> 16.66 | AI42: =IF(Calculations!$C$9=FALSE, 'Previous Non-Munic rates'!AI42, 'Previous Munic rates'!AI42) -> 0 | AJ42: =IF(Calculations!$C$9=FALSE, 'Previous Non-Munic rates'!AJ42, 'Previous Munic rates'!AJ42) -> 4.34 | AM42: 40
A43: Miniflex14 | B43: Miniflex | C43: 1 | D43: 4 | E43: =IF(Calculations!$C$9=FALSE,'Previous Non-Munic rates'!E43,'Previous Munic rates'!E43) -> 3.7 | F43: =IF(Calculations!$C$9=FALSE,'Previous Non-Munic rates'!F43,'Previous Munic rates'!F43) -> 21.58 | G43: =IF(Calculations!$C$9=FALSE,'Previous Non-Munic rates'!G43,'Previous Munic rates'!G43) -> 42.85 | H43: =IF(Calculations!$C$9=FALSE,'Previous Non-Munic rates'!H43,'Previous Munic rates'!H43) -> 106.69 | I43: =IF(Calculations!$C$9=FALSE,'Previous Non-Munic rates'!I43,'Previous Munic rates'!I43) -> 148.16 | J43: =IF(Calculations!$C$9=FALSE,'Previous Non-Munic rates'!J43,'Previous Munic rates'!J43) -> 16.85 | K43: =IF(Calculations!$C$9=FALSE,'Previous Non-Munic rates'!K43,'Previous Munic rates'!K43) -> 76.94 | L43: =IF(Calculations!$C$9=FALSE,'Previous Non-Munic rates'!L43,'Previous Munic rates'!L43) -> 236.74 | M43: =IF(Calculations!$C$9=FALSE,'Previous Non-Munic rates'!M43,'Previous Munic rates'!M43) -> 236.74 | N43: =IF(Calculations!$C$9=FALSE,'Previous Non-Munic rates'!N43,'Previous Munic rates'!N43) -> 4639.2 | O43: =IF(Calculations!$C$9=FALSE,'Previous Non-Munic rates'!O43,'Previous Munic rates'!O43) -> 329.11 | P43: =IF(Calculations!$C$9=FALSE,'Previous Non-Munic rates'!P43,'Previous Munic rates'!P43) -> 99.71 | Q43: =IF(Calculations!$C$9=FALSE,'Previous Non-Munic rates'!Q43,'Previous Munic rates'!Q43) -> 54.11 | R43: =IF(Calculations!$C$9=FALSE,'Previous Non-Munic rates'!R43,'Previous Munic rates'!R43) -> 107.34 | S43: =IF(Calculations!$C$9=FALSE,'Previous Non-Munic rates'!S43,'Previous Munic rates'!S43) -> 73.87 | T43: =IF(Calculations!$C$9=FALSE,'Previous Non-Munic rates'!T43,'Previous Munic rates'!T43) -> 46.85 | U43: =IF(Calculations!$C$9=FALSE,'Previous Non-Munic rates'!U43,'Previous Munic rates'!U43) -> 7.27 | V43: =IF(Calculations!$C$9=FALSE,'Previous Non-Munic rates'!V43,'Previous Munic rates'!V43) -> 9.22 | W43: =IF(Calculations!$C$9=FALSE,'Previous Non-Munic rates'!W43,'Previous Munic rates'!W43) -> 0 | X43: =IF(Calculations!$C$9=FALSE,'Previous Non-Munic rates'!X43,'Previous Munic rates'!X43) -> 11.74 | Y43: =IF(Calculations!$C$9=FALSE,'Previous Non-Munic rates'!Y43,'Previous Munic rates'!Y43) -> 0 | AA43: =IF(Calculations!$C$9=FALSE,'Previous Non-Munic rates'!AA43,'Previous Munic rates'!AA43) -> 0 | AB43: =IF(Calculations!$C$9=FALSE,'Previous Non-Munic rates'!AB43,'Previous Munic rates'!AB43) -> 0 | AC43: =IF(Calculations!$C$9=FALSE,'Previous Non-Munic rates'!AC43,'Previous Munic rates'!AC43) -> 0 | AD43: =IF(Calculations!$C$9=FALSE,'Previous Non-Munic rates'!AD43,'Previous Munic rates'!AD43) -> 30.4167 | AE43: =IF(Calculations!$C$9=FALSE,'Previous Non-Munic rates'!AE43,'Previous Munic rates'!AE43) -> 0.42 | AF43: =IF(Calculations!$C$9=FALSE,'Previous Non-Munic rates'!AF43,'Previous Munic rates'!AF43) -> 0 | AG43: =IF(Calculations!$C$9=FALSE, 'Previous Non-Munic rates'!AG43, 'Previous Munic rates'!AG43) -> 0 | AH43: =IF(Calculations!$C$9=FALSE, 'Previous Non-Munic rates'!AH43, 'Previous Munic rates'!AH43) -> 16.66 | AI43: =IF(Calculations!$C$9=FALSE, 'Previous Non-Munic rates'!AI43, 'Previous Munic rates'!AI43) -> 0 | AJ43: =IF(Calculations!$C$9=FALSE, 'Previous Non-Munic rates'!AJ43, 'Previous Munic rates'!AJ43) -> 4.34 | AM43: 41
A44: Miniflex21 | B44: Miniflex | C44: 2 | D44: 1 | E44: =IF(Calculations!$C$9=FALSE,'Previous Non-Munic rates'!E44,'Previous Munic rates'!E44) -> 3.7 | F44: =IF(Calculations!$C$9=FALSE,'Previous Non-Munic rates'!F44,'Previous Munic rates'!F44) -> 21.58 | G44: =IF(Calculations!$C$9=FALSE,'Previous Non-Munic rates'!G44,'Previous Munic rates'!G44) -> 42.85 | H44: =IF(Calculations!$C$9=FALSE,'Previous Non-Munic rates'!H44,'Previous Munic rates'!H44) -> 106.69 | I44: =IF(Calculations!$C$9=FALSE,'Previous Non-Munic rates'!I44,'Previous Munic rates'!I44) -> 148.16 | J44: =IF(Calculations!$C$9=FALSE,'Previous Non-Munic rates'!J44,'Previous Munic rates'!J44) -> 16.85 | K44: =IF(Calculations!$C$9=FALSE,'Previous Non-Munic rates'!K44,'Previous Munic rates'!K44) -> 76.94 | L44: =IF(Calculations!$C$9=FALSE,'Previous Non-Munic rates'!L44,'Previous Munic rates'!L44) -> 236.74 | M44: =IF(Calculations!$C$9=FALSE,'Previous Non-Munic rates'!M44,'Previous Munic rates'!M44) -> 236.74 | N44: =IF(Calculations!$C$9=FALSE,'Previous Non-Munic rates'!N44,'Previous Munic rates'!N44) -> 4639.2 | O44: =IF(Calculations!$C$9=FALSE,'Previous Non-Munic rates'!O44,'Previous Munic rates'!O44) -> 369.33 | P44: =IF(Calculations!$C$9=FALSE,'Previous Non-Munic rates'!P44,'Previous Munic rates'!P44) -> 111.88 | Q44: =IF(Calculations!$C$9=FALSE,'Previous Non-Munic rates'!Q44,'Previous Munic rates'!Q44) -> 60.73 | R44: =IF(Calculations!$C$9=FALSE,'Previous Non-Munic rates'!R44,'Previous Munic rates'!R44) -> 120.48 | S44: =IF(Calculations!$C$9=FALSE,'Previous Non-Munic rates'!S44,'Previous Munic rates'!S44) -> 82.93 | T44: =IF(Calculations!$C$9=FALSE,'Previous Non-Munic rates'!T44,'Previous Munic rates'!T44) -> 52.59 | U44: =IF(Calculations!$C$9=FALSE,'Previous Non-Munic rates'!U44,'Previous Munic rates'!U44) -> 7.27 | V44: =IF(Calculations!$C$9=FALSE,'Previous Non-Munic rates'!V44,'Previous Munic rates'!V44) -> 9.22 | W44: =IF(Calculations!$C$9=FALSE,'Previous Non-Munic rates'!W44,'Previous Munic rates'!W44) -> 0 | X44: =IF(Calculations!$C$9=FALSE,'Previous Non-Munic rates'!X44,'Previous Munic rates'!X44) -> 31.18 | Y44: =IF(Calculations!$C$9=FALSE,'Previous Non-Munic rates'!Y44,'Previous Munic rates'!Y44) -> 0 | AA44: =IF(Calculations!$C$9=FALSE,'Previous Non-Munic rates'!AA44,'Previous Munic rates'!AA44) -> 0 | AB44: =IF(Calculations!$C$9=FALSE,'Previous Non-Munic rates'!AB44,'Previous Munic rates'!AB44) -> 0 | AC44: =IF(Calculations!$C$9=FALSE,'Previous Non-Munic rates'!AC44,'Previous Munic rates'!AC44) -> 0 | AD44: =IF(Calculations!$C$9=FALSE,'Previous Non-Munic rates'!AD44,'Previous Munic rates'!AD44) -> 30.4167 | AE44: =IF(Calculations!$C$9=FALSE,'Previous Non-Munic rates'!AE44,'Previous Munic rates'!AE44) -> 0.48 | AF44: =IF(Calculations!$C$9=FALSE,'Previous Non-Munic rates'!AF44,'Previous Munic rates'!AF44) -> 0 | AG44: =IF(Calculations!$C$9=FALSE, 'Previous Non-Munic rates'!AG44, 'Previous Munic rates'!AG44) -> 0 | AH44: =IF(Calculations!$C$9=FALSE, 'Previous Non-Munic rates'!AH44, 'Previous Munic rates'!AH44) -> 0 | AI44: =IF(Calculations!$C$9=FALSE, 'Previous Non-Munic rates'!AI44, 'Previous Munic rates'!AI44) -> 0 | AJ44: =IF(Calculations!$C$9=FALSE, 'Previous Non-Munic rates'!AJ44, 'Previous Munic rates'!AJ44) -> 4.34 | AM44: 42
A45: Miniflex22 | B45: Miniflex | C45: 2 | D45: 2 | E45: =IF(Calculations!$C$9=FALSE,'Previous Non-Munic rates'!E45,'Previous Munic rates'!E45) -> 3.7 | F45: =IF(Calculations!$C$9=FALSE,'Previous Non-Munic rates'!F45,'Previous Munic rates'!F45) -> 21.58 | G45: =IF(Calculations!$C$9=FALSE,'Previous Non-Munic rates'!G45,'Previous Munic rates'!G45) -> 42.85 | H45: =IF(Calculations!$C$9=FALSE,'Previous Non-Munic rates'!H45,'Previous Munic rates'!H45) -> 106.69 | I45: =IF(Calculations!$C$9=FALSE,'Previous Non-Munic rates'!I45,'Previous Munic rates'!I45) -> 148.16 | J45: =IF(Calculations!$C$9=FALSE,'Previous Non-Munic rates'!J45,'Previous Munic rates'!J45) -> 16.85 | K45: =IF(Calculations!$C$9=FALSE,'Previous Non-Munic rates'!K45,'Previous Munic rates'!K45) -> 76.94 | L45: =IF(Calculations!$C$9=FALSE,'Previous Non-Munic rates'!L45,'Previous Munic rates'!L45) -> 236.74 | M45: =IF(Calculations!$C$9=FALSE,'Previous Non-Munic rates'!M45,'Previous Munic rates'!M45) -> 236.74 | N45: =IF(Calculations!$C$9=FALSE,'Previous Non-Munic rates'!N45,'Previous Munic rates'!N45) -> 4639.2 | O45: =IF(Calculations!$C$9=FALSE,'Previous Non-Munic rates'!O45,'Previous Munic rates'!O45) -> 364.23 | P45: =IF(Calculations!$C$9=FALSE,'Previous Non-Munic rates'!P45,'Previous Munic rates'!P45) -> 110.35 | Q45: =IF(Calculations!$C$9=FALSE,'Previous Non-Munic rates'!Q45,'Previous Munic rates'!Q45) -> 59.92 | R45: =IF(Calculations!$C$9=FALSE,'Previous Non-Munic rates'!R45,'Previous Munic rates'!R45) -> 118.81 | S45: =IF(Calculations!$C$9=FALSE,'Previous Non-Munic rates'!S45,'Previous Munic rates'!S45) -> 81.78 | T45: =IF(Calculations!$C$9=FALSE,'Previous Non-Munic rates'!T45,'Previous Munic rates'!T45) -> 51.88 | U45: =IF(Calculations!$C$9=FALSE,'Previous Non-Munic rates'!U45,'Previous Munic rates'!U45) -> 7.27 | V45: =IF(Calculations!$C$9=FALSE,'Previous Non-Munic rates'!V45,'Previous Munic rates'!V45) -> 9.22 | W45: =IF(Calculations!$C$9=FALSE,'Previous Non-Munic rates'!W45,'Previous Munic rates'!W45) -> 0 | X45: =IF(Calculations!$C$9=FALSE,'Previous Non-Munic rates'!X45,'Previous Munic rates'!X45) -> 28.55 | Y45: =IF(Calculations!$C$9=FALSE,'Previous Non-Munic rates'!Y45,'Previous Munic rates'!Y45) -> 0 | AA45: =IF(Calculations!$C$9=FALSE,'Previous Non-Munic rates'!AA45,'Previous Munic rates'!AA45) -> 0 | AB45: =IF(Calculations!$C$9=FALSE,'Previous Non-Munic rates'!AB45,'Previous Munic rates'!AB45) -> 0 | AC45: =IF(Calculations!$C$9=FALSE,'Previous Non-Munic rates'!AC45,'Previous Munic rates'!AC45) -> 0 | AD45: =IF(Calculations!$C$9=FALSE,'Previous Non-Munic rates'!AD45,'Previous Munic rates'!AD45) -> 30.4167 | AE45: =IF(Calculations!$C$9=FALSE,'Previous Non-Munic rates'!AE45,'Previous Munic rates'!AE45) -> 0.47 | AF45: =IF(Calculations!$C$9=FALSE,'Previous Non-Munic rates'!AF45,'Previous Munic rates'!AF45) -> 0 | AG45: =IF(Calculations!$C$9=FALSE, 'Previous Non-Munic rates'!AG45, 'Previous Munic rates'!AG45) -> 0 | AH45: =IF(Calculations!$C$9=FALSE, 'Previous Non-Munic rates'!AH45, 'Previous Munic rates'!AH45) -> 0 | AI45: =IF(Calculations!$C$9=FALSE, 'Previous Non-Munic rates'!AI45, 'Previous Munic rates'!AI45) -> 0 | AJ45: =IF(Calculations!$C$9=FALSE, 'Previous Non-Munic rates'!AJ45, 'Previous Munic rates'!AJ45) -> 4.34 | AM45: 43
A46: Miniflex23 | B46: Miniflex | C46: 2 | D46: 3 | E46: =IF(Calculations!$C$9=FALSE,'Previous Non-Munic rates'!E46,'Previous Munic rates'!E46) -> 3.7 | F46: =IF(Calculations!$C$9=FALSE,'Previous Non-Munic rates'!F46,'Previous Munic rates'!F46) -> 21.58 | G46: =IF(Calculations!$C$9=FALSE,'Previous Non-Munic rates'!G46,'Previous Munic rates'!G46) -> 42.85 | H46: =IF(Calculations!$C$9=FALSE,'Previous Non-Munic rates'!H46,'Previous Munic rates'!H46) -> 106.69 | I46: =IF(Calculations!$C$9=FALSE,'Previous Non-Munic rates'!I46,'Previous Munic rates'!I46) -> 148.16 | J46: =IF(Calculations!$C$9=FALSE,'Previous Non-Munic rates'!J46,'Previous Munic rates'!J46) -> 16.85 | K46: =IF(Calculations!$C$9=FALSE,'Previous Non-Munic rates'!K46,'Previous Munic rates'!K46) -> 76.94 | L46: =IF(Calculations!$C$9=FALSE,'Previous Non-Munic rates'!L46,'Previous Munic rates'!L46) -> 236.74 | M46: =IF(Calculations!$C$9=FALSE,'Previous Non-Munic rates'!M46,'Previous Munic rates'!M46) -> 236.74 | N46: =IF(Calculations!$C$9=FALSE,'Previous Non-Munic rates'!N46,'Previous Munic rates'!N46) -> 4639.2 | O46: =IF(Calculations!$C$9=FALSE,'Previous Non-Munic rates'!O46,'Previous Munic rates'!O46) -> 352.69 | P46: =IF(Calculations!$C$9=FALSE,'Previous Non-Munic rates'!P46,'Previous Munic rates'!P46) -> 106.85 | Q46: =IF(Calculations!$C$9=FALSE,'Previous Non-Munic rates'!Q46,'Previous Munic rates'!Q46) -> 58.01 | R46: =IF(Calculations!$C$9=FALSE,'Previous Non-Munic rates'!R46,'Previous Munic rates'!R46) -> 115.04 | S46: =IF(Calculations!$C$9=FALSE,'Previous Non-Munic rates'!S46,'Previous Munic rates'!S46) -> 79.19 | T46: =IF(Calculations!$C$9=FALSE,'Previous Non-Munic rates'!T46,'Previous Munic rates'!T46) -> 50.24 | U46: =IF(Calculations!$C$9=FALSE,'Previous Non-Munic rates'!U46,'Previous Munic rates'!U46) -> 7.27 | V46: =IF(Calculations!$C$9=FALSE,'Previous Non-Munic rates'!V46,'Previous Munic rates'!V46) -> 9.22 | W46: =IF(Calculations!$C$9=FALSE,'Previous Non-Munic rates'!W46,'Previous Munic rates'!W46) -> 0 | X46: =IF(Calculations!$C$9=FALSE,'Previous Non-Munic rates'!X46,'Previous Munic rates'!X46) -> 16.1 | Y46: =IF(Calculations!$C$9=FALSE,'Previous Non-Munic rates'!Y46,'Previous Munic rates'!Y46) -> 0 | AA46: =IF(Calculations!$C$9=FALSE,'Previous Non-Munic rates'!AA46,'Previous Munic rates'!AA46) -> 0 | AB46: =IF(Calculations!$C$9=FALSE,'Previous Non-Munic rates'!AB46,'Previous Munic rates'!AB46) -> 0 | AC46: =IF(Calculations!$C$9=FALSE,'Previous Non-Munic rates'!AC46,'Previous Munic rates'!AC46) -> 0 | AD46: =IF(Calculations!$C$9=FALSE,'Previous Non-Munic rates'!AD46,'Previous Munic rates'!AD46) -> 30.4167 | AE46: =IF(Calculations!$C$9=FALSE,'Previous Non-Munic rates'!AE46,'Previous Munic rates'!AE46) -> 0.45 | AF46: =IF(Calculations!$C$9=FALSE,'Previous Non-Munic rates'!AF46,'Previous Munic rates'!AF46) -> 0 | AG46: =IF(Calculations!$C$9=FALSE, 'Previous Non-Munic rates'!AG46, 'Previous Munic rates'!AG46) -> 0 | AH46: =IF(Calculations!$C$9=FALSE, 'Previous Non-Munic rates'!AH46, 'Previous Munic rates'!AH46) -> 16.66 | AI46: =IF(Calculations!$C$9=FALSE, 'Previous Non-Munic rates'!AI46, 'Previous Munic rates'!AI46) -> 0 | AJ46: =IF(Calculations!$C$9=FALSE, 'Previous Non-Munic rates'!AJ46, 'Previous Munic rates'!AJ46) -> 4.34 | AM46: 44
A47: Miniflex24 | B47: Miniflex | C47: 2 | D47: 4 | E47: =IF(Calculations!$C$9=FALSE,'Previous Non-Munic rates'!E47,'Previous Munic rates'!E47) -> 3.7 | F47: =IF(Calculations!$C$9=FALSE,'Previous Non-Munic rates'!F47,'Previous Munic rates'!F47) -> 21.58 | G47: =IF(Calculations!$C$9=FALSE,'Previous Non-Munic rates'!G47,'Previous Munic rates'!G47) -> 42.85 | H47: =IF(Calculations!$C$9=FALSE,'Previous Non-Munic rates'!H47,'Previous Munic rates'!H47) -> 106.69 | I47: =IF(Calculations!$C$9=FALSE,'Previous Non-Munic rates'!I47,'Previous Munic rates'!I47) -> 148.16 | J47: =IF(Calculations!$C$9=FALSE,'Previous Non-Munic rates'!J47,'Previous Munic rates'!J47) -> 16.85 | K47: =IF(Calculations!$C$9=FALSE,'Previous Non-Munic rates'!K47,'Previous Munic rates'!K47) -> 76.94 | L47: =IF(Calculations!$C$9=FALSE,'Previous Non-Munic rates'!L47,'Previous Munic rates'!L47) -> 236.74 | M47: =IF(Calculations!$C$9=FALSE,'Previous Non-Munic rates'!M47,'Previous Munic rates'!M47) -> 236.74 | N47: =IF(Calculations!$C$9=FALSE,'Previous Non-Munic rates'!N47,'Previous Munic rates'!N47) -> 4639.2 | O47: =IF(Calculations!$C$9=FALSE,'Previous Non-Munic rates'!O47,'Previous Munic rates'!O47) -> 332.42 | P47: =IF(Calculations!$C$9=FALSE,'Previous Non-Munic rates'!P47,'Previous Munic rates'!P47) -> 100.69 | Q47: =IF(Calculations!$C$9=FALSE,'Previous Non-Munic rates'!Q47,'Previous Munic rates'!Q47) -> 54.71 | R47: =IF(Calculations!$C$9=FALSE,'Previous Non-Munic rates'!R47,'Previous Munic rates'!R47) -> 108.43 | S47: =IF(Calculations!$C$9=FALSE,'Previous Non-Munic rates'!S47,'Previous Munic rates'!S47) -> 74.62 | T47: =IF(Calculations!$C$9=FALSE,'Previous Non-Munic rates'!T47,'Previous Munic rates'!T47) -> 47.35 | U47: =IF(Calculations!$C$9=FALSE,'Previous Non-Munic rates'!U47,'Previous Munic rates'!U47) -> 7.27 | V47: =IF(Calculations!$C$9=FALSE,'Previous Non-Munic rates'!V47,'Previous Munic rates'!V47) -> 9.22 | W47: =IF(Calculations!$C$9=FALSE,'Previous Non-Munic rates'!W47,'Previous Munic rates'!W47) -> 0 | X47: =IF(Calculations!$C$9=FALSE,'Previous Non-Munic rates'!X47,'Previous Munic rates'!X47) -> 11.91 | Y47: =IF(Calculations!$C$9=FALSE,'Previous Non-Munic rates'!Y47,'Previous Munic rates'!Y47) -> 0 | AA47: =IF(Calculations!$C$9=FALSE,'Previous Non-Munic rates'!AA47,'Previous Munic rates'!AA47) -> 0 | AB47: =IF(Calculations!$C$9=FALSE,'Previous Non-Munic rates'!AB47,'Previous Munic rates'!AB47) -> 0 | AC47: =IF(Calculations!$C$9=FALSE,'Previous Non-Munic rates'!AC47,'Previous Munic rates'!AC47) -> 0 | AD47: =IF(Calculations!$C$9=FALSE,'Previous Non-Munic rates'!AD47,'Previous Munic rates'!AD47) -> 30.4167 | AE47: =IF(Calculations!$C$9=FALSE,'Previous Non-Munic rates'!AE47,'Previous Munic rates'!AE47) -> 0.42 | AF47: =IF(Calculations!$C$9=FALSE,'Previous Non-Munic rates'!AF47,'Previous Munic rates'!AF47) -> 0 | AG47: =IF(Calculations!$C$9=FALSE, 'Previous Non-Munic rates'!AG47, 'Previous Munic rates'!AG47) -> 0 | AH47: =IF(Calculations!$C$9=FALSE, 'Previous Non-Munic rates'!AH47, 'Previous Munic rates'!AH47) -> 16.66 | AI47: =IF(Calculations!$C$9=FALSE, 'Previous Non-Munic rates'!AI47, 'Previous Munic rates'!AI47) -> 0 | AJ47: =IF(Calculations!$C$9=FALSE, 'Previous Non-Munic rates'!AJ47, 'Previous Munic rates'!AJ47) -> 4.34 | AM47: 45
A48: Miniflex31 | B48: Miniflex | C48: 3 | D48: 1 | E48: =IF(Calculations!$C$9=FALSE,'Previous Non-Munic rates'!E48,'Previous Munic rates'!E48) -> 3.7 | F48: =IF(Calculations!$C$9=FALSE,'Previous Non-Munic rates'!F48,'Previous Munic rates'!F48) -> 21.58 | G48: =IF(Calculations!$C$9=FALSE,'Previous Non-Munic rates'!G48,'Previous Munic rates'!G48) -> 42.85 | H48: =IF(Calculations!$C$9=FALSE,'Previous Non-Munic rates'!H48,'Previous Munic rates'!H48) -> 106.69 | I48: =IF(Calculations!$C$9=FALSE,'Previous Non-Munic rates'!I48,'Previous Munic rates'!I48) -> 148.16 | J48: =IF(Calculations!$C$9=FALSE,'Previous Non-Munic rates'!J48,'Previous Munic rates'!J48) -> 16.85 | K48: =IF(Calculations!$C$9=FALSE,'Previous Non-Munic rates'!K48,'Previous Munic rates'!K48) -> 76.94 | L48: =IF(Calculations!$C$9=FALSE,'Previous Non-Munic rates'!L48,'Previous Munic rates'!L48) -> 236.74 | M48: =IF(Calculations!$C$9=FALSE,'Previous Non-Munic rates'!M48,'Previous Munic rates'!M48) -> 236.74 | N48: =IF(Calculations!$C$9=FALSE,'Previous Non-Munic rates'!N48,'Previous Munic rates'!N48) -> 4639.2 | O48: =IF(Calculations!$C$9=FALSE,'Previous Non-Munic rates'!O48,'Previous Munic rates'!O48) -> 373.05 | P48: =IF(Calculations!$C$9=FALSE,'Previous Non-Munic rates'!P48,'Previous Munic rates'!P48) -> 113.05 | Q48: =IF(Calculations!$C$9=FALSE,'Previous Non-Munic rates'!Q48,'Previous Munic rates'!Q48) -> 61.36 | R48: =IF(Calculations!$C$9=FALSE,'Previous Non-Munic rates'!R48,'Previous Munic rates'!R48) -> 121.7 | S48: =IF(Calculations!$C$9=FALSE,'Previous Non-Munic rates'!S48,'Previous Munic rates'!S48) -> 83.75 | T48: =IF(Calculations!$C$9=FALSE,'Previous Non-Munic rates'!T48,'Previous Munic rates'!T48) -> 53.15 | U48: =IF(Calculations!$C$9=FALSE,'Previous Non-Munic rates'!U48,'Previous Munic rates'!U48) -> 7.27 | V48: =IF(Calculations!$C$9=FALSE,'Previous Non-Munic rates'!V48,'Previous Munic rates'!V48) -> 9.22 | W48: =IF(Calculations!$C$9=FALSE,'Previous Non-Munic rates'!W48,'Previous Munic rates'!W48) -> 0 | X48: =IF(Calculations!$C$9=FALSE,'Previous Non-Munic rates'!X48,'Previous Munic rates'!X48) -> 31.21 | Y48: =IF(Calculations!$C$9=FALSE,'Previous Non-Munic rates'!Y48,'Previous Munic rates'!Y48) -> 0 | AA48: =IF(Calculations!$C$9=FALSE,'Previous Non-Munic rates'!AA48,'Previous Munic rates'!AA48) -> 0 | AB48: =IF(Calculations!$C$9=FALSE,'Previous Non-Munic rates'!AB48,'Previous Munic rates'!AB48) -> 0 | AC48: =IF(Calculations!$C$9=FALSE,'Previous Non-Munic rates'!AC48,'Previous Munic rates'!AC48) -> 0 | AD48: =IF(Calculations!$C$9=FALSE,'Previous Non-Munic rates'!AD48,'Previous Munic rates'!AD48) -> 30.4167 | AE48: =IF(Calculations!$C$9=FALSE,'Previous Non-Munic rates'!AE48,'Previous Munic rates'!AE48) -> 0.48 | AF48: =IF(Calculations!$C$9=FALSE,'Previous Non-Munic rates'!AF48,'Previous Munic rates'!AF48) -> 0 | AG48: =IF(Calculations!$C$9=FALSE, 'Previous Non-Munic rates'!AG48, 'Previous Munic rates'!AG48) -> 0 | AH48: =IF(Calculations!$C$9=FALSE, 'Previous Non-Munic rates'!AH48, 'Previous Munic rates'!AH48) -> 0 | AI48: =IF(Calculations!$C$9=FALSE, 'Previous Non-Munic rates'!AI48, 'Previous Munic rates'!AI48) -> 0 | AJ48: =IF(Calculations!$C$9=FALSE, 'Previous Non-Munic rates'!AJ48, 'Previous Munic rates'!AJ48) -> 4.34 | AM48: 46
A49: Miniflex32 | B49: Miniflex | C49: 3 | D49: 2 | E49: =IF(Calculations!$C$9=FALSE,'Previous Non-Munic rates'!E49,'Previous Munic rates'!E49) -> 3.7 | F49: =IF(Calculations!$C$9=FALSE,'Previous Non-Munic rates'!F49,'Previous Munic rates'!F49) -> 21.58 | G49: =IF(Calculations!$C$9=FALSE,'Previous Non-Munic rates'!G49,'Previous Munic rates'!G49) -> 42.85 | H49: =IF(Calculations!$C$9=FALSE,'Previous Non-Munic rates'!H49,'Previous Munic rates'!H49) -> 106.69 | I49: =IF(Calculations!$C$9=FALSE,'Previous Non-Munic rates'!I49,'Previous Munic rates'!I49) -> 148.16 | J49: =IF(Calculations!$C$9=FALSE,'Previous Non-Munic rates'!J49,'Previous Munic rates'!J49) -> 16.85 | K49: =IF(Calculations!$C$9=FALSE,'Previous Non-Munic rates'!K49,'Previous Munic rates'!K49) -> 76.94 | L49: =IF(Calculations!$C$9=FALSE,'Previous Non-Munic rates'!L49,'Previous Munic rates'!L49) -> 236.74 | M49: =IF(Calculations!$C$9=FALSE,'Previous Non-Munic rates'!M49,'Previous Munic rates'!M49) -> 236.74 | N49: =IF(Calculations!$C$9=FALSE,'Previous Non-Munic rates'!N49,'Previous Munic rates'!N49) -> 4639.2 | O49: =IF(Calculations!$C$9=FALSE,'Previous Non-Munic rates'!O49,'Previous Munic rates'!O49) -> 367.85 | P49: =IF(Calculations!$C$9=FALSE,'Previous Non-Munic rates'!P49,'Previous Munic rates'!P49) -> 111.42 | Q49: =IF(Calculations!$C$9=FALSE,'Previous Non-Munic rates'!Q49,'Previous Munic rates'!Q49) -> 60.48 | R49: =IF(Calculations!$C$9=FALSE,'Previous Non-Munic rates'!R49,'Previous Munic rates'!R49) -> 119.97 | S49: =IF(Calculations!$C$9=FALSE,'Previous Non-Munic rates'!S49,'Previous Munic rates'!S49) -> 82.56 | T49: =IF(Calculations!$C$9=FALSE,'Previous Non-Munic rates'!T49,'Previous Munic rates'!T49) -> 52.39 | U49: =IF(Calculations!$C$9=FALSE,'Previous Non-Munic rates'!U49,'Previous Munic rates'!U49) -> 7.27 | V49: =IF(Calculations!$C$9=FALSE,'Previous Non-Munic rates'!V49,'Previous Munic rates'!V49) -> 9.22 | W49: =IF(Calculations!$C$9=FALSE,'Previous Non-Munic rates'!W49,'Previous Munic rates'!W49) -> 0 | X49: =IF(Calculations!$C$9=FALSE,'Previous Non-Munic rates'!X49,'Previous Munic rates'!X49) -> 28.65 | Y49: =IF(Calculations!$C$9=FALSE,'Previous Non-Munic rates'!Y49,'Previous Munic rates'!Y49) -> 0 | AA49: =IF(Calculations!$C$9=FALSE,'Previous Non-Munic rates'!AA49,'Previous Munic rates'!AA49) -> 0 | AB49: =IF(Calculations!$C$9=FALSE,'Previous Non-Munic rates'!AB49,'Previous Munic rates'!AB49) -> 0 | AC49: =IF(Calculations!$C$9=FALSE,'Previous Non-Munic rates'!AC49,'Previous Munic rates'!AC49) -> 0 | AD49: =IF(Calculations!$C$9=FALSE,'Previous Non-Munic rates'!AD49,'Previous Munic rates'!AD49) -> 30.4167 | AE49: =IF(Calculations!$C$9=FALSE,'Previous Non-Munic rates'!AE49,'Previous Munic rates'!AE49) -> 0.47 | AF49: =IF(Calculations!$C$9=FALSE,'Previous Non-Munic rates'!AF49,'Previous Munic rates'!AF49) -> 0 | AG49: =IF(Calculations!$C$9=FALSE, 'Previous Non-Munic rates'!AG49, 'Previous Munic rates'!AG49) -> 0 | AH49: =IF(Calculations!$C$9=FALSE, 'Previous Non-Munic rates'!AH49, 'Previous Munic rates'!AH49) -> 0 | AI49: =IF(Calculations!$C$9=FALSE, 'Previous Non-Munic rates'!AI49, 'Previous Munic rates'!AI49) -> 0 | AJ49: =IF(Calculations!$C$9=FALSE, 'Previous Non-Munic rates'!AJ49, 'Previous Munic rates'!AJ49) -> 4.34 | AM49: 47
A50: Miniflex33 | B50: Miniflex | C50: 3 | D50: 3 | E50: =IF(Calculations!$C$9=FALSE,'Previous Non-Munic rates'!E50,'Previous Munic rates'!E50) -> 3.7 | F50: =IF(Calculations!$C$9=FALSE,'Previous Non-Munic rates'!F50,'Previous Munic rates'!F50) -> 21.58 | G50: =IF(Calculations!$C$9=FALSE,'Previous Non-Munic rates'!G50,'Previous Munic rates'!G50) -> 42.85 | H50: =IF(Calculations!$C$9=FALSE,'Previous Non-Munic rates'!H50,'Previous Munic rates'!H50) -> 106.69 | I50: =IF(Calculations!$C$9=FALSE,'Previous Non-Munic rates'!I50,'Previous Munic rates'!I50) -> 148.16 | J50: =IF(Calculations!$C$9=FALSE,'Previous Non-Munic rates'!J50,'Previous Munic rates'!J50) -> 16.85 | K50: =IF(Calculations!$C$9=FALSE,'Previous Non-Munic rates'!K50,'Previous Munic rates'!K50) -> 76.94 | L50: =IF(Calculations!$C$9=FALSE,'Previous Non-Munic rates'!L50,'Previous Munic rates'!L50) -> 236.74 | M50: =IF(Calculations!$C$9=FALSE,'Previous Non-Munic rates'!M50,'Previous Munic rates'!M50) -> 236.74 | N50: =IF(Calculations!$C$9=FALSE,'Previous Non-Munic rates'!N50,'Previous Munic rates'!N50) -> 4639.2 | O50: =IF(Calculations!$C$9=FALSE,'Previous Non-Munic rates'!O50,'Previous Munic rates'!O50) -> 356.23 | P50: =IF(Calculations!$C$9=FALSE,'Previous Non-Munic rates'!P50,'Previous Munic rates'!P50) -> 107.9 | Q50: =IF(Calculations!$C$9=FALSE,'Previous Non-Munic rates'!Q50,'Previous Munic rates'!Q50) -> 58.59 | R50: =IF(Calculations!$C$9=FALSE,'Previous Non-Munic rates'!R50,'Previous Munic rates'!R50) -> 116.19 | S50: =IF(Calculations!$C$9=FALSE,'Previous Non-Munic rates'!S50,'Previous Munic rates'!S50) -> 79.98 | T50: =IF(Calculations!$C$9=FALSE,'Previous Non-Munic rates'!T50,'Previous Munic rates'!T50) -> 50.74 | U50: =IF(Calculations!$C$9=FALSE,'Previous Non-Munic rates'!U50,'Previous Munic rates'!U50) -> 7.27 | V50: =IF(Calculations!$C$9=FALSE,'Previous Non-Munic rates'!V50,'Previous Munic rates'!V50) -> 9.22 | W50: =IF(Calculations!$C$9=FALSE,'Previous Non-Munic rates'!W50,'Previous Munic rates'!W50) -> 0 | X50: =IF(Calculations!$C$9=FALSE,'Previous Non-Munic rates'!X50,'Previous Munic rates'!X50) -> 16.16 | Y50: =IF(Calculations!$C$9=FALSE,'Previous Non-Munic rates'!Y50,'Previous Munic rates'!Y50) -> 0 | AA50: =IF(Calculations!$C$9=FALSE,'Previous Non-Munic rates'!AA50,'Previous Munic rates'!AA50) -> 0 | AB50: =IF(Calculations!$C$9=FALSE,'Previous Non-Munic rates'!AB50,'Previous Munic rates'!AB50) -> 0 | AC50: =IF(Calculations!$C$9=FALSE,'Previous Non-Munic rates'!AC50,'Previous Munic rates'!AC50) -> 0 | AD50: =IF(Calculations!$C$9=FALSE,'Previous Non-Munic rates'!AD50,'Previous Munic rates'!AD50) -> 30.4167 | AE50: =IF(Calculations!$C$9=FALSE,'Previous Non-Munic rates'!AE50,'Previous Munic rates'!AE50) -> 0.45 | AF50: =IF(Calculations!$C$9=FALSE,'Previous Non-Munic rates'!AF50,'Previous Munic rates'!AF50) -> 0 | AG50: =IF(Calculations!$C$9=FALSE, 'Previous Non-Munic rates'!AG50, 'Previous Munic rates'!AG50) -> 0 | AH50: =IF(Calculations!$C$9=FALSE, 'Previous Non-Munic rates'!AH50, 'Previous Munic rates'!AH50) -> 16.66 | AI50: =IF(Calculations!$C$9=FALSE, 'Previous Non-Munic rates'!AI50, 'Previous Munic rates'!AI50) -> 0 | AJ50: =IF(Calculations!$C$9=FALSE, 'Previous Non-Munic rates'!AJ50, 'Previous Munic rates'!AJ50) -> 4.34 | AM50: 48
A51: Miniflex34 | B51: Miniflex | C51: 3 | D51: 4 | E51: =IF(Calculations!$C$9=FALSE,'Previous Non-Munic rates'!E51,'Previous Munic rates'!E51) -> 3.7 | F51: =IF(Calculations!$C$9=FALSE,'Previous Non-Munic rates'!F51,'Previous Munic rates'!F51) -> 21.58 | G51: =IF(Calculations!$C$9=FALSE,'Previous Non-Munic rates'!G51,'Previous Munic rates'!G51) -> 42.85 | H51: =IF(Calculations!$C$9=FALSE,'Previous Non-Munic rates'!H51,'Previous Munic rates'!H51) -> 106.69 | I51: =IF(Calculations!$C$9=FALSE,'Previous Non-Munic rates'!I51,'Previous Munic rates'!I51) -> 148.16 | J51: =IF(Calculations!$C$9=FALSE,'Previous Non-Munic rates'!J51,'Previous Munic rates'!J51) -> 16.85 | K51: =IF(Calculations!$C$9=FALSE,'Previous Non-Munic rates'!K51,'Previous Munic rates'!K51) -> 76.94 | L51: =IF(Calculations!$C$9=FALSE,'Previous Non-Munic rates'!L51,'Previous Munic rates'!L51) -> 236.74 | M51: =IF(Calculations!$C$9=FALSE,'Previous Non-Munic rates'!M51,'Previous Munic rates'!M51) -> 236.74 | N51: =IF(Calculations!$C$9=FALSE,'Previous Non-Munic rates'!N51,'Previous Munic rates'!N51) -> 4639.2 | O51: =IF(Calculations!$C$9=FALSE,'Previous Non-Munic rates'!O51,'Previous Munic rates'!O51) -> 335.66 | P51: =IF(Calculations!$C$9=FALSE,'Previous Non-Munic rates'!P51,'Previous Munic rates'!P51) -> 101.72 | Q51: =IF(Calculations!$C$9=FALSE,'Previous Non-Munic rates'!Q51,'Previous Munic rates'!Q51) -> 55.27 | R51: =IF(Calculations!$C$9=FALSE,'Previous Non-Munic rates'!R51,'Previous Munic rates'!R51) -> 109.56 | S51: =IF(Calculations!$C$9=FALSE,'Previous Non-Munic rates'!S51,'Previous Munic rates'!S51) -> 75.44 | T51: =IF(Calculations!$C$9=FALSE,'Previous Non-Munic rates'!T51,'Previous Munic rates'!T51) -> 47.88 | U51: =IF(Calculations!$C$9=FALSE,'Previous Non-Munic rates'!U51,'Previous Munic rates'!U51) -> 7.27 | V51: =IF(Calculations!$C$9=FALSE,'Previous Non-Munic rates'!V51,'Previous Munic rates'!V51) -> 9.22 | W51: =IF(Calculations!$C$9=FALSE,'Previous Non-Munic rates'!W51,'Previous Munic rates'!W51) -> 0 | X51: =IF(Calculations!$C$9=FALSE,'Previous Non-Munic rates'!X51,'Previous Munic rates'!X51) -> 11.99 | Y51: =IF(Calculations!$C$9=FALSE,'Previous Non-Munic rates'!Y51,'Previous Munic rates'!Y51) -> 0 | AA51: =IF(Calculations!$C$9=FALSE,'Previous Non-Munic rates'!AA51,'Previous Munic rates'!AA51) -> 0 | AB51: =IF(Calculations!$C$9=FALSE,'Previous Non-Munic rates'!AB51,'Previous Munic rates'!AB51) -> 0 | AC51: =IF(Calculations!$C$9=FALSE,'Previous Non-Munic rates'!AC51,'Previous Munic rates'!AC51) -> 0 | AD51: =IF(Calculations!$C$9=FALSE,'Previous Non-Munic rates'!AD51,'Previous Munic rates'!AD51) -> 30.4167 | AE51: =IF(Calculations!$C$9=FALSE,'Previous Non-Munic rates'!AE51,'Previous Munic rates'!AE51) -> 0.42 | AF51: =IF(Calculations!$C$9=FALSE,'Previous Non-Munic rates'!AF51,'Previous Munic rates'!AF51) -> 0 | AG51: =IF(Calculations!$C$9=FALSE, 'Previous Non-Munic rates'!AG51, 'Previous Munic rates'!AG51) -> 0 | AH51: =IF(Calculations!$C$9=FALSE, 'Previous Non-Munic rates'!AH51, 'Previous Munic rates'!AH51) -> 16.66 | AI51: =IF(Calculations!$C$9=FALSE, 'Previous Non-Munic rates'!AI51, 'Previous Munic rates'!AI51) -> 0 | AJ51: =IF(Calculations!$C$9=FALSE, 'Previous Non-Munic rates'!AJ51, 'Previous Munic rates'!AJ51) -> 4.34 | AM51: 49
A52: Nightsave Urban Small01 | B52: Nightsave Urban Small | C52: 0 | D52: 1 | E52: =IF(Calculations!$C$9=FALSE,'Previous Non-Munic rates'!E52,'Previous Munic rates'!E52) -> 3.7 | F52: =IF(Calculations!$C$9=FALSE,'Previous Non-Munic rates'!F52,'Previous Munic rates'!F52) -> 21.58 | G52: =IF(Calculations!$C$9=FALSE,'Previous Non-Munic rates'!G52,'Previous Munic rates'!G52) -> 42.85 | H52: =IF(Calculations!$C$9=FALSE,'Previous Non-Munic rates'!H52,'Previous Munic rates'!H52) -> 0 | I52: =IF(Calculations!$C$9=FALSE,'Previous Non-Munic rates'!I52,'Previous Munic rates'!I52) -> 148.16 | J52: =IF(Calculations!$C$9=FALSE,'Previous Non-Munic rates'!J52,'Previous Munic rates'!J52) -> 16.85 | K52: =IF(Calculations!$C$9=FALSE,'Previous Non-Munic rates'!K52,'Previous Munic rates'!K52) -> 76.94 | L52: =IF(Calculations!$C$9=FALSE,'Previous Non-Munic rates'!L52,'Previous Munic rates'!L52) -> 236.74 | M52: =IF(Calculations!$C$9=FALSE,'Previous Non-Munic rates'!M52,'Previous Munic rates'!M52) -> 0 | N52: =IF(Calculations!$C$9=FALSE,'Previous Non-Munic rates'!N52,'Previous Munic rates'!N52) -> 4639.2 | O52: =IF(Calculations!$C$9=FALSE,'Previous Non-Munic rates'!O52,'Previous Munic rates'!O52) -> 89.59 | P52: =IF(Calculations!$C$9=FALSE,'Previous Non-Munic rates'!P52,'Previous Munic rates'!P52) -> 89.59 | Q52: =IF(Calculations!$C$9=FALSE,'Previous Non-Munic rates'!Q52,'Previous Munic rates'!Q52) -> 89.59 | R52: =IF(Calculations!$C$9=FALSE,'Previous Non-Munic rates'!R52,'Previous Munic rates'!R52) -> 69.64 | S52: =IF(Calculations!$C$9=FALSE,'Previous Non-Munic rates'!S52,'Previous Munic rates'!S52) -> 69.64 | T52: =IF(Calculations!$C$9=FALSE,'Previous Non-Munic rates'!T52,'Previous Munic rates'!T52) -> 69.64 | U52: =IF(Calculations!$C$9=FALSE,'Previous Non-Munic rates'!U52,'Previous Munic rates'!U52) -> 0 | V52: =IF(Calculations!$C$9=FALSE,'Previous Non-Munic rates'!V52,'Previous Munic rates'!V52) -> 9.22 | W52: =IF(Calculations!$C$9=FALSE,'Previous Non-Munic rates'!W52,'Previous Munic rates'!W52) -> 10.38 | X52: =IF(Calculations!$C$9=FALSE,'Previous Non-Munic rates'!X52,'Previous Munic rates'!X52) -> 20.62 | Y52: =IF(Calculations!$C$9=FALSE,'Previous Non-Munic rates'!Y52,'Previous Munic rates'!Y52) -> 39.1 | AA52: =IF(Calculations!$C$9=FALSE,'Previous Non-Munic rates'!AA52,'Previous Munic rates'!AA52) -> 0 | AB52: =IF(Calculations!$C$9=FALSE,'Previous Non-Munic rates'!AB52,'Previous Munic rates'!AB52) -> 191.44 | AC52: =IF(Calculations!$C$9=FALSE,'Previous Non-Munic rates'!AC52,'Previous Munic rates'!AC52) -> 24.67 | AD52: =IF(Calculations!$C$9=FALSE,'Previous Non-Munic rates'!AD52,'Previous Munic rates'!AD52) -> 30.4167 | AE52: =IF(Calculations!$C$9=FALSE,'Previous Non-Munic rates'!AE52,'Previous Munic rates'!AE52) -> 0.48 | AF52: =IF(Calculations!$C$9=FALSE,'Previous Non-Munic rates'!AF52,'Previous Munic rates'!AF52) -> 0 | AG52: =IF(Calculations!$C$9=FALSE, 'Previous Non-Munic rates'!AG52, 'Previous Munic rates'!AG52) -> 0 | AH52: =IF(Calculations!$C$9=FALSE, 'Previous Non-Munic rates'!AH52, 'Previous Munic rates'!AH52) -> 0 | AI52: =IF(Calculations!$C$9=FALSE, 'Previous Non-Munic rates'!AI52, 'Previous Munic rates'!AI52) -> 0 | AJ52: =IF(Calculations!$C$9=FALSE, 'Previous Non-Munic rates'!AJ52, 'Previous Munic rates'!AJ52) -> 4.34 | AM52: 50
A53: Nightsave Urban Small02 | B53: Nightsave Urban Small | C53: 0 | D53: 2 | E53: =IF(Calculations!$C$9=FALSE,'Previous Non-Munic rates'!E53,'Previous Munic rates'!E53) -> 3.7 | F53: =IF(Calculations!$C$9=FALSE,'Previous Non-Munic rates'!F53,'Previous Munic rates'!F53) -> 21.58 | G53: =IF(Calculations!$C$9=FALSE,'Previous Non-Munic rates'!G53,'Previous Munic rates'!G53) -> 42.85 | H53: =IF(Calculations!$C$9=FALSE,'Previous Non-Munic rates'!H53,'Previous Munic rates'!H53) -> 0 | I53: =IF(Calculations!$C$9=FALSE,'Previous Non-Munic rates'!I53,'Previous Munic rates'!I53) -> 148.16 | J53: =IF(Calculations!$C$9=FALSE,'Previous Non-Munic rates'!J53,'Previous Munic rates'!J53) -> 16.85 | K53: =IF(Calculations!$C$9=FALSE,'Previous Non-Munic rates'!K53,'Previous Munic rates'!K53) -> 76.94 | L53: =IF(Calculations!$C$9=FALSE,'Previous Non-Munic rates'!L53,'Previous Munic rates'!L53) -> 236.74 | M53: =IF(Calculations!$C$9=FALSE,'Previous Non-Munic rates'!M53,'Previous Munic rates'!M53) -> 0 | N53: =IF(Calculations!$C$9=FALSE,'Previous Non-Munic rates'!N53,'Previous Munic rates'!N53) -> 4639.2 | O53: =IF(Calculations!$C$9=FALSE,'Previous Non-Munic rates'!O53,'Previous Munic rates'!O53) -> 84.83 | P53: =IF(Calculations!$C$9=FALSE,'Previous Non-Munic rates'!P53,'Previous Munic rates'!P53) -> 84.83 | Q53: =IF(Calculations!$C$9=FALSE,'Previous Non-Munic rates'!Q53,'Previous Munic rates'!Q53) -> 84.83 | R53: =IF(Calculations!$C$9=FALSE,'Previous Non-Munic rates'!R53,'Previous Munic rates'!R53) -> 66.22 | S53: =IF(Calculations!$C$9=FALSE,'Previous Non-Munic rates'!S53,'Previous Munic rates'!S53) -> 66.22 | T53: =IF(Calculations!$C$9=FALSE,'Previous Non-Munic rates'!T53,'Previous Munic rates'!T53) -> 66.22 | U53: =IF(Calculations!$C$9=FALSE,'Previous Non-Munic rates'!U53,'Previous Munic rates'!U53) -> 0 | V53: =IF(Calculations!$C$9=FALSE,'Previous Non-Munic rates'!V53,'Previous Munic rates'!V53) -> 9.22 | W53: =IF(Calculations!$C$9=FALSE,'Previous Non-Munic rates'!W53,'Previous Munic rates'!W53) -> 9.48 | X53: =IF(Calculations!$C$9=FALSE,'Previous Non-Munic rates'!X53,'Previous Munic rates'!X53) -> 18.91 | Y53: =IF(Calculations!$C$9=FALSE,'Previous Non-Munic rates'!Y53,'Previous Munic rates'!Y53) -> 35.87 | AA53: =IF(Calculations!$C$9=FALSE,'Previous Non-Munic rates'!AA53,'Previous Munic rates'!AA53) -> 0 | AB53: =IF(Calculations!$C$9=FALSE,'Previous Non-Munic rates'!AB53,'Previous Munic rates'!AB53) -> 185.28 | AC53: =IF(Calculations!$C$9=FALSE,'Previous Non-Munic rates'!AC53,'Previous Munic rates'!AC53) -> 23.84 | AD53: =IF(Calculations!$C$9=FALSE,'Previous Non-Munic rates'!AD53,'Previous Munic rates'!AD53) -> 30.4167 | AE53: =IF(Calculations!$C$9=FALSE,'Previous Non-Munic rates'!AE53,'Previous Munic rates'!AE53) -> 0.47 | AF53: =IF(Calculations!$C$9=FALSE,'Previous Non-Munic rates'!AF53,'Previous Munic rates'!AF53) -> 0 | AG53: =IF(Calculations!$C$9=FALSE, 'Previous Non-Munic rates'!AG53, 'Previous Munic rates'!AG53) -> 0 | AH53: =IF(Calculations!$C$9=FALSE, 'Previous Non-Munic rates'!AH53, 'Previous Munic rates'!AH53) -> 0 | AI53: =IF(Calculations!$C$9=FALSE, 'Previous Non-Munic rates'!AI53, 'Previous Munic rates'!AI53) -> 0 | AJ53: =IF(Calculations!$C$9=FALSE, 'Previous Non-Munic rates'!AJ53, 'Previous Munic rates'!AJ53) -> 4.34 | AM53: 51
A54: Nightsave Urban Small03 | B54: Nightsave Urban Small | C54: 0 | D54: 3 | E54: =IF(Calculations!$C$9=FALSE,'Previous Non-Munic rates'!E54,'Previous Munic rates'!E54) -> 3.7 | F54: =IF(Calculations!$C$9=FALSE,'Previous Non-Munic rates'!F54,'Previous Munic rates'!F54) -> 21.58 | G54: =IF(Calculations!$C$9=FALSE,'Previous Non-Munic rates'!G54,'Previous Munic rates'!G54) -> 42.85 | H54: =IF(Calculations!$C$9=FALSE,'Previous Non-Munic rates'!H54,'Previous Munic rates'!H54) -> 0 | I54: =IF(Calculations!$C$9=FALSE,'Previous Non-Munic rates'!I54,'Previous Munic rates'!I54) -> 148.16 | J54: =IF(Calculations!$C$9=FALSE,'Previous Non-Munic rates'!J54,'Previous Munic rates'!J54) -> 16.85 | K54: =IF(Calculations!$C$9=FALSE,'Previous Non-Munic rates'!K54,'Previous Munic rates'!K54) -> 76.94 | L54: =IF(Calculations!$C$9=FALSE,'Previous Non-Munic rates'!L54,'Previous Munic rates'!L54) -> 236.74 | M54: =IF(Calculations!$C$9=FALSE,'Previous Non-Munic rates'!M54,'Previous Munic rates'!M54) -> 0 | N54: =IF(Calculations!$C$9=FALSE,'Previous Non-Munic rates'!N54,'Previous Munic rates'!N54) -> 4639.2 | O54: =IF(Calculations!$C$9=FALSE,'Previous Non-Munic rates'!O54,'Previous Munic rates'!O54) -> 84.21 | P54: =IF(Calculations!$C$9=FALSE,'Previous Non-Munic rates'!P54,'Previous Munic rates'!P54) -> 84.21 | Q54: =IF(Calculations!$C$9=FALSE,'Previous Non-Munic rates'!Q54,'Previous Munic rates'!Q54) -> 84.21 | R54: =IF(Calculations!$C$9=FALSE,'Previous Non-Munic rates'!R54,'Previous Munic rates'!R54) -> 65.43 | S54: =IF(Calculations!$C$9=FALSE,'Previous Non-Munic rates'!S54,'Previous Munic rates'!S54) -> 65.43 | T54: =IF(Calculations!$C$9=FALSE,'Previous Non-Munic rates'!T54,'Previous Munic rates'!T54) -> 65.43 | U54: =IF(Calculations!$C$9=FALSE,'Previous Non-Munic rates'!U54,'Previous Munic rates'!U54) -> 0 | V54: =IF(Calculations!$C$9=FALSE,'Previous Non-Munic rates'!V54,'Previous Munic rates'!V54) -> 9.22 | W54: =IF(Calculations!$C$9=FALSE,'Previous Non-Munic rates'!W54,'Previous Munic rates'!W54) -> 9.23 | X54: =IF(Calculations!$C$9=FALSE,'Previous Non-Munic rates'!X54,'Previous Munic rates'!X54) -> 6.75 | Y54: =IF(Calculations!$C$9=FALSE,'Previous Non-Munic rates'!Y54,'Previous Munic rates'!Y54) -> 12.51 | AA54: =IF(Calculations!$C$9=FALSE,'Previous Non-Munic rates'!AA54,'Previous Munic rates'!AA54) -> 0 | AB54: =IF(Calculations!$C$9=FALSE,'Previous Non-Munic rates'!AB54,'Previous Munic rates'!AB54) -> 178.46 | AC54: =IF(Calculations!$C$9=FALSE,'Previous Non-Munic rates'!AC54,'Previous Munic rates'!AC54) -> 22.95 | AD54: =IF(Calculations!$C$9=FALSE,'Previous Non-Munic rates'!AD54,'Previous Munic rates'!AD54) -> 30.4167 | AE54: =IF(Calculations!$C$9=FALSE,'Previous Non-Munic rates'!AE54,'Previous Munic rates'!AE54) -> 0.45 | AF54: =IF(Calculations!$C$9=FALSE,'Previous Non-Munic rates'!AF54,'Previous Munic rates'!AF54) -> 0 | AG54: =IF(Calculations!$C$9=FALSE, 'Previous Non-Munic rates'!AG54, 'Previous Munic rates'!AG54) -> 0 | AH54: =IF(Calculations!$C$9=FALSE, 'Previous Non-Munic rates'!AH54, 'Previous Munic rates'!AH54) -> 16.66 | AI54: =IF(Calculations!$C$9=FALSE, 'Previous Non-Munic rates'!AI54, 'Previous Munic rates'!AI54) -> 0 | AJ54: =IF(Calculations!$C$9=FALSE, 'Previous Non-Munic rates'!AJ54, 'Previous Munic rates'!AJ54) -> 4.34 | AM54: 52
A55: Nightsave Urban Small04 | B55: Nightsave Urban Small | C55: 0 | D55: 4 | E55: =IF(Calculations!$C$9=FALSE,'Previous Non-Munic rates'!E55,'Previous Munic rates'!E55) -> 3.7 | F55: =IF(Calculations!$C$9=FALSE,'Previous Non-Munic rates'!F55,'Previous Munic rates'!F55) -> 21.58 | G55: =IF(Calculations!$C$9=FALSE,'Previous Non-Munic rates'!G55,'Previous Munic rates'!G55) -> 42.85 | H55: =IF(Calculations!$C$9=FALSE,'Previous Non-Munic rates'!H55,'Previous Munic rates'!H55) -> 0 | I55: =IF(Calculations!$C$9=FALSE,'Previous Non-Munic rates'!I55,'Previous Munic rates'!I55) -> 148.16 | J55: =IF(Calculations!$C$9=FALSE,'Previous Non-Munic rates'!J55,'Previous Munic rates'!J55) -> 16.85 | K55: =IF(Calculations!$C$9=FALSE,'Previous Non-Munic rates'!K55,'Previous Munic rates'!K55) -> 76.94 | L55: =IF(Calculations!$C$9=FALSE,'Previous Non-Munic rates'!L55,'Previous Munic rates'!L55) -> 236.74 | M55: =IF(Calculations!$C$9=FALSE,'Previous Non-Munic rates'!M55,'Previous Munic rates'!M55) -> 0 | N55: =IF(Calculations!$C$9=FALSE,'Previous Non-Munic rates'!N55,'Previous Munic rates'!N55) -> 4639.2 | O55: =IF(Calculations!$C$9=FALSE,'Previous Non-Munic rates'!O55,'Previous Munic rates'!O55) -> 78.77 | P55: =IF(Calculations!$C$9=FALSE,'Previous Non-Munic rates'!P55,'Previous Munic rates'!P55) -> 78.77 | Q55: =IF(Calculations!$C$9=FALSE,'Previous Non-Munic rates'!Q55,'Previous Munic rates'!Q55) -> 78.77 | R55: =IF(Calculations!$C$9=FALSE,'Previous Non-Munic rates'!R55,'Previous Munic rates'!R55) -> 61.25 | S55: =IF(Calculations!$C$9=FALSE,'Previous Non-Munic rates'!S55,'Previous Munic rates'!S55) -> 61.25 | T55: =IF(Calculations!$C$9=FALSE,'Previous Non-Munic rates'!T55,'Previous Munic rates'!T55) -> 61.25 | U55: =IF(Calculations!$C$9=FALSE,'Previous Non-Munic rates'!U55,'Previous Munic rates'!U55) -> 0 | V55: =IF(Calculations!$C$9=FALSE,'Previous Non-Munic rates'!V55,'Previous Munic rates'!V55) -> 9.22 | W55: =IF(Calculations!$C$9=FALSE,'Previous Non-Munic rates'!W55,'Previous Munic rates'!W55) -> 11.67 | X55: =IF(Calculations!$C$9=FALSE,'Previous Non-Munic rates'!X55,'Previous Munic rates'!X55) -> 0 | Y55: =IF(Calculations!$C$9=FALSE,'Previous Non-Munic rates'!Y55,'Previous Munic rates'!Y55) -> 0 | AA55: =IF(Calculations!$C$9=FALSE,'Previous Non-Munic rates'!AA55,'Previous Munic rates'!AA55) -> 0 | AB55: =IF(Calculations!$C$9=FALSE,'Previous Non-Munic rates'!AB55,'Previous Munic rates'!AB55) -> 172.22 | AC55: =IF(Calculations!$C$9=FALSE,'Previous Non-Munic rates'!AC55,'Previous Munic rates'!AC55) -> 22.15 | AD55: =IF(Calculations!$C$9=FALSE,'Previous Non-Munic rates'!AD55,'Previous Munic rates'!AD55) -> 30.4167 | AE55: =IF(Calculations!$C$9=FALSE,'Previous Non-Munic rates'!AE55,'Previous Munic rates'!AE55) -> 0.42 | AF55: =IF(Calculations!$C$9=FALSE,'Previous Non-Munic rates'!AF55,'Previous Munic rates'!AF55) -> 0 | AG55: =IF(Calculations!$C$9=FALSE, 'Previous Non-Munic rates'!AG55, 'Previous Munic rates'!AG55) -> 0 | AH55: =IF(Calculations!$C$9=FALSE, 'Previous Non-Munic rates'!AH55, 'Previous Munic rates'!AH55) -> 16.66 | AI55: =IF(Calculations!$C$9=FALSE, 'Previous Non-Munic rates'!AI55, 'Previous Munic rates'!AI55) -> 0 | AJ55: =IF(Calculations!$C$9=FALSE, 'Previous Non-Munic rates'!AJ55, 'Previous Munic rates'!AJ55) -> 4.34 | AM55: 53
A56: Nightsave Urban Small11 | B56: Nightsave Urban Small | C56: 1 | D56: 1 | E56: =IF(Calculations!$C$9=FALSE,'Previous Non-Munic rates'!E56,'Previous Munic rates'!E56) -> 3.7 | F56: =IF(Calculations!$C$9=FALSE,'Previous Non-Munic rates'!F56,'Previous Munic rates'!F56) -> 21.58 | G56: =IF(Calculations!$C$9=FALSE,'Previous Non-Munic rates'!G56,'Previous Munic rates'!G56) -> 42.85 | H56: =IF(Calculations!$C$9=FALSE,'Previous Non-Munic rates'!H56,'Previous Munic rates'!H56) -> 0 | I56: =IF(Calculations!$C$9=FALSE,'Previous Non-Munic rates'!I56,'Previous Munic rates'!I56) -> 148.16 | J56: =IF(Calculations!$C$9=FALSE,'Previous Non-Munic rates'!J56,'Previous Munic rates'!J56) -> 16.85 | K56: =IF(Calculations!$C$9=FALSE,'Previous Non-Munic rates'!K56,'Previous Munic rates'!K56) -> 76.94 | L56: =IF(Calculations!$C$9=FALSE,'Previous Non-Munic rates'!L56,'Previous Munic rates'!L56) -> 236.74 | M56: =IF(Calculations!$C$9=FALSE,'Previous Non-Munic rates'!M56,'Previous Munic rates'!M56) -> 0 | N56: =IF(Calculations!$C$9=FALSE,'Previous Non-Munic rates'!N56,'Previous Munic rates'!N56) -> 4639.2 | O56: =IF(Calculations!$C$9=FALSE,'Previous Non-Munic rates'!O56,'Previous Munic rates'!O56) -> 90.79 | P56: =IF(Calculations!$C$9=FALSE,'Previous Non-Munic rates'!P56,'Previous Munic rates'!P56) -> 90.79 | Q56: =IF(Calculations!$C$9=FALSE,'Previous Non-Munic rates'!Q56,'Previous Munic rates'!Q56) -> 90.79 | R56: =IF(Calculations!$C$9=FALSE,'Previous Non-Munic rates'!R56,'Previous Munic rates'!R56) -> 70.41 | S56: =IF(Calculations!$C$9=FALSE,'Previous Non-Munic rates'!S56,'Previous Munic rates'!S56) -> 70.41 | T56: =IF(Calculations!$C$9=FALSE,'Previous Non-Munic rates'!T56,'Previous Munic rates'!T56) -> 70.41 | U56: =IF(Calculations!$C$9=FALSE,'Previous Non-Munic rates'!U56,'Previous Munic rates'!U56) -> 0 | V56: =IF(Calculations!$C$9=FALSE,'Previous Non-Munic rates'!V56,'Previous Munic rates'!V56) -> 9.22 | W56: =IF(Calculations!$C$9=FALSE,'Previous Non-Munic rates'!W56,'Previous Munic rates'!W56) -> 10.45 | X56: =IF(Calculations!$C$9=FALSE,'Previous Non-Munic rates'!X56,'Previous Munic rates'!X56) -> 20.62 | Y56: =IF(Calculations!$C$9=FALSE,'Previous Non-Munic rates'!Y56,'Previous Munic rates'!Y56) -> 39.1 | AA56: =IF(Calculations!$C$9=FALSE,'Previous Non-Munic rates'!AA56,'Previous Munic rates'!AA56) -> 0 | AB56: =IF(Calculations!$C$9=FALSE,'Previous Non-Munic rates'!AB56,'Previous Munic rates'!AB56) -> 193.4 | AC56: =IF(Calculations!$C$9=FALSE,'Previous Non-Munic rates'!AC56,'Previous Munic rates'!AC56) -> 24.87 | AD56: =IF(Calculations!$C$9=FALSE,'Previous Non-Munic rates'!AD56,'Previous Munic rates'!AD56) -> 30.4167 | AE56: =IF(Calculations!$C$9=FALSE,'Previous Non-Munic rates'!AE56,'Previous Munic rates'!AE56) -> 0.48 | AF56: =IF(Calculations!$C$9=FALSE,'Previous Non-Munic rates'!AF56,'Previous Munic rates'!AF56) -> 0 | AG56: =IF(Calculations!$C$9=FALSE, 'Previous Non-Munic rates'!AG56, 'Previous Munic rates'!AG56) -> 0 | AH56: =IF(Calculations!$C$9=FALSE, 'Previous Non-Munic rates'!AH56, 'Previous Munic rates'!AH56) -> 0 | AI56: =IF(Calculations!$C$9=FALSE, 'Previous Non-Munic rates'!AI56, 'Previous Munic rates'!AI56) -> 0 | AJ56: =IF(Calculations!$C$9=FALSE, 'Previous Non-Munic rates'!AJ56, 'Previous Munic rates'!AJ56) -> 4.34 | AM56: 54
A57: Nightsave Urban Small12 | B57: Nightsave Urban Small | C57: 1 | D57: 2 | E57: =IF(Calculations!$C$9=FALSE,'Previous Non-Munic rates'!E57,'Previous Munic rates'!E57) -> 3.7 | F57: =IF(Calculations!$C$9=FALSE,'Previous Non-Munic rates'!F57,'Previous Munic rates'!F57) -> 21.58 | G57: =IF(Calculations!$C$9=FALSE,'Previous Non-Munic rates'!G57,'Previous Munic rates'!G57) -> 42.85 | H57: =IF(Calculations!$C$9=FALSE,'Previous Non-Munic rates'!H57,'Previous Munic rates'!H57) -> 0 | I57: =IF(Calculations!$C$9=FALSE,'Previous Non-Munic rates'!I57,'Previous Munic rates'!I57) -> 148.16 | J57: =IF(Calculations!$C$9=FALSE,'Previous Non-Munic rates'!J57,'Previous Munic rates'!J57) -> 16.85 | K57: =IF(Calculations!$C$9=FALSE,'Previous Non-Munic rates'!K57,'Previous Munic rates'!K57) -> 76.94 | L57: =IF(Calculations!$C$9=FALSE,'Previous Non-Munic rates'!L57,'Previous Munic rates'!L57) -> 236.74 | M57: =IF(Calculations!$C$9=FALSE,'Previous Non-Munic rates'!M57,'Previous Munic rates'!M57) -> 0 | N57: =IF(Calculations!$C$9=FALSE,'Previous Non-Munic rates'!N57,'Previous Munic rates'!N57) -> 4639.2 | O57: =IF(Calculations!$C$9=FALSE,'Previous Non-Munic rates'!O57,'Previous Munic rates'!O57) -> 86.62 | P57: =IF(Calculations!$C$9=FALSE,'Previous Non-Munic rates'!P57,'Previous Munic rates'!P57) -> 86.62 | Q57: =IF(Calculations!$C$9=FALSE,'Previous Non-Munic rates'!Q57,'Previous Munic rates'!Q57) -> 86.62 | R57: =IF(Calculations!$C$9=FALSE,'Previous Non-Munic rates'!R57,'Previous Munic rates'!R57) -> 67.57 | S57: =IF(Calculations!$C$9=FALSE,'Previous Non-Munic rates'!S57,'Previous Munic rates'!S57) -> 67.57 | T57: =IF(Calculations!$C$9=FALSE,'Previous Non-Munic rates'!T57,'Previous Munic rates'!T57) -> 67.57 | U57: =IF(Calculations!$C$9=FALSE,'Previous Non-Munic rates'!U57,'Previous Munic rates'!U57) -> 0 | V57: =IF(Calculations!$C$9=FALSE,'Previous Non-Munic rates'!V57,'Previous Munic rates'!V57) -> 9.22 | W57: =IF(Calculations!$C$9=FALSE,'Previous Non-Munic rates'!W57,'Previous Munic rates'!W57) -> 9.57 | X57: =IF(Calculations!$C$9=FALSE,'Previous Non-Munic rates'!X57,'Previous Munic rates'!X57) -> 18.91 | Y57: =IF(Calculations!$C$9=FALSE,'Previous Non-Munic rates'!Y57,'Previous Munic rates'!Y57) -> 35.87 | AA57: =IF(Calculations!$C$9=FALSE,'Previous Non-Munic rates'!AA57,'Previous Munic rates'!AA57) -> 0 | AB57: =IF(Calculations!$C$9=FALSE,'Previous Non-Munic rates'!AB57,'Previous Munic rates'!AB57) -> 187.14 | AC57: =IF(Calculations!$C$9=FALSE,'Previous Non-Munic rates'!AC57,'Previous Munic rates'!AC57) -> 24.08 | AD57: =IF(Calculations!$C$9=FALSE,'Previous Non-Munic rates'!AD57,'Previous Munic rates'!AD57) -> 30.4167 | AE57: =IF(Calculations!$C$9=FALSE,'Previous Non-Munic rates'!AE57,'Previous Munic rates'!AE57) -> 0.47 | AF57: =IF(Calculations!$C$9=FALSE,'Previous Non-Munic rates'!AF57,'Previous Munic rates'!AF57) -> 0 | AG57: =IF(Calculations!$C$9=FALSE, 'Previous Non-Munic rates'!AG57, 'Previous Munic rates'!AG57) -> 0 | AH57: =IF(Calculations!$C$9=FALSE, 'Previous Non-Munic rates'!AH57, 'Previous Munic rates'!AH57) -> 0 | AI57: =IF(Calculations!$C$9=FALSE, 'Previous Non-Munic rates'!AI57, 'Previous Munic rates'!AI57) -> 0 | AJ57: =IF(Calculations!$C$9=FALSE, 'Previous Non-Munic rates'!AJ57, 'Previous Munic rates'!AJ57) -> 4.34 | AM57: 55
A58: Nightsave Urban Small13 | B58: Nightsave Urban Small | C58: 1 | D58: 3 | E58: =IF(Calculations!$C$9=FALSE,'Previous Non-Munic rates'!E58,'Previous Munic rates'!E58) -> 3.7 | F58: =IF(Calculations!$C$9=FALSE,'Previous Non-Munic rates'!F58,'Previous Munic rates'!F58) -> 21.58 | G58: =IF(Calculations!$C$9=FALSE,'Previous Non-Munic rates'!G58,'Previous Munic rates'!G58) -> 42.85 | H58: =IF(Calculations!$C$9=FALSE,'Previous Non-Munic rates'!H58,'Previous Munic rates'!H58) -> 0 | I58: =IF(Calculations!$C$9=FALSE,'Previous Non-Munic rates'!I58,'Previous Munic rates'!I58) -> 148.16 | J58: =IF(Calculations!$C$9=FALSE,'Previous Non-Munic rates'!J58,'Previous Munic rates'!J58) -> 16.85 | K58: =IF(Calculations!$C$9=FALSE,'Previous Non-Munic rates'!K58,'Previous Munic rates'!K58) -> 76.94 | L58: =IF(Calculations!$C$9=FALSE,'Previous Non-Munic rates'!L58,'Previous Munic rates'!L58) -> 236.74 | M58: =IF(Calculations!$C$9=FALSE,'Previous Non-Munic rates'!M58,'Previous Munic rates'!M58) -> 0 | N58: =IF(Calculations!$C$9=FALSE,'Previous Non-Munic rates'!N58,'Previous Munic rates'!N58) -> 4639.2 | O58: =IF(Calculations!$C$9=FALSE,'Previous Non-Munic rates'!O58,'Previous Munic rates'!O58) -> 85.97 | P58: =IF(Calculations!$C$9=FALSE,'Previous Non-Munic rates'!P58,'Previous Munic rates'!P58) -> 85.97 | Q58: =IF(Calculations!$C$9=FALSE,'Previous Non-Munic rates'!Q58,'Previous Munic rates'!Q58) -> 85.97 | R58: =IF(Calculations!$C$9=FALSE,'Previous Non-Munic rates'!R58,'Previous Munic rates'!R58) -> 66.76 | S58: =IF(Calculations!$C$9=FALSE,'Previous Non-Munic rates'!S58,'Previous Munic rates'!S58) -> 66.76 | T58: =IF(Calculations!$C$9=FALSE,'Previous Non-Munic rates'!T58,'Previous Munic rates'!T58) -> 66.76 | U58: =IF(Calculations!$C$9=FALSE,'Previous Non-Munic rates'!U58,'Previous Munic rates'!U58) -> 0 | V58: =IF(Calculations!$C$9=FALSE,'Previous Non-Munic rates'!V58,'Previous Munic rates'!V58) -> 9.22 | W58: =IF(Calculations!$C$9=FALSE,'Previous Non-Munic rates'!W58,'Previous Munic rates'!W58) -> 9.3 | X58: =IF(Calculations!$C$9=FALSE,'Previous Non-Munic rates'!X58,'Previous Munic rates'!X58) -> 6.75 | Y58: =IF(Calculations!$C$9=FALSE,'Previous Non-Munic rates'!Y58,'Previous Munic rates'!Y58) -> 12.51 | AA58: =IF(Calculations!$C$9=FALSE,'Previous Non-Munic rates'!AA58,'Previous Munic rates'!AA58) -> 0 | AB58: =IF(Calculations!$C$9=FALSE,'Previous Non-Munic rates'!AB58,'Previous Munic rates'!AB58) -> 180.3 | AC58: =IF(Calculations!$C$9=FALSE,'Previous Non-Munic rates'!AC58,'Previous Munic rates'!AC58) -> 23.2 | AD58: =IF(Calculations!$C$9=FALSE,'Previous Non-Munic rates'!AD58,'Previous Munic rates'!AD58) -> 30.4167 | AE58: =IF(Calculations!$C$9=FALSE,'Previous Non-Munic rates'!AE58,'Previous Munic rates'!AE58) -> 0.45 | AF58: =IF(Calculations!$C$9=FALSE,'Previous Non-Munic rates'!AF58,'Previous Munic rates'!AF58) -> 0 | AG58: =IF(Calculations!$C$9=FALSE, 'Previous Non-Munic rates'!AG58, 'Previous Munic rates'!AG58) -> 0 | AH58: =IF(Calculations!$C$9=FALSE, 'Previous Non-Munic rates'!AH58, 'Previous Munic rates'!AH58) -> 16.66 | AI58: =IF(Calculations!$C$9=FALSE, 'Previous Non-Munic rates'!AI58, 'Previous Munic rates'!AI58) -> 0 | AJ58: =IF(Calculations!$C$9=FALSE, 'Previous Non-Munic rates'!AJ58, 'Previous Munic rates'!AJ58) -> 4.34 | AM58: 56
A59: Nightsave Urban Small14 | B59: Nightsave Urban Small | C59: 1 | D59: 4 | E59: =IF(Calculations!$C$9=FALSE,'Previous Non-Munic rates'!E59,'Previous Munic rates'!E59) -> 3.7 | F59: =IF(Calculations!$C$9=FALSE,'Previous Non-Munic rates'!F59,'Previous Munic rates'!F59) -> 21.58 | G59: =IF(Calculations!$C$9=FALSE,'Previous Non-Munic rates'!G59,'Previous Munic rates'!G59) -> 42.85 | H59: =IF(Calculations!$C$9=FALSE,'Previous Non-Munic rates'!H59,'Previous Munic rates'!H59) -> 0 | I59: =IF(Calculations!$C$9=FALSE,'Previous Non-Munic rates'!I59,'Previous Munic rates'!I59) -> 148.16 | J59: =IF(Calculations!$C$9=FALSE,'Previous Non-Munic rates'!J59,'Previous Munic rates'!J59) -> 16.85 | K59: =IF(Calculations!$C$9=FALSE,'Previous Non-Munic rates'!K59,'Previous Munic rates'!K59) -> 76.94 | L59: =IF(Calculations!$C$9=FALSE,'Previous Non-Munic rates'!L59,'Previous Munic rates'!L59) -> 236.74 | M59: =IF(Calculations!$C$9=FALSE,'Previous Non-Munic rates'!M59,'Previous Munic rates'!M59) -> 0 | N59: =IF(Calculations!$C$9=FALSE,'Previous Non-Munic rates'!N59,'Previous Munic rates'!N59) -> 4639.2 | O59: =IF(Calculations!$C$9=FALSE,'Previous Non-Munic rates'!O59,'Previous Munic rates'!O59) -> 80.44 | P59: =IF(Calculations!$C$9=FALSE,'Previous Non-Munic rates'!P59,'Previous Munic rates'!P59) -> 80.44 | Q59: =IF(Calculations!$C$9=FALSE,'Previous Non-Munic rates'!Q59,'Previous Munic rates'!Q59) -> 80.44 | R59: =IF(Calculations!$C$9=FALSE,'Previous Non-Munic rates'!R59,'Previous Munic rates'!R59) -> 62.5 | S59: =IF(Calculations!$C$9=FALSE,'Previous Non-Munic rates'!S59,'Previous Munic rates'!S59) -> 62.5 | T59: =IF(Calculations!$C$9=FALSE,'Previous Non-Munic rates'!T59,'Previous Munic rates'!T59) -> 62.5 | U59: =IF(Calculations!$C$9=FALSE,'Previous Non-Munic rates'!U59,'Previous Munic rates'!U59) -> 0 | V59: =IF(Calculations!$C$9=FALSE,'Previous Non-Munic rates'!V59,'Previous Munic rates'!V59) -> 9.22 | W59: =IF(Calculations!$C$9=FALSE,'Previous Non-Munic rates'!W59,'Previous Munic rates'!W59) -> 11.78 | X59: =IF(Calculations!$C$9=FALSE,'Previous Non-Munic rates'!X59,'Previous Munic rates'!X59) -> 0 | Y59: =IF(Calculations!$C$9=FALSE,'Previous Non-Munic rates'!Y59,'Previous Munic rates'!Y59) -> 0 | AA59: =IF(Calculations!$C$9=FALSE,'Previous Non-Munic rates'!AA59,'Previous Munic rates'!AA59) -> 0 | AB59: =IF(Calculations!$C$9=FALSE,'Previous Non-Munic rates'!AB59,'Previous Munic rates'!AB59) -> 173.94 | AC59: =IF(Calculations!$C$9=FALSE,'Previous Non-Munic rates'!AC59,'Previous Munic rates'!AC59) -> 22.38 | AD59: =IF(Calculations!$C$9=FALSE,'Previous Non-Munic rates'!AD59,'Previous Munic rates'!AD59) -> 30.4167 | AE59: =IF(Calculations!$C$9=FALSE,'Previous Non-Munic rates'!AE59,'Previous Munic rates'!AE59) -> 0.42 | AF59: =IF(Calculations!$C$9=FALSE,'Previous Non-Munic rates'!AF59,'Previous Munic rates'!AF59) -> 0 | AG59: =IF(Calculations!$C$9=FALSE, 'Previous Non-Munic rates'!AG59, 'Previous Munic rates'!AG59) -> 0 | AH59: =IF(Calculations!$C$9=FALSE, 'Previous Non-Munic rates'!AH59, 'Previous Munic rates'!AH59) -> 16.66 | AI59: =IF(Calculations!$C$9=FALSE, 'Previous Non-Munic rates'!AI59, 'Previous Munic rates'!AI59) -> 0 | AJ59: =IF(Calculations!$C$9=FALSE, 'Previous Non-Munic rates'!AJ59, 'Previous Munic rates'!AJ59) -> 4.34 | AM59: 57
A60: Nightsave Urban Small21 | B60: Nightsave Urban Small | C60: 2 | D60: 1 | E60: =IF(Calculations!$C$9=FALSE,'Previous Non-Munic rates'!E60,'Previous Munic rates'!E60) -> 3.7 | F60: =IF(Calculations!$C$9=FALSE,'Previous Non-Munic rates'!F60,'Previous Munic rates'!F60) -> 21.58 | G60: =IF(Calculations!$C$9=FALSE,'Previous Non-Munic rates'!G60,'Previous Munic rates'!G60) -> 42.85 | H60: =IF(Calculations!$C$9=FALSE,'Previous Non-Munic rates'!H60,'Previous Munic rates'!H60) -> 0 | I60: =IF(Calculations!$C$9=FALSE,'Previous Non-Munic rates'!I60,'Previous Munic rates'!I60) -> 148.16 | J60: =IF(Calculations!$C$9=FALSE,'Previous Non-Munic rates'!J60,'Previous Munic rates'!J60) -> 16.85 | K60: =IF(Calculations!$C$9=FALSE,'Previous Non-Munic rates'!K60,'Previous Munic rates'!K60) -> 76.94 | L60: =IF(Calculations!$C$9=FALSE,'Previous Non-Munic rates'!L60,'Previous Munic rates'!L60) -> 236.74 | M60: =IF(Calculations!$C$9=FALSE,'Previous Non-Munic rates'!M60,'Previous Munic rates'!M60) -> 0 | N60: =IF(Calculations!$C$9=FALSE,'Previous Non-Munic rates'!N60,'Previous Munic rates'!N60) -> 4639.2 | O60: =IF(Calculations!$C$9=FALSE,'Previous Non-Munic rates'!O60,'Previous Munic rates'!O60) -> 91.63 | P60: =IF(Calculations!$C$9=FALSE,'Previous Non-Munic rates'!P60,'Previous Munic rates'!P60) -> 91.63 | Q60: =IF(Calculations!$C$9=FALSE,'Previous Non-Munic rates'!Q60,'Previous Munic rates'!Q60) -> 91.63 | R60: =IF(Calculations!$C$9=FALSE,'Previous Non-Munic rates'!R60,'Previous Munic rates'!R60) -> 71.09 | S60: =IF(Calculations!$C$9=FALSE,'Previous Non-Munic rates'!S60,'Previous Munic rates'!S60) -> 71.09 | T60: =IF(Calculations!$C$9=FALSE,'Previous Non-Munic rates'!T60,'Previous Munic rates'!T60) -> 71.09 | U60: =IF(Calculations!$C$9=FALSE,'Previous Non-Munic rates'!U60,'Previous Munic rates'!U60) -> 0 | V60: =IF(Calculations!$C$9=FALSE,'Previous Non-Munic rates'!V60,'Previous Munic rates'!V60) -> 9.22 | W60: =IF(Calculations!$C$9=FALSE,'Previous Non-Munic rates'!W60,'Previous Munic rates'!W60) -> 10.57 | X60: =IF(Calculations!$C$9=FALSE,'Previous Non-Munic rates'!X60,'Previous Munic rates'!X60) -> 20.62 | Y60: =IF(Calculations!$C$9=FALSE,'Previous Non-Munic rates'!Y60,'Previous Munic rates'!Y60) -> 39.1 | AA60: =IF(Calculations!$C$9=FALSE,'Previous Non-Munic rates'!AA60,'Previous Munic rates'!AA60) -> 0 | AB60: =IF(Calculations!$C$9=FALSE,'Previous Non-Munic rates'!AB60,'Previous Munic rates'!AB60) -> 195.3 | AC60: =IF(Calculations!$C$9=FALSE,'Previous Non-Munic rates'!AC60,'Previous Munic rates'!AC60) -> 25.1 | AD60: =IF(Calculations!$C$9=FALSE,'Previous Non-Munic rates'!AD60,'Previous Munic rates'!AD60) -> 30.4167 | AE60: =IF(Calculations!$C$9=FALSE,'Previous Non-Munic rates'!AE60,'Previous Munic rates'!AE60) -> 0.48 | AF60: =IF(Calculations!$C$9=FALSE,'Previous Non-Munic rates'!AF60,'Previous Munic rates'!AF60) -> 0 | AG60: =IF(Calculations!$C$9=FALSE, 'Previous Non-Munic rates'!AG60, 'Previous Munic rates'!AG60) -> 0 | AH60: =IF(Calculations!$C$9=FALSE, 'Previous Non-Munic rates'!AH60, 'Previous Munic rates'!AH60) -> 0 | AI60: =IF(Calculations!$C$9=FALSE, 'Previous Non-Munic rates'!AI60, 'Previous Munic rates'!AI60) -> 0 | AJ60: =IF(Calculations!$C$9=FALSE, 'Previous Non-Munic rates'!AJ60, 'Previous Munic rates'!AJ60) -> 4.34 | AM60: 58
A61: Nightsave Urban Small22 | B61: Nightsave Urban Small | C61: 2 | D61: 2 | E61: =IF(Calculations!$C$9=FALSE,'Previous Non-Munic rates'!E61,'Previous Munic rates'!E61) -> 3.7 | F61: =IF(Calculations!$C$9=FALSE,'Previous Non-Munic rates'!F61,'Previous Munic rates'!F61) -> 21.58 | G61: =IF(Calculations!$C$9=FALSE,'Previous Non-Munic rates'!G61,'Previous Munic rates'!G61) -> 42.85 | H61: =IF(Calculations!$C$9=FALSE,'Previous Non-Munic rates'!H61,'Previous Munic rates'!H61) -> 0 | I61: =IF(Calculations!$C$9=FALSE,'Previous Non-Munic rates'!I61,'Previous Munic rates'!I61) -> 148.16 | J61: =IF(Calculations!$C$9=FALSE,'Previous Non-Munic rates'!J61,'Previous Munic rates'!J61) -> 16.85 | K61: =IF(Calculations!$C$9=FALSE,'Previous Non-Munic rates'!K61,'Previous Munic rates'!K61) -> 76.94 | L61: =IF(Calculations!$C$9=FALSE,'Previous Non-Munic rates'!L61,'Previous Munic rates'!L61) -> 236.74 | M61: =IF(Calculations!$C$9=FALSE,'Previous Non-Munic rates'!M61,'Previous Munic rates'!M61) -> 0 | N61: =IF(Calculations!$C$9=FALSE,'Previous Non-Munic rates'!N61,'Previous Munic rates'!N61) -> 4639.2 | O61: =IF(Calculations!$C$9=FALSE,'Previous Non-Munic rates'!O61,'Previous Munic rates'!O61) -> 87.48 | P61: =IF(Calculations!$C$9=FALSE,'Previous Non-Munic rates'!P61,'Previous Munic rates'!P61) -> 87.48 | Q61: =IF(Calculations!$C$9=FALSE,'Previous Non-Munic rates'!Q61,'Previous Munic rates'!Q61) -> 87.48 | R61: =IF(Calculations!$C$9=FALSE,'Previous Non-Munic rates'!R61,'Previous Munic rates'!R61) -> 68.27 | S61: =IF(Calculations!$C$9=FALSE,'Previous Non-Munic rates'!S61,'Previous Munic rates'!S61) -> 68.27 | T61: =IF(Calculations!$C$9=FALSE,'Previous Non-Munic rates'!T61,'Previous Munic rates'!T61) -> 68.27 | U61: =IF(Calculations!$C$9=FALSE,'Previous Non-Munic rates'!U61,'Previous Munic rates'!U61) -> 0 | V61: =IF(Calculations!$C$9=FALSE,'Previous Non-Munic rates'!V61,'Previous Munic rates'!V61) -> 9.22 | W61: =IF(Calculations!$C$9=FALSE,'Previous Non-Munic rates'!W61,'Previous Munic rates'!W61) -> 9.66 | X61: =IF(Calculations!$C$9=FALSE,'Previous Non-Munic rates'!X61,'Previous Munic rates'!X61) -> 18.91 | Y61: =IF(Calculations!$C$9=FALSE,'Previous Non-Munic rates'!Y61,'Previous Munic rates'!Y61) -> 35.87 | AA61: =IF(Calculations!$C$9=FALSE,'Previous Non-Munic rates'!AA61,'Previous Munic rates'!AA61) -> 0 | AB61: =IF(Calculations!$C$9=FALSE,'Previous Non-Munic rates'!AB61,'Previous Munic rates'!AB61) -> 189.06 | AC61: =IF(Calculations!$C$9=FALSE,'Previous Non-Munic rates'!AC61,'Previous Munic rates'!AC61) -> 24.32 | AD61: =IF(Calculations!$C$9=FALSE,'Previous Non-Munic rates'!AD61,'Previous Munic rates'!AD61) -> 30.4167 | AE61: =IF(Calculations!$C$9=FALSE,'Previous Non-Munic rates'!AE61,'Previous Munic rates'!AE61) -> 0.47 | AF61: =IF(Calculations!$C$9=FALSE,'Previous Non-Munic rates'!AF61,'Previous Munic rates'!AF61) -> 0 | AG61: =IF(Calculations!$C$9=FALSE, 'Previous Non-Munic rates'!AG61, 'Previous Munic rates'!AG61) -> 0 | AH61: =IF(Calculations!$C$9=FALSE, 'Previous Non-Munic rates'!AH61, 'Previous Munic rates'!AH61) -> 0 | AI61: =IF(Calculations!$C$9=FALSE, 'Previous Non-Munic rates'!AI61, 'Previous Munic rates'!AI61) -> 0 | AJ61: =IF(Calculations!$C$9=FALSE, 'Previous Non-Munic rates'!AJ61, 'Previous Munic rates'!AJ61) -> 4.34 | AM61: 59
A62: Nightsave Urban Small23 | B62: Nightsave Urban Small | C62: 2 | D62: 3 | E62: =IF(Calculations!$C$9=FALSE,'Previous Non-Munic rates'!E62,'Previous Munic rates'!E62) -> 3.7 | F62: =IF(Calculations!$C$9=FALSE,'Previous Non-Munic rates'!F62,'Previous Munic rates'!F62) -> 21.58 | G62: =IF(Calculations!$C$9=FALSE,'Previous Non-Munic rates'!G62,'Previous Munic rates'!G62) -> 42.85 | H62: =IF(Calculations!$C$9=FALSE,'Previous Non-Munic rates'!H62,'Previous Munic rates'!H62) -> 0 | I62: =IF(Calculations!$C$9=FALSE,'Previous Non-Munic rates'!I62,'Previous Munic rates'!I62) -> 148.16 | J62: =IF(Calculations!$C$9=FALSE,'Previous Non-Munic rates'!J62,'Previous Munic rates'!J62) -> 16.85 | K62: =IF(Calculations!$C$9=FALSE,'Previous Non-Munic rates'!K62,'Previous Munic rates'!K62) -> 76.94 | L62: =IF(Calculations!$C$9=FALSE,'Previous Non-Munic rates'!L62,'Previous Munic rates'!L62) -> 236.74 | M62: =IF(Calculations!$C$9=FALSE,'Previous Non-Munic rates'!M62,'Previous Munic rates'!M62) -> 0 | N62: =IF(Calculations!$C$9=FALSE,'Previous Non-Munic rates'!N62,'Previous Munic rates'!N62) -> 4639.2 | O62: =IF(Calculations!$C$9=FALSE,'Previous Non-Munic rates'!O62,'Previous Munic rates'!O62) -> 86.81 | P62: =IF(Calculations!$C$9=FALSE,'Previous Non-Munic rates'!P62,'Previous Munic rates'!P62) -> 86.81 | Q62: =IF(Calculations!$C$9=FALSE,'Previous Non-Munic rates'!Q62,'Previous Munic rates'!Q62) -> 86.81 | R62: =IF(Calculations!$C$9=FALSE,'Previous Non-Munic rates'!R62,'Previous Munic rates'!R62) -> 67.42 | S62: =IF(Calculations!$C$9=FALSE,'Previous Non-Munic rates'!S62,'Previous Munic rates'!S62) -> 67.42 | T62: =IF(Calculations!$C$9=FALSE,'Previous Non-Munic rates'!T62,'Previous Munic rates'!T62) -> 67.42 | U62: =IF(Calculations!$C$9=FALSE,'Previous Non-Munic rates'!U62,'Previous Munic rates'!U62) -> 0 | V62: =IF(Calculations!$C$9=FALSE,'Previous Non-Munic rates'!V62,'Previous Munic rates'!V62) -> 9.22 | W62: =IF(Calculations!$C$9=FALSE,'Previous Non-Munic rates'!W62,'Previous Munic rates'!W62) -> 9.36 | X62: =IF(Calculations!$C$9=FALSE,'Previous Non-Munic rates'!X62,'Previous Munic rates'!X62) -> 6.75 | Y62: =IF(Calculations!$C$9=FALSE,'Previous Non-Munic rates'!Y62,'Previous Munic rates'!Y62) -> 12.51 | AA62: =IF(Calculations!$C$9=FALSE,'Previous Non-Munic rates'!AA62,'Previous Munic rates'!AA62) -> 0 | AB62: =IF(Calculations!$C$9=FALSE,'Previous Non-Munic rates'!AB62,'Previous Munic rates'!AB62) -> 182.12 | AC62: =IF(Calculations!$C$9=FALSE,'Previous Non-Munic rates'!AC62,'Previous Munic rates'!AC62) -> 23.43 | AD62: =IF(Calculations!$C$9=FALSE,'Previous Non-Munic rates'!AD62,'Previous Munic rates'!AD62) -> 30.4167 | AE62: =IF(Calculations!$C$9=FALSE,'Previous Non-Munic rates'!AE62,'Previous Munic rates'!AE62) -> 0.45 | AF62: =IF(Calculations!$C$9=FALSE,'Previous Non-Munic rates'!AF62,'Previous Munic rates'!AF62) -> 0 | AG62: =IF(Calculations!$C$9=FALSE, 'Previous Non-Munic rates'!AG62, 'Previous Munic rates'!AG62) -> 0 | AH62: =IF(Calculations!$C$9=FALSE, 'Previous Non-Munic rates'!AH62, 'Previous Munic rates'!AH62) -> 16.66 | AI62: =IF(Calculations!$C$9=FALSE, 'Previous Non-Munic rates'!AI62, 'Previous Munic rates'!AI62) -> 0 | AJ62: =IF(Calculations!$C$9=FALSE, 'Previous Non-Munic rates'!AJ62, 'Previous Munic rates'!AJ62) -> 4.34 | AM62: 60
A63: Nightsave Urban Small24 | B63: Nightsave Urban Small | C63: 2 | D63: 4 | E63: =IF(Calculations!$C$9=FALSE,'Previous Non-Munic rates'!E63,'Previous Munic rates'!E63) -> 3.7 | F63: =IF(Calculations!$C$9=FALSE,'Previous Non-Munic rates'!F63,'Previous Munic rates'!F63) -> 21.58 | G63: =IF(Calculations!$C$9=FALSE,'Previous Non-Munic rates'!G63,'Previous Munic rates'!G63) -> 42.85 | H63: =IF(Calculations!$C$9=FALSE,'Previous Non-Munic rates'!H63,'Previous Munic rates'!H63) -> 0 | I63: =IF(Calculations!$C$9=FALSE,'Previous Non-Munic rates'!I63,'Previous Munic rates'!I63) -> 148.16 | J63: =IF(Calculations!$C$9=FALSE,'Previous Non-Munic rates'!J63,'Previous Munic rates'!J63) -> 16.85 | K63: =IF(Calculations!$C$9=FALSE,'Previous Non-Munic rates'!K63,'Previous Munic rates'!K63) -> 76.94 | L63: =IF(Calculations!$C$9=FALSE,'Previous Non-Munic rates'!L63,'Previous Munic rates'!L63) -> 236.74 | M63: =IF(Calculations!$C$9=FALSE,'Previous Non-Munic rates'!M63,'Previous Munic rates'!M63) -> 0 | N63: =IF(Calculations!$C$9=FALSE,'Previous Non-Munic rates'!N63,'Previous Munic rates'!N63) -> 4639.2 | O63: =IF(Calculations!$C$9=FALSE,'Previous Non-Munic rates'!O63,'Previous Munic rates'!O63) -> 81.22 | P63: =IF(Calculations!$C$9=FALSE,'Previous Non-Munic rates'!P63,'Previous Munic rates'!P63) -> 81.22 | Q63: =IF(Calculations!$C$9=FALSE,'Previous Non-Munic rates'!Q63,'Previous Munic rates'!Q63) -> 81.22 | R63: =IF(Calculations!$C$9=FALSE,'Previous Non-Munic rates'!R63,'Previous Munic rates'!R63) -> 63.14 | S63: =IF(Calculations!$C$9=FALSE,'Previous Non-Munic rates'!S63,'Previous Munic rates'!S63) -> 63.14 | T63: =IF(Calculations!$C$9=FALSE,'Previous Non-Munic rates'!T63,'Previous Munic rates'!T63) -> 63.14 | U63: =IF(Calculations!$C$9=FALSE,'Previous Non-Munic rates'!U63,'Previous Munic rates'!U63) -> 0 | V63: =IF(Calculations!$C$9=FALSE,'Previous Non-Munic rates'!V63,'Previous Munic rates'!V63) -> 9.22 | W63: =IF(Calculations!$C$9=FALSE,'Previous Non-Munic rates'!W63,'Previous Munic rates'!W63) -> 11.95 | X63: =IF(Calculations!$C$9=FALSE,'Previous Non-Munic rates'!X63,'Previous Munic rates'!X63) -> 0 | Y63: =IF(Calculations!$C$9=FALSE,'Previous Non-Munic rates'!Y63,'Previous Munic rates'!Y63) -> 0 | AA63: =IF(Calculations!$C$9=FALSE,'Previous Non-Munic rates'!AA63,'Previous Munic rates'!AA63) -> 0 | AB63: =IF(Calculations!$C$9=FALSE,'Previous Non-Munic rates'!AB63,'Previous Munic rates'!AB63) -> 175.66 | AC63: =IF(Calculations!$C$9=FALSE,'Previous Non-Munic rates'!AC63,'Previous Munic rates'!AC63) -> 22.6 | AD63: =IF(Calculations!$C$9=FALSE,'Previous Non-Munic rates'!AD63,'Previous Munic rates'!AD63) -> 30.4167 | AE63: =IF(Calculations!$C$9=FALSE,'Previous Non-Munic rates'!AE63,'Previous Munic rates'!AE63) -> 0.42 | AF63: =IF(Calculations!$C$9=FALSE,'Previous Non-Munic rates'!AF63,'Previous Munic rates'!AF63) -> 0 | AG63: =IF(Calculations!$C$9=FALSE, 'Previous Non-Munic rates'!AG63, 'Previous Munic rates'!AG63) -> 0 | AH63: =IF(Calculations!$C$9=FALSE, 'Previous Non-Munic rates'!AH63, 'Previous Munic rates'!AH63) -> 16.66 | AI63: =IF(Calculations!$C$9=FALSE, 'Previous Non-Munic rates'!AI63, 'Previous Munic rates'!AI63) -> 0 | AJ63: =IF(Calculations!$C$9=FALSE, 'Previous Non-Munic rates'!AJ63, 'Previous Munic rates'!AJ63) -> 4.34 | AM63: 61
A64: Nightsave Urban Small31 | B64: Nightsave Urban Small | C64: 3 | D64: 1 | E64: =IF(Calculations!$C$9=FALSE,'Previous Non-Munic rates'!E64,'Previous Munic rates'!E64) -> 3.7 | F64: =IF(Calculations!$C$9=FALSE,'Previous Non-Munic rates'!F64,'Previous Munic rates'!F64) -> 21.58 | G64: =IF(Calculations!$C$9=FALSE,'Previous Non-Munic rates'!G64,'Previous Munic rates'!G64) -> 42.85 | H64: =IF(Calculations!$C$9=FALSE,'Previous Non-Munic rates'!H64,'Previous Munic rates'!H64) -> 0 | I64: =IF(Calculations!$C$9=FALSE,'Previous Non-Munic rates'!I64,'Previous Munic rates'!I64) -> 148.16 | J64: =IF(Calculations!$C$9=FALSE,'Previous Non-Munic rates'!J64,'Previous Munic rates'!J64) -> 16.85 | K64: =IF(Calculations!$C$9=FALSE,'Previous Non-Munic rates'!K64,'Previous Munic rates'!K64) -> 76.94 | L64: =IF(Calculations!$C$9=FALSE,'Previous Non-Munic rates'!L64,'Previous Munic rates'!L64) -> 236.74 | M64: =IF(Calculations!$C$9=FALSE,'Previous Non-Munic rates'!M64,'Previous Munic rates'!M64) -> 0 | N64: =IF(Calculations!$C$9=FALSE,'Previous Non-Munic rates'!N64,'Previous Munic rates'!N64) -> 4639.2 | O64: =IF(Calculations!$C$9=FALSE,'Previous Non-Munic rates'!O64,'Previous Munic rates'!O64) -> 92.61 | P64: =IF(Calculations!$C$9=FALSE,'Previous Non-Munic rates'!P64,'Previous Munic rates'!P64) -> 92.61 | Q64: =IF(Calculations!$C$9=FALSE,'Previous Non-Munic rates'!Q64,'Previous Munic rates'!Q64) -> 92.61 | R64: =IF(Calculations!$C$9=FALSE,'Previous Non-Munic rates'!R64,'Previous Munic rates'!R64) -> 71.81 | S64: =IF(Calculations!$C$9=FALSE,'Previous Non-Munic rates'!S64,'Previous Munic rates'!S64) -> 71.81 | T64: =IF(Calculations!$C$9=FALSE,'Previous Non-Munic rates'!T64,'Previous Munic rates'!T64) -> 71.81 | U64: =IF(Calculations!$C$9=FALSE,'Previous Non-Munic rates'!U64,'Previous Munic rates'!U64) -> 0 | V64: =IF(Calculations!$C$9=FALSE,'Previous Non-Munic rates'!V64,'Previous Munic rates'!V64) -> 9.22 | W64: =IF(Calculations!$C$9=FALSE,'Previous Non-Munic rates'!W64,'Previous Munic rates'!W64) -> 10.64 | X64: =IF(Calculations!$C$9=FALSE,'Previous Non-Munic rates'!X64,'Previous Munic rates'!X64) -> 20.62 | Y64: =IF(Calculations!$C$9=FALSE,'Previous Non-Munic rates'!Y64,'Previous Munic rates'!Y64) -> 39.1 | AA64: =IF(Calculations!$C$9=FALSE,'Previous Non-Munic rates'!AA64,'Previous Munic rates'!AA64) -> 0 | AB64: =IF(Calculations!$C$9=FALSE,'Previous Non-Munic rates'!AB64,'Previous Munic rates'!AB64) -> 197.3 | AC64: =IF(Calculations!$C$9=FALSE,'Previous Non-Munic rates'!AC64,'Previous Munic rates'!AC64) -> 25.37 | AD64: =IF(Calculations!$C$9=FALSE,'Previous Non-Munic rates'!AD64,'Previous Munic rates'!AD64) -> 30.4167 | AE64: =IF(Calculations!$C$9=FALSE,'Previous Non-Munic rates'!AE64,'Previous Munic rates'!AE64) -> 0.48 | AF64: =IF(Calculations!$C$9=FALSE,'Previous Non-Munic rates'!AF64,'Previous Munic rates'!AF64) -> 0 | AG64: =IF(Calculations!$C$9=FALSE, 'Previous Non-Munic rates'!AG64, 'Previous Munic rates'!AG64) -> 0 | AH64: =IF(Calculations!$C$9=FALSE, 'Previous Non-Munic rates'!AH64, 'Previous Munic rates'!AH64) -> 0 | AI64: =IF(Calculations!$C$9=FALSE, 'Previous Non-Munic rates'!AI64, 'Previous Munic rates'!AI64) -> 0 | AJ64: =IF(Calculations!$C$9=FALSE, 'Previous Non-Munic rates'!AJ64, 'Previous Munic rates'!AJ64) -> 4.34 | AM64: 62
A65: Nightsave Urban Small32 | B65: Nightsave Urban Small | C65: 3 | D65: 2 | E65: =IF(Calculations!$C$9=FALSE,'Previous Non-Munic rates'!E65,'Previous Munic rates'!E65) -> 3.7 | F65: =IF(Calculations!$C$9=FALSE,'Previous Non-Munic rates'!F65,'Previous Munic rates'!F65) -> 21.58 | G65: =IF(Calculations!$C$9=FALSE,'Previous Non-Munic rates'!G65,'Previous Munic rates'!G65) -> 42.85 | H65: =IF(Calculations!$C$9=FALSE,'Previous Non-Munic rates'!H65,'Previous Munic rates'!H65) -> 0 | I65: =IF(Calculations!$C$9=FALSE,'Previous Non-Munic rates'!I65,'Previous Munic rates'!I65) -> 148.16 | J65: =IF(Calculations!$C$9=FALSE,'Previous Non-Munic rates'!J65,'Previous Munic rates'!J65) -> 16.85 | K65: =IF(Calculations!$C$9=FALSE,'Previous Non-Munic rates'!K65,'Previous Munic rates'!K65) -> 76.94 | L65: =IF(Calculations!$C$9=FALSE,'Previous Non-Munic rates'!L65,'Previous Munic rates'!L65) -> 236.74 | M65: =IF(Calculations!$C$9=FALSE,'Previous Non-Munic rates'!M65,'Previous Munic rates'!M65) -> 0 | N65: =IF(Calculations!$C$9=FALSE,'Previous Non-Munic rates'!N65,'Previous Munic rates'!N65) -> 4639.2 | O65: =IF(Calculations!$C$9=FALSE,'Previous Non-Munic rates'!O65,'Previous Munic rates'!O65) -> 88.32 | P65: =IF(Calculations!$C$9=FALSE,'Previous Non-Munic rates'!P65,'Previous Munic rates'!P65) -> 88.32 | Q65: =IF(Calculations!$C$9=FALSE,'Previous Non-Munic rates'!Q65,'Previous Munic rates'!Q65) -> 88.32 | R65: =IF(Calculations!$C$9=FALSE,'Previous Non-Munic rates'!R65,'Previous Munic rates'!R65) -> 68.93 | S65: =IF(Calculations!$C$9=FALSE,'Previous Non-Munic rates'!S65,'Previous Munic rates'!S65) -> 68.93 | T65: =IF(Calculations!$C$9=FALSE,'Previous Non-Munic rates'!T65,'Previous Munic rates'!T65) -> 68.93 | U65: =IF(Calculations!$C$9=FALSE,'Previous Non-Munic rates'!U65,'Previous Munic rates'!U65) -> 0 | V65: =IF(Calculations!$C$9=FALSE,'Previous Non-Munic rates'!V65,'Previous Munic rates'!V65) -> 9.22 | W65: =IF(Calculations!$C$9=FALSE,'Previous Non-Munic rates'!W65,'Previous Munic rates'!W65) -> 9.77 | X65: =IF(Calculations!$C$9=FALSE,'Previous Non-Munic rates'!X65,'Previous Munic rates'!X65) -> 18.91 | Y65: =IF(Calculations!$C$9=FALSE,'Previous Non-Munic rates'!Y65,'Previous Munic rates'!Y65) -> 35.87 | AA65: =IF(Calculations!$C$9=FALSE,'Previous Non-Munic rates'!AA65,'Previous Munic rates'!AA65) -> 0 | AB65: =IF(Calculations!$C$9=FALSE,'Previous Non-Munic rates'!AB65,'Previous Munic rates'!AB65) -> 190.91 | AC65: =IF(Calculations!$C$9=FALSE,'Previous Non-Munic rates'!AC65,'Previous Munic rates'!AC65) -> 24.57 | AD65: =IF(Calculations!$C$9=FALSE,'Previous Non-Munic rates'!AD65,'Previous Munic rates'!AD65) -> 30.4167 | AE65: =IF(Calculations!$C$9=FALSE,'Previous Non-Munic rates'!AE65,'Previous Munic rates'!AE65) -> 0.47 | AF65: =IF(Calculations!$C$9=FALSE,'Previous Non-Munic rates'!AF65,'Previous Munic rates'!AF65) -> 0 | AG65: =IF(Calculations!$C$9=FALSE, 'Previous Non-Munic rates'!AG65, 'Previous Munic rates'!AG65) -> 0 | AH65: =IF(Calculations!$C$9=FALSE, 'Previous Non-Munic rates'!AH65, 'Previous Munic rates'!AH65) -> 0 | AI65: =IF(Calculations!$C$9=FALSE, 'Previous Non-Munic rates'!AI65, 'Previous Munic rates'!AI65) -> 0 | AJ65: =IF(Calculations!$C$9=FALSE, 'Previous Non-Munic rates'!AJ65, 'Previous Munic rates'!AJ65) -> 4.34 | AM65: 63
A66: Nightsave Urban Small33 | B66: Nightsave Urban Small | C66: 3 | D66: 3 | E66: =IF(Calculations!$C$9=FALSE,'Previous Non-Munic rates'!E66,'Previous Munic rates'!E66) -> 3.7 | F66: =IF(Calculations!$C$9=FALSE,'Previous Non-Munic rates'!F66,'Previous Munic rates'!F66) -> 21.58 | G66: =IF(Calculations!$C$9=FALSE,'Previous Non-Munic rates'!G66,'Previous Munic rates'!G66) -> 42.85 | H66: =IF(Calculations!$C$9=FALSE,'Previous Non-Munic rates'!H66,'Previous Munic rates'!H66) -> 0 | I66: =IF(Calculations!$C$9=FALSE,'Previous Non-Munic rates'!I66,'Previous Munic rates'!I66) -> 148.16 | J66: =IF(Calculations!$C$9=FALSE,'Previous Non-Munic rates'!J66,'Previous Munic rates'!J66) -> 16.85 | K66: =IF(Calculations!$C$9=FALSE,'Previous Non-Munic rates'!K66,'Previous Munic rates'!K66) -> 76.94 | L66: =IF(Calculations!$C$9=FALSE,'Previous Non-Munic rates'!L66,'Previous Munic rates'!L66) -> 236.74 | M66: =IF(Calculations!$C$9=FALSE,'Previous Non-Munic rates'!M66,'Previous Munic rates'!M66) -> 0 | N66: =IF(Calculations!$C$9=FALSE,'Previous Non-Munic rates'!N66,'Previous Munic rates'!N66) -> 4639.2 | O66: =IF(Calculations!$C$9=FALSE,'Previous Non-Munic rates'!O66,'Previous Munic rates'!O66) -> 87.71 | P66: =IF(Calculations!$C$9=FALSE,'Previous Non-Munic rates'!P66,'Previous Munic rates'!P66) -> 87.71 | Q66: =IF(Calculations!$C$9=FALSE,'Previous Non-Munic rates'!Q66,'Previous Munic rates'!Q66) -> 87.71 | R66: =IF(Calculations!$C$9=FALSE,'Previous Non-Munic rates'!R66,'Previous Munic rates'!R66) -> 68.07 | S66: =IF(Calculations!$C$9=FALSE,'Previous Non-Munic rates'!S66,'Previous Munic rates'!S66) -> 68.07 | T66: =IF(Calculations!$C$9=FALSE,'Previous Non-Munic rates'!T66,'Previous Munic rates'!T66) -> 68.07 | U66: =IF(Calculations!$C$9=FALSE,'Previous Non-Munic rates'!U66,'Previous Munic rates'!U66) -> 0 | V66: =IF(Calculations!$C$9=FALSE,'Previous Non-Munic rates'!V66,'Previous Munic rates'!V66) -> 9.22 | W66: =IF(Calculations!$C$9=FALSE,'Previous Non-Munic rates'!W66,'Previous Munic rates'!W66) -> 9.45 | X66: =IF(Calculations!$C$9=FALSE,'Previous Non-Munic rates'!X66,'Previous Munic rates'!X66) -> 6.75 | Y66: =IF(Calculations!$C$9=FALSE,'Previous Non-Munic rates'!Y66,'Previous Munic rates'!Y66) -> 12.51 | AA66: =IF(Calculations!$C$9=FALSE,'Previous Non-Munic rates'!AA66,'Previous Munic rates'!AA66) -> 0 | AB66: =IF(Calculations!$C$9=FALSE,'Previous Non-Munic rates'!AB66,'Previous Munic rates'!AB66) -> 183.97 | AC66: =IF(Calculations!$C$9=FALSE,'Previous Non-Munic rates'!AC66,'Previous Munic rates'!AC66) -> 23.68 | AD66: =IF(Calculations!$C$9=FALSE,'Previous Non-Munic rates'!AD66,'Previous Munic rates'!AD66) -> 30.4167 | AE66: =IF(Calculations!$C$9=FALSE,'Previous Non-Munic rates'!AE66,'Previous Munic rates'!AE66) -> 0.45 | AF66: =IF(Calculations!$C$9=FALSE,'Previous Non-Munic rates'!AF66,'Previous Munic rates'!AF66) -> 0 | AG66: =IF(Calculations!$C$9=FALSE, 'Previous Non-Munic rates'!AG66, 'Previous Munic rates'!AG66) -> 0 | AH66: =IF(Calculations!$C$9=FALSE, 'Previous Non-Munic rates'!AH66, 'Previous Munic rates'!AH66) -> 16.66 | AI66: =IF(Calculations!$C$9=FALSE, 'Previous Non-Munic rates'!AI66, 'Previous Munic rates'!AI66) -> 0 | AJ66: =IF(Calculations!$C$9=FALSE, 'Previous Non-Munic rates'!AJ66, 'Previous Munic rates'!AJ66) -> 4.34 | AM66: 64
A67: Nightsave Urban Small34 | B67: Nightsave Urban Small | C67: 3 | D67: 4 | E67: =IF(Calculations!$C$9=FALSE,'Previous Non-Munic rates'!E67,'Previous Munic rates'!E67) -> 3.7 | F67: =IF(Calculations!$C$9=FALSE,'Previous Non-Munic rates'!F67,'Previous Munic rates'!F67) -> 21.58 | G67: =IF(Calculations!$C$9=FALSE,'Previous Non-Munic rates'!G67,'Previous Munic rates'!G67) -> 42.85 | H67: =IF(Calculations!$C$9=FALSE,'Previous Non-Munic rates'!H67,'Previous Munic rates'!H67) -> 0 | I67: =IF(Calculations!$C$9=FALSE,'Previous Non-Munic rates'!I67,'Previous Munic rates'!I67) -> 148.16 | J67: =IF(Calculations!$C$9=FALSE,'Previous Non-Munic rates'!J67,'Previous Munic rates'!J67) -> 16.85 | K67: =IF(Calculations!$C$9=FALSE,'Previous Non-Munic rates'!K67,'Previous Munic rates'!K67) -> 76.94 | L67: =IF(Calculations!$C$9=FALSE,'Previous Non-Munic rates'!L67,'Previous Munic rates'!L67) -> 236.74 | M67: =IF(Calculations!$C$9=FALSE,'Previous Non-Munic rates'!M67,'Previous Munic rates'!M67) -> 0 | N67: =IF(Calculations!$C$9=FALSE,'Previous Non-Munic rates'!N67,'Previous Munic rates'!N67) -> 4639.2 | O67: =IF(Calculations!$C$9=FALSE,'Previous Non-Munic rates'!O67,'Previous Munic rates'!O67) -> 82.08 | P67: =IF(Calculations!$C$9=FALSE,'Previous Non-Munic rates'!P67,'Previous Munic rates'!P67) -> 82.08 | Q67: =IF(Calculations!$C$9=FALSE,'Previous Non-Munic rates'!Q67,'Previous Munic rates'!Q67) -> 82.08 | R67: =IF(Calculations!$C$9=FALSE,'Previous Non-Munic rates'!R67,'Previous Munic rates'!R67) -> 63.83 | S67: =IF(Calculations!$C$9=FALSE,'Previous Non-Munic rates'!S67,'Previous Munic rates'!S67) -> 63.83 | T67: =IF(Calculations!$C$9=FALSE,'Previous Non-Munic rates'!T67,'Previous Munic rates'!T67) -> 63.83 | U67: =IF(Calculations!$C$9=FALSE,'Previous Non-Munic rates'!U67,'Previous Munic rates'!U67) -> 0 | V67: =IF(Calculations!$C$9=FALSE,'Previous Non-Munic rates'!V67,'Previous Munic rates'!V67) -> 9.22 | W67: =IF(Calculations!$C$9=FALSE,'Previous Non-Munic rates'!W67,'Previous Munic rates'!W67) -> 12.04 | X67: =IF(Calculations!$C$9=FALSE,'Previous Non-Munic rates'!X67,'Previous Munic rates'!X67) -> 0 | Y67: =IF(Calculations!$C$9=FALSE,'Previous Non-Munic rates'!Y67,'Previous Munic rates'!Y67) -> 0 | AA67: =IF(Calculations!$C$9=FALSE,'Previous Non-Munic rates'!AA67,'Previous Munic rates'!AA67) -> 0 | AB67: =IF(Calculations!$C$9=FALSE,'Previous Non-Munic rates'!AB67,'Previous Munic rates'!AB67) -> 177.5 | AC67: =IF(Calculations!$C$9=FALSE,'Previous Non-Munic rates'!AC67,'Previous Munic rates'!AC67) -> 22.86 | AD67: =IF(Calculations!$C$9=FALSE,'Previous Non-Munic rates'!AD67,'Previous Munic rates'!AD67) -> 30.4167 | AE67: =IF(Calculations!$C$9=FALSE,'Previous Non-Munic rates'!AE67,'Previous Munic rates'!AE67) -> 0.42 | AF67: =IF(Calculations!$C$9=FALSE,'Previous Non-Munic rates'!AF67,'Previous Munic rates'!AF67) -> 0 | AG67: =IF(Calculations!$C$9=FALSE, 'Previous Non-Munic rates'!AG67, 'Previous Munic rates'!AG67) -> 0 | AH67: =IF(Calculations!$C$9=FALSE, 'Previous Non-Munic rates'!AH67, 'Previous Munic rates'!AH67) -> 16.66 | AI67: =IF(Calculations!$C$9=FALSE, 'Previous Non-Munic rates'!AI67, 'Previous Munic rates'!AI67) -> 0 | AJ67: =IF(Calculations!$C$9=FALSE, 'Previous Non-Munic rates'!AJ67, 'Previous Munic rates'!AJ67) -> 4.34 | AM67: 65
A68: =CONCATENATE(B68,C68,D68) -> Transflex 101 | B68: Transflex 1 | C68: 0 | D68: 1 | E68: =IF(Calculations!$C$9=FALSE,'Previous Non-Munic rates'!E68,'Previous Munic rates'!E68) -> 0 | F68: =IF(Calculations!$C$9=FALSE,'Previous Non-Munic rates'!F68,'Previous Munic rates'!F68) -> 0 | G68: =IF(Calculations!$C$9=FALSE,'Previous Non-Munic rates'!G68,'Previous Munic rates'!G68) -> 0 | H68: =IF(Calculations!$C$9=FALSE,'Previous Non-Munic rates'!H68,'Previous Munic rates'!H68) -> 106.69 | I68: =IF(Calculations!$C$9=FALSE,'Previous Non-Munic rates'!I68,'Previous Munic rates'!I68) -> 148.16 | J68: =IF(Calculations!$C$9=FALSE,'Previous Non-Munic rates'!J68,'Previous Munic rates'!J68) -> 0 | K68: =IF(Calculations!$C$9=FALSE,'Previous Non-Munic rates'!K68,'Previous Munic rates'!K68) -> 0 | L68: =IF(Calculations!$C$9=FALSE,'Previous Non-Munic rates'!L68,'Previous Munic rates'!L68) -> 0 | M68: =IF(Calculations!$C$9=FALSE,'Previous Non-Munic rates'!M68,'Previous Munic rates'!M68) -> 236.74 | N68: =IF(Calculations!$C$9=FALSE,'Previous Non-Munic rates'!N68,'Previous Munic rates'!N68) -> 4639.2 | O68: =IF(Calculations!$C$9=FALSE,'Previous Non-Munic rates'!O68,'Previous Munic rates'!O68) -> 362.73 | P68: =IF(Calculations!$C$9=FALSE,'Previous Non-Munic rates'!P68,'Previous Munic rates'!P68) -> 110.36 | Q68: =IF(Calculations!$C$9=FALSE,'Previous Non-Munic rates'!Q68,'Previous Munic rates'!Q68) -> 60.26 | R68: =IF(Calculations!$C$9=FALSE,'Previous Non-Munic rates'!R68,'Previous Munic rates'!R68) -> 118.78 | S68: =IF(Calculations!$C$9=FALSE,'Previous Non-Munic rates'!S68,'Previous Munic rates'!S68) -> 81.96 | T68: =IF(Calculations!$C$9=FALSE,'Previous Non-Munic rates'!T68,'Previous Munic rates'!T68) -> 52.25 | U68: =IF(Calculations!$C$9=FALSE,'Previous Non-Munic rates'!U68,'Previous Munic rates'!U68) -> 11.02 | V68: =IF(Calculations!$C$9=FALSE,'Previous Non-Munic rates'!V68,'Previous Munic rates'!V68) -> 9.22 | W68: =IF(Calculations!$C$9=FALSE,'Previous Non-Munic rates'!W68,'Previous Munic rates'!W68) -> 0 | X68: =IF(Calculations!$C$9=FALSE,'Previous Non-Munic rates'!X68,'Previous Munic rates'!X68) -> 0 | Y68: =IF(Calculations!$C$9=FALSE,'Previous Non-Munic rates'!Y68,'Previous Munic rates'!Y68) -> 0 | AA68: =IF(Calculations!$C$9=FALSE,'Previous Non-Munic rates'!AA68,'Previous Munic rates'!AA68) -> 5973.78 | AB68: =IF(Calculations!$C$9=FALSE,'Previous Non-Munic rates'!AB68,'Previous Munic rates'!AB68) -> 0 | AC68: =IF(Calculations!$C$9=FALSE,'Previous Non-Munic rates'!AC68,'Previous Munic rates'!AC68) -> 0 | AD68: =IF(Calculations!$C$9=FALSE,'Previous Non-Munic rates'!AD68,'Previous Munic rates'!AD68) -> 30.4167 | AE68: =IF(Calculations!$C$9=FALSE,'Previous Non-Munic rates'!AE68,'Previous Munic rates'!AE68) -> 0.48 | AF68: =IF(Calculations!$C$9=FALSE,'Previous Non-Munic rates'!AF68,'Previous Munic rates'!AF68) -> 0 | AG68: =IF(Calculations!$C$9=FALSE, 'Previous Non-Munic rates'!AG68, 'Previous Munic rates'!AG68) -> 0 | AH68: =IF(Calculations!$C$9=FALSE, 'Previous Non-Munic rates'!AH68, 'Previous Munic rates'!AH68) -> 0 | AI68: =IF(Calculations!$C$9=FALSE, 'Previous Non-Munic rates'!AI68, 'Previous Munic rates'!AI68) -> 0 | AJ68: =IF(Calculations!$C$9=FALSE, 'Previous Non-Munic rates'!AJ68, 'Previous Munic rates'!AJ68) -> 4.34 | AM68: 66
A69: Transflex 102 | B69: Transflex 1 | C69: 0 | D69: 2 | E69: =IF(Calculations!$C$9=FALSE,'Previous Non-Munic rates'!E69,'Previous Munic rates'!E69) -> 0 | F69: =IF(Calculations!$C$9=FALSE,'Previous Non-Munic rates'!F69,'Previous Munic rates'!F69) -> 0 | G69: =IF(Calculations!$C$9=FALSE,'Previous Non-Munic rates'!G69,'Previous Munic rates'!G69) -> 0 | H69: =IF(Calculations!$C$9=FALSE,'Previous Non-Munic rates'!H69,'Previous Munic rates'!H69) -> 106.69 | I69: =IF(Calculations!$C$9=FALSE,'Previous Non-Munic rates'!I69,'Previous Munic rates'!I69) -> 148.16 | J69: =IF(Calculations!$C$9=FALSE,'Previous Non-Munic rates'!J69,'Previous Munic rates'!J69) -> 0 | K69: =IF(Calculations!$C$9=FALSE,'Previous Non-Munic rates'!K69,'Previous Munic rates'!K69) -> 0 | L69: =IF(Calculations!$C$9=FALSE,'Previous Non-Munic rates'!L69,'Previous Munic rates'!L69) -> 0 | M69: =IF(Calculations!$C$9=FALSE,'Previous Non-Munic rates'!M69,'Previous Munic rates'!M69) -> 236.74 | N69: =IF(Calculations!$C$9=FALSE,'Previous Non-Munic rates'!N69,'Previous Munic rates'!N69) -> 4639.2 | O69: =IF(Calculations!$C$9=FALSE,'Previous Non-Munic rates'!O69,'Previous Munic rates'!O69) -> 357.04 | P69: =IF(Calculations!$C$9=FALSE,'Previous Non-Munic rates'!P69,'Previous Munic rates'!P69) -> 108.16 | Q69: =IF(Calculations!$C$9=FALSE,'Previous Non-Munic rates'!Q69,'Previous Munic rates'!Q69) -> 58.74 | R69: =IF(Calculations!$C$9=FALSE,'Previous Non-Munic rates'!R69,'Previous Munic rates'!R69) -> 116.45 | S69: =IF(Calculations!$C$9=FALSE,'Previous Non-Munic rates'!S69,'Previous Munic rates'!S69) -> 80.17 | T69: =IF(Calculations!$C$9=FALSE,'Previous Non-Munic rates'!T69,'Previous Munic rates'!T69) -> 50.86 | U69: =IF(Calculations!$C$9=FALSE,'Previous Non-Munic rates'!U69,'Previous Munic rates'!U69) -> 11.02 | V69: =IF(Calculations!$C$9=FALSE,'Previous Non-Munic rates'!V69,'Previous Munic rates'!V69) -> 9.22 | W69: =IF(Calculations!$C$9=FALSE,'Previous Non-Munic rates'!W69,'Previous Munic rates'!W69) -> 0 | X69: =IF(Calculations!$C$9=FALSE,'Previous Non-Munic rates'!X69,'Previous Munic rates'!X69) -> 0 | Y69: =IF(Calculations!$C$9=FALSE,'Previous Non-Munic rates'!Y69,'Previous Munic rates'!Y69) -> 0 | AA69: =IF(Calculations!$C$9=FALSE,'Previous Non-Munic rates'!AA69,'Previous Munic rates'!AA69) -> 5474.51 | AB69: =IF(Calculations!$C$9=FALSE,'Previous Non-Munic rates'!AB69,'Previous Munic rates'!AB69) -> 0 | AC69: =IF(Calculations!$C$9=FALSE,'Previous Non-Munic rates'!AC69,'Previous Munic rates'!AC69) -> 0 | AD69: =IF(Calculations!$C$9=FALSE,'Previous Non-Munic rates'!AD69,'Previous Munic rates'!AD69) -> 30.4167 | AE69: =IF(Calculations!$C$9=FALSE,'Previous Non-Munic rates'!AE69,'Previous Munic rates'!AE69) -> 0.47 | AF69: =IF(Calculations!$C$9=FALSE,'Previous Non-Munic rates'!AF69,'Previous Munic rates'!AF69) -> 0 | AG69: =IF(Calculations!$C$9=FALSE, 'Previous Non-Munic rates'!AG69, 'Previous Munic rates'!AG69) -> 0 | AH69: =IF(Calculations!$C$9=FALSE, 'Previous Non-Munic rates'!AH69, 'Previous Munic rates'!AH69) -> 0 | AI69: =IF(Calculations!$C$9=FALSE, 'Previous Non-Munic rates'!AI69, 'Previous Munic rates'!AI69) -> 0 | AJ69: =IF(Calculations!$C$9=FALSE, 'Previous Non-Munic rates'!AJ69, 'Previous Munic rates'!AJ69) -> 4.34 | AM69: 67
A70: Transflex 103 | B70: Transflex 1 | C70: 0 | D70: 3 | E70: =IF(Calculations!$C$9=FALSE,'Previous Non-Munic rates'!E70,'Previous Munic rates'!E70) -> 0 | F70: =IF(Calculations!$C$9=FALSE,'Previous Non-Munic rates'!F70,'Previous Munic rates'!F70) -> 0 | G70: =IF(Calculations!$C$9=FALSE,'Previous Non-Munic rates'!G70,'Previous Munic rates'!G70) -> 0 | H70: =IF(Calculations!$C$9=FALSE,'Previous Non-Munic rates'!H70,'Previous Munic rates'!H70) -> 106.69 | I70: =IF(Calculations!$C$9=FALSE,'Previous Non-Munic rates'!I70,'Previous Munic rates'!I70) -> 148.16 | J70: =IF(Calculations!$C$9=FALSE,'Previous Non-Munic rates'!J70,'Previous Munic rates'!J70) -> 0 | K70: =IF(Calculations!$C$9=FALSE,'Previous Non-Munic rates'!K70,'Previous Munic rates'!K70) -> 0 | L70: =IF(Calculations!$C$9=FALSE,'Previous Non-Munic rates'!L70,'Previous Munic rates'!L70) -> 0 | M70: =IF(Calculations!$C$9=FALSE,'Previous Non-Munic rates'!M70,'Previous Munic rates'!M70) -> 236.74 | N70: =IF(Calculations!$C$9=FALSE,'Previous Non-Munic rates'!N70,'Previous Munic rates'!N70) -> 4639.2 | O70: =IF(Calculations!$C$9=FALSE,'Previous Non-Munic rates'!O70,'Previous Munic rates'!O70) -> 345.73 | P70: =IF(Calculations!$C$9=FALSE,'Previous Non-Munic rates'!P70,'Previous Munic rates'!P70) -> 104.73 | Q70: =IF(Calculations!$C$9=FALSE,'Previous Non-Munic rates'!Q70,'Previous Munic rates'!Q70) -> 56.88 | R70: =IF(Calculations!$C$9=FALSE,'Previous Non-Munic rates'!R70,'Previous Munic rates'!R70) -> 112.79 | S70: =IF(Calculations!$C$9=FALSE,'Previous Non-Munic rates'!S70,'Previous Munic rates'!S70) -> 77.61 | T70: =IF(Calculations!$C$9=FALSE,'Previous Non-Munic rates'!T70,'Previous Munic rates'!T70) -> 49.26 | U70: =IF(Calculations!$C$9=FALSE,'Previous Non-Munic rates'!U70,'Previous Munic rates'!U70) -> 11.02 | V70: =IF(Calculations!$C$9=FALSE,'Previous Non-Munic rates'!V70,'Previous Munic rates'!V70) -> 9.22 | W70: =IF(Calculations!$C$9=FALSE,'Previous Non-Munic rates'!W70,'Previous Munic rates'!W70) -> 0 | X70: =IF(Calculations!$C$9=FALSE,'Previous Non-Munic rates'!X70,'Previous Munic rates'!X70) -> 0 | Y70: =IF(Calculations!$C$9=FALSE,'Previous Non-Munic rates'!Y70,'Previous Munic rates'!Y70) -> 0 | AA70: =IF(Calculations!$C$9=FALSE,'Previous Non-Munic rates'!AA70,'Previous Munic rates'!AA70) -> 5306.02 | AB70: =IF(Calculations!$C$9=FALSE,'Previous Non-Munic rates'!AB70,'Previous Munic rates'!AB70) -> 0 | AC70: =IF(Calculations!$C$9=FALSE,'Previous Non-Munic rates'!AC70,'Previous Munic rates'!AC70) -> 0 | AD70: =IF(Calculations!$C$9=FALSE,'Previous Non-Munic rates'!AD70,'Previous Munic rates'!AD70) -> 30.4167 | AE70: =IF(Calculations!$C$9=FALSE,'Previous Non-Munic rates'!AE70,'Previous Munic rates'!AE70) -> 0.45 | AF70: =IF(Calculations!$C$9=FALSE,'Previous Non-Munic rates'!AF70,'Previous Munic rates'!AF70) -> 0 | AG70: =IF(Calculations!$C$9=FALSE, 'Previous Non-Munic rates'!AG70, 'Previous Munic rates'!AG70) -> 0 | AH70: =IF(Calculations!$C$9=FALSE, 'Previous Non-Munic rates'!AH70, 'Previous Munic rates'!AH70) -> 0 | AI70: =IF(Calculations!$C$9=FALSE, 'Previous Non-Munic rates'!AI70, 'Previous Munic rates'!AI70) -> 0 | AJ70: =IF(Calculations!$C$9=FALSE, 'Previous Non-Munic rates'!AJ70, 'Previous Munic rates'!AJ70) -> 4.34 | AM70: 68
A71: Transflex 104 | B71: Transflex 1 | C71: 0 | D71: 4 | E71: =IF(Calculations!$C$9=FALSE,'Previous Non-Munic rates'!E71,'Previous Munic rates'!E71) -> 0 | F71: =IF(Calculations!$C$9=FALSE,'Previous Non-Munic rates'!F71,'Previous Munic rates'!F71) -> 0 | G71: =IF(Calculations!$C$9=FALSE,'Previous Non-Munic rates'!G71,'Previous Munic rates'!G71) -> 0 | H71: =IF(Calculations!$C$9=FALSE,'Previous Non-Munic rates'!H71,'Previous Munic rates'!H71) -> 106.69 | I71: =IF(Calculations!$C$9=FALSE,'Previous Non-Munic rates'!I71,'Previous Munic rates'!I71) -> 148.16 | J71: =IF(Calculations!$C$9=FALSE,'Previous Non-Munic rates'!J71,'Previous Munic rates'!J71) -> 0 | K71: =IF(Calculations!$C$9=FALSE,'Previous Non-Munic rates'!K71,'Previous Munic rates'!K71) -> 0 | L71: =IF(Calculations!$C$9=FALSE,'Previous Non-Munic rates'!L71,'Previous Munic rates'!L71) -> 0 | M71: =IF(Calculations!$C$9=FALSE,'Previous Non-Munic rates'!M71,'Previous Munic rates'!M71) -> 236.74 | N71: =IF(Calculations!$C$9=FALSE,'Previous Non-Munic rates'!N71,'Previous Munic rates'!N71) -> 4639.2 | O71: =IF(Calculations!$C$9=FALSE,'Previous Non-Munic rates'!O71,'Previous Munic rates'!O71) -> 325.84 | P71: =IF(Calculations!$C$9=FALSE,'Previous Non-Munic rates'!P71,'Previous Munic rates'!P71) -> 98.7 | Q71: =IF(Calculations!$C$9=FALSE,'Previous Non-Munic rates'!Q71,'Previous Munic rates'!Q71) -> 53.61 | R71: =IF(Calculations!$C$9=FALSE,'Previous Non-Munic rates'!R71,'Previous Munic rates'!R71) -> 106.32 | S71: =IF(Calculations!$C$9=FALSE,'Previous Non-Munic rates'!S71,'Previous Munic rates'!S71) -> 73.15 | T71: =IF(Calculations!$C$9=FALSE,'Previous Non-Munic rates'!T71,'Previous Munic rates'!T71) -> 46.42 | U71: =IF(Calculations!$C$9=FALSE,'Previous Non-Munic rates'!U71,'Previous Munic rates'!U71) -> 11.02 | V71: =IF(Calculations!$C$9=FALSE,'Previous Non-Munic rates'!V71,'Previous Munic rates'!V71) -> 9.22 | W71: =IF(Calculations!$C$9=FALSE,'Previous Non-Munic rates'!W71,'Previous Munic rates'!W71) -> 0 | X71: =IF(Calculations!$C$9=FALSE,'Previous Non-Munic rates'!X71,'Previous Munic rates'!X71) -> 0 | Y71: =IF(Calculations!$C$9=FALSE,'Previous Non-Munic rates'!Y71,'Previous Munic rates'!Y71) -> 0 | AA71: =IF(Calculations!$C$9=FALSE,'Previous Non-Munic rates'!AA71,'Previous Munic rates'!AA71) -> 4779.02 | AB71: =IF(Calculations!$C$9=FALSE,'Previous Non-Munic rates'!AB71,'Previous Munic rates'!AB71) -> 0 | AC71: =IF(Calculations!$C$9=FALSE,'Previous Non-Munic rates'!AC71,'Previous Munic rates'!AC71) -> 0 | AD71: =IF(Calculations!$C$9=FALSE,'Previous Non-Munic rates'!AD71,'Previous Munic rates'!AD71) -> 30.4167 | AE71: =IF(Calculations!$C$9=FALSE,'Previous Non-Munic rates'!AE71,'Previous Munic rates'!AE71) -> 0.42 | AF71: =IF(Calculations!$C$9=FALSE,'Previous Non-Munic rates'!AF71,'Previous Munic rates'!AF71) -> 0 | AG71: =IF(Calculations!$C$9=FALSE, 'Previous Non-Munic rates'!AG71, 'Previous Munic rates'!AG71) -> 0 | AH71: =IF(Calculations!$C$9=FALSE, 'Previous Non-Munic rates'!AH71, 'Previous Munic rates'!AH71) -> 0 | AI71: =IF(Calculations!$C$9=FALSE, 'Previous Non-Munic rates'!AI71, 'Previous Munic rates'!AI71) -> 0 | AJ71: =IF(Calculations!$C$9=FALSE, 'Previous Non-Munic rates'!AJ71, 'Previous Munic rates'!AJ71) -> 4.34 | AM71: 69
A72: Transflex 111 | B72: Transflex 1 | C72: 1 | D72: 1 | E72: =IF(Calculations!$C$9=FALSE,'Previous Non-Munic rates'!E72,'Previous Munic rates'!E72) -> 0 | F72: =IF(Calculations!$C$9=FALSE,'Previous Non-Munic rates'!F72,'Previous Munic rates'!F72) -> 0 | G72: =IF(Calculations!$C$9=FALSE,'Previous Non-Munic rates'!G72,'Previous Munic rates'!G72) -> 0 | H72: =IF(Calculations!$C$9=FALSE,'Previous Non-Munic rates'!H72,'Previous Munic rates'!H72) -> 106.69 | I72: =IF(Calculations!$C$9=FALSE,'Previous Non-Munic rates'!I72,'Previous Munic rates'!I72) -> 148.16 | J72: =IF(Calculations!$C$9=FALSE,'Previous Non-Munic rates'!J72,'Previous Munic rates'!J72) -> 0 | K72: =IF(Calculations!$C$9=FALSE,'Previous Non-Munic rates'!K72,'Previous Munic rates'!K72) -> 0 | L72: =IF(Calculations!$C$9=FALSE,'Previous Non-Munic rates'!L72,'Previous Munic rates'!L72) -> 0 | M72: =IF(Calculations!$C$9=FALSE,'Previous Non-Munic rates'!M72,'Previous Munic rates'!M72) -> 236.74 | N72: =IF(Calculations!$C$9=FALSE,'Previous Non-Munic rates'!N72,'Previous Munic rates'!N72) -> 4639.2 | O72: =IF(Calculations!$C$9=FALSE,'Previous Non-Munic rates'!O72,'Previous Munic rates'!O72) -> 366.28 | P72: =IF(Calculations!$C$9=FALSE,'Previous Non-Munic rates'!P72,'Previous Munic rates'!P72) -> 111.38 | Q72: =IF(Calculations!$C$9=FALSE,'Previous Non-Munic rates'!Q72,'Previous Munic rates'!Q72) -> 60.75 | R72: =IF(Calculations!$C$9=FALSE,'Previous Non-Munic rates'!R72,'Previous Munic rates'!R72) -> 119.91 | S72: =IF(Calculations!$C$9=FALSE,'Previous Non-Munic rates'!S72,'Previous Munic rates'!S72) -> 82.71 | T72: =IF(Calculations!$C$9=FALSE,'Previous Non-Munic rates'!T72,'Previous Munic rates'!T72) -> 52.71 | U72: =IF(Calculations!$C$9=FALSE,'Previous Non-Munic rates'!U72,'Previous Munic rates'!U72) -> 11.02 | V72: =IF(Calculations!$C$9=FALSE,'Previous Non-Munic rates'!V72,'Previous Munic rates'!V72) -> 9.22 | W72: =IF(Calculations!$C$9=FALSE,'Previous Non-Munic rates'!W72,'Previous Munic rates'!W72) -> 0 | X72: =IF(Calculations!$C$9=FALSE,'Previous Non-Munic rates'!X72,'Previous Munic rates'!X72) -> 0 | Y72: =IF(Calculations!$C$9=FALSE,'Previous Non-Munic rates'!Y72,'Previous Munic rates'!Y72) -> 0 | AA72: =IF(Calculations!$C$9=FALSE,'Previous Non-Munic rates'!AA72,'Previous Munic rates'!AA72) -> 6033.55 | AB72: =IF(Calculations!$C$9=FALSE,'Previous Non-Munic rates'!AB72,'Previous Munic rates'!AB72) -> 0 | AC72: =IF(Calculations!$C$9=FALSE,'Previous Non-Munic rates'!AC72,'Previous Munic rates'!AC72) -> 0 | AD72: =IF(Calculations!$C$9=FALSE,'Previous Non-Munic rates'!AD72,'Previous Munic rates'!AD72) -> 30.4167 | AE72: =IF(Calculations!$C$9=FALSE,'Previous Non-Munic rates'!AE72,'Previous Munic rates'!AE72) -> 0.48 | AF72: =IF(Calculations!$C$9=FALSE,'Previous Non-Munic rates'!AF72,'Previous Munic rates'!AF72) -> 0 | AG72: =IF(Calculations!$C$9=FALSE, 'Previous Non-Munic rates'!AG72, 'Previous Munic rates'!AG72) -> 0 | AH72: =IF(Calculations!$C$9=FALSE, 'Previous Non-Munic rates'!AH72, 'Previous Munic rates'!AH72) -> 0 | AI72: =IF(Calculations!$C$9=FALSE, 'Previous Non-Munic rates'!AI72, 'Previous Munic rates'!AI72) -> 0 | AJ72: =IF(Calculations!$C$9=FALSE, 'Previous Non-Munic rates'!AJ72, 'Previous Munic rates'!AJ72) -> 4.34 | AM72: 70
A73: Transflex 112 | B73: Transflex 1 | C73: 1 | D73: 2 | E73: =IF(Calculations!$C$9=FALSE,'Previous Non-Munic rates'!E73,'Previous Munic rates'!E73) -> 0 | F73: =IF(Calculations!$C$9=FALSE,'Previous Non-Munic rates'!F73,'Previous Munic rates'!F73) -> 0 | G73: =IF(Calculations!$C$9=FALSE,'Previous Non-Munic rates'!G73,'Previous Munic rates'!G73) -> 0 | H73: =IF(Calculations!$C$9=FALSE,'Previous Non-Munic rates'!H73,'Previous Munic rates'!H73) -> 106.69 | I73: =IF(Calculations!$C$9=FALSE,'Previous Non-Munic rates'!I73,'Previous Munic rates'!I73) -> 148.16 | J73: =IF(Calculations!$C$9=FALSE,'Previous Non-Munic rates'!J73,'Previous Munic rates'!J73) -> 0 | K73: =IF(Calculations!$C$9=FALSE,'Previous Non-Munic rates'!K73,'Previous Munic rates'!K73) -> 0 | L73: =IF(Calculations!$C$9=FALSE,'Previous Non-Munic rates'!L73,'Previous Munic rates'!L73) -> 0 | M73: =IF(Calculations!$C$9=FALSE,'Previous Non-Munic rates'!M73,'Previous Munic rates'!M73) -> 236.74 | N73: =IF(Calculations!$C$9=FALSE,'Previous Non-Munic rates'!N73,'Previous Munic rates'!N73) -> 4639.2 | O73: =IF(Calculations!$C$9=FALSE,'Previous Non-Munic rates'!O73,'Previous Munic rates'!O73) -> 360.52 | P73: =IF(Calculations!$C$9=FALSE,'Previous Non-Munic rates'!P73,'Previous Munic rates'!P73) -> 109.16 | Q73: =IF(Calculations!$C$9=FALSE,'Previous Non-Munic rates'!Q73,'Previous Munic rates'!Q73) -> 59.25 | R73: =IF(Calculations!$C$9=FALSE,'Previous Non-Munic rates'!R73,'Previous Munic rates'!R73) -> 117.57 | S73: =IF(Calculations!$C$9=FALSE,'Previous Non-Munic rates'!S73,'Previous Munic rates'!S73) -> 80.9 | T73: =IF(Calculations!$C$9=FALSE,'Previous Non-Munic rates'!T73,'Previous Munic rates'!T73) -> 51.28 | U73: =IF(Calculations!$C$9=FALSE,'Previous Non-Munic rates'!U73,'Previous Munic rates'!U73) -> 11.02 | V73: =IF(Calculations!$C$9=FALSE,'Previous Non-Munic rates'!V73,'Previous Munic rates'!V73) -> 9.22 | W73: =IF(Calculations!$C$9=FALSE,'Previous Non-Munic rates'!W73,'Previous Munic rates'!W73) -> 0 | X73: =IF(Calculations!$C$9=FALSE,'Previous Non-Munic rates'!X73,'Previous Munic rates'!X73) -> 0 | Y73: =IF(Calculations!$C$9=FALSE,'Previous Non-Munic rates'!Y73,'Previous Munic rates'!Y73) -> 0 | AA73: =IF(Calculations!$C$9=FALSE,'Previous Non-Munic rates'!AA73,'Previous Munic rates'!AA73) -> 5529.21 | AB73: =IF(Calculations!$C$9=FALSE,'Previous Non-Munic rates'!AB73,'Previous Munic rates'!AB73) -> 0 | AC73: =IF(Calculations!$C$9=FALSE,'Previous Non-Munic rates'!AC73,'Previous Munic rates'!AC73) -> 0 | AD73: =IF(Calculations!$C$9=FALSE,'Previous Non-Munic rates'!AD73,'Previous Munic rates'!AD73) -> 30.4167 | AE73: =IF(Calculations!$C$9=FALSE,'Previous Non-Munic rates'!AE73,'Previous Munic rates'!AE73) -> 0.47 | AF73: =IF(Calculations!$C$9=FALSE,'Previous Non-Munic rates'!AF73,'Previous Munic rates'!AF73) -> 0 | AG73: =IF(Calculations!$C$9=FALSE, 'Previous Non-Munic rates'!AG73, 'Previous Munic rates'!AG73) -> 0 | AH73: =IF(Calculations!$C$9=FALSE, 'Previous Non-Munic rates'!AH73, 'Previous Munic rates'!AH73) -> 0 | AI73: =IF(Calculations!$C$9=FALSE, 'Previous Non-Munic rates'!AI73, 'Previous Munic rates'!AI73) -> 0 | AJ73: =IF(Calculations!$C$9=FALSE, 'Previous Non-Munic rates'!AJ73, 'Previous Munic rates'!AJ73) -> 4.34 | AM73: 71
A74: Transflex 113 | B74: Transflex 1 | C74: 1 | D74: 3 | E74: =IF(Calculations!$C$9=FALSE,'Previous Non-Munic rates'!E74,'Previous Munic rates'!E74) -> 0 | F74: =IF(Calculations!$C$9=FALSE,'Previous Non-Munic rates'!F74,'Previous Munic rates'!F74) -> 0 | G74: =IF(Calculations!$C$9=FALSE,'Previous Non-Munic rates'!G74,'Previous Munic rates'!G74) -> 0 | H74: =IF(Calculations!$C$9=FALSE,'Previous Non-Munic rates'!H74,'Previous Munic rates'!H74) -> 106.69 | I74: =IF(Calculations!$C$9=FALSE,'Previous Non-Munic rates'!I74,'Previous Munic rates'!I74) -> 148.16 | J74: =IF(Calculations!$C$9=FALSE,'Previous Non-Munic rates'!J74,'Previous Munic rates'!J74) -> 0 | K74: =IF(Calculations!$C$9=FALSE,'Previous Non-Munic rates'!K74,'Previous Munic rates'!K74) -> 0 | L74: =IF(Calculations!$C$9=FALSE,'Previous Non-Munic rates'!L74,'Previous Munic rates'!L74) -> 0 | M74: =IF(Calculations!$C$9=FALSE,'Previous Non-Munic rates'!M74,'Previous Munic rates'!M74) -> 236.74 | N74: =IF(Calculations!$C$9=FALSE,'Previous Non-Munic rates'!N74,'Previous Munic rates'!N74) -> 4639.2 | O74: =IF(Calculations!$C$9=FALSE,'Previous Non-Munic rates'!O74,'Previous Munic rates'!O74) -> 349.09 | P74: =IF(Calculations!$C$9=FALSE,'Previous Non-Munic rates'!P74,'Previous Munic rates'!P74) -> 105.71 | Q74: =IF(Calculations!$C$9=FALSE,'Previous Non-Munic rates'!Q74,'Previous Munic rates'!Q74) -> 57.36 | R74: =IF(Calculations!$C$9=FALSE,'Previous Non-Munic rates'!R74,'Previous Munic rates'!R74) -> 113.84 | S74: =IF(Calculations!$C$9=FALSE,'Previous Non-Munic rates'!S74,'Previous Munic rates'!S74) -> 78.3 | T74: =IF(Calculations!$C$9=FALSE,'Previous Non-Munic rates'!T74,'Previous Munic rates'!T74) -> 49.65 | U74: =IF(Calculations!$C$9=FALSE,'Previous Non-Munic rates'!U74,'Previous Munic rates'!U74) -> 11.02 | V74: =IF(Calculations!$C$9=FALSE,'Previous Non-Munic rates'!V74,'Previous Munic rates'!V74) -> 9.22 | W74: =IF(Calculations!$C$9=FALSE,'Previous Non-Munic rates'!W74,'Previous Munic rates'!W74) -> 0 | X74: =IF(Calculations!$C$9=FALSE,'Previous Non-Munic rates'!X74,'Previous Munic rates'!X74) -> 0 | Y74: =IF(Calculations!$C$9=FALSE,'Previous Non-Munic rates'!Y74,'Previous Munic rates'!Y74) -> 0 | AA74: =IF(Calculations!$C$9=FALSE,'Previous Non-Munic rates'!AA74,'Previous Munic rates'!AA74) -> 5359.01 | AB74: =IF(Calculations!$C$9=FALSE,'Previous Non-Munic rates'!AB74,'Previous Munic rates'!AB74) -> 0 | AC74: =IF(Calculations!$C$9=FALSE,'Previous Non-Munic rates'!AC74,'Previous Munic rates'!AC74) -> 0 | AD74: =IF(Calculations!$C$9=FALSE,'Previous Non-Munic rates'!AD74,'Previous Munic rates'!AD74) -> 30.4167 | AE74: =IF(Calculations!$C$9=FALSE,'Previous Non-Munic rates'!AE74,'Previous Munic rates'!AE74) -> 0.45 | AF74: =IF(Calculations!$C$9=FALSE,'Previous Non-Munic rates'!AF74,'Previous Munic rates'!AF74) -> 0 | AG74: =IF(Calculations!$C$9=FALSE, 'Previous Non-Munic rates'!AG74, 'Previous Munic rates'!AG74) -> 0 | AH74: =IF(Calculations!$C$9=FALSE, 'Previous Non-Munic rates'!AH74, 'Previous Munic rates'!AH74) -> 0 | AI74: =IF(Calculations!$C$9=FALSE, 'Previous Non-Munic rates'!AI74, 'Previous Munic rates'!AI74) -> 0 | AJ74: =IF(Calculations!$C$9=FALSE, 'Previous Non-Munic rates'!AJ74, 'Previous Munic rates'!AJ74) -> 4.34 | AM74: 72
A75: Transflex 114 | B75: Transflex 1 | C75: 1 | D75: 4 | E75: =IF(Calculations!$C$9=FALSE,'Previous Non-Munic rates'!E75,'Previous Munic rates'!E75) -> 0 | F75: =IF(Calculations!$C$9=FALSE,'Previous Non-Munic rates'!F75,'Previous Munic rates'!F75) -> 0 | G75: =IF(Calculations!$C$9=FALSE,'Previous Non-Munic rates'!G75,'Previous Munic rates'!G75) -> 0 | H75: =IF(Calculations!$C$9=FALSE,'Previous Non-Munic rates'!H75,'Previous Munic rates'!H75) -> 106.69 | I75: =IF(Calculations!$C$9=FALSE,'Previous Non-Munic rates'!I75,'Previous Munic rates'!I75) -> 148.16 | J75: =IF(Calculations!$C$9=FALSE,'Previous Non-Munic rates'!J75,'Previous Munic rates'!J75) -> 0 | K75: =IF(Calculations!$C$9=FALSE,'Previous Non-Munic rates'!K75,'Previous Munic rates'!K75) -> 0 | L75: =IF(Calculations!$C$9=FALSE,'Previous Non-Munic rates'!L75,'Previous Munic rates'!L75) -> 0 | M75: =IF(Calculations!$C$9=FALSE,'Previous Non-Munic rates'!M75,'Previous Munic rates'!M75) -> 236.74 | N75: =IF(Calculations!$C$9=FALSE,'Previous Non-Munic rates'!N75,'Previous Munic rates'!N75) -> 4639.2 | O75: =IF(Calculations!$C$9=FALSE,'Previous Non-Munic rates'!O75,'Previous Munic rates'!O75) -> 329.05 | P75: =IF(Calculations!$C$9=FALSE,'Previous Non-Munic rates'!P75,'Previous Munic rates'!P75) -> 99.66 | Q75: =IF(Calculations!$C$9=FALSE,'Previous Non-Munic rates'!Q75,'Previous Munic rates'!Q75) -> 54.08 | R75: =IF(Calculations!$C$9=FALSE,'Previous Non-Munic rates'!R75,'Previous Munic rates'!R75) -> 107.29 | S75: =IF(Calculations!$C$9=FALSE,'Previous Non-Munic rates'!S75,'Previous Munic rates'!S75) -> 73.83 | T75: =IF(Calculations!$C$9=FALSE,'Previous Non-Munic rates'!T75,'Previous Munic rates'!T75) -> 46.81 | U75: =IF(Calculations!$C$9=FALSE,'Previous Non-Munic rates'!U75,'Previous Munic rates'!U75) -> 11.02 | V75: =IF(Calculations!$C$9=FALSE,'Previous Non-Munic rates'!V75,'Previous Munic rates'!V75) -> 9.22 | W75: =IF(Calculations!$C$9=FALSE,'Previous Non-Munic rates'!W75,'Previous Munic rates'!W75) -> 0 | X75: =IF(Calculations!$C$9=FALSE,'Previous Non-Munic rates'!X75,'Previous Munic rates'!X75) -> 0 | Y75: =IF(Calculations!$C$9=FALSE,'Previous Non-Munic rates'!Y75,'Previous Munic rates'!Y75) -> 0 | AA75: =IF(Calculations!$C$9=FALSE,'Previous Non-Munic rates'!AA75,'Previous Munic rates'!AA75) -> 4826.83 | AB75: =IF(Calculations!$C$9=FALSE,'Previous Non-Munic rates'!AB75,'Previous Munic rates'!AB75) -> 0 | AC75: =IF(Calculations!$C$9=FALSE,'Previous Non-Munic rates'!AC75,'Previous Munic rates'!AC75) -> 0 | AD75: =IF(Calculations!$C$9=FALSE,'Previous Non-Munic rates'!AD75,'Previous Munic rates'!AD75) -> 30.4167 | AE75: =IF(Calculations!$C$9=FALSE,'Previous Non-Munic rates'!AE75,'Previous Munic rates'!AE75) -> 0.42 | AF75: =IF(Calculations!$C$9=FALSE,'Previous Non-Munic rates'!AF75,'Previous Munic rates'!AF75) -> 0 | AG75: =IF(Calculations!$C$9=FALSE, 'Previous Non-Munic rates'!AG75, 'Previous Munic rates'!AG75) -> 0 | AH75: =IF(Calculations!$C$9=FALSE, 'Previous Non-Munic rates'!AH75, 'Previous Munic rates'!AH75) -> 0 | AI75: =IF(Calculations!$C$9=FALSE, 'Previous Non-Munic rates'!AI75, 'Previous Munic rates'!AI75) -> 0 | AJ75: =IF(Calculations!$C$9=FALSE, 'Previous Non-Munic rates'!AJ75, 'Previous Munic rates'!AJ75) -> 4.34 | AM75: 73
A76: Transflex 121 | B76: Transflex 1 | C76: 2 | D76: 1 | E76: =IF(Calculations!$C$9=FALSE,'Previous Non-Munic rates'!E76,'Previous Munic rates'!E76) -> 0 | F76: =IF(Calculations!$C$9=FALSE,'Previous Non-Munic rates'!F76,'Previous Munic rates'!F76) -> 0 | G76: =IF(Calculations!$C$9=FALSE,'Previous Non-Munic rates'!G76,'Previous Munic rates'!G76) -> 0 | H76: =IF(Calculations!$C$9=FALSE,'Previous Non-Munic rates'!H76,'Previous Munic rates'!H76) -> 106.69 | I76: =IF(Calculations!$C$9=FALSE,'Previous Non-Munic rates'!I76,'Previous Munic rates'!I76) -> 148.16 | J76: =IF(Calculations!$C$9=FALSE,'Previous Non-Munic rates'!J76,'Previous Munic rates'!J76) -> 0 | K76: =IF(Calculations!$C$9=FALSE,'Previous Non-Munic rates'!K76,'Previous Munic rates'!K76) -> 0 | L76: =IF(Calculations!$C$9=FALSE,'Previous Non-Munic rates'!L76,'Previous Munic rates'!L76) -> 0 | M76: =IF(Calculations!$C$9=FALSE,'Previous Non-Munic rates'!M76,'Previous Munic rates'!M76) -> 236.74 | N76: =IF(Calculations!$C$9=FALSE,'Previous Non-Munic rates'!N76,'Previous Munic rates'!N76) -> 4639.2 | O76: =IF(Calculations!$C$9=FALSE,'Previous Non-Munic rates'!O76,'Previous Munic rates'!O76) -> 369.87 | P76: =IF(Calculations!$C$9=FALSE,'Previous Non-Munic rates'!P76,'Previous Munic rates'!P76) -> 112.41 | Q76: =IF(Calculations!$C$9=FALSE,'Previous Non-Munic rates'!Q76,'Previous Munic rates'!Q76) -> 61.28 | R76: =IF(Calculations!$C$9=FALSE,'Previous Non-Munic rates'!R76,'Previous Munic rates'!R76) -> 121.02 | S76: =IF(Calculations!$C$9=FALSE,'Previous Non-Munic rates'!S76,'Previous Munic rates'!S76) -> 83.45 | T76: =IF(Calculations!$C$9=FALSE,'Previous Non-Munic rates'!T76,'Previous Munic rates'!T76) -> 53.15 | U76: =IF(Calculations!$C$9=FALSE,'Previous Non-Munic rates'!U76,'Previous Munic rates'!U76) -> 11.02 | V76: =IF(Calculations!$C$9=FALSE,'Previous Non-Munic rates'!V76,'Previous Munic rates'!V76) -> 9.22 | W76: =IF(Calculations!$C$9=FALSE,'Previous Non-Munic rates'!W76,'Previous Munic rates'!W76) -> 0 | X76: =IF(Calculations!$C$9=FALSE,'Previous Non-Munic rates'!X76,'Previous Munic rates'!X76) -> 0 | Y76: =IF(Calculations!$C$9=FALSE,'Previous Non-Munic rates'!Y76,'Previous Munic rates'!Y76) -> 0 | AA76: =IF(Calculations!$C$9=FALSE,'Previous Non-Munic rates'!AA76,'Previous Munic rates'!AA76) -> 6093.26 | AB76: =IF(Calculations!$C$9=FALSE,'Previous Non-Munic rates'!AB76,'Previous Munic rates'!AB76) -> 0 | AC76: =IF(Calculations!$C$9=FALSE,'Previous Non-Munic rates'!AC76,'Previous Munic rates'!AC76) -> 0 | AD76: =IF(Calculations!$C$9=FALSE,'Previous Non-Munic rates'!AD76,'Previous Munic rates'!AD76) -> 30.4167 | AE76: =IF(Calculations!$C$9=FALSE,'Previous Non-Munic rates'!AE76,'Previous Munic rates'!AE76) -> 0.48 | AF76: =IF(Calculations!$C$9=FALSE,'Previous Non-Munic rates'!AF76,'Previous Munic rates'!AF76) -> 0 | AG76: =IF(Calculations!$C$9=FALSE, 'Previous Non-Munic rates'!AG76, 'Previous Munic rates'!AG76) -> 0 | AH76: =IF(Calculations!$C$9=FALSE, 'Previous Non-Munic rates'!AH76, 'Previous Munic rates'!AH76) -> 0 | AI76: =IF(Calculations!$C$9=FALSE, 'Previous Non-Munic rates'!AI76, 'Previous Munic rates'!AI76) -> 0 | AJ76: =IF(Calculations!$C$9=FALSE, 'Previous Non-Munic rates'!AJ76, 'Previous Munic rates'!AJ76) -> 4.34 | AM76: 74
A77: Transflex 122 | B77: Transflex 1 | C77: 2 | D77: 2 | E77: =IF(Calculations!$C$9=FALSE,'Previous Non-Munic rates'!E77,'Previous Munic rates'!E77) -> 0 | F77: =IF(Calculations!$C$9=FALSE,'Previous Non-Munic rates'!F77,'Previous Munic rates'!F77) -> 0 | G77: =IF(Calculations!$C$9=FALSE,'Previous Non-Munic rates'!G77,'Previous Munic rates'!G77) -> 0 | H77: =IF(Calculations!$C$9=FALSE,'Previous Non-Munic rates'!H77,'Previous Munic rates'!H77) -> 106.69 | I77: =IF(Calculations!$C$9=FALSE,'Previous Non-Munic rates'!I77,'Previous Munic rates'!I77) -> 148.16 | J77: =IF(Calculations!$C$9=FALSE,'Previous Non-Munic rates'!J77,'Previous Munic rates'!J77) -> 0 | K77: =IF(Calculations!$C$9=FALSE,'Previous Non-Munic rates'!K77,'Previous Munic rates'!K77) -> 0 | L77: =IF(Calculations!$C$9=FALSE,'Previous Non-Munic rates'!L77,'Previous Munic rates'!L77) -> 0 | M77: =IF(Calculations!$C$9=FALSE,'Previous Non-Munic rates'!M77,'Previous Munic rates'!M77) -> 236.74 | N77: =IF(Calculations!$C$9=FALSE,'Previous Non-Munic rates'!N77,'Previous Munic rates'!N77) -> 4639.2 | O77: =IF(Calculations!$C$9=FALSE,'Previous Non-Munic rates'!O77,'Previous Munic rates'!O77) -> 364.06 | P77: =IF(Calculations!$C$9=FALSE,'Previous Non-Munic rates'!P77,'Previous Munic rates'!P77) -> 110.2 | Q77: =IF(Calculations!$C$9=FALSE,'Previous Non-Munic rates'!Q77,'Previous Munic rates'!Q77) -> 59.8 | R77: =IF(Calculations!$C$9=FALSE,'Previous Non-Munic rates'!R77,'Previous Munic rates'!R77) -> 118.67 | S77: =IF(Calculations!$C$9=FALSE,'Previous Non-Munic rates'!S77,'Previous Munic rates'!S77) -> 81.61 | T77: =IF(Calculations!$C$9=FALSE,'Previous Non-Munic rates'!T77,'Previous Munic rates'!T77) -> 51.73 | U77: =IF(Calculations!$C$9=FALSE,'Previous Non-Munic rates'!U77,'Previous Munic rates'!U77) -> 11.02 | V77: =IF(Calculations!$C$9=FALSE,'Previous Non-Munic rates'!V77,'Previous Munic rates'!V77) -> 9.22 | W77: =IF(Calculations!$C$9=FALSE,'Previous Non-Munic rates'!W77,'Previous Munic rates'!W77) -> 0 | X77: =IF(Calculations!$C$9=FALSE,'Previous Non-Munic rates'!X77,'Previous Munic rates'!X77) -> 0 | Y77: =IF(Calculations!$C$9=FALSE,'Previous Non-Munic rates'!Y77,'Previous Munic rates'!Y77) -> 0 | AA77: =IF(Calculations!$C$9=FALSE,'Previous Non-Munic rates'!AA77,'Previous Munic rates'!AA77) -> 5583.92 | AB77: =IF(Calculations!$C$9=FALSE,'Previous Non-Munic rates'!AB77,'Previous Munic rates'!AB77) -> 0 | AC77: =IF(Calculations!$C$9=FALSE,'Previous Non-Munic rates'!AC77,'Previous Munic rates'!AC77) -> 0 | AD77: =IF(Calculations!$C$9=FALSE,'Previous Non-Munic rates'!AD77,'Previous Munic rates'!AD77) -> 30.4167 | AE77: =IF(Calculations!$C$9=FALSE,'Previous Non-Munic rates'!AE77,'Previous Munic rates'!AE77) -> 0.47 | AF77: =IF(Calculations!$C$9=FALSE,'Previous Non-Munic rates'!AF77,'Previous Munic rates'!AF77) -> 0 | AG77: =IF(Calculations!$C$9=FALSE, 'Previous Non-Munic rates'!AG77, 'Previous Munic rates'!AG77) -> 0 | AH77: =IF(Calculations!$C$9=FALSE, 'Previous Non-Munic rates'!AH77, 'Previous Munic rates'!AH77) -> 0 | AI77: =IF(Calculations!$C$9=FALSE, 'Previous Non-Munic rates'!AI77, 'Previous Munic rates'!AI77) -> 0 | AJ77: =IF(Calculations!$C$9=FALSE, 'Previous Non-Munic rates'!AJ77, 'Previous Munic rates'!AJ77) -> 4.34 | AM77: 75
